Workbook

Sheet Template G (hidden)
B2: APPENDIX 1: SUMMARY OF PROFIT & LOSS ACCOUNTS UNDER GENERAL INSURANCE BUSINESS FOR THE YEAR ENDED 31.12.2014
B3: Company | C3: Profit Transferred from Revenue | D3: Investment Income | E3: Other Income | F3: Total Income | G3: Loss Transferred From Revenue | H3: Management Expenses | I3: Total Outgo | J3: Profit / (Loss) Before Taxation | K3: Provision for Taxation | L3: Profit/(Loss) After Taxation | M3: Unappropriated Profit/(Loss) BF | N3: Transfer To Reserves | O3: Other Appropriations | P3: Dividend | Q3: Unappropriated Profit /(Loss) CF
B4: INSURERS
B5: AAR INSURANCE KENYA | C5: 130234 | D5: 0 | E5: 0 | F5: 130234 | G5: 0 | H5: 0 | I5: 0 | J5: 130234 | K5: 46204 | L5: 84030 | M5: 44501 | N5: 634323 | O5: 0 | P5: 0 | Q5: -505792
B6: AFRICAN MERCHANT ASSURANCE | C6: 142654 | D6: 0 | E6: 0 | F6: 142654 | G6: 0 | H6: 0 | I6: 0 | J6: 142654 | K6: 39308 | L6: 103346 | M6: 318291 | N6: 0 | O6: 0 | P6: 0 | Q6: 421637
B7: AIG INSURANCE COMPANY | C7: 170766 | D7: 670630 | E7: 0 | F7: 841396 | G7: 0 | H7: 0 | I7: 0 | J7: 841396 | K7: 146702 | L7: 694694 | M7: 954171 | N7: 0 | O7: 0 | P7: 400000 | Q7: 1248865
B8: ALLIANZ INSURANCE COMPANY
B9: APA INSURANCE COMPANY | C9: 38749 | D9: 1034052 | E9: 0 | F9: 1072800 | G9: 0 | H9: -2138 | I9: 234936 | J9: 837864 | K9: 61671 | L9: 776193 | M9: 2283021 | N9: 0 | O9: 0 | P9: 80000 | Q9: 2979214
B10: BRITISH AMERICAN INSURANCE | C10: 339613 | D10: 251553 | E10: 0 | F10: 591166 | G10: 0 | H10: 0 | I10: 0 | J10: 591166 | K10: 78039 | L10: 513127 | M10: 825170 | N10: 0 | O10: 0 | P10: 0 | Q10: 1338298
B11: CANNON ASSURANCE COMPANY | C11: 74763 | D11: 0 | E11: 46931 | F11: 191885 | G11: 0 | H11: 0 | I11: 70189 | J11: 121695 | K11: 1928 | L11: 119767 | M11: 1084652 | N11: 0 | O11: 0 | P11: 781269 | Q11: 423150
B12: CIC GENERAL INSURANCE COMPANY | C12: 125132 | D12: 719643 | E12: 0 | F12: 844775 | G12: 0 | H12: 0 | I12: 0 | J12: 844775 | K12: 241425 | L12: 603350 | M12: 1877149 | N12: 0 | O12: 0 | P12: 405000 | Q12: 2075499
B13: CORPORATE INSURANCE COMPANY | C13: 205038 | D13: 0 | E13: 0 | F13: 205038 | G13: 0 | H13: 0 | I13: 0 | J13: 205038 | K13: 46383 | L13: 158655 | M13: 385905 | N13: 0 | O13: 0 | P13: 39000 | Q13: 505560
B14: DIRECTLINE ASSURANCE COMPANY | C14: 0 | D14: 638364 | E14: 0 | F14: 638365 | G14: 79947 | H14: 24146 | I14: 187546 | J14: 450818 | K14: 70096 | L14: 380723 | M14: 0 | N14: 0 | O14: 0 | P14: 0 | Q14: 380723
B15: FIDELITY SHIELD INSURANCE | C15: 101808 | D15: 179215 | E15: 7034 | F15: 288058 | G15: 0 | H15: 29416 | I15: 86512 | J15: 201545 | K15: 51745 | L15: 149800 | M15: 537207 | N15: 149548 | O15: 0 | P15: 45000 | Q15: 492459
B16: FIRST ASSURANCE COMPANY | C16: 67728 | D16: 447203 | E16: 0 | F16: 514930 | G16: 0 | H16: 0 | I16: 0 | J16: 514930 | K16: 98026 | L16: 416904 | M16: 827541 | N16: 0 | O16: 8093 | P16: 80251 | Q16: 1156101
B17: GA INSURANCE COMPANY | C17: 603861 | D17: 0 | E17: 0 | F17: 603861 | G17: 0 | H17: 0 | I17: 0 | J17: 603861 | K17: 158971 | L17: 444890 | M17: 677157 | N17: 6241 | O17: 0 | P17: 225000 | Q17: 890806
B18: GATEWAY INSURANCE COMPANY | C18: 25450 | D18: 0 | E18: 0 | F18: 25450 | G18: 0 | H18: 0 | I18: 0 | J18: 25450 | K18: 5318 | L18: 20132 | M18: 279570 | N18: 0 | O18: 0 | P18: 0 | Q18: 299702
B19: GEMINIA INSURANCE COMPANY | C19: 345161 | D19: 0 | E19: 291 | F19: 345452 | G19: 0 | H19: 633 | I19: 6435 | J19: 339017 | K19: 103330 | L19: 235686 | M19: 409368 | N19: 0 | O19: 2886 | P19: 90000 | Q19: 552169
B20: HERITAGE INSURANCE COMPANY | C20: 714803 | D20: 0 | E20: 1654 | F20: 716456 | G20: 0 | H20: 4023 | I20: 14466 | J20: 701990 | K20: 187852 | L20: 514138 | M20: 1285450 | N20: 0 | O20: 0 | P20: 230000 | Q20: 1569588
B21: ICEA LION GENERAL INSURANCE | C21: 300512 | D21: 742458 | E21: 0 | F21: 1042969 | G21: 0 | H21: 174555 | I21: 216797 | J21: 826173 | K21: 242956 | L21: 583217 | M21: 1850557 | N21: 0 | O21: 0 | P21: 200000 | Q21: 2233774
B22: INTRA-AFRICA ASSURANCE | C22: 0 | D22: 25075 | E22: 35589 | F22: 60664 | G22: 11756 | H22: 6540 | I22: 44468 | J22: 16196 | K22: 1648 | L22: 14548 | M22: 137625 | N22: 28100 | O22: -21036 | P22: 7500 | Q22: 137608
B23: INVESCO ASSURANCE COMPANY | C23: 0 | D23: 31010 | E23: 1443 | F23: 32453 | G23: 28200 | H23: 0 | I23: 101914 | J23: -69461 | K23: 26760 | L23: -96221 | M23: -1210798 | N23: 0 | O23: 0 | P23: 0 | Q23: -1307019
B24: JUBILEE INSURANCE COMPANY | C24: 1732918 | D24: 0 | E24: 139646 | F24: 1872564 | G24: 0 | H24: 0 | I24: 0 | J24: 1872564 | K24: 412337 | L24: 1460227 | M24: 3374754 | N24: -48 | O24: 1200000 | P24: 1000000 | Q24: 2635029
B25: KENINDIA ASSURANCE COMPANY | C25: 0 | D25: 0 | E25: 7636 | F25: 7636 | G25: 273201 | H25: 14741 | I25: 368270 | J25: -360634 | K25: -107940 | L25: -252694 | M25: 1172502 | N25: 0 | O25: -3585 | P25: 28069 | Q25: 895324
B26: KENYA ORIENT INSURANCE | C26: 237761 | D26: 0 | E26: 2666 | F26: 240427 | G26: 0 | H26: 98497 | I26: 98497 | J26: 141930 | K26: 52814 | L26: 89116 | M26: -17547 | N26: 0 | O26: 0 | P26: 0 | Q26: 71569
B27: MADISON INSURANCE COMPANY | C27: 12753 | D27: 0 | E27: 21396 | F27: 34149 | G27: 0 | H27: 0 | I27: 0 | J27: 34149 | K27: 0 | L27: 34149 | M27: 381408 | N27: 0 | O27: 0 | P27: 0 | Q27: 415557
B28: MAYFAIR INSURANCE COMPANY | C28: 188190 | D28: 192898 | E28: 1359 | F28: 382447 | G28: 0 | H28: 1286 | I28: 22336 | J28: 360110 | K28: 102410 | L28: 257701 | M28: 275513 | N28: 0 | O28: 0 | P28: 20000 | Q28: 513214
B29: OCCIDENTAL INSURANCE COMPANY | C29: 311911 | D29: 0 | E29: 34062 | F29: 345973 | G29: 0 | H29: 32976 | I29: 34373 | J29: 311600 | K29: 67905 | L29: 243695 | M29: 323724 | N29: 0 | O29: 0 | P29: 79695 | Q29: 487724
B30: PACIS INSURANCE COMPANY | C30: 119902 | D30: 0 | E30: 70627 | F30: 190529 | G30: 0 | H30: 19908 | I30: 19908 | J30: 170621 | K30: 50513 | L30: 120108 | M30: 352876 | N30: 0 | O30: 0 | P30: 0 | Q30: 472984
B31: PHOENIX OF EAST AFRICA | C31: 0 | D31: 113772 | E31: 943479 | F31: 1057251 | G31: 179641 | H31: 77166 | I31: 256807 | J31: 800444 | K31: 21357 | L31: 779087 | M31: 647918 | N31: 0 | O31: 0 | P31: 305000 | Q31: 1122005
B32: REAL INSURANCE COMPANY | C32: -58634 | D32: 102770 | E32: 58505 | F32: 102640 | G32: 0 | H32: 5420 | I32: 77089 | J32: 25552 | K32: 10450 | L32: 15101 | M32: 37508 | N32: 0 | O32: -8204 | P32: 25898 | Q32: 34916
B33: RESOLUTION HEALTH INSURANCE | C33: 0 | D33: 0 | E33: 0 | F33: 0 | G33: 138004 | H33: 0 | I33: 138004 | J33: -138004 | K33: -37685 | L33: -100319 | M33: 45411 | N33: 0 | O33: 0 | P33: 0 | Q33: -54908
B34: SAHAM ASSURANCE | C34: 21354 | D34: 0 | E34: 0 | F34: 21354 | G34: 0 | H34: 0 | I34: 0 | J34: 21354 | K34: 2544 | L34: 18810 | M34: 139368 | N34: 8988 | O34: 0 | P34: 9000 | Q34: 140190
B35: TAKAFUL INSURANCE OF AFRICA | C35: 0 | D35: 0 | E35: 0 | F35: 0 | G35: 20487 | H35: -22351 | I35: -1864 | J35: 1864 | K35: 4966 | L35: -3102 | M35: -139324 | N35: 0 | O35: 0 | P35: 0 | Q35: -142426
B36: TAUSI ASSURANCE COMPANY | C36: 35509 | D36: 170757 | E36: 0 | F36: 206265 | G36: 0 | H36: 5631 | I36: 19943 | J36: 186323 | K36: 53012 | L36: 133310 | M36: 176183 | N36: 0 | O36: -2999 | P36: 50224 | Q36: 262268
B37: THE KENYAN ALLIANCE INSURANCE | C37: 175734 | D37: 0 | E37: 0 | F37: 175734 | G37: 0 | H37: 0 | I37: 0 | J37: 175734 | K37: 73633 | L37: 102102 | M37: 955596 | N37: 0 | O37: 0 | P37: 10526 | Q37: 1047171
B38: THE MONARCH INSURANCE | C38: 99555 | D38: 9578 | E38: 46957 | F38: 156091 | G38: 0 | H38: 3702 | I38: 27420 | J38: 128672 | K38: 36001 | L38: 92671 | M38: 10403 | N38: 0 | O38: 0 | P38: 50000 | Q38: 53074
B39: TRIDENT INSURANCE COMPANY | C39: 47022 | D39: 155654 | E39: 21399 | F39: 224074 | G39: 0 | H39: 30356 | I39: 38052 | J39: 186022 | K39: 43613 | L39: 142409 | M39: 1246161 | N39: -4181 | O39: 0 | P39: 0 | Q39: 1392751
B40: UAP INSURANCE COMPANY | C40: 303159 | D40: 1138224 | E40: 6032 | F40: 1447415 | G40: 0 | H40: 310003 | I40: 343343 | J40: 1104072 | K40: 249503 | L40: 854569 | M40: 3178379 | N40: -1916845 | O40: -50810 | P40: 1000000 | Q40: 5000603
B41: XPLICO INSURANCE COMPANY | C41: -54329 | D41: 34591 | E41: 0 | F41: -19739 | G41: 0 | H41: 0 | I41: 0 | J41: -19739 | K41: -3519 | L41: -16220 | M41: 71835 | N41: 0 | O41: 0 | P41: 0 | Q41: 55615
B42: TOTAL | C42: =SUM(C5:C41) -> 6559077 | D42: =SUM(D5:D41) -> 6657447 | E42: =SUM(E5:E41) -> 1446706 | F42: 14733416 | G42: 731236 | H42: 814510 | I42: 2405441 | J42: 12327975 | K42: 2640276 | L42: 9687699 | M42: 24799205 | N42: -1093874 | O42: 1124345 | P42: 5161432 | Q42: 29295002
B43: REINSURERS
B44: CONTINENTAL REINSURANCE | C44: 147757 | D44: 52992 | E44: 1081 | F44: 201830 | G44: 0 | H44: 51501 | I44: 71033 | J44: 130797 | K44: 39763 | L44: 91034 | M44: 53655 | N44: 0 | O44: 0 | P44: 53215 | Q44: 91474
B45: EAST AFRICA REINSURANCE | C45: 151629 | D45: 322940 | E45: 35273 | F45: 509842 | G45: 0 | H45: 24718 | I45: 63308 | J45: 446534 | K45: 125724 | L45: 320810 | M45: 880517 | N45: 0 | O45: 0 | P45: 60000 | Q45: 1141326
B46: KENYA REINSURANCE CORPORATION | C46: 2245528 | D46: 144921 | E46: 906884 | F46: 3297333 | G46: 0 | H46: 0 | I46: 0 | J46: 3297333 | K46: 569810 | L46: 2727523 | M46: 11098665 | N46: -35689 | O46: 0 | P46: 419959 | Q46: 13441918
B47: TOTAL | C47: =SUM(C44:C46) -> 2544914 | D47: =SUM(D44:D46) -> 520853 | E47: =SUM(E44:E46) -> 943238 | F47: 4009005 | G47: 0 | H47: 76219 | I47: 134341 | J47: 3874664 | K47: 735297 | L47: 3139367 | M47: 12032837 | N47: -35689 | O47: 0 | P47: 533174 | Q47: 14674718
B48: GRAND TOTAL | C48: =C42+C47 -> 9103991 | D48: =D42+D47 -> 7178300 | E48: 2389944 | F48: 18742421 | G48: 731236 | H48: 890729 | I48: 2539782 | J48: 16202639 | K48: 3375573 | L48: 12827066 | M48: 36832042 | N48: -1129563 | O48: 1124345 | P48: 5694606 | Q48: 43969720
B49: Amounts in Thousand Shillings

Sheet Details
E7: INSURANCE REGULATORY AUTHORITY | L7: Quarterly | M7: 2010
L8: Annual | M8: 2011
M9: 2012
M10: 2013
M11: 2015
E12: TYPE OF INDUSTRY STATISTICS | F12: ANNUAL AUDITED | M12: 2016
M13: 2017
M14: 2018
M15: 2019
E16: FOR THE YEAR | F16: 2022 | M16: 2020
M17: 2021
E19: PERIOD ENDED | F19: 31st DECEMBER 2022 | M19: 2022
M20: 2023
E22: PREPARED BY | F22: INSURANCE REGULATORY AUTHORITY
F23: September, 2023
M24: 2024
M25: 2025
M26: 2026
M27: 2027
M28: 2028
M29: 2029
M30: 2030
M31: 2031
M32: 2032
M33: 2033
M34: 2034
M35: 2035
M36: 2036
M37: 2037
M38: 2038
M39: 2039
M40: 2040
M41: 2041
M42: 2042
M43: 2043
M44: 2044
M45: 2045
M46: 2046
M47: 2047
M48: 2048
M49: 2049
M50: 2050
M51: 2051
M52: 2052

Sheet Reliance & Limitations
B3: RELIANCE AND LIMITATIONS
B4: The insurance information contained in this workbook has been extracted from the annual audited returns submitted to the Authority in line with Section 54 of the Insurance Act. No adjustments have been made to the returns’ data except where necessary in consultation with the affected insurer(s) or reinsurer(s). The publication of any summary of the returns in this report does not necessarily mean that the returns so summarized have satisfied all the requirements of the Insurance Act, or that the Commissioner of Insurance approves the accuracy or the contents of the returns Where necessary, figures have been adjusted to eliminate errors in totals due to rounding off, and are given in thousands Kenya shillings (‘000’ KES) except where otherwise stated. In addition, the report incorporated data from all the regulated general insurance companies except for Healthier (K) Micro Insurance, Star Discover General, The Monarch Insurance Company and all of the regulated long term insurance companies except for Star Discover Life who did not submit their returns by the date of this report. The report incorporated quarter 4 2022 unaudited data for Trident Insurance Company Limited, Xplico Insurance Company and The Monarch Insurance Company Limited – Life which had not met the annual submission requirements but the Q4 2022 submission requirements were met.

Sheet Contents
B2: INSURANCE REGULATORY AUTHORITY
B4: 2022 DATA
B5: TABLE of CONTENTS
B6: Link | C6: Description
B8: Trends 1 | C8: Economy and Insurance Industry Trends
B9: Trends 2 | C9: Trends in Long-Term Insurance Business
B10: Trends 3 | C10: Trends in General Insurance Business
B11: Trends 4 | C11: Trends in Re-Insurance Business
B12: APPENDIX 1 | C12: Summary of Profit & Loss Accounts under General Insurance Business for the Year Ended 31.12.2022
B13: APPENDIX 2 | C13: Summary of Profit & Loss Accounts Long-Term Insurance Business for the Year Ended 31.12.2022
B14: APPENDIX 3 | C14: Summary of Net Commissions And Management Expenses for the Year Ended 31.12.2022
B15: APPENDIX 4 I | C15: Summary of Long Term Insurance Business Balance Sheets as at 31.12.2022
B16: APPENDIX 4 II | C16: Summary of Long Term Insurance Business Balance Sheets as at 31.12.2022
B17: APPENDIX 4 III | C17: Summary of Long Term Insurance Business Balance Sheets as at 31.12.2022
B18: APPENDIX 5 I | C18: Summary of General Insurance Business Balance Sheets as at 31.12.2022
B19: APPENDIX 5 II | C19: Summary of General Insurance Business Balance Sheets as at 31.12.2022
B20: APPENDIX 5 III | C20: Summary of General Insurance Business Balance Sheets as at 31.12.2022
B21: APPENDIX 5 IV | C21: Summary of General Insurance Business Balance Sheets as at 31.12.2022
B22: APPENDIX 6 | C22: Summary of Long Term Business Gross Direct Premiums for the Year Ended 31.12.2022
B23: APPENDIX 7 | C23: Summary of Long Term Business Inward Reinsurance Premiums for the Year Ended 31.12.2022
B24: APPENDIX 8 | C24: Summary of Long Term Business Outward Reinsurance Premiums for the Year Ended 31.12.2022
B25: APPENDIX 9 | C25: Summary of Life assurances Business Revenue Accounts for the Year Ended 31.12.2022
B26: APPENDIX 10 | C26: Summary of Annuities Business Revenue Accounts for the Year Ended 31.12.2022
B27: APPENDIX 11 | C27: Summary of Group Life Business Revenue Accounts for the Year Ended 31.12.2022
B28: APPENDIX 12 | C28: Summary of Personal Pensions Business Revenue Accounts for the Year Ended 31.12.2022
B29: APPENDIX 13 | C29: Summary of Deposit Administration Business Revenue Accounts for the Year Ended 31.12.2022
B30: APPENDIX 14 | C30: Summary of Group Credit Business Revenue Accounts for the Year Ended 31.12.2022
B31: APPENDIX 15 | C31: Summary of Permanent Health Business Revenue Accounts for the Year Ended 31.12.2022
B32: APPENDIX 16 | C32: Summary of Investments Business Revenue Accounts for the Year Ended 31.12.2022
B33: APPENDIX 17 | C33: Summary of Long Term Business Combined Revenue Accounts for the Year Ended 31.12.2022
B34: APPENDIX 18 | C34: Summary of Long Term Insurance Business Actuarial Valuations as at 31.12.2022
B35: APPENDIX 19 | C35: Summary of Gross Direct Premiums under General Insurance Business for the Year Ended 31.12.2022
B36: APPENDIX 20 | C36: Summary of Inward Reinsurance Premiums under General Insurance Business for the Year Ended 31.12.2022
B37: APPENDIX 21 | C37: Summary of Gross Premium Incomes under General Insurance Business for the Year Ended 31.12.2022
B38: APPENDIX 22 | C38: Summary of Outward Reinsurance Premiums under General Insurance Business for the Year Ended 31.12.2022
B39: APPENDIX 23 | C39: Summary of Aviation Business Revenue Accounts for the Year Ended 31.12.2022
B40: APPENDIX 24 | C40: Summary of Engineering Business Revenue Accounts for the Year Ended 31.12.2022
B41: APPENDIX 25 | C41: Summary of Fire Domestic Business Revenue Accounts for the Year Ended 31.12.2022
B42: APPENDIX 26 | C42: Summary of Fire Industrial Business Revenue Accounts for the Year Ended 31.12.2022
B43: APPENDIX 27 | C43: Summary of Liability Business Revenue Accounts for the Year Ended 31.12.2022
B44: APPENDIX 28 | C44: Summary of Marine Business Revenue Accounts for the Year Ended 31.12.2022
B45: APPENDIX 29 | C45: Summary of Motor Private Business Revenue Accounts for the Year Ended 31.12.2022
B46: APPENDIX 30 | C46: Summary of Motor Commercial Business Revenue Accounts for the Year Ended 31.12.2022
B47: APPENDIX 31 | C47: Summary of Motor Psv Business Revenue Accounts for the Year Ended 31.12.2022
B48: APPENDIX 32 | C48: Summary of Personal Accident Business Revenue Accounts for the Year Ended 31.12.2022
B49: APPENDIX 33 | C49: Summary of Theft Business Revenue Accounts for the Year Ended 31.12.2022
B50: APPENDIX 34 | C50: Summary of Workmen'S Compensation Business Revenue Accounts for the Year Ended 31.12.2022
B51: APPENDIX 35 | C51: Summary of Medical Insurance Business Revenue Accounts for the Year Ended 31.12.2022
B52: APPENDIX 36 | C52: Summary of Miscellaneous Business Revenue Accounts for the Year Ended 31.12.2022
B53: APPENDIX 37 | C53: Summary of General Business Combined Revenue Accounts for the Year Ended 31.12.2022
B54: APPENDIX 38 | C54: Summary of Net Earned Premiums under General Insurance Business for the Year Ended 31.12.2022
B55: APPENDIX 39 | C55: Summary of Net Paid Claims under General Insurance Business for the Year Ended 31.12.2022
B56: APPENDIX 40 | C56: Summary of Net Incurred Claims under General Insurance Business for the Year Ended 31.12.2022
B57: APPENDIX 41 | C57: Summary of Incurred Claims Ratios under General Insurance Business for the Year Ended 31.12.2022
B58: APPENDIX 42 | C58: Summary of Underwriting Profits under General Insurance Business for the Year Ended 31.12.2022
B59: APPENDIX 43 | C59: Summary of Business in Force For General Insurers as at 31.12.2022
B60: APPENDIX 44 | C60: Summary of Business in Force for Long term Insurers as at 31.12.2022
B61: APPENDIX 45 | C61: Summary of Claim Numbers under Motor Classes Business for the Year Ended 31.12.2022
B62: APPENDIX 46 | C62: Summary of Claim Amounts Under Motor Classes Business for the Year Ended 31.12.2022
B63: APPENDIX 47I | C63: Directory of Regulated Insurance and Reinsurance Companies in Kenya
B64: APPENDIX 47II | C64: Directory of Regulated Insurance and Reinsurance Companies in Kenya
B65: APPENDIX 47III | C65: Directory of Regulated Insurance and Reinsurance Companies in Kenya
B66: APPENDIX 47IV | C66: Directory of Regulated Insurance and Reinsurance Companies in Kenya
B67: APPENDIX 47V | C67: Directory of Regulated Insurance and Reinsurance Companies in Kenya
B68: APPENDIX 47VI | C68: Directory of Regulated Insurance and Reinsurance Companies in Kenya
B69: APPENDIX 48I | C69: Directory of Insurance Groups in Kenya
B70: APPENDIX 48II | C70: Directory of Insurance Groups in Kenya
B71: APPENDIX 49 | C71: Directory of Other Insurance Industry Players in Kenya

Sheet T1
C3: Table 1: Economy and Insurance Industry Trends
C6: a) Economy and Insurance Indicators
D7: Years
D8: 2013 | E8: 2014 | F8: 2015 | G8: 2016 | H8: 2017 | I8: 2018 | J8: 2019 | K8: 2020 | L8: 2021 | M8: 2022
C9: Gross Direct Premium (KES Billion) | D9: 129.19 | E9: 155.8 | F9: 172.540122 | G9: 195.229647 | H9: 207.6 | I9: 214.9 | J9: 227.9 | K9: 233.1 | L9: 270.468284 | M9: =('APPENDIX 6'!K31+'APPENDIX 19'!Q43)/1000000 -> 306.693069
C10: Gross Direct Premium Growth Rate (%) | F10: 10.74462259 | G10: 13.15028918 | H10: =(H9/G9-1)*100 -> 6.336308645 | I10: 3.516377649 | J10: 6.049325268 | K10: 2.281702501 | L10: 16.03100987 | M10: =(M9/L9-1)*100 -> 13.3933578
C11: GDP (Market Prices) KES Billion* | D11: 4745.1434 | E11: 5402.41 | F11: 6284.2 | G11: 7022.96 | H11: 8483.4 | I11: 9340.3 | J11: 10237.73 | K11: 10715.07 | L11: 12027.6615 | M11: 13368.34
C12: GDP (%) growth rate (at market prices) | D12: 11.35253217 | E12: 13.85135379 | F12: 16.32215992 | G12: 11.8 | H12: =(H11/G11-1)*100 -> 20.79522025 | I12: 10.10090294 | J12: 9.608149631 | K12: 4.662557032 | L12: 12.2499573 | M12: =(M11/L11-1)*100 -> 11.14662647
C13: Insurance Penetration ratio (%) (at current prices) | D13: 2.722573147 | E13: 2.883898112 | F13: 2.745617931 | G13: 2.78 | H13: 2.55 | I13: 2.43 | J13: 2.34 | K13: 2.175440758 | L13: 2.248718789 | M13: =(M9/M11)*100 -> 2.294174662
C14: Population (Million)* | D14: 41.8 | E14: 43 | F14: 44.2 | G14: 45.4 | H14: 45.3 | I14: 46.4 | J14: 47.6 | K14: 48.8 | L14: 49.7 | M14: 50.6
C15: Insurance Density (KES) | D15: 3090.669856 | E15: 3623.255814 | F15: 3903.62267 | G15: 4300.212489 | H15: 4455 | I15: 4525 | J15: 4788 | K15: 4776.639344 | L15: 5442.017787 | M15: =(M9/M14)*1000 -> 6061.127846
C16: Lives Covered (Million) | D16: 2.058619 | E16: 2.470662 | F16: 4.390843 | G16: 3.82463 | H16: 4.26 | I16: 4.3 | J16: 11.65 | K16: 13.44 | L16: 13.478245 | M16: ='APPENDIX 44'!G31/1000000 -> 17.498368
C17: Policies (Million) | D17: 2.77243 | E17: 3.815534 | F17: 2.702272 | G17: 3.390335 | H17: 3.14 | I17: 3.43 | J17: 3.96 | L17: 4.07759 | M17: =('APPENDIX 43'!F43+'APPENDIX 44'!F31)/1000000 -> 4.031672
C18: Insurance cover (Lives/population) % | D18: 4.924925837 | E18: 5.745725581 | F18: 9.934033937 | G18: 8.424295154 | H18: 9.1 | I18: 9 | J18: 24.5 | K18: 27.54098361 | L18: 27.11920523 | M18: =(M16/M14)*100 -> 34.58175494
C19: Insurance Cover (policies/population) % | D19: 6.632607656 | E19: 8.873334884 | F19: 6.113737557 | G19: 7.467698238 | H19: 6.7 | I19: 7.1 | J19: 8.3 | L19: 8.204406439 | M19: =(M17/M14)*100 -> 7.967731225
C20: Rate of Inflation (%)* | D20: 5.7 | E20: 6.9 | F20: 6.6 | G20: 6.3 | H20: 8 | I20: 4.7 | J20: 5.2 | K20: 5.4 | L20: 5.62 | M20: 7.66
C21: Real Gross Direct Premium growth (%) | D21: 9.215685297 | E21: 12.81344198 | F21: 3.88801369 | G21: 6.444298385 | H21: =(((100+H10)/(100+H20))-1)*100 -> -1.540454959 | I21: =(((100+I10)/(100+I20))-1)*100 -> -1.130489351 | J21: =(((100+J10)/(100+J20))-1)*100 -> 0.8073434102 | K21: -2.958536526 | L21: =(((100+L10)/(100+L20))-1)*100 -> 9.857043995 | M21: =(((100+M10)/(100+M20))-1)*100 -> 5.325429868
C22: Sources: KNBS, CBK and IRA Statistics Population in 2022 is based on 2019 projections done by KNBS *information has been updated to reflect the most updated information available
D23: =D20/100 -> 0.057 | E23: =E20/100 -> 0.069 | G23: =G20/100 -> 0.063 | M23: =M20/100 -> 0.0766 | N23: =H11*N20 -> 0
B24: GDP 2011 | C24: 90.2 | D24: 0.2407 | E24: =(E9-D9)/D9 -> 0.2059756947 | F24: =(F9-E9)/E9 -> 0.1074462259 | G24: =(G9-F9)/F9 -> 0.1315028918 | H24: =(H9-G9)/G9 -> 0.06336308645 | M24: =(M9-H9)/H9 -> 0.477326922
C25: =((1+D24)/(1+D23)-1)*100 -> 17.37937559 | E25: =((1+E24)/(1+E23)-1)*100 -> 12.81344198 | F25: =((1+F24)/(1+F23)-1)*100 -> 10.74462259 | G25: =((1+G24)/(1+G23)-1)*100 -> 6.444298385 | M25: =((1+M24)/(1+M23)-1)*100 -> 37.2215235
C28: b) Trend in some key insurance indicators
C29: Item | D29: Years | N29: Annual Change 2022/2021 %
D30: 2013 | E30: 2014 | F30: 2015 | G30: 2016 | H30: 2017 | I30: 2018 | J30: 2019 | K30: 2020 | L30: 2021 | M30: 2022
C31: Gross Premium Income | D31: 135384923 | E31: 157732058 | F31: 174039164 | G31: 196635836 | H31: 209001296 | I31: 216261729 | J31: 229499718 | K31: 234775753 | L31: 273710831 | M31: ='APPENDIX 6'!$K$31+'APPENDIX 37'!$D$43+'APPENDIX 37'!$E$43 -> 310273121 | N31: =(M31/L31-1)*100 -> 13.35799898
C32: Net Premium Written | D32: 105013409 | E32: 126333481 | F32: 139377049 | G32: 158362431 | H32: 165852034 | I32: 172322202 | J32: 182658282 | K32: 187853004 | L32: 221133803 | M32: ='APPENDIX 17'!$E$31+'APPENDIX 37'!$G$43 -> 249190282 | N32: =(M32/L32-1)*100 -> 12.68755777
C33: Claims Incurred (general business) | D33: 34170145 | E33: 42677696 | F33: 48811202 | G33: 54857495 | H33: 56151966 | I33: 56927996 | J33: 58961582 | K33: 58311459 | L33: 69835740 | M33: =SUM('APPENDIX 40'!C43:P43) -> 77095546 | N33: 10.39554532
C34: Net commissions | D34: 7204448 | E34: 14332657 | F34: 10833473 | G34: 12578735 | H34: 12495182 | I34: 11487628 | J34: 10957562 | K34: 11157093 | L34: 13521938 | M34: ='APPENDIX 17'!$L$31+'APPENDIX 37'!$N$43 -> 15341053 | N34: 13.4530642
C35: Expenses of Management | D35: 24808273 | E35: 49249464 | F35: 35991670 | G35: 39982771 | H35: 41197258 | I35: 44072857 | J35: 45702207 | K35: 44173611 | L35: 46513554 | M35: ='APPENDIX 17'!$M$31+'APPENDIX 37'!$O$43 -> 50280745 | N35: 8.099125257
C36: Underwriting Results (general business) | D36: 3402770 | E36: 1604507 | F36: -274188 | G36: -2125731 | H36: -1027851 | I36: -2588861 | J36: -3165405 | K36: -1847726 | L36: -6333631 | M36: ='APPENDIX 37'!$P$43 -> -3270383 | N36: -48.36480054
C37: Investment Income(P&L) | D37: 9429214 | E37: 11095059 | F37: 6294523 | G37: 5338509 | H37: 6596592 | I37: 6967045 | J37: 9132215 | K37: 4879906 | L37: 7283075 | M37: ='APPENDIX 1'!$D$50+'APPENDIX 2'!$D$37 -> 7041440 | N37: -3.317760699
C38: Operating profit/loss after taxation | D38: 20235881 | E38: 17232015 | F38: 13564434 | G38: 12835309 | H38: 13642972 | I38: 7269268 | J38: 15119928 | K38: 6388955 | L38: 8645622 | M38: ='APPENDIX 1'!$L$50+'APPENDIX 2'!$L$37 -> 14715312 | N38: 70.20535943
C39: Investments | D39: 296336802 | E39: 355009404 | F39: 390225346 | G39: 425304138 | H39: 483799656 | I39: 524237249 | J39: 596011648 | K39: 656460833 | L39: 733461323 | M39: =SUM('APPENDIX 4 III'!$I$19,'APPENDIX 4 III'!$I$21:$I$33,'APPENDIX5 IV'!$K$19,'APPENDIX5 IV'!$K$21:$K$33) -> 833722972 | N39: 13.66965726
C40: Assets | D40: 366252339 | E40: 430536097 | F40: 478752455 | G40: 528748193 | H40: 590953330 | I40: 635035110 | J40: 711247445 | K40: 765932477 | L40: 850506382 | M40: ='APPENDIX 4 III'!$I$39+'APPENDIX5 IV'!$K$39 -> 956871079 | N40: 12.50604337
C41: Shareholder’s Funds | D41: 100958028 | E41: 114141212 | F41: 125830028 | G41: 134455222 | H41: 147255002 | I41: 149134602 | J41: 161835044 | K41: 166069303 | L41: 167914107 | M41: ='APPENDIX 4 III'!$I$12+'APPENDIX5 IV'!$K$12 -> 184166513 | N41: 9.678999752
C42: Amounts in Thousands

Sheet T2
C4: Table 2: Trends in Long-Term Insurance Business
C6: a) Summary of long term insurance business performance
C7: Indicators | D7: Years | N7: Annual Change 2022/2021 %
D8: 2013 | E8: 2014 | F8: 2015 | G8: 2016 | H8: 2017 | I8: 2018 | J8: 2019 | K8: 2020 | L8: 2021 | M8: 2022
C9: Gross Direct Premium | D9: 44424411 | E9: 56581380 | F9: 62064805 | G9: 73519181 | H9: 82807826 | I9: 87408352 | J9: 97395510 | K9: 102078013 | L9: 123687148 | M9: ='APPENDIX 17'!$D$31 -> 140953582 | N9: =(M9/L9-1)*100 -> 13.95976403
C10: Outward Reinsurance | D10: 2731261 | E10: 3856486 | F10: 4983380 | G10: 5666993 | H10: 5860038 | I10: 7048742 | J10: 7529611 | K10: 6751093 | L10: 9081590 | M10: =M9-M11 -> 12025131 | N10: =(M10/L10-1)*100 -> 32.41217672
C11: Net Premiums | D11: 41693150 | E11: 52718917 | F11: 57081418 | G11: 67852188 | H11: 76947788 | I11: 80359610 | J11: 89865899 | K11: 95326920 | L11: 114605558 | M11: ='APPENDIX 17'!$E$31 -> 128928451 | N11: =(M11/L11-1)*100 -> 12.49755531
C12: Management expenses | D12: 7637766 | E12: 28460004 | F12: 11279207 | G12: 12364010 | H12: 12072033 | I12: 13928440 | J12: 15362328 | K12: 14381760 | L12: 15689550 | M12: ='APPENDIX 17'!$M$31 -> 17456624 | N12: 11.26274495
C13: Net Commissions | D13: 3432164 | E13: 9618165 | F13: 5152743 | G13: 5474094 | H13: 5448401 | I13: 4887507 | J13: 5277712 | K13: 5793085 | L13: 6493140 | M13: ='APPENDIX 17'!$L$31 -> 7254217 | N13: 11.72124735
C14: Life Fund C/F | D14: 137229500 | E14: 193293550.3 | F14: 231885634 | G14: 255648171 | H14: 301571353 | I14: 333263364 | J14: 387780599 | K14: 426165838 | L14: 494301595 | M14: ='APPENDIX 17'!$Q$31 -> 574251284 | N14: =(M14/L14-1)*100 -> 16.17427292
C17: b) Summary of long term insurance business performance per class
C18: Indicators | E18: Years | H18: Years | N18: =N7 -> Annual Change 2022/2021 %
D19: 2013 | E19: 2014 | F19: 2015 | G19: 2016 | H19: 2017 | I19: 2018 | J19: 2019 | K19: 2020 | L19: 2021 | M19: 2022
C20: Gross Direct Premium
C21: Life Assurances | D21: 13310197 | E21: 14363846 | F21: 16783137 | G21: 18880725 | H21: 21374928 | I21: 24331504 | J21: 28187025 | K21: 29549666 | L21: 34107231 | M21: ='APPENDIX 9'!$D$31 -> 35547858 | N21: =(M21/L21-1)*100 -> 4.223816938
C22: Annuities | D22: 1331213 | E22: 6358440 | F22: 4137425 | G22: 4698479 | H22: 9834902 | I22: 6880785 | J22: 7451904 | K22: 8208247 | L22: 9290658 | M22: ='APPENDIX 10'!$D$31 -> 10036388 | N22: =(M22/L22-1)*100 -> 8.026665065
C23: Personal Pensions | D23: 16089228 | E23: 14099531 | F23: 22002402 | G23: 28118598 | H23: 4497901 | I23: 4138741 | J23: 5486479 | K23: 5825247 | L23: 6804397 | M23: ='APPENDIX 12'!D31 -> 8111970 | N23: 19.21658892
C24: Deposit Administration | H24: 24588257 | I24: 29775545 | J24: 32237072 | K24: 34857836 | L24: 42355599 | M24: ='APPENDIX 13'!D31 -> 50954518 | N24: 20.30172918
C25: Group Life | D25: 3038834 | E25: 9331736 | F25: 9858591 | G25: 10600535 | H25: 12765171 | I25: 11031270 | J25: 10957689 | K25: 9665028 | L25: 14334101 | M25: ='APPENDIX 11'!$D$31 -> 16785151 | N25: 17.09943302
C26: Group Credit | D26: 1943 | E26: 4265352 | F26: 4816710 | G26: 6306075 | H26: 5208397 | I26: 7740166 | J26: 9516603 | K26: 10010766 | L26: 12978038 | M26: ='APPENDIX 14'!$D$31 -> 15445861 | N26: 19.01537813
C27: Permanent Health | D27: 6426533 | E27: 0 | F27: 0 | G27: 0 | H27: - | I27: - | J27: - | K27: - | L27: 0 | M27: ='APPENDIX 15'!$D$31 -> 15757 | N27: 0
C28: Investments | D28: 4226463 | E28: 8163684 | F28: 4422409 | G28: 4914770 | H28: 4538271 | I28: 3510341 | J28: 3558738 | K28: 3961223 | L28: 3817124 | M28: ='APPENDIX 16'!$D$31 -> 4056079 | N28: =(M28/L28-1)*100 -> 6.260079578
C29: Total | D29: 44424411 | E29: 56582589 | F29: 62020674 | G29: 73519182 | H29: 82807826 | I29: 87408352 | J29: 97395510 | K29: 102078013 | L29: 123687148 | M29: =SUM(M21:M28) -> 140953582 | N29: 13.95976403
C30: Net Premiums
C31: Life Assurances | D31: 13114458 | E31: 14163998 | F31: 16562968 | G31: 18669399 | H31: 21122113 | I31: 24106317 | J31: 27970560 | K31: 29313231 | L31: 33862799 | M31: ='APPENDIX 9'!$E$31 -> 35267956 | N31: =(M31/L31-1)*100 -> 4.149559521
C32: Annuities | D32: 1331213 | E32: 6358440 | F32: 4137425 | G32: 4698479 | H32: 9834897 | I32: 6880785 | J32: 7451904 | K32: 8208247 | L32: 9272486 | M32: ='APPENDIX 10'!$E$31 -> 10018249 | N32: 8.042751426
C33: Personal Pensions | D33: 16089228 | E33: 14099531 | F33: 22002402 | G33: 28118598 | H33: 4497901 | I33: 4138741 | J33: 5486479 | K33: 5825247 | L33: 6804397 | M33: ='APPENDIX 12'!E31 -> 8111970 | N33: 19.21658892
C34: Deposit Administration | H34: 24588257 | I34: 29775545 | J34: 32237072 | K34: 34857836 | L34: 42355599 | M34: ='APPENDIX 13'!E31 -> 50954518 | N34: 20.30172918
C35: Group Life | D35: 3020236 | E35: 6020998 | F35: 5805185 | G35: 6412173 | H35: 8666923 | I35: 5633076 | J35: 5561462 | K35: 5450274 | L35: 8154809 | M35: ='APPENDIX 11'!$E$31 -> 9020611 | N35: 10.6170727
C36: Group Credit | D36: 1943 | E36: 3913711 | F36: 4106976 | G36: 5038769 | H36: 3699427 | I36: 6314805 | J36: 7599816 | K36: 7711080 | L36: 10339239 | M36: ='APPENDIX 14'!$E$31 -> 11485915 | N36: =(M36/L36-1)*100 -> 11.0905261
C37: Permanent Health | D37: 4127806 | E37: 0 | F37: 0 | G37: 0 | H37: - | I37: - | J37: - | K37: - | L37: 0 | M37: ='APPENDIX 15'!$E$31 -> 13185 | N37: 0
C38: Investments | D38: 4008265 | E38: 8163451 | F38: 4422331 | G38: 4914770 | H38: 4538271 | I38: 3510341 | J38: 3558606 | K38: 3961005 | L38: 3816229 | M38: ='APPENDIX 16'!$E$31 -> 4056047 | N38: =(M38/L38-1)*100 -> 6.284161668
C39: Total | D39: 41693149 | E39: 52720129 | F39: 57037287 | G39: 67852188 | H39: 76947788 | I39: 80359610 | J39: 89865899 | K39: 95326920 | L39: 114605558 | M39: =SUM(M31:M38) -> 128928451 | N39: =(M39/L39-1)*100 -> 12.49755531
C40: Net Commissions
C41: Life Assurances | D41: 2930874 | E41: 3184836 | F41: 3760565 | G41: 4314129 | H41: 4089626 | I41: 3841617 | J41: 4178191 | K41: 4406912 | L41: 4344451 | M41: ='APPENDIX 9'!$L$31 -> 4709382 | N41: =(M41/L41-1)*100 -> 8.399933616
C42: Annuities | D42: 18430 | E42: 137180 | F42: 103094 | G42: 71677 | H42: 174395 | I42: 111012 | J42: 156043 | K42: 164128 | L42: 174330 | M42: ='APPENDIX 10'!$L$31 -> 194641 | N42: =(M42/L42-1)*100 -> 11.65089199
C43: Personal Pensions | D43: 134547 | E43: 161911 | F43: 191723 | G43: 350075 | H43: 55033 | I43: 39355 | J43: 61199 | K43: 68987 | L43: 86775 | M43: ='APPENDIX 12'!L31 -> 97312 | N43: 12.1428983
C44: Deposit Administration | H44: 265098 | I44: 283451 | J44: 332644 | K44: 333964 | L44: 445466 | M44: ='APPENDIX 13'!L31 -> 628537 | N44: =(M44/L44-1)*100 -> 41.09651466
C45: Group Life | D45: 128988 | E45: 92494 | F45: 222082 | G45: 89220 | H45: 351110 | I45: -56828 | J45: -338650 | K45: -64499 | L45: 598376 | M45: ='APPENDIX 11'!$L$31 -> 308784 | N45: =(M45/L45-1)*100 -> -48.39632606
C46: Group Credit | D46: 13 | E46: 189041 | F46: 441028 | G46: 427617 | H46: 319000 | I46: 479268 | J46: 511910 | K46: 757675 | L46: 735799 | M46: ='APPENDIX 14'!$L$31 -> 1246815 | N46: =(M46/L46-1)*100 -> 69.45048852
C47: Permanent Health | D47: -26090 | E47: 0 | F47: 0 | G47: 0 | H47: - | I47: - | J47: - | K47: - | L47: 0 | M47: ='APPENDIX 15'!$L$31 -> 514 | N47: 0
C48: Investments | D48: 245399 | E48: 448182 | F48: 434248 | G48: 221377 | H48: 194139 | I48: 189631 | J48: 376375 | K48: 125918 | L48: 107943 | M48: ='APPENDIX 16'!$L$31 -> 68232 | N48: =(M48/L48-1)*100 -> -36.78886079
C49: Total | D49: 3432161 | E49: 4213644 | F49: 5152740 | G49: 5474095 | H49: 5448401 | I49: 4887507 | J49: 5277712 | K49: 5793085 | L49: 6493140 | M49: =SUM(M41:M48) -> 7254217 | N49: =(M49/L49-1)*100 -> 11.72124735
C50: Management Expenses
C51: Life Assurances | D51: 4061029 | E51: 5216983 | F51: 5978723 | G51: 6864778 | H51: 6046834 | I51: 6968920 | J51: 7995319 | K51: 7633138 | L51: 7364010 | M51: ='APPENDIX 9'!$M$31 -> 7747091 | N51: =(M51/L51-1)*100 -> 5.202070611
C52: Annuities | D52: 73522 | E52: 190496 | F52: 269555 | G52: 216835 | H52: 230153 | I52: 221561 | J52: 249092 | K52: 224184 | L52: 235090 | M52: ='APPENDIX 10'!$M$31 -> 216492 | N52: -7.911012804
C53: Personal Pensions | D53: 955924 | E53: 1059753 | F53: 1283823 | G53: 1239403 | H53: 159799 | I53: 220130 | J53: 255376 | K53: 234889 | L53: 284364 | M53: ='APPENDIX 12'!M31 -> 320309 | N53: 12.64048895
C54: Deposit Administration | H54: 1302405 | I54: 1728708 | J54: 1693233 | K54: 1813835 | L54: 1964306 | M54: ='APPENDIX 13'!M31 -> 2302079 | N54: =(M54/L54-1)*100 -> 17.19553878
C55: Group Life | D55: 678354 | E55: 1486792 | F55: 1578524 | G55: 1573914 | H55: 1830361 | I55: 2114840 | J55: 1827250 | K55: 1749964 | L55: 2591938 | M55: ='APPENDIX 11'!$M$31 -> 3398806 | N55: 31.12991129
C56: Group Credit | D56: 0 | E56: 937610 | F56: 1290586 | G56: 1586621 | H56: 1609944 | I56: 1709742 | J56: 2519063 | K56: 1877442 | L56: 2635282 | M56: ='APPENDIX 14'!$M$31 -> 3029677 | N56: =(M56/L56-1)*100 -> 14.96595051
C57: Permanent Health | D57: 1037683 | E57: 0 | F57: 0 | G57: 0 | H57: - | I57: - | J57: - | K57: - | L57: 0 | M57: ='APPENDIX 15'!$M$31 -> 2786 | N57: 0
C58: Investments | D58: 831259 | E58: 740921 | F58: 877989 | G58: 882462 | H58: 892539 | I58: 964539 | J58: 822995 | K58: 848308 | L58: 614560 | M58: ='APPENDIX 16'!$M$31 -> 439384 | N58: =(M58/L58-1)*100 -> -28.50429576
C59: Total | D59: 7637771 | E59: 9632555 | F59: 11279200 | G59: 12364013 | H59: 12072033 | I59: 13928440 | J59: 15362328 | K59: 14381760 | L59: 15689550 | M59: =SUM(M51:M58) -> 17456624 | N59: =(M59/L59-1)*100 -> 11.26274495
C60: Amounts in '000' KES

Sheet T3
C4: Table 3: Trends in General Insurance Business
C7: a) Classwise GDP under general insurance business
C8: Class of business | D8: Years | N8: Annual Change 2022/2021 %
D9: 2013 | E9: 2014 | F9: 2015 | G9: 2016 | H9: 2017 | I9: 2018 | J9: 2019 | K9: 2020 | L9: 2021 | M9: 2022
C10: Aviation | D10: 1127429 | E10: 1200632 | F10: 1484892 | G10: 1476801 | H10: 1726496 | I10: 2134254 | J10: 2109320 | K10: 2963413 | L10: 3094410 | M10: ='APPENDIX 19'!C$43 -> 3564550 | N10: =100*IF(AND(M10>L10,L10<0),ABS(M10/L10-1),IF(M10>L10,M10/L10-1,ABS(M10/L10-1)*-1)) -> 15.19320323
C11: Engineering | D11: 2776577 | E11: 3547973 | F11: 3794202 | G11: 3473125 | H11: 4190323 | I11: 3691508 | J11: 3502268 | K11: 3249381 | L11: 4283167 | M11: ='APPENDIX 19'!D$43 -> 5064942 | N11: 18.2522652
C12: Fire Domestic | D12: 1272835 | E12: 1347967 | F12: 1388204 | G12: 1482865 | H12: 1570425 | I12: 1595804 | J12: 1672639 | K12: 1795320 | L12: 1770893 | M12: ='APPENDIX 19'!E$43 -> 1815381 | N12: 2.512178884
C13: Fire industrial | D13: 7637802 | E13: 8757929 | F13: 9547284 | G13: 10062935 | H13: 11130626 | I13: 10824386 | J13: 10870577 | K13: 10776438 | L13: 12949770 | M13: ='APPENDIX 19'!F$43 -> 16828541 | N13: 29.95243159
C14: Liability | D14: 1560128 | E14: 1891331 | F14: 2191880 | G14: 2520106 | H14: 2817584 | I14: 2728902 | J14: 3124267 | K14: 3124468 | L14: 3358022 | M14: ='APPENDIX 19'!G$43 -> 3723336 | N14: 10.87884475
C15: Marine | D15: 2775148 | E15: 2726463 | F15: 2852402 | G15: 2604270 | H15: 3555639 | I15: 3370608 | J15: 3188714 | K15: 3063641 | L15: 3637910 | M15: ='APPENDIX 19'!H$43 -> 4054753 | N15: 11.45830985
C16: Motor Private | D16: 13909445 | E16: 16382944 | F16: 18430997 | G16: 20460256 | H16: 21484964 | I16: 22495605 | J16: 23431002 | K16: 23449022 | L16: 24626670 | M16: ='APPENDIX 19'!I$43 -> 27855160 | N16: 13.10973022
C17: Motor Commercial | D17: 19536285 | E17: 22553021 | F17: 24091465 | G17: 24025770 | H17: 23226291 | I17: 23593081 | J17: 23049684 | K17: 21279353 | L17: 24279823 | M17: ='APPENDIX 19'!J$43+'APPENDIX 19'!K$43 -> 26132363 | N17: 7.629956775
C18: Personal Accident | D18: 3250304 | E18: 3604559 | F18: 3882018 | G18: 3997282 | H18: 3516204 | I18: 3157233 | J18: 3283857 | K18: 2362292 | L18: 2400674 | M18: ='APPENDIX 19'!L$43 -> 2331266 | N18: -2.891188058
C19: Theft | D19: 3289650 | E19: 3553715 | F19: 3786845 | G19: 3774820 | H19: 3784701 | I19: 3863654 | J19: 3835945 | K19: 3851366 | L19: 3992205 | M19: ='APPENDIX 19'!M$43 -> 4119725 | N19: 3.194224745
C20: Workmen's Compensation | D20: 4666576 | E20: 5174648 | F20: 5346077 | G20: 5601571 | H20: 5675906 | I20: 6225354 | J20: 6358473 | K20: 6233992 | L20: 10659325 | M20: ='APPENDIX 19'!N$43 -> 11712076 | N20: 9.876338323
C21: Medical | D21: 20507131 | E21: 25315035 | F21: 29516467 | G21: 38520439 | H21: 38337371 | I21: 40195984 | J21: 42348102 | K21: 45061539 | L21: 47586164 | M21: ='APPENDIX 19'!O$43 -> 54839172 | N21: 15.24184215
C22: Miscellaneous | D22: 2456310 | E22: 3120075 | F22: 3487951 | G22: 3710221 | H22: 3763080 | I22: 3635343 | J22: 3741207 | K22: 3847235 | L22: 4142108 | M22: ='APPENDIX 19'!P$43 -> 3698214 | N22: -10.71662062
C23: Total | D23: 84765620 | E23: 99176292 | F23: 109800684 | G23: 121710461 | H23: 124779610 | I23: 127511716 | J23: 130516055 | K23: 131057460 | L23: 146781141 | M23: =SUM(M10:M22) -> 165739479 | N23: 12.91605847
C24: Amounts in '000' KES
C27: b) Incurred claims under general insurance business
C28: Class of business | D28: Years | N28: =N8 -> Annual Change 2022/2021 %
D29: 2013 | E29: 2014 | F29: 2015 | G29: 2016 | H29: 2017 | I29: 2018 | J29: 2019 | K29: 2020 | L29: 2021 | M29: 2022
C30: Aviation | D30: 15144 | E30: 5915 | F30: 12888 | G30: 69815 | H30: -48571 | I30: 28336 | J30: 9285 | K30: 43775 | L30: -3515 | M30: ='APPENDIX 40'!C$43 -> 5880 | N30: =100*IF(AND(M30>L30,L30<0),ABS(M30/L30-1),IF(M30>L30,M30/L30-1,ABS(M30/L30-1)*-1)) -> 267.2830725
C31: Engineering | D31: 301706 | E31: 366679 | F31: 468625 | G31: 448796 | H31: 431756 | I31: 411244 | J31: 597785 | K31: 697881 | L31: 592670 | M31: ='APPENDIX 40'!D$43 -> 708591 | N31: 19.55911384
C32: Fire Domestic | D32: 337000 | E32: 289864 | F32: 483004 | G32: 523792 | H32: 309981 | I32: 477500 | J32: 414559 | K32: 394133 | L32: 421323 | M32: ='APPENDIX 40'!E$43 -> 205136 | N32: -51.31146413
C33: Fire industrial | D33: 803448 | E33: 801192 | F33: 1177669 | G33: 988870 | H33: 1100373 | I33: 1141362 | J33: 825219 | K33: 1149283 | L33: 979632 | M33: ='APPENDIX 40'!F$43 -> 1486378 | N33: 51.72819998
C34: Liability | D34: 253807 | E34: 316224 | F34: 430841 | G34: 661618 | H34: 340822 | I34: 597548 | J34: 399152 | K34: 462135 | L34: 636608 | M34: ='APPENDIX 40'!G$43 -> 513688 | N34: -19.3085855
C35: Marine | D35: 560436 | E35: 566269 | F35: 631426 | G35: 503037 | H35: 725376 | I35: 669398 | J35: 669464 | K35: 598869 | L35: 1043536 | M35: ='APPENDIX 40'!H$43 -> 748793 | N35: -28.2446413
C36: Motor Private | D36: 8784204 | E36: 10957919 | F36: 12723572 | G36: 14968463 | H36: 14181895 | I36: 14301162 | J36: 16635527 | K36: 15418425 | L36: 18015197 | M36: ='APPENDIX 40'!I$43 -> 19585676 | N36: 8.717523322
C37: Motor Commercial | D37: 9271908 | E37: 10746378 | F37: 12858229 | G37: 12750248 | H37: 12646816 | I37: 13618583 | J37: 15304543 | K37: 14705102 | L37: 17884591 | M37: ='APPENDIX 40'!J$43+'APPENDIX 40'!K$43 -> 17686508 | N37: -1.10756237
C38: Personal Accident | D38: 884041 | E38: 1296968 | F38: 672415 | G38: 1237073 | H38: 1081310 | I38: 747352 | J38: 464566 | K38: 481601 | L38: 1063712 | M38: ='APPENDIX 40'!L$43 -> -294008 | N38: -127.6398123
C39: Theft | D39: 1143607 | E39: 1238056 | F39: 770640 | G39: 1192206 | H39: 969900 | I39: 1304641 | J39: 887812 | K39: 722603 | L39: 860395 | M39: ='APPENDIX 40'!M$43 -> 694374 | N39: -19.29590479
C40: Workmen's Compensation | D40: 2024589 | E40: 2649305 | F40: 2666925 | G40: 2987368 | H40: 3126587 | I40: 2374487 | J40: 1548271 | K40: 1910300 | L40: 1752873 | M40: ='APPENDIX 40'!N$43 -> 2291780 | N40: 30.7442125
C41: Medical | D41: 9260252 | E41: 12774064 | F41: 15063107 | G41: 18095577 | H41: 20632162 | I41: 20515402 | J41: 20424313 | K41: 20975226 | L41: 25941119 | M41: ='APPENDIX 40'!O$43 -> 32583822 | N41: 25.60684834
C42: Miscellaneous | D42: 529996 | E42: 668871 | F42: 851856 | G42: 430629 | H42: 653554 | I42: 740981 | J42: 781086 | K42: 752126 | L42: 647599 | M42: ='APPENDIX 40'!P$43 -> 878928 | N42: 35.72102489
C43: Total | D43: 34170138 | E43: 42677704 | F43: 48811197 | G43: 54857492 | H43: 56151961 | I43: 56927996 | J43: 58961582 | K43: 58311459 | L43: 69835740 | M43: =SUM(M30:M42) -> 77095546 | N43: 10.39554532
C44: Amounts in '000' KES
C47: c) Classwise underwriting results- General
C48: Class of business | D48: Years | N48: =N8 -> Annual Change 2022/2021 %
D49: 2013 | E49: 2014 | F49: 2015 | G49: 2016 | H49: 2017 | I49: 2018 | J49: 2019 | K49: 2020 | L49: 2021 | M49: 2022
C50: Aviation | D50: 4944 | E50: -20306 | F50: -59485 | G50: -90552 | H50: -253123 | I50: -159479 | J50: -79233 | K50: -253828 | L50: -23730 | M50: ='APPENDIX 42'!C$43 -> -44626 | N50: =100*IF(AND(M50>L50,L50<0),ABS(M50/L50-1),IF(M50>L50,M50/L50-1,ABS(M50/L50-1)*-1)) -> -88.05731142
C51: Engineering | D51: 80353 | E51: -121414 | F51: 75372 | G51: -58087 | H51: 70708 | I51: 25627 | J51: -130356 | K51: -196231 | L51: -102927 | M51: ='APPENDIX 42'!D$43 -> -164954 | N51: =100*IF(AND(M51>L51,L51<0),ABS(M51/L51-1),IF(M51>L51,M51/L51-1,ABS(M51/L51-1)*-1)) -> -60.26309909
C52: Fire Domestic | D52: 145523 | E52: 258437 | F52: -19648 | G52: 44379 | H52: 238670 | I52: -275853 | J52: 171455 | K52: 208960 | L52: 153611 | M52: ='APPENDIX 42'!E$43 -> 402307 | N52: 161.8998639
C53: Fire industrial | D53: 337267 | E53: -24125 | F53: 16134 | G53: 37031 | H53: -116886 | I53: 367656 | J53: 380424 | K53: -124730 | L53: 325500 | M53: ='APPENDIX 42'!F$43 -> -27105 | N53: =100*IF(AND(M53>L53,L53<0),ABS(M53/L53-1),IF(M53>L53,M53/L53-1,ABS(M53/L53-1)*-1)) -> -108.3271889
C54: Liability | D54: 161704 | E54: 520157 | F54: 92095 | G54: 139993 | H54: 469143 | I54: 131790 | J54: -62178 | K54: 290997 | L54: 75221 | M54: ='APPENDIX 42'!G$43 -> 225887 | N54: 200.2977892
C55: Marine | D55: 412861 | E55: 870568 | F55: 148713 | G55: 312675 | H55: 322049 | I55: 450260 | J55: 501522 | K55: 276702 | L55: 96685 | M55: ='APPENDIX 42'!H$43 -> 639103 | N55: 561.0156694
C56: Motor Private | D56: -693880 | E56: -1732887 | F56: -3101547 | G56: -3291827 | H56: -2930081 | I56: -2578206 | J56: -4182589 | K56: -2924093 | L56: -5525904 | M56: ='APPENDIX 42'!I$43 -> -4803423 | N56: 13.07443995
C57: Motor Commercial | D57: 1403051 | E57: 1408890 | F57: 725825 | G57: 820734 | H57: 933287 | I57: -873562 | J57: -2656785 | K57: -2623740 | L57: -3998359 | M57: ='APPENDIX 42'!J$43+'APPENDIX 42'!K$43 -> -2471334 | N57: 38.19129298
C58: Personal Accident | D58: 192881 | E58: 91968 | F58: 832092 | G58: -341214 | H58: -178485 | I58: 235783 | J58: 518298 | K58: 195586 | L58: -1339169 | M58: ='APPENDIX 42'!L$43 -> -178226 | N58: 86.69129886
C59: Theft | D59: 185391 | E59: 396536 | F59: 617293 | G59: 180312 | H59: 473312 | I59: 216899 | J59: 398438 | K59: 459958 | L59: 262379 | M59: ='APPENDIX 42'!M$43 -> -396121 | N59: -250.9728294
C60: Workmen's Compensation | D60: 424801 | E60: 84434 | F60: 56231 | G60: -100665 | H60: -223460 | I60: 619342 | J60: 1679536 | K60: 1450202 | L60: 2968958 | M60: ='APPENDIX 42'!N$43 -> 2972204 | N60: 0.1093312873
C61: Medical | D61: 282523 | E61: -396895 | F61: -118033 | G61: -621635 | H61: 82523 | I61: -1008230 | J61: 139634 | K61: 1329826 | L61: 243530 | M61: ='APPENDIX 42'!O$43 -> 123125 | N61: -49.44154724
C62: Miscellaneous | D62: 465349 | E62: 269146 | F62: 508677 | G62: 843122 | H62: 84499 | I62: 259106 | J62: 156433 | K62: 62663 | L62: 530569 | M62: ='APPENDIX 42'!P$43 -> 452785 | N62: -14.66048714
C63: Total | D63: 3402768 | E63: 1604509 | F63: -226281 | G63: -2125734 | H63: -1027844 | I63: -2588867 | J63: -3165401 | K63: -1847728 | L63: -6333636 | M63: =SUM(M50:M62) -> -3270378 | N63: 48.36492024
C64: Amounts in '000' KES

Sheet T4
C5: Table 4: Trends in Re-Insurance Business
C7: a) Performance for long term reinsurers
C8: Item | D8: Years | N8: Annual Change 2021/2020 %
D9: 2013 | E9: 2014 | F9: 2015 | G9: 2016 | H9: 2017 | I9: 2018 | J9: 2019 | K9: 2020 | L9: 2021 | M9: 2022
C10: Life Assurances
C11: Inward reinsurance premium | D11: 174580 | E11: 134022 | F11: 114245 | G11: 152658 | H11: 179830 | I11: 239839 | J11: 246317 | K11: 239008 | L11: 96544 | M11: ='APPENDIX 9'!D36 -> 294833 | N11: =(M11/K11-1)*100 -> 23.35695876
C12: outward reinsurance premium | D12: 18743 | E12: 1971 | F12: 4689 | G12: 17602 | H12: 22747 | I12: 10701 | J12: 10826 | K12: 60950 | L12: 12676 | M12: =M11-M13 -> 9734 | N12: -84.0295324
C13: Net premium income | D13: 155837 | E13: 119828 | F13: 119828 | G13: 135056 | H13: 157083 | I13: 229138 | J13: 235491 | K13: 178058 | L13: 83868 | M13: ='APPENDIX 9'!$E$36 -> 285099 | N13: 60.11580496
C14: Management expenses | D14: 29506 | E14: 71834 | F14: 54739 | G14: 18330 | H14: 26601 | I14: 25995 | J14: 27293 | K14: 38231 | L14: 42152 | M14: ='APPENDIX 9'!$M$36 -> 19968 | N14: -47.77013418
C15: Net commissions | D15: 50521 | E15: 21550 | F15: 21550 | G15: 59375 | H15: 47993 | I15: 29873 | J15: 62932 | K15: 57205 | L15: 18673 | M15: ='APPENDIX 9'!$L$36 -> 69592 | N15: 21.6537016
C16: Life fund c/f | D16: 1033636 | E16: 1171464 | F16: 1177990 | G16: 1203305 | H16: 1241040 | I16: 1386391 | J16: 1496517 | K16: 1534174 | L16: 1617766 | M16: ='APPENDIX 9'!Q36 -> 1773012 | N16: 15.56785606
C17: Group Life
C18: Inward reinsurance premium | D18: 1318142 | E18: 1485325 | F18: 1971822 | G18: 2247254 | H18: 2591325 | I18: 3014166 | J18: 3545208 | K18: 2906584 | L18: 3033758 | M18: ='APPENDIX 11'!$D$36 -> 2783551 | N18: -4.232907083
C19: outward reinsurance premium | D19: 146482 | E19: 32671 | F19: 48362 | G19: 305800 | H19: 303096 | I19: 324320 | J19: 387934 | K19: 267328 | L19: 334085 | M19: =M18-M20 -> 313071 | N19: 17.11118925
C20: Net premium income | D20: 1171660 | E20: 1301827 | F20: 1718421 | G20: 1941454 | H20: 2288229 | I20: 2689846 | J20: 3157274 | K20: 2639256 | L20: 2699673 | M20: ='APPENDIX 11'!$E$36 -> 2470480 | N20: -6.394832483
C21: Management expenses | D21: 218806 | E21: 558274 | F21: 699719 | G21: 249450 | H21: 325124 | I21: 302888 | J21: 353897 | K21: 220382 | L21: 372816 | M21: ='APPENDIX 11'!$M$36 -> 190833 | N21: -13.40808233
C22: Net commissions | D22: 283922 | E22: 224720 | F22: 287252 | G22: 546986 | H22: 624144 | I22: 751119 | J22: 896634 | K22: 766785 | L22: 680777 | M22: ='APPENDIX 11'!$L$36 -> 661340 | N22: -13.75157313
C23: Life fund | D23: 4491195 | E23: 5121829 | F23: 5748174 | G23: 5445849 | H23: 5975024 | I23: 6315119 | J23: 7372750 | K23: 8132130 | L23: 8872267 | M23: ='APPENDIX 11'!Q36 -> 10979707 | N23: 35.01637332
C24: Amounts in '000' KES
C27: b) Underwriting results under general reinsurance business
C28: Class of business | D28: Years | N28: Annual Change 2021/2020 %
D29: 2013 | E29: 2014 | F29: 2015 | G29: 2016 | H29: 2017 | I29: 2018 | J29: 2019 | K29: 2020 | L29: 2021 | M29: 2022
C30: Aviation | D30: 3331 | E30: -22366 | F30: 74718 | G30: -19756 | H30: -12834 | I30: 4542 | J30: -18729 | K30: -1077 | L30: 12288 | M30: ='APPENDIX 42'!C$50 -> -7566 | N30: =(M30/K30-1)*-100 -> -602.5069638
C31: Engineering | D31: 280151 | E31: 110074 | F31: 228806 | G31: 205944 | H31: 172210 | I31: 223258 | J31: 275016 | K31: -480240 | L31: -228919 | M31: ='APPENDIX 42'!D$50 -> 242981 | N31: =(M31/K31-1)*-100 -> 150.5957438
C32: Fire Domestic | D32: -9183 | E32: 1862 | F32: 329788 | G32: -19084 | H32: 8328 | I32: 6529 | J32: 528720 | K32: 688589 | L32: 7543 | M32: ='APPENDIX 42'!E$50 -> 77166 | N32: =(M32/K32-1)*100 -> -88.79360547
C33: Fire industrial | D33: 560765 | E33: 629912 | F33: -691401 | G33: -671791 | H33: -612432 | I33: -38213 | J33: -245061 | K33: -358002 | L33: 737729 | M33: ='APPENDIX 42'!F$50 -> 1043748 | N33: =(M33/K33-1)*-100 -> 391.5480919
C34: Liability | D34: 39519 | E34: 85149 | F34: 46463 | G34: 63275 | H34: 51506 | I34: 109221 | J34: 82632 | K34: 86751 | L34: 128529 | M34: ='APPENDIX 42'!G$50 -> 63606 | N34: -26.67980773
C35: Marine | D35: 140630 | E35: 286894 | F35: 80212 | G35: 47746 | H35: 152505 | I35: -88587 | J35: -2835 | K35: 272698 | L35: 37675 | M35: ='APPENDIX 42'!H$50 -> -161572 | N35: -159.2494261
C36: Motor Private | D36: 3145 | E36: 8360 | F36: 7999 | G36: 18107 | H36: 48544 | I36: 27724 | J36: 29459 | K36: -581735 | L36: 72407 | M36: ='APPENDIX 42'!I$50 -> 321433 | N36: =(M36/K36-1)*-100 -> 155.2541965
C37: Motor Commercial | D37: 91193 | E37: 102325 | F37: 644 | G37: 120356 | H37: 269786 | I37: -122896 | J37: -828633 | K37: -1043466 | L37: -31434 | M37: ='APPENDIX 42'!J$50+'APPENDIX 42'!K50 -> 8677 | N37: =(M37/K37-1)*-100 -> 100.8315556
C38: Personal Accident | D38: -109200 | E38: -379110 | F38: -93734 | G38: 583453 | H38: 38268 | I38: -189387 | J38: -2583962 | K38: 2132340 | L38: 68492 | M38: ='APPENDIX 42'!L$50 -> 295464 | N38: -86.14367315
C39: Theft | D39: -205259 | E39: -150893 | F39: 106261 | G39: 142121 | H39: 264811 | I39: 101026 | J39: 255472 | K39: 8109 | L39: 108588 | M39: ='APPENDIX 42'!M$50 -> 24356 | N39: 200.3576273
C40: Workmen's Compensation | D40: -4749 | E40: 9437 | F40: 234983 | G40: 3264 | H40: 9140 | I40: 3768 | J40: -7463 | K40: -18506 | L40: 169666 | M40: ='APPENDIX 42'!N$50 -> 140034 | N40: =(M40/K40-1)*-100 -> 856.6951259
C41: Medical | D41: -672213 | E41: -369149 | F41: -525036 | G41: -650108 | H41: -236752 | I41: -1191497 | J41: 1144582 | K41: -1388992 | L41: -897875 | M41: ='APPENDIX 42'!O$50 -> -708115 | N41: =(M41/K41-1)*-100 -> 49.01950479
C42: Miscellaneous | D42: 115441 | E42: 96243 | F42: 373455 | G42: 464570 | H42: 230594 | I42: 658724 | J42: -1090774 | K42: 959588 | L42: 254690 | M42: ='APPENDIX 42'!P$50 -> -143925 | N42: -114.9986244
C43: Total | D43: 233571 | E43: 408738 | F43: 173158 | G43: 288097 | H43: 383674 | I43: -495788 | J43: -2461576 | K43: 276057 | L43: 439379 | M43: =SUM(M30:M42) -> 1196287 | N43: 333.3478231
C44: Amounts in '000' KES

Sheet APPENDIX 1
B2: APPENDIX 1: SUMMARY OF PROFIT & LOSS ACCOUNTS UNDER GENERAL INSURANCE BUSINESS FOR THE YEAR ENDED 31.12.2022
B3: Company | C3: Profit Transferred from Revenue | D3: Investment Income | E3: Other Income | F3: Total Income | G3: Loss Transferred From Revenue | H3: Management Expenses | I3: Total Outgo | J3: Profit / (Loss) Before Taxation | K3: Provision for Taxation | L3: Profit/(Loss) After Taxation | M3: Unappropriated Profit/(Loss) BF | N3: Transfer To Reserves | O3: Other Appropriations | P3: Dividend | Q3: Unappropriated Profit /(Loss) CF
B4: INSURERS
B5: AAR INSURANCE KENYA | C5: 64814 | D5: 0 | E5: 0 | F5: 64814 | G5: 0 | H5: 0 | I5: 0 | J5: 64814 | K5: 25363 | L5: 39451 | M5: 300497 | N5: 0 | O5: 0 | P5: 0 | Q5: 339948
B6: AFRICAN MERCHANT ASSURANCE | C6: 61520 | D6: 0 | E6: 0 | F6: 61520 | G6: 0 | H6: 0 | I6: 0 | J6: 61520 | K6: 0 | L6: 61520 | M6: -85051 | N6: 0 | O6: 0 | P6: 0 | Q6: -23531
B7: AIG INSURANCE COMPANY | C7: 234907 | D7: 295961 | E7: 13095 | F7: 543963 | G7: 0 | H7: 0 | I7: 0 | J7: 543963 | K7: 175606 | L7: 368358 | M7: 1428014 | N7: 0 | O7: 0 | P7: 350000 | Q7: 1446372
B8: APA INSURANCE COMPANY | C8: 212848 | D8: 597495 | E8: 22339 | F8: 832682 | G8: 0 | H8: 140809 | I8: 180562 | J8: 652119 | K8: 118349 | L8: 533771 | M8: 3100128 | N8: 0 | O8: 0 | P8: 500000 | Q8: 3133899
B9: BRITAM GENERAL INSURANCE | C9: 549044 | D9: 0 | E9: 0 | F9: 549044 | G9: 0 | H9: 0 | I9: 0 | J9: 549044 | K9: 298671 | L9: 250373 | M9: 377906 | N9: 0 | O9: 0 | P9: 0 | Q9: 628279
B10: CANNON GENERAL INSURANCE (K) LIMITED | C10: 0 | D10: 207928 | E10: 0 | F10: 207928 | G10: 57241 | H10: 0 | I10: 57241 | J10: 150687 | K10: 32271 | L10: 118415 | M10: -70060 | N10: 0 | O10: 1245 | P10: 0 | Q10: 47110
B11: CIC GENERAL INSURANCE COMPANY | C11: 871743 | D11: 0 | E11: 0 | F11: 871743 | G11: 0 | H11: 0 | I11: 0 | J11: 871743 | K11: 532322 | L11: 339421 | M11: 2151785 | N11: 0 | O11: 0 | P11: 170000 | Q11: 2321205
B12: CORPORATE INSURANCE COMPANY | C12: 13572 | D12: 0 | E12: 0 | F12: 13572 | G12: 0 | H12: 0 | I12: 0 | J12: 13572 | K12: 0 | L12: 13572 | M12: 249140 | N12: 0 | O12: 0 | P12: 0 | Q12: 262712
B13: DIRECTLINE ASSURANCE COMPANY | C13: 56922 | D13: 284290 | E13: 88894 | F13: 430106 | G13: 0 | H13: 33867 | I13: 96618 | J13: 333488 | K13: 80589 | L13: 252899 | M13: 149465 | N13: 0 | O13: 0 | P13: 0 | Q13: 402364
B14: FIDELITY SHIELD INSURANCE | C14: 0 | D14: 186660 | E14: 0 | F14: 186660 | G14: 60766 | H14: 56572 | I14: 108111 | J14: 78549 | K14: 26247 | L14: 52302 | M14: 395739 | N14: 0 | O14: 0 | P14: 50000 | Q14: 398041
B15: FIRST ASSURANCE COMPANY | C15: 0 | D15: 165293 | E15: 0 | F15: 165293 | G15: 263569 | H15: 0 | I15: 263569 | J15: -98276 | K15: -19100 | L15: -79176 | M15: 131439 | N15: 13044 | O15: 0 | P15: 0 | Q15: 39219
B16: GA INSURANCE COMPANY | C16: 1799955 | D16: 0 | E16: 0 | F16: 1799955 | G16: 0 | H16: 0 | I16: 0 | J16: 1799955 | K16: 482847 | L16: 1317108 | M16: 4130699 | N16: 500000 | O16: 0 | P16: 600000 | Q16: 4347807
B17: GEMINIA INSURANCE COMPANY | C17: 109745 | D17: 0 | E17: 0 | F17: 109745 | G17: 0 | H17: 21000 | I17: 21000 | J17: 88744 | K17: 31943 | L17: 56801 | M17: 992811 | N17: 0 | O17: 0 | P17: 50313 | Q17: 999300
B18: HEALTHIER (K) MICRO INSURANCE | C18: 0 | D18: 0 | E18: 0 | F18: 0 | G18: 0 | H18: 0 | I18: 0 | J18: 0 | K18: 0 | L18: 0 | M18: 0 | N18: 0 | O18: 0 | P18: 0 | Q18: 0
B19: HERITAGE INSURANCE COMPANY | C19: 757313 | D19: 0 | E19: 3379 | F19: 760692 | G19: 0 | H19: 0 | I19: 0 | J19: 760692 | K19: 249764 | L19: 510928 | M19: 3165219 | N19: 0 | O19: 0 | P19: 350000 | Q19: 3326148
B20: ICEA LION GENERAL INSURANCE | C20: 232013 | D20: 1000186 | E20: 0 | F20: 1232199 | G20: 0 | H20: 199848 | I20: 192008 | J20: 1040191 | K20: 306506 | L20: 733685 | M20: 4977487 | N20: 0 | O20: 0 | P20: 250000 | Q20: 5461172
B21: INTRA-AFRICA ASSURANCE | C21: 130895 | D21: 47687 | E21: 42234 | F21: 220816 | G21: 0 | H21: 10754 | I21: 111836 | J21: 108980 | K21: 9533 | L21: 99448 | M21: 119296 | N21: 0 | O21: 0 | P21: 18000 | Q21: 200743
B22: INVESCO ASSURANCE COMPANY | C22: 0 | D22: 18706 | E22: 50 | F22: 18756 | G22: 505007 | H22: 0 | I22: 505007 | J22: -486251 | K22: 0 | L22: -486251 | M22: -7182228 | N22: 0 | O22: 0 | P22: 0 | Q22: -7668479
B23: JUBILEE GENERAL INSURANCE | C23: 0 | D23: 0 | E23: 108026 | F23: 108026 | G23: 435427 | H23: 0 | I23: 435427 | J23: -327401 | K23: 0 | L23: -327401 | M23: -788749 | N23: 0 | O23: 0 | P23: 0 | Q23: -1116150
B24: JUBILEE HEALTH INSURANCE | C24: 700266 | D24: 0 | E24: 0 | F24: 700266 | G24: 0 | H24: 0 | I24: 0 | J24: 700266 | K24: 151792 | L24: 548474 | M24: 1231015 | N24: 0 | O24: 0 | P24: 251111 | Q24: 1528378
B25: KENINDIA ASSURANCE COMPANY | C25: 246563 | D25: 0 | E25: 1919 | F25: 248482 | G25: 0 | H25: 11398 | I25: 113283 | J25: 135199 | K25: -133031 | L25: 268229 | M25: 2185050 | N25: 0 | O25: 0 | P25: 25000 | Q25: 2428279
B26: KENYA ORIENT INSURANCE | C26: 0 | D26: 46265 | E26: 363 | F26: 46627 | G26: 790034 | H26: 97205 | I26: 887240 | J26: -840612 | K26: -256528 | L26: -584085 | M26: -1376937 | N26: 0 | O26: 111 | P26: 0 | Q26: -1961133
B27: MADISON INSURANCE COMPANY | C27: 92559 | D27: 0 | E27: 0 | F27: 92559 | G27: 0 | H27: 0 | I27: 0 | J27: 92559 | K27: 39458 | L27: 53101 | M27: 615010 | N27: 0 | O27: 0 | P27: 0 | Q27: 668112
B28: MAYFAIR INSURANCE COMPANY | C28: 326649 | D28: 723285 | E28: 38369 | F28: 1088303 | G28: 0 | H28: 3141 | I28: 43688 | J28: 1044614 | K28: 255716 | L28: 788898 | M28: 1833562 | N28: 0 | O28: 0 | P28: 125000 | Q28: 2497461
B29: MUA INSURANCE COMPANY | C29: 0 | D29: 0 | E29: 0 | F29: 0 | G29: 136821 | H29: 0 | I29: 136821 | J29: -136821 | K29: 0 | L29: -136821 | M29: 113834 | N29: 0 | O29: 0 | P29: 0 | Q29: -22987
B30: OCCIDENTAL INSURANCE COMPANY | C30: 0 | D30: 0 | E30: -73 | F30: -73 | G30: 408548 | H30: 212414 | I30: 624400 | J30: -624473 | K30: 4031 | L30: -628504 | M30: 643327 | N30: 0 | O30: -3589 | P30: 0 | Q30: 18412
B31: OLD MUTUAL GENERAL INSURANCE | C31: 175995 | D31: 1051576 | E31: 11719 | F31: 1239290 | G31: 0 | H31: 0 | I31: 0 | J31: 1239290 | K31: 434879 | L31: 804411 | M31: 4224680 | N31: 0 | O31: -3854 | P31: 0 | Q31: 5032945
B32: PACIS INSURANCE COMPANY | C32: 82515 | D32: 0 | E32: 0 | F32: 82515 | G32: 0 | H32: 0 | I32: 0 | J32: 82515 | K32: 104593 | L32: -22078 | M32: 99476 | N32: 0 | O32: 0 | P32: 0 | Q32: 77398
B33: PIONEER GENERAL INSURANCE COMPANY | C33: 0 | D33: 99883 | E33: 0 | F33: 99883 | G33: 36846 | H33: 0 | I33: 36846 | J33: 63036 | K33: 6223 | L33: 56814 | M33: -20053 | N33: 0 | O33: 0 | P33: 0 | Q33: 36761
B34: SANLAM INSURANCE COMPANY | C34: 0 | D34: 0 | E34: 0 | F34: 0 | G34: 64623 | H34: 0 | I34: 64623 | J34: -64623 | K34: 87041 | L34: -151665 | M34: -998096 | N34: 0 | O34: 0 | P34: 0 | Q34: -1149761
B35: STAR DISCOVER INSURANCE | C35: 0 | D35: 0 | E35: 0 | F35: 0 | G35: 0 | H35: 0 | I35: 0 | J35: 0 | K35: 0 | L35: 0 | M35: 0 | N35: 0 | O35: 0 | P35: 0 | Q35: 0
B36: TAKAFUL INSURANCE OF AFRICA | C36: 0 | D36: 56252 | E36: 81028 | F36: 137280 | G36: 55241 | H36: 35308 | I36: 90548 | J36: 46732 | K36: 19262 | L36: 27470 | M36: -267182 | N36: 0 | O36: 0 | P36: 0 | Q36: -239712
B37: TAUSI ASSURANCE COMPANY | C37: 179755 | D37: 283242 | E37: -15801 | F37: 447196 | G37: 0 | H37: 3866 | I37: 9784 | J37: 437412 | K37: 71659 | L37: 365753 | M37: 1183153 | N37: -3403 | O37: -2000 | P37: 252000 | Q37: 1302309
B38: THE KENYAN ALLIANCE INSURANCE | C38: 0 | D38: 0 | E38: 0 | F38: 0 | G38: 303919 | H38: 0 | I38: 303919 | J38: -303919 | K38: -100804 | L38: -203115 | M38: 216808 | N38: 808200 | O38: 0 | P38: 0 | Q38: -794507
B39: THE MONARCH INSURANCE | C39: 0 | D39: 0 | E39: 0 | F39: 0 | G39: 0 | H39: 0 | I39: 0 | J39: 0 | K39: 0 | L39: 0 | M39: 0 | N39: 0 | O39: 0 | P39: 0 | Q39: 0
B40: TRIDENT INSURANCE COMPANY | C40: 160491 | D40: 5244 | E40: 0 | F40: 165735 | G40: 0 | H40: 45682 | I40: 45682 | J40: 120053 | K40: 0 | L40: 120053 | M40: 1003864 | N40: 0 | O40: 0 | P40: 0 | Q40: 1123917
B41: XPLICO INSURANCE COMPANY | C41: 13573 | D41: 0 | E41: 0 | F41: 13573 | G41: 0 | H41: 0 | I41: 0 | J41: 13573 | K41: 0 | L41: 13573 | M41: 12717 | N41: 0 | O41: 0 | P41: 0 | Q41: 26290
B42: TOTAL | C42: =SUM(C5:C41) -> 7073657 | D42: 5069953 | E42: 395541 | F42: 12539150 | G42: 3118042 | H42: 871864 | I42: 4328213 | J42: 8210934 | K42: 3035202 | L42: 5175732 | M42: 24243765 | N42: 1317841 | O42: -8087 | P42: 2991424 | Q42: 25118321
B43: REINSURERS
B44: CONTINENTAL REINSURANCE | C44: 680546 | D44: 0 | E44: 0 | F44: 680546 | G44: 0 | H44: 0 | I44: 0 | J44: 680546 | K44: 195399 | L44: 485148 | M44: 1112512 | N44: 0 | O44: -104419 | P44: 0 | Q44: 1702079
B45: EAST AFRICAN REINSURANCE | C45: 54090 | D45: 609828 | E45: 25837 | F45: 689755 | G45: 0 | H45: 1475 | I45: 78661 | J45: 611094 | K45: 132940 | L45: 478154 | M45: 3344175 | N45: -18328 | O45: 0 | P45: 100000 | Q45: 3740658
B46: GHANA REINSURANCE COMPANY | C46: 181296 | D46: 0 | E46: 16341 | F46: 197637 | G46: 0 | H46: 0 | I46: 0 | J46: 197637 | K46: 59778 | L46: 137859 | M46: 401538 | N46: 0 | O46: 0 | P46: 0 | Q46: 539397
B47: KENYA REINSURANCE CORPORATION | C47: 2619000 | D47: 450121 | E47: 123420 | F47: 3192542 | G47: 0 | H47: 97172 | I47: 97172 | J47: 3095370 | K47: 802204 | L47: 2293166 | M47: 21788123 | N47: 0 | O47: -241200 | P47: 279980 | Q47: 24042509
B48: WAICA REINSURANCE KENYA LIMITED | C48: 648860 | D48: 0 | E48: 161129 | F48: 809988 | G48: 0 | H48: 0 | I48: 0 | J48: 809988 | K48: 241966 | L48: 568022 | M48: 235389 | N48: 0 | O48: 0 | P48: 0 | Q48: 803411
B49: TOTAL | C49: =SUM(C44:C48) -> 4183792 | D49: =SUM(D44:D48) -> 1059949 | E49: =SUM(E44:E48) -> 326727 | F49: 5570468 | G49: 0 | H49: 98647 | I49: 175833 | J49: 5394635 | K49: 1432287 | L49: 3962349 | M49: 26881737 | N49: -18328 | O49: -345619 | P49: 379980 | Q49: 30828054
B50: GRAND TOTAL | C50: =C42+C49 -> 11257449 | D50: =D42+D49 -> 6129902 | E50: 722268 | F50: 18109618 | G50: 3118042 | H50: 970511 | I50: 4504046 | J50: 13605569 | K50: 4467489 | L50: 9138081 | M50: 51125502 | N50: 1299513 | O50: -353706 | P50: 3371404 | Q50: 55946375
B51: Amounts in Thousand Shillings

Sheet APPENDIX 2
B3: APPENDIX 2: SUMMARY OF PROFIT & LOSS ACCOUNTS UNDER LONG TERM INSURANCE BUSINESS FOR THE YEAR ENDED 31.12.2022
B4: Company | C4: Profit Transferred from Revenue | D4: Investment Income | E4: Other Income | F4: Total Income | G4: Loss Transferred From Revenue | H4: Management Expenses | I4: Total Outgo | J4: Profit / (Loss) Before Taxation | K4: Provision for Taxation | L4: Profit/(Loss) After Taxation | M4: Unappropriated Profit/(Loss) BF | N4: Transfer To Reserves | O4: Other Appropriations | P4: Dividend | Q4: Unappropriated Profit /(Loss) CF
B5: INSURERS
B6: ABSA LIFE ASSURANCE | C6: 0 | D6: 0 | E6: 0 | F6: 0 | G6: 0 | H6: 0 | I6: 0 | J6: 0 | K6: 0 | L6: 0 | M6: 0 | N6: 0 | O6: 0 | P6: 0 | Q6: 0
B7: APA LIFE ASSURANCE COMPANY | C7: -107795 | D7: 56941 | E7: 171 | F7: -50683 | G7: 0 | H7: 13345 | I7: 13345 | J7: -64029 | K7: 0 | L7: -64029 | M7: -284832 | N7: 0 | O7: 0 | P7: 0 | Q7: -348860
B8: BRITAM LIFE ASSURANCE | C8: 2205872 | D8: 0 | E8: 21561 | F8: 2227433 | G8: 0 | H8: 0 | I8: 0 | J8: 2227433 | K8: 661761 | L8: 1565672 | M8: 7922047 | N8: 0 | O8: 0 | P8: 0 | Q8: 9487719
B9: CANNON LIFE ASSURANCE (K) LIMITED | C9: 0 | D9: 0 | E9: 0 | F9: 0 | G9: 27602 | H9: 0 | I9: 27602 | J9: -27602 | K9: 16994 | L9: -44595 | M9: -1378860 | N9: 0 | O9: 0 | P9: 0 | Q9: -1423455
B10: CAPEX LIFE ASSURANCE COMPANY | C10: 0 | D10: 17271 | E10: 61930 | F10: 79201 | G10: 0 | H10: 0 | I10: 4373 | J10: 74828 | K10: 0 | L10: 74828 | M10: -47954 | N10: 0 | O10: 0 | P10: 0 | Q10: 26875
B11: CIC LIFE ASSURANCE COMPANY | C11: 149500 | D11: 0 | E11: 0 | F11: 149500 | G11: 0 | H11: 0 | I11: 0 | J11: 149500 | K11: 34500 | L11: 115000 | M11: 71861 | N11: 0 | O11: 0 | P11: 0 | Q11: 186861
B12: CORPORATE INSURANCE COMPANY | C12: 37218 | D12: 0 | E12: 0 | F12: 37218 | G12: 0 | H12: 0 | I12: 0 | J12: 37218 | K12: 3670 | L12: 33548 | M12: -205203 | N12: 0 | O12: 0 | P12: 0 | Q12: -171655
B13: EQUITY LIFE ASSURANCE | C13: 405206 | D13: 0 | E13: 0 | F13: 405206 | G13: 0 | H13: 0 | I13: 0 | J13: 405206 | K13: 123524 | L13: 281682 | M13: 0 | N13: 0 | O13: 0 | P13: 0 | Q13: 281682
B14: GA LIFE ASSURANCE COMPANY | C14: 129854 | D14: 0 | E14: 58978 | F14: 188832 | G14: 0 | H14: 0 | I14: 0 | J14: 188832 | K14: 39696 | L14: 149136 | M14: 123758 | N14: 0 | O14: 0 | P14: 122500 | Q14: 150394
B15: GEMINIA LIFE INSURANCE COMPANY | C15: 0 | D15: 0 | E15: 0 | F15: 0 | G15: 31733 | H15: 0 | I15: 31733 | J15: -31733 | K15: 28650 | L15: -60383 | M15: 0 | N15: 0 | O15: 0 | P15: 0 | Q15: -60383
B16: ICEA LION LIFE ASSURANCE | C16: 1200000 | D16: 141273 | E16: 0 | F16: 1341273 | G16: 0 | H16: 58 | I16: 58 | J16: 1341214 | K16: 389788 | L16: 951426 | M16: 721830 | N16: 0 | O16: 0 | P16: 0 | Q16: 1673256
B17: JUBILEE INSURANCE COMPANY | C17: 940643 | D17: 426322 | E17: 0 | F17: 1366965 | G17: 0 | H17: 96695 | I17: 96695 | J17: 1270270 | K17: 282193 | L17: 988077 | M17: 6289279 | N17: 0 | O17: 0 | P17: 0 | Q17: 7277356
B18: KENINDIA ASSURANCE COMPANY | C18: 503000 | D18: 0 | E18: 0 | F18: 503000 | G18: 0 | H18: 0 | I18: 0 | J18: 503000 | K18: 150900 | L18: 352100 | M18: 42768 | N18: 299600 | O18: 0 | P18: 50000 | Q18: 45268
B19: KENYA ORIENT LIFE ASSURANCE | C19: 0 | D19: 33693 | E19: 0 | F19: 33693 | G19: 0 | H19: 4677 | I19: 8337 | J19: 25356 | K19: 14364 | L19: 10992 | M19: 7103 | N19: 0 | O19: 0 | P19: 0 | Q19: 18095
B20: KUSCCO MUTUAL ASSURANCE LIMITED | C20: 0 | D20: 0 | E20: 0 | F20: 0 | G20: 0 | H20: 0 | I20: 0 | J20: 0 | K20: 0 | L20: 0 | M20: 201170 | N20: 0 | O20: 0 | P20: 0 | Q20: 201170
B21: LIBERTY LIFE ASSURANCE COMPANY | C21: 0 | D21: 0 | E21: -58914 | F21: -58914 | G21: 0 | H21: 0 | I21: 0 | J21: -58914 | K21: 11452 | L21: -70366 | M21: -304170 | N21: -70366 | O21: 0 | P21: 0 | Q21: -304170
B22: MADISON INSURANCE COMPANY | C22: 0 | D22: 0 | E22: 0 | F22: 0 | G22: 462704 | H22: 0 | I22: 462704 | J22: -462704 | K22: -110850 | L22: -351854 | M22: 62000 | N22: -351854 | O22: 0 | P22: 0 | Q22: 62000
B23: OLD MUTUAL ASSURANCE | C23: 60374 | D23: 157847 | E23: 0 | F23: 218221 | G23: 0 | H23: 6745 | I23: 6745 | J23: 211476 | K23: 1480 | L23: 209996 | M23: -2814315 | N23: 0 | O23: 0 | P23: 0 | Q23: -2604318
B24: OLD MUTUAL LIFE ASSURANCE | C24: 0 | D24: 0 | E24: 123679 | F24: 123679 | G24: 0 | H24: 0 | I24: 0 | J24: 123679 | K24: 54371 | L24: 69308 | M24: -122806 | N24: 0 | O24: 0 | P24: 0 | Q24: -53498
B25: PIONEER ASSURANCE COMPANY | C25: 24697 | D25: 0 | E25: 0 | F25: 24697 | G25: 0 | H25: 0 | I25: 0 | J25: 24697 | K25: 53624 | L25: -28927 | M25: 281679 | N25: 91699 | O25: 0 | P25: 0 | Q25: 161052
B26: PRUDENTIAL LIFE ASSURANCE | C26: 0 | D26: -91678 | E26: 0 | F26: -91678 | G26: 0 | H26: 92578 | I26: 92578 | J26: -184256 | K26: 46473 | L26: -230728 | M26: -2478592 | N26: 0 | O26: 0 | P26: 0 | Q26: -2709320
B27: SANLAM LIFE ASSURANCE | C27: 455120 | D27: 0 | E27: 0 | F27: 455120 | G27: 0 | H27: 0 | I27: 0 | J27: 455120 | K27: 136536 | L27: 318584 | M27: 264543 | N27: 0 | O27: 0 | P27: 300000 | Q27: 283127
B28: STAR DISCOVER LIFE INSURANCE | C28: 0 | D28: 0 | E28: 0 | F28: 0 | G28: 0 | H28: 0 | I28: 0 | J28: 0 | K28: 0 | L28: 0 | M28: 0 | N28: 0 | O28: 0 | P28: 0 | Q28: 0
B29: THE KENYAN ALLIANCE INSURANCE | C29: 188436 | D29: 0 | E29: 0 | F29: 188436 | G29: 0 | H29: 0 | I29: 0 | J29: 188436 | K29: 0 | L29: 188436 | M29: -1181462 | N29: -808200 | O29: 0 | P29: 0 | Q29: -184826
B30: THE MONARCH INSURANCE | C30: 17558 | D30: 0 | E30: 0 | F30: 17558 | G30: 0 | H30: 0 | I30: 0 | J30: 17558 | K30: 0 | L30: 17558 | M30: -126784 | N30: 0 | O30: 0 | P30: 0 | Q30: -109225
B31: TOTAL | C31: =SUM(C6:C30) -> 6209683 | D31: 741669 | E31: 207405 | F31: 7158757 | G31: 522039 | H31: 214098 | I31: 744170 | J31: 6414585 | K31: 1939126 | L31: 4475461 | M31: 7043060 | N31: -839121 | O31: 0 | P31: 472500 | Q31: 11885145
B32: REINSURERS
B33: CONTINENTAL REINSURANCE | C33: 139147 | D33: 0 | E33: 0 | F33: 139147 | G33: 0 | H33: 0 | I33: 0 | J33: 139147 | K33: 65587 | L33: 73561 | M33: 242864 | N33: 0 | O33: 104419 | P33: 0 | Q33: 212006
B34: EAST AFRICA REINSURANCE | C34: 258275 | D34: 169869 | E34: 8322 | F34: 436466 | G34: 0 | H34: 0 | I34: 787 | J34: 435679 | K34: 130704 | L34: 304975 | M34: 339304 | N34: 0 | O34: 0 | P34: 0 | Q34: 644279
B35: KENYA REINSURANCE CORPORATION | C35: 853403 | D35: 0 | E35: 8832 | F35: 862234 | G35: 0 | H35: 0 | I35: 0 | J35: 862234 | K35: 139001 | L35: 723234 | M35: 7601075 | N35: 192990 | O35: 0 | P35: 0 | Q35: 8131318
B36: TOTAL | C36: =SUM(C33:C35) -> 1250825 | D36: =SUM(D33:D35) -> 169869 | E36: 17154 | F36: 1437847 | G36: 0 | H36: 0 | I36: 787 | J36: 1437060 | K36: 335292 | L36: 1101770 | M36: 8183243 | N36: 192990 | O36: 104419 | P36: 0 | Q36: 8987603
B37: GRAND TOTAL | C37: =C36+C31 -> 7460508 | D37: =D36+D31 -> 911538 | E37: 224559 | F37: 8596604 | G37: 522039 | H37: 214098 | I37: 744957 | J37: =J36+J31 -> 7851645 | K37: 2274418 | L37: 5577231 | M37: 15226303 | N37: -646131 | O37: 104419 | P37: 472500 | Q37: 20872748
B38: Amounts in Thousand Shillings

Sheet appendix 3x (hidden)
B2: APPENDIX 3: SUMMARY OF NET COMMISSIONS AND MANAGEMENT EXPENSES FOR THE YEAR ENDED 31.12.2014
C3: General Business | E3: Long Term Business
B4: INSURERS
B5: Company | C5: Commissions | D5: Management Expenses | E5: Commissions | F5: Management Expenses
B6: AAR INSURANCE KENYA | C6: 165288 | D6: 502774
B7: AFRICAN MERCHANT ASSURANCE | C7: 108669 | D7: 799815
B8: AIG INSURANCE COMPANY | C8: 91993 | D8: 808878
B9: APA INSURANCE COMPANY | C9: 497787 | D9: 1150711
B10: APA LIFE ASSURANCE COMPANY | E10: 5952 | F10: 136763
B11: BRITISH AMERICAN INSURANCE | C11: 409907 | D11: 1133785 | E11: 1393991 | F11: 1727158
B12: CANNON ASSURANCE COMPANY | C12: 87720 | D12: 319707 | E12: -13438 | F12: 67113
B13: CAPEX LIFE ASSURANCE COMPANY | E13: 926 | F13: 50788
B14: CIC GENERAL INSURANCE COMPANY | C14: 645669 | D14: 1804800
B15: CIC LIFE ASSURANCE COMPANY | E15: 186645 | F15: 1189024
B16: CORPORATE INSURANCE COMPANY | C16: 23941 | D16: 116290 | E16: 78637 | F16: 42149
B17: DIRECTLINE ASSURANCE COMPANY | C17: 219220 | D17: 739337
B18: FIDELITY SHIELD INSURANCE | C18: 81081 | D18: 304635
B19: FIRST ASSURANCE COMPANY | C19: 87720 | D19: 423394 | E19: -7079 | F19: 7511
B20: GA INSURANCE COMPANY | C20: -43764 | D20: 486215
B21: GA LIFE ASSURANCE LIMITED | E21: -3058 | F21: 13242
B22: GATEWAY INSURANCE COMPANY | C22: 27188 | D22: 339468
B23: GEMINIA INSURANCE COMPANY | C23: 49888 | D23: 283342 | E23: 1873 | F23: 7938
B24: HERITAGE INSURANCE COMPANY | C24: -25022 | D24: 1079262
B25: ICEA LION GENERAL INSURANCE | C25: 314064 | D25: 872074
B26: ICEA LION LIFE ASSURANCE COMPANY | E26: 311189 | F26: 713045
B27: INTRA-AFRICA ASSURANCE | C27: 41276 | D27: 224514
B28: INVESCO ASSURANCE COMPANY | C28: 201215 | D28: 1018143
B29: JUBILEE INSURANCE COMPANY | C29: 527610 | D29: 1145079 | E29: 612465 | F29: 719572
B30: KENINDIA ASSURANCE COMPANY | C30: 121728 | D30: 584711 | E30: 116653 | F30: 234064
B31: KENYA ORIENT INSURANCE | C31: 54696 | D31: 558149
B32: KENYA ORIENT LIFE ASSURANCE | E32: 8985 | F32: 81562
B33: LIBERTY LIFE ASSURANCE KENYA | E33: 189845 | F33: 1133473
B34: MADISON INSURANCE COMPANY | C34: 83379 | D34: 398628 | E34: 147899 | F34: 552308
B35: MAYFAIR INSURANCE COMPANY | C35: 12840 | D35: 259559
B36: METROPOLITAN LIFE ASSURANCE | E36: 38239 | F36: 153993
B37: OCCIDENTAL INSURANCE COMPANY | C37: 111840 | D37: 210299
B38: OLD MUTUAL ASSURANCE COMPANY | E38: 185386 | F38: 969433
B39: PACIS INSURANCE COMPANY | C39: 83985 | D39: 328250
B40: PAN AFRICA INSURANCE COMPANY | E40: 723713 | F40: 810331
B41: PHOENIX OF EAST AFRICA | C41: -43 | D41: 213356
B42: PIONEER ASSURANCE COMPANY | E42: 159246 | F42: 310185
B43: PRUDENTIAL LIFE ASSURANCE KENYA | E43: 20238 | F43: 72232
B44: REAL INSURANCE COMPANY | C44: 127529 | D44: 704790
B45: RESOLUTION HEALTH INSURANCE | C45: -70791 | D45: 603806
B46: SAHAM ASSURANCE | C46: -9053 | D46: 250746 | E46: 11774 | F46: 47021
B47: TAKAFUL INSURANCE OF AFRICA | C47: 61055 | D47: 265722
B48: TAUSI ASSURANCE COMPANY | C48: 57264 | D48: 172861
B49: THE KENYAN ALLIANCE INSURANCE | C49: 110974 | D49: 478426 | E49: -19313 | F49: 39504
B50: THE MONARCH INSURANCE | C50: 28626 | D50: 241389 | E50: -2682 | F50: 19233
B51: TRIDENT INSURANCE COMPANY | C51: -25524 | D51: 170220
B52: UAP INSURANCE COMPANY | C52: 427125 | D52: 1232280
B53: UAP LIFE ASSURANCE COMPANY | E53: 65555 | F53: 520521
B54: XPLICO INSURANCE COMPANY | C54: 116796 | D54: 792522
B55: TOTAL | C55: =SUM(C6:C54) -> 4803876 | D55: =SUM(D6:D54) -> 21017937 | E55: =SUM(E6:E54) -> 4213641 | F55: =SUM(F6:F54) -> 9618163
B56: REINSURERS
B57: CONTINENTAL REINSURANCE | C57: 645669 | D57: 1804800 | E57: 12636 | F57: 7066
B58: EAST AFRICA REINSURANCE | C58: 795095 | D58: 197474 | E58: 78387 | F58: 58654
B59: KENYA REINSURANCE CORPORATION | C59: 2683195 | D59: 961374 | E59: 308564 | F59: 180547
B60: TOTAL | C60: =SUM(C57:C59) -> 4123959 | D60: =SUM(D57:D59) -> 2963648 | E60: =SUM(E57:E59) -> 399587 | F60: =SUM(F57:F59) -> 246267
B61: GRAND TOTAL | C61: =C60+C55 -> 8927835 | D61: =D60+D55 -> 23981585 | E61: =E60+E55 -> 4613228 | F61: =F60+F55 -> 9864430
B62: Amounts in '000' shillings

Sheet APPENDIX 3
B3: APPENDIX 3: SUMMARY OF NET COMMISSIONS AND MANAGEMENT EXPENSES FOR THE YEAR ENDED 31.12.2022
B5: General Insurance Business | F5: Long Term Insurance Business
B6: Company | C6: Commissions | D6: Management Expenses | F6: Company | G6: Commissions | H6: Management Expenses
B7: AAR INSURANCE KENYA | C7: 384974 | D7: 1159130 | F7: ABSA LIFE ASSURANCE | G7: 813650 | H7: 805784
B8: AFRICAN MERCHANT ASSURANCE | C8: 102221 | D8: 648037 | F8: APA LIFE ASSURANCE COMPANY | G8: 347290 | H8: 323566
B9: AIG INSURANCE COMPANY | C9: -547648 | D9: 888921 | F9: BRITAM LIFE ASSURANCE | G9: 1274271 | H9: 3007205
B10: APA INSURANCE COMPANY | C10: 499213 | D10: 2038904 | F10: CANNON LIFE ASSURANCE (K) LIMITED | G10: -16543 | H10: 219391
B11: BRITAM GENERAL INSURANCE | C11: 610803 | D11: 2123879 | F11: CAPEX LIFE ASSURANCE COMPANY | G11: 3452 | H11: 211271
B12: CANNON GENERAL INSURANCE (K) LIMITED | C12: 106585 | D12: 330295 | F12: CIC LIFE ASSURANCE COMPANY | G12: 353115 | H12: 1668154
B13: CIC GENERAL INSURANCE COMPANY | C13: 850246 | D13: 2751010 | F13: CORPORATE INSURANCE COMPANY | G13: 5329 | H13: 68547
B14: CORPORATE INSURANCE COMPANY | C14: 57062 | D14: 153852 | F14: EQUITY LIFE ASSURANCE | G14: 88384 | H14: 304865
B15: DIRECTLINE ASSURANCE COMPANY | C15: 373802 | D15: 1038821 | F15: GA LIFE ASSURANCE COMPANY | G15: 43318 | H15: 103866
B16: FIDELITY SHIELD INSURANCE | C16: 212107 | D16: 372627 | F16: GEMINIA LIFE INSURANCE COMPANY | G16: -31550 | H16: 286427
B17: FIRST ASSURANCE COMPANY | C17: 427787 | D17: 971970 | F17: ICEA LION LIFE ASSURANCE | G17: 1220117 | H17: 1684923
B18: GA INSURANCE COMPANY | C18: -143605 | D18: 1299560 | F18: JUBILEE INSURANCE COMPANY | G18: 956610 | H18: 1188940
B19: GEMINIA INSURANCE COMPANY | C19: 141501 | D19: 1077865 | F19: KENINDIA ASSURANCE COMPANY | G19: 237890 | H19: 611869
B20: HEALTHIER (K) MICRO INSURANCE | C20: 0 | D20: 0 | F20: KENYA ORIENT LIFE ASSURANCE | G20: 55797 | H20: 361285
B21: HERITAGE INSURANCE COMPANY | C21: 236989 | D21: 1517772 | F21: KUSCCO MUTUAL ASSURANCE LIMITED | G21: 115735 | H21: 231266
B22: ICEA LION GENERAL INSURANCE | C22: 229897 | D22: 1257678 | F22: LIBERTY LIFE ASSURANCE COMPANY | G22: 336491 | H22: 1340181
B23: INTRA-AFRICA ASSURANCE | C23: 184245 | D23: 377186 | F23: MADISON INSURANCE COMPANY | G23: 328292 | H23: 944696
B24: INVESCO ASSURANCE COMPANY | C24: 120529 | D24: 772728 | F24: OLD MUTUAL ASSURANCE | G24: 109877 | H24: 317442
B25: JUBILEE GENERAL INSURANCE | C25: 71253 | D25: 1406934 | F25: OLD MUTUAL LIFE ASSURANCE | G25: 128848 | H25: 1111647
B26: JUBILEE HEALTH INSURANCE | C26: 793275 | D26: 1355015 | F26: PIONEER ASSURANCE COMPANY | G26: 332882 | H26: 508978
B27: KENINDIA ASSURANCE COMPANY | C27: 146096 | D27: 609216 | F27: PRUDENTIAL LIFE ASSURANCE | G27: 161395 | H27: 700332
B28: KENYA ORIENT INSURANCE | C28: 96325 | D28: 551266 | F28: SANLAM LIFE ASSURANCE | G28: 376729 | H28: 1289443
B29: MADISON INSURANCE COMPANY | C29: 529345 | D29: 1570032 | F29: STAR DISCOVER LIFE INSURANCE | G29: 0 | H29: 0
B30: MAYFAIR INSURANCE COMPANY | C30: 113842 | D30: 593782 | F30: THE KENYAN ALLIANCE INSURANCE | G30: 14069 | H30: 124969
B31: MUA INSURANCE COMPANY | C31: 242061 | D31: 868477 | F31: THE MONARCH INSURANCE | G31: -1234 | H31: 41581
B32: OCCIDENTAL INSURANCE COMPANY | C32: 197101 | D32: 703411 | F32: TOTAL | G32: =SUM(G7:G31) -> 7254214 | H32: =SUM(H7:H31) -> 17456628
B33: OLD MUTUAL GENERAL INSURANCE | C33: 1057156 | D33: 2469238 | F33: REINSURERS
B34: PACIS INSURANCE COMPANY | C34: 151687 | D34: 486423 | F34: CONTINENTAL REINSURANCE | G34: 10409 | H34: 6982
B35: PIONEER GENERAL INSURANCE COMPANY | C35: 174688 | D35: 364710 | F35: EAST AFRICA REINSURANCE | G35: 185726 | H35: 47859
B36: SANLAM INSURANCE COMPANY | C36: 267206 | D36: 516142 | F36: KENYA REINSURANCE CORPORATION | G36: 534797 | H36: 155962
B37: STAR DISCOVER INSURANCE | C37: 0 | D37: 0 | F37: TOTAL | G37: =SUM(G34:G36) -> 730932 | H37: =SUM(H34:H36) -> 210803
B38: TAKAFUL INSURANCE OF AFRICA | C38: 62789 | D38: 353802 | F38: GRAND TOTAL | G38: =G37+G32 -> 7985146 | H38: =H37+H32 -> 17667431
B39: TAUSI ASSURANCE COMPANY | C39: 83974 | D39: 414141 | F39: Amounts in Thousand shillings
B40: THE KENYAN ALLIANCE INSURANCE | C40: 11324 | D40: 881021
B41: THE MONARCH INSURANCE | C41: 0 | D41: 0
B42: TRIDENT INSURANCE COMPANY | C42: 161944 | D42: 480121
B43: XPLICO INSURANCE COMPANY | C43: 80062 | D43: 420155
B44: TOTAL | C44: =SUM(C7:C43) -> 8086836 | D44: =SUM(D7:D43) -> 32824121
B45: REINSURERS
B46: CONTINENTAL REINSURANCE | C46: 2399401 | D46: 710904
B47: EAST AFRICAN REINSURANCE | C47: 902313 | D47: 363991
B48: GHANA REINSURANCE COMPANY | C48: 550829 | D48: 237649
B49: KENYA REINSURANCE CORPORATION | C49: 4744727 | D49: 1507909
B50: WAICA REINSURANCE KENYA LIMITED | C50: 804026 | D50: 375246
B51: TOTAL | C51: =SUM(C46:C50) -> 9401296 | D51: =SUM(D46:D50) -> 3195699
B52: GRAND TOTAL | C52: =C51+C44 -> 17488132 | D52: =D51+D44 -> 36019820
B53: Amounts in Thousand shillings

Sheet APPENDIX 4 I
B3: APPENDIX 4: SUMMARY OF LONG TERM INSURANCE BUSINESS BALANCE SHEETS AS AT 31.12.2022
B4: Company | C4: ABSA LIFE ASSURANCE | D4: APA LIFE ASSURANCE COMPANY | E4: BRITAM LIFE ASSURANCE | F4: CANNON LIFE ASSURANCE (K) LIMITED | G4: CAPEX LIFE ASSURANCE COMPANY | H4: CIC LIFE ASSURANCE COMPANY | I4: CONTINENTAL REINSURANCE | J4: CORPORATE INSURANCE COMPANY | K4: EAST AFRICA REINSURANCE | L4: EQUITY LIFE ASSURANCE | M4: GA LIFE INSURANCE COMPANY | N4: GEMINIA LIFE INSURANCE COMPANY
B5: Share Capital | C5: 699000 | D5: 1100000 | E5: 400000 | F5: 416726 | G5: 400000 | H5: 800000 | I5: 500000 | J5: 200000 | K5: 500000 | L5: 600000 | M5: 400000 | N5: 400100
B6: Share Premium | C6: 0 | D6: 0 | E6: 0 | F6: 491067 | G6: 0 | H6: 0 | I6: 0 | J6: 0 | K6: 0 | L6: 0 | M6: 0 | N6: 0
B7: Revaluation Reserves | C7: 0 | D7: 0 | E7: 0 | F7: 2500 | G7: 1621 | H7: -327921 | I7: -50 | J7: 0 | K7: 0 | L7: 0 | M7: 0 | N7: 0
B8: Statutory Reserves | C8: 902849 | D8: 41107 | E8: 0 | F8: 0 | G8: 26875 | H8: 1441435 | I8: 21057 | J8: -171655 | K8: 0 | L8: 0 | M8: 304310 | N8: 201198
B9: Retained Earnings | C9: 0 | D9: -348860 | E9: 300000 | F9: -1423455 | G9: 0 | H9: 186861 | I9: 0 | J9: 0 | K9: 0 | L9: 281682 | M9: 150394 | N9: 62788
B10: Other Reserves | C10: 0 | D10: 0 | E10: 9187719 | F10: 800074 | G10: 1120 | H10: 49613 | I10: 212006 | J10: 0 | K10: 644279 | L10: 0 | M10: 0 | N10: 57994
B11: Total Equity | C11: 1601849 | D11: 792247 | E11: 9887719 | F11: 286912 | G11: 429616 | H11: 2149989 | I11: 733012 | J11: 28345 | K11: 1144279 | L11: 881682 | M11: 854703 | N11: 722080
B12: Underwriting Provisions | C12: 0 | D12: 1284072 | E12: 884066 | F12: 273586 | G12: 36244 | H12: 3813897 | I12: 94125 | J12: 265291 | K12: 224801 | L12: 58747 | M12: 4281 | N12: 375143
B13: Actuarial Contract Liabilities | C13: 6287792 | D13: 9020313 | E13: 102587679 | F13: 1017802 | G13: 883865 | H13: 13565251 | I13: 0 | J13: 335604 | K13: 264680 | L13: 2470564 | M13: 28103429 | N13: 1376699
B14: LongTerm Liabilities | C14: 0 | D14: 17618 | E14: 3937593 | F14: 185405 | G14: 0 | H14: 639881 | I14: 51165 | J14: 0 | K14: 276120 | L14: 123524 | M14: 130418 | N14: 58440
B15: Current Liabilities | C15: 940527 | D15: 202350 | E15: 1616428 | F15: 133275 | G15: 136551 | H15: 850228 | I15: 46717 | J15: 207986 | K15: 142851 | L15: 722873 | M15: 98944 | N15: 287796
B16: Total Equity And Liabilities | C16: 8830168 | D16: 11316601 | E16: 118913486 | F16: 1896980 | G16: 1486276 | H16: 21019244 | I16: 925019 | J16: 837226 | K16: 2052732 | L16: 4257391 | M16: 29191775 | N16: 2820158
B17: Land And Buildings | C17: 0 | D17: 0 | E17: 103378 | F17: 92500 | G17: 240000 | H17: 0 | I17: 0 | J17: 0 | K17: 0 | L17: 0 | M17: 0 | N17: 0
B18: Investment Property | C18: 0 | D18: 182050 | E18: 13277597 | F18: 764600 | G18: 300000 | H18: 2181875 | I18: 0 | J18: 721355 | K18: 0 | L18: 0 | M18: 1511957 | N18: 74000
B19: Other Fixed Assets | C19: 20079 | D19: 4358 | E19: 46329 | F19: 11675 | G19: 8604 | H19: 47711 | I19: 0 | J19: 895 | K19: 0 | L19: 2677 | M19: 743 | N19: 9162
B20: Government Securities | C20: 7829396 | D20: 9238255 | E20: 84497254 | F20: 721828 | G20: 136305 | H20: 12488351 | I20: 826505 | J20: 79691 | K20: 1277116 | L20: 2560391 | M20: 27383042 | N20: 1513712
B21: Other Securities | C21: 0 | D21: 77163 | E21: 0 | F21: 0 | G21: 0 | H21: 684351 | I21: 0 | J21: 0 | K21: 0 | L21: 0 | M21: 0 | N21: 0
B22: Investment in Related Companies | C22: 0 | D22: 0 | E22: 1807213 | F22: 0 | G22: 0 | H22: 0 | I22: 0 | J22: 0 | K22: 0 | L22: 0 | M22: 0 | N22: 0
B23: Corporate Bonds | C23: 0 | D23: 133089 | E23: 0 | F23: 0 | G23: 0 | H23: 144361 | I23: 0 | J23: 0 | K23: 37632 | L23: 0 | M23: 0 | N23: 6946
B24: Commercial Papers | C24: 0 | D24: 71496 | E24: 0 | F24: 0 | G24: 0 | H24: 11985 | I24: 0 | J24: 0 | K24: 0 | L24: 0 | M24: 0 | N24: 0
B25: Debentures | C25: 0 | D25: 0 | E25: 0 | F25: 0 | G25: 0 | H25: 0 | I25: 0 | J25: 0 | K25: 0 | L25: 0 | M25: 0 | N25: 0
B26: Ordinary Shares Quoted | C26: 0 | D26: 405943 | E26: 3087067 | F26: 11004 | G26: 1 | H26: 737654 | I26: 0 | J26: 0 | K26: 12071 | L26: 0 | M26: 65501 | N26: 37511
B27: Ordinary Shares Unquoted | C27: 0 | D27: 9485 | E27: 7355645 | F27: 85 | G27: 0 | H27: 652 | I27: 0 | J27: 741 | K27: 0 | L27: 0 | M27: 0 | N27: 0
B28: Preference Shares Quoted | C28: 0 | D28: 0 | E28: 0 | F28: 0 | G28: 0 | H28: 0 | I28: 0 | J28: 0 | K28: 0 | L28: 0 | M28: 0 | N28: 0
B29: Preference Shares Unquoted | C29: 0 | D29: 0 | E29: 0 | F29: 0 | G29: 0 | H29: 0 | I29: 0 | J29: 0 | K29: 0 | L29: 0 | M29: 0 | N29: 0
B30: Loans Secured & Unsecured | C30: 0 | D30: 49199 | E30: 2900858 | F30: 274 | G30: 0 | H30: 665801 | I30: 0 | J30: 10252 | K30: 0 | L30: 0 | M30: 3819 | N30: 23218
B31: Mortgages | C31: 0 | D31: 0 | E31: 1150370 | F31: 27210 | G31: 0 | H31: 32794 | I31: 0 | J31: 0 | K31: 0 | L31: 0 | M31: 0 | N31: 0
B32: Term Deposits | C32: 188359 | D32: 575276 | E32: 1167130 | F32: 74561 | G32: 195000 | H32: 2192061 | I32: 93608 | J32: 2222 | K32: 290338 | L32: 134665 | M32: 157841 | N32: 428968
B33: Cash and Cash Balances | C33: 132572 | D33: 70341 | E33: 551108 | F33: 23672 | G33: 43928 | H33: 125998 | I33: 4049 | J33: 2851 | K33: 46939 | L33: 282050 | M33: 32566 | N33: 58096
B34: Outstanding Premiums | C34: 240544 | D34: 379647 | E34: 1332819 | F34: 25020 | G34: 286646 | H34: 52386 | I34: 0 | J34: 9848 | K34: 124178 | L34: 997132 | M34: 2500 | N34: 233284
B35: Other Receivables | C35: 4179 | D35: 7623 | E35: 788426 | F35: 0 | G35: 241266 | H35: 663607 | I35: 0 | J35: 7947 | K35: 136528 | L35: 18436 | M35: 450 | N35: 311818
B36: Other Assets | C36: 262191 | D36: 19316 | E36: 337620 | F36: 142887 | G36: 34526 | H36: 988120 | I36: 856 | J36: 0 | K36: 53119 | L36: 4806 | M36: 32973 | N36: 123441
B37: Intangible Assets | C37: 152849 | D37: 93357 | E37: 510673 | F37: 1664 | G37: 0 | H37: 1537 | I37: 0 | J37: 1423 | K37: 74810 | L37: 257234 | M37: 383 | N37: 0
B38: Total Assets | C38: 8830168 | D38: 11316601 | E38: 118913486 | F38: 1896980 | G38: 1486276 | H38: 21019244 | I38: 925019 | J38: 837226 | K38: 2052732 | L38: 4257391 | M38: 29191775 | N38: 2820158
B39: Amounts in thousand Shillings | K39: Continued next page

Sheet APPENDIX 4 II
B2: Continued from previous page
B3: APPENDIX 4: SUMMARY OF LONG TERM INSURANCE BUSINESS BALANCE SHEETS AS AT 31.12.2022
B4: Company | C4: ICEA LION LIFE ASSURANCE COMPANY | D4: JUBILEE INSURANCE COMPANY | E4: KENINDIA ASSURANCE COMPANY | F4: KENYA ORIENT LIFE ASSURANCE | G4: KENYA REINSURANCE CORPORATION | H4: KUSCCO MUTUAL ASSURANCE LIMITED | I4: LIBERTY LIFE ASSURANCE | J4: MADISON INSURANCE COMPANY | K4: OLD MUTUAL ASSURANCE COMPANY | L4: OLD MUTUAL LIFE ASSURANCE
B5: Share Capital | C5: 1125000 | D5: 500000 | E5: 400000 | F5: 313000 | G5: 500000 | H5: 400100 | I5: 742340 | J5: 450000 | K5: 2174871 | L5: 1585456
B6: Share Premium | C6: 1125000 | D6: 0 | E6: 0 | F6: 0 | G6: 0 | H6: 0 | I6: 0 | J6: 0 | K6: 1884957 | L6: 0
B7: Revaluation Reserves | C7: 0 | D7: 0 | E7: -447 | F7: 0 | G7: 0 | H7: 0 | I7: 384946 | J7: 19341 | K7: 0 | L7: 27534
B8: Statutory Reserves | C8: 13116584 | D8: 2042638 | E8: 2074133 | F8: 373673 | G8: 8131318 | H8: 201170 | I8: 1995329 | J8: -1524872 | K8: 0 | L8: 199960
B9: Retained Earnings | C9: 833260 | D9: 7277356 | E9: 45268 | F9: 18095 | G9: 0 | H9: 0 | I9: -304170 | J9: 62000 | K9: -2604318 | L9: 2279202
B10: Other Reserves | C10: 840000 | D10: 0 | E10: 1341799 | F10: 0 | G10: -80064 | H10: 2800 | I10: 0 | J10: 0 | K10: 0 | L10: 0
B11: Total Equity | C11: 17039844 | D11: 9819995 | E11: 3860753 | F11: 704768 | G11: 8551255 | H11: 604070 | I11: 2818445 | J11: -993531 | K11: 1455509 | L11: 4092152
B12: Underwriting Provisions | C12: 160377 | D12: 965874 | E12: 47640 | F12: 41495 | G12: 461896 | H12: 101797 | I12: 743879 | J12: 98593 | K12: 414894 | L12: 962208
B13: Actuarial Contract Liabilities | C13: 112445136 | D13: 99929786 | E13: 62499442 | F13: 2773491 | G13: 1298214 | H13: 360848 | I13: 19997334 | J13: 17322456 | K13: 10196936 | L13: 10357052
B14: LongTerm Liabilities | C14: 2521714 | D14: 938924 | E14: 0 | F14: 160146 | G14: 0 | H14: 0 | I14: 1020115 | J14: 0 | K14: 0 | L14: 74722
B15: Current Liabilities | C15: 1723940 | D15: 2368320 | E15: 629168 | F15: 55386 | G15: 3658623 | H15: 534529 | I15: 828434 | J15: 356558 | K15: 916907 | L15: 1106113
B16: Total Equity And Liabilities | C16: 133891011 | D16: 114022899 | E16: 67037003 | F16: 3735286 | G16: 13969988 | H16: 1601244 | I16: 25408207 | J16: 16784076 | K16: 12984246 | L16: 16592247
B17: Land And Buildings | C17: 0 | D17: 0 | E17: 929051 | F17: 0 | G17: 0 | H17: 0 | I17: 770787 | J17: 262694 | K17: 0 | L17: 0
B18: Investment Property | C18: 9425000 | D18: 4209000 | E18: 2044800 | F18: 260000 | G18: 1621748 | H18: 0 | I18: 563633 | J18: 6344021 | K18: 2071000 | L18: 859000
B19: Other Fixed Assets | C19: 139125 | D19: 21819 | E19: 23154 | F19: 5623 | G19: 0 | H19: 41763 | I19: 96595 | J19: 42613 | K19: 18313 | L19: 20755
B20: Government Securities | C20: 105972765 | D20: 89308044 | E20: 62398510 | F20: 2358692 | G20: 6579364 | H20: 328354 | I20: 15404078 | J20: 4642026 | K20: 7645950 | L20: 10068142
B21: Other Securities | C21: 0 | D21: 0 | E21: 0 | F21: 99354 | G21: 0 | H21: 0 | I21: 0 | J21: 62765 | K21: 8141 | L21: 0
B22: Investment in Related Companies | C22: 1244188 | D22: 2314201 | E22: 0 | F22: 0 | G22: 0 | H22: 0 | I22: 0 | J22: 0 | K22: 0 | L22: 2592447
B23: Corporate Bonds | C23: 229983 | D23: 8978 | E23: 0 | F23: 204622 | G23: 0 | H23: 0 | I23: 0 | J23: 0 | K23: 0 | L23: 50789
B24: Commercial Papers | C24: 0 | D24: 0 | E24: 0 | F24: 56550 | G24: 0 | H24: 0 | I24: 0 | J24: 0 | K24: 0 | L24: 0
B25: Debentures | C25: 0 | D25: 0 | E25: 0 | F25: 0 | G25: 0 | H25: 0 | I25: 0 | J25: 0 | K25: 0 | L25: 0
B26: Ordinary Shares Quoted | C26: 7825746 | D26: 4725102 | E26: 473751 | F26: 0 | G26: 177878 | H26: 0 | I26: 2309873 | J26: 200982 | K26: 432968 | L26: 276204
B27: Ordinary Shares Unquoted | C27: 17472 | D27: 5647448 | E27: 20 | F27: 57929 | G27: 0 | H27: 0 | I27: 126995 | J27: 1960475 | K27: 287175 | L27: 14068
B28: Preference Shares Quoted | C28: 1026 | D28: 0 | E28: 0 | F28: 0 | G28: 0 | H28: 0 | I28: 0 | J28: 0 | K28: 0 | L28: 0
B29: Preference Shares Unquoted | C29: 0 | D29: 1172048 | E29: 0 | F29: 0 | G29: 0 | H29: 0 | I29: 0 | J29: 0 | K29: 0 | L29: 0
B30: Loans Secured & Unsecured | C30: 989965 | D30: 1209528 | E30: 93567 | F30: 56132 | G30: 0 | H30: 14200 | I30: 714610 | J30: 81677 | K30: 81888 | L30: 45465
B31: Mortgages | C31: 656159 | D31: 0 | E31: 4239 | F31: 0 | G31: 0 | H31: 0 | I31: 443995 | J31: 112364 | K31: 11034 | L31: 24131
B32: Term Deposits | C32: 6123587 | D32: 904173 | E32: 776318 | F32: 512019 | G32: 4482917 | H32: 22021 | I32: 3809257 | J32: 1062091 | K32: 1305833 | L32: 1230610
B33: Cash and Cash Balances | C33: 63926 | D33: 767032 | E33: 145089 | F33: 29215 | G33: 6 | H33: 12478 | I33: 352815 | J33: 131895 | K33: 621252 | L33: 406869
B34: Outstanding Premiums | C34: 20276 | D34: 606714 | E34: 3494 | F34: 89738 | G34: 502972 | H34: 519977 | I34: 416329 | J34: 127367 | K34: 83920 | L34: 849506
B35: Other Receivables | C35: 698717 | D35: 2702979 | E35: 131871 | F35: 0 | G35: 435356 | H35: 537513 | I35: 164485 | J35: 947703 | K35: 184439 | L35: 25123
B36: Other Assets | C36: 480082 | D36: 392984 | E36: 0 | F36: 5413 | G36: 0 | H36: 94440 | I36: 60616 | J36: 767293 | K36: 232334 | L36: 129138
B37: Intangible Assets | C37: 2994 | D37: 32850 | E37: 13139 | F37: 0 | G37: 169748 | H37: 30499 | I37: 174139 | J37: 38110 | K37: 0 | L37: 0
B38: Total Assets | C38: 133891011 | D38: 114022899 | E38: 67037003 | F38: 3735286 | G38: 13969988 | H38: 1601244 | I38: 25408207 | J38: 16784076 | K38: 12984246 | L38: 16592247
B39: Amounts in thousand Shillings | J39: Continued next page

Sheet APPENDIX 4 III
B3: Continued from previous page
B4: APPENDIX 4: SUMMARY OF LONG TERM INSURANCE BUSINESS BALANCE SHEETS AS AT 31.12.2022
B5: Company | C5: PIONEER ASSURANCE COMPANY | D5: PRUDENTIAL LIFE ASSURANCE | E5: SANLAM LIFE ASSURANCE | F5: STAR DISCOVER LIFE INSURANCE | G5: THE KENYAN ALLIANCE INSURANCE | H5: THE MONARCH INSURANCE COMPANY | I5: TOTAL | K5: Insurers | L5: Reinsurers
B6: Share Capital | C6: 400000 | D6: 419185 | E6: 843138 | F6: 0 | G6: 500000 | H6: 154976 | I6: 16923892 | J6: =SUM('APPENDIX 4 I'!C5:N5)+SUM('APPENDIX 4 II'!C5:L5)+SUM('APPENDIX 4 III'!C6:H6) -> 16923892 | K6: =I6-L6 -> 15623792 | L6: ='APPENDIX 4 I'!I5+'APPENDIX 4 I'!M5+'APPENDIX 4 II'!H5 -> 1300100
B7: Share Premium | C7: 0 | D7: 3123891 | E7: 30260 | F7: 0 | G7: 0 | H7: 0 | I7: 6655175 | J7: =SUM('APPENDIX 4 I'!C6:N6)+SUM('APPENDIX 4 II'!C6:L6)+SUM('APPENDIX 4 III'!C7:H7) -> 6655175 | K7: =I7-L7 -> 6655175 | L7: ='APPENDIX 4 I'!I6+'APPENDIX 4 I'!M6+'APPENDIX 4 II'!H6 -> 0
B8: Revaluation Reserves | C8: 0 | D8: 0 | E8: 0 | F8: 0 | G8: 0 | H8: 0 | I8: 107524 | J8: =SUM('APPENDIX 4 I'!C7:N7)+SUM('APPENDIX 4 II'!C7:L7)+SUM('APPENDIX 4 III'!C8:H8) -> 107524 | K8: 107574 | L8: ='APPENDIX 4 I'!I7+'APPENDIX 4 I'!M7+'APPENDIX 4 II'!H7 -> -50
B9: Statutory Reserves | C9: 268732 | D9: 0 | E9: 1889702 | F9: 0 | G9: 6000 | H9: 49785 | I9: 31591328 | J9: =SUM('APPENDIX 4 I'!C8:N8)+SUM('APPENDIX 4 II'!C8:L8)+SUM('APPENDIX 4 III'!C9:H9) -> 31591328 | K9: 31064791 | L9: ='APPENDIX 4 I'!I8+'APPENDIX 4 I'!M8+'APPENDIX 4 II'!H8 -> 526537
B10: Retained Earnings | C10: 161052 | D10: -2709319 | E10: 283127 | F10: 0 | G10: -184826 | H10: -109225 | I10: 4256912 | J10: =SUM('APPENDIX 4 I'!C9:N9)+SUM('APPENDIX 4 II'!C9:L9)+SUM('APPENDIX 4 III'!C10:H10) -> 4256912 | K10: 4106518 | L10: ='APPENDIX 4 I'!I9+'APPENDIX 4 I'!M9+'APPENDIX 4 II'!H9 -> 150394
B11: Other Reserves | C11: 0 | D11: 0 | E11: 0 | F11: 0 | G11: 0 | H11: 1114 | I11: 13058454 | J11: =SUM('APPENDIX 4 I'!C10:N10)+SUM('APPENDIX 4 II'!C10:L10)+SUM('APPENDIX 4 III'!C11:H11) -> 13058454 | K11: 12843648 | L11: ='APPENDIX 4 I'!I10+'APPENDIX 4 I'!M10+'APPENDIX 4 II'!H10 -> 214806
B12: Total Equity | C12: 829784 | D12: 833757 | E12: 3046227 | F12: 0 | G12: 321174 | H12: 96649 | I12: 72593284 | J12: =SUM('APPENDIX 4 I'!C11:N11)+SUM('APPENDIX 4 II'!C11:L11)+SUM('APPENDIX 4 III'!C12:H12) -> 72593284 | K12: 70401499 | L12: ='APPENDIX 4 I'!I11+'APPENDIX 4 I'!M11+'APPENDIX 4 II'!H11 -> 2191785
B13: Underwriting Provisions | C13: 739701 | D13: 12409 | E13: 0 | F13: 0 | G13: 99194 | H13: 170521 | I13: 12334731 | J13: =SUM('APPENDIX 4 I'!C12:N12)+SUM('APPENDIX 4 II'!C12:L12)+SUM('APPENDIX 4 III'!C13:H13) -> 12334731 | K13: 12134528 | L13: ='APPENDIX 4 I'!I12+'APPENDIX 4 I'!M12+'APPENDIX 4 II'!H12 -> 200203
B14: Actuarial Contract Liabilities | C14: 4645151 | D14: 1861991 | E14: 25441174 | F14: 0 | G14: 4595067 | H14: 487634 | I14: 540125390 | J14: =SUM('APPENDIX 4 I'!C13:N13)+SUM('APPENDIX 4 II'!C13:L13)+SUM('APPENDIX 4 III'!C14:H14) -> 540125390 | K14: 511661113 | L14: ='APPENDIX 4 I'!I13+'APPENDIX 4 I'!M13+'APPENDIX 4 II'!H13 -> 28464277
B15: LongTerm Liabilities | C15: 160699 | D15: 0 | E15: 809873 | F15: 0 | G15: 0 | H15: 0 | I15: 11106357 | J15: =SUM('APPENDIX 4 I'!C14:N14)+SUM('APPENDIX 4 II'!C14:L14)+SUM('APPENDIX 4 III'!C15:H15) -> 11106357 | K15: 10924774 | L15: ='APPENDIX 4 I'!I14+'APPENDIX 4 I'!M14+'APPENDIX 4 II'!H14 -> 181583
B16: Current Liabilities | C16: 579943 | D16: 245787 | E16: 1719544 | F16: 0 | G16: 16562 | H16: 87310 | I16: 20213650 | J16: =SUM('APPENDIX 4 I'!C15:N15)+SUM('APPENDIX 4 II'!C15:L15)+SUM('APPENDIX 4 III'!C16:H16) -> 20213650 | K16: 19533460 | L16: ='APPENDIX 4 I'!I15+'APPENDIX 4 I'!M15+'APPENDIX 4 II'!H15 -> 680190
B17: Total Equity And Liabilities | C17: 6955278 | D17: 2953943 | E17: 31016817 | F17: 0 | G17: 5031997 | H17: 842115 | I17: 656373413 | J17: =SUM('APPENDIX 4 I'!C16:N16)+SUM('APPENDIX 4 II'!C16:L16)+SUM('APPENDIX 4 III'!C17:H17) -> 656373413 | K17: 624655375 | L17: ='APPENDIX 4 I'!I16+'APPENDIX 4 I'!M16+'APPENDIX 4 II'!H16 -> 31718038 | N17: =I17+'APPENDIX5 IV'!K17 -> 956871079
B18: Land And Buildings | C18: 0 | D18: 0 | E18: 0 | F18: 0 | G18: 0 | H18: 0 | I18: 2398410 | J18: =SUM('APPENDIX 4 I'!C17:N17)+SUM('APPENDIX 4 II'!C17:L17)+SUM('APPENDIX 4 III'!C18:H18) -> 2398410 | K18: 2398410 | L18: ='APPENDIX 4 I'!I17+'APPENDIX 4 I'!M17+'APPENDIX 4 II'!H17 -> 0
B19: Investment Property | C19: 1701173 | D19: 0 | E19: 2875000 | F19: 0 | G19: 3089885 | H19: 317721 | I19: 54395415 | J19: =SUM('APPENDIX 4 I'!C18:N18)+SUM('APPENDIX 4 II'!C18:L18)+SUM('APPENDIX 4 III'!C19:H19) -> 54395415 | K19: 52883458 | L19: ='APPENDIX 4 I'!I18+'APPENDIX 4 I'!M18+'APPENDIX 4 II'!H18 -> 1511957
B20: Other Fixed Assets | C20: 32487 | D20: 26275 | E20: 127466 | F20: 0 | G20: 13008 | H20: 15061 | I20: 776290 | J20: =SUM('APPENDIX 4 I'!C19:N19)+SUM('APPENDIX 4 II'!C19:L19)+SUM('APPENDIX 4 III'!C20:H20) -> 776290 | K20: 733784 | L20: ='APPENDIX 4 I'!I19+'APPENDIX 4 I'!M19+'APPENDIX 4 II'!H19 -> 42506
B21: Government Securities | C21: 811572 | D21: 2449437 | E21: 25416878 | F21: 0 | G21: 543781 | H21: 69823 | I21: 482549262 | J21: =SUM('APPENDIX 4 I'!C20:N20)+SUM('APPENDIX 4 II'!C20:L20)+SUM('APPENDIX 4 III'!C21:H21) -> 482549262 | K21: 454011361 | L21: ='APPENDIX 4 I'!I20+'APPENDIX 4 I'!M20+'APPENDIX 4 II'!H20 -> 28537901 | N21: =I21+'APPENDIX5 IV'!K21 -> 595637411
B22: Other Securities | C22: 0 | D22: 0 | E22: 0 | F22: 0 | G22: 0 | H22: 0 | I22: 931774 | J22: =SUM('APPENDIX 4 I'!C21:N21)+SUM('APPENDIX 4 II'!C21:L21)+SUM('APPENDIX 4 III'!C22:H22) -> 931774 | K22: 931774 | L22: ='APPENDIX 4 I'!I21+'APPENDIX 4 I'!M21+'APPENDIX 4 II'!H21 -> 0
B23: Investment in Related Companies | C23: 0 | D23: 0 | E23: 0 | F23: 0 | G23: 0 | H23: 0 | I23: 7958049 | J23: =SUM('APPENDIX 4 I'!C22:N22)+SUM('APPENDIX 4 II'!C22:L22)+SUM('APPENDIX 4 III'!C23:H23) -> 7958049 | K23: 7958049 | L23: ='APPENDIX 4 I'!I22+'APPENDIX 4 I'!M22+'APPENDIX 4 II'!H22 -> 0
B24: Corporate Bonds | C24: 0 | D24: 0 | E24: 0 | F24: 0 | G24: 0 | H24: 0 | I24: 816400 | J24: =SUM('APPENDIX 4 I'!C23:N23)+SUM('APPENDIX 4 II'!C23:L23)+SUM('APPENDIX 4 III'!C24:H24) -> 816400 | K24: 816400 | L24: ='APPENDIX 4 I'!I23+'APPENDIX 4 I'!M23+'APPENDIX 4 II'!H23 -> 0
B25: Commercial Papers | C25: 0 | D25: 0 | E25: 0 | F25: 0 | G25: 0 | H25: 0 | I25: 140031 | J25: =SUM('APPENDIX 4 I'!C24:N24)+SUM('APPENDIX 4 II'!C24:L24)+SUM('APPENDIX 4 III'!C25:H25) -> 140031 | K25: 140031 | L25: ='APPENDIX 4 I'!I24+'APPENDIX 4 I'!M24+'APPENDIX 4 II'!H24 -> 0
B26: Debentures | C26: 0 | D26: 0 | E26: 0 | F26: 0 | G26: 0 | H26: 0 | I26: 0 | J26: =SUM('APPENDIX 4 I'!C25:N25)+SUM('APPENDIX 4 II'!C25:L25)+SUM('APPENDIX 4 III'!C26:H26) -> 0 | K26: 0 | L26: ='APPENDIX 4 I'!I25+'APPENDIX 4 I'!M25+'APPENDIX 4 II'!H25 -> 0
B27: Ordinary Shares Quoted | C27: 47262 | D27: 0 | E27: 131395 | F27: 0 | G27: 0 | H27: 0 | I27: 20957913 | J27: =SUM('APPENDIX 4 I'!C26:N26)+SUM('APPENDIX 4 II'!C26:L26)+SUM('APPENDIX 4 III'!C27:H27) -> 20957913 | K27: 20892412 | L27: ='APPENDIX 4 I'!I26+'APPENDIX 4 I'!M26+'APPENDIX 4 II'!H26 -> 65501
B28: Ordinary Shares Unquoted | C28: 0 | D28: 0 | E28: 0 | F28: 0 | G28: 0 | H28: 0 | I28: 15478190 | J28: =SUM('APPENDIX 4 I'!C27:N27)+SUM('APPENDIX 4 II'!C27:L27)+SUM('APPENDIX 4 III'!C28:H28) -> 15478190 | K28: 15478190 | L28: ='APPENDIX 4 I'!I27+'APPENDIX 4 I'!M27+'APPENDIX 4 II'!H27 -> 0
B29: Preference Shares Quoted | C29: 0 | D29: 0 | E29: 0 | F29: 0 | G29: 0 | H29: 0 | I29: 1026 | J29: =SUM('APPENDIX 4 I'!C28:N28)+SUM('APPENDIX 4 II'!C28:L28)+SUM('APPENDIX 4 III'!C29:H29) -> 1026 | K29: 1026 | L29: ='APPENDIX 4 I'!I28+'APPENDIX 4 I'!M28+'APPENDIX 4 II'!H28 -> 0
B30: Preference Shares Unquoted | C30: 100000 | D30: 0 | E30: 0 | F30: 0 | G30: 0 | H30: 0 | I30: 1272048 | J30: =SUM('APPENDIX 4 I'!C29:N29)+SUM('APPENDIX 4 II'!C29:L29)+SUM('APPENDIX 4 III'!C30:H30) -> 1272048 | K30: 1272048 | L30: ='APPENDIX 4 I'!I29+'APPENDIX 4 I'!M29+'APPENDIX 4 II'!H29 -> 0
B31: Loans Secured & Unsecured | C31: 239045 | D31: 47112 | E31: 146288 | F31: 0 | G31: 387 | H31: 7362 | I31: 7380647 | J31: =SUM('APPENDIX 4 I'!C30:N30)+SUM('APPENDIX 4 II'!C30:L30)+SUM('APPENDIX 4 III'!C31:H31) -> 7380647 | K31: 7362628 | L31: ='APPENDIX 4 I'!I30+'APPENDIX 4 I'!M30+'APPENDIX 4 II'!H30 -> 18019
B32: Mortgages | C32: 0 | D32: 0 | E32: 74550 | F32: 0 | G32: 0 | H32: 0 | I32: 2536846 | J32: =SUM('APPENDIX 4 I'!C31:N31)+SUM('APPENDIX 4 II'!C31:L31)+SUM('APPENDIX 4 III'!C32:H32) -> 2536846 | K32: 2536846 | L32: ='APPENDIX 4 I'!I31+'APPENDIX 4 I'!M31+'APPENDIX 4 II'!H31 -> 0
B33: Term Deposits | C33: 293727 | D33: 99111 | E33: 1180184 | F33: 0 | G33: 303525 | H33: 24220 | I33: 27629622 | J33: =SUM('APPENDIX 4 I'!C32:N32)+SUM('APPENDIX 4 II'!C32:L32)+SUM('APPENDIX 4 III'!C33:H33) -> 27629622 | K33: 27356152 | L33: ='APPENDIX 4 I'!I32+'APPENDIX 4 I'!M32+'APPENDIX 4 II'!H32 -> 273470
B34: Cash and Cash Balances | C34: 309225 | D34: 66789 | E34: 236309 | F34: 0 | G34: 18775 | H34: 5647 | I34: 4541492 | J34: =SUM('APPENDIX 4 I'!C33:N33)+SUM('APPENDIX 4 II'!C33:L33)+SUM('APPENDIX 4 III'!C34:H34) -> 4541492 | K34: 4492399 | L34: ='APPENDIX 4 I'!I33+'APPENDIX 4 I'!M33+'APPENDIX 4 II'!H33 -> 49093
B35: Outstanding Premiums | C35: 3137878 | D35: 148474 | E35: 537785 | F35: 0 | G35: 12788 | H35: 163579 | I35: 10904801 | J35: =SUM('APPENDIX 4 I'!C34:N34)+SUM('APPENDIX 4 II'!C34:L34)+SUM('APPENDIX 4 III'!C35:H35) -> 10904801 | K35: 10382324 | L35: ='APPENDIX 4 I'!I34+'APPENDIX 4 I'!M34+'APPENDIX 4 II'!H34 -> 522477
B36: Other Receivables | C36: 26687 | D36: 0 | E36: 3051 | F36: 0 | G36: 509072 | H36: 0 | I36: 8547276 | J36: =SUM('APPENDIX 4 I'!C35:N35)+SUM('APPENDIX 4 II'!C35:L35)+SUM('APPENDIX 4 III'!C36:H36) -> 8547276 | K36: 8009313 | L36: ='APPENDIX 4 I'!I35+'APPENDIX 4 I'!M35+'APPENDIX 4 II'!H35 -> 537963
B37: Other Assets | C37: 186032 | D37: 96856 | E37: 211672 | F37: 0 | G37: 540777 | H37: 237952 | I37: 5435444 | J37: =SUM('APPENDIX 4 I'!C36:N36)+SUM('APPENDIX 4 II'!C36:L36)+SUM('APPENDIX 4 III'!C37:H37) -> 5435444 | K37: 5307175 | L37: ='APPENDIX 4 I'!I36+'APPENDIX 4 I'!M36+'APPENDIX 4 II'!H36 -> 128269
B38: Intangible Assets | C38: 70190 | D38: 19889 | E38: 76240 | F38: 0 | G38: 0 | H38: 750 | I38: 1722478 | J38: =SUM('APPENDIX 4 I'!C37:N37)+SUM('APPENDIX 4 II'!C37:L37)+SUM('APPENDIX 4 III'!C38:H38) -> 1722478 | K38: 1691596 | L38: ='APPENDIX 4 I'!I37+'APPENDIX 4 I'!M37+'APPENDIX 4 II'!H37 -> 30882 | N38: =I39+'APPENDIX5 IV'!K39 -> 956871079
B39: Total Assets | C39: 6955278 | D39: 2953943 | E39: 31016817 | F39: 0 | G39: 5031997 | H39: 842115 | I39: 656373413 | J39: =SUM('APPENDIX 4 I'!C38:N38)+SUM('APPENDIX 4 II'!C38:L38)+SUM('APPENDIX 4 III'!C39:H39) -> 656373413 | K39: 624655375 | L39: ='APPENDIX 4 I'!I38+'APPENDIX 4 I'!M38+'APPENDIX 4 II'!H38 -> 31718038 | N39: ='T1'!M39 -> 833722972
B40: Amounts in Thousand Shillings | N40: =N21/N39 -> 0.7144308493

Sheet APPENDIX 5 I
B2: APPENDIX 5: SUMMARY OF GENERAL INSURANCE BUSINESS BALANCE SHEETS AS AT 31.12.2022
B3: Company | C3: AAR INSURANCE KENYA | D3: AFRICAN MERCHANT ASSURANCE | E3: AIG INSURANCE COMPANY | F3: APA INSURANCE COMPANY | G3: BRITAM GENERAL INSURANCE COMPANY | H3: CANNON GENERAL INSURANCE (K) LIMITED | I3: CIC GENERAL INSURANCE COMPANY | J3: CONTINENTAL REINSURANCE | K3: CORPORATE INSURANCE COMPANY | L3: DIRECTLINE ASSURANCE COMPANY
B4: Share Capital | C4: 700000 | D4: 987386 | E4: 600000 | F4: 1250000 | G4: 2668000 | H4: 453960 | I4: 1700000 | J4: 1000000 | K4: 400000 | L4: 300000
B5: Share Premium | C5: 460523 | D5: 0 | E5: 0 | F5: 0 | G5: 0 | H5: 583040 | I5: 0 | J5: 0 | K5: 0 | L5: 0
B6: Revaluation Reserves | C6: 0 | D6: 31032 | E6: -44947 | F6: 0 | G6: 0 | H6: 0 | I6: 0 | J6: 576 | K6: 0 | L6: -131494
B7: Statutory Reserves | C7: 0 | D7: 0 | E7: 0 | F7: 0 | G7: 0 | H7: 0 | I7: 0 | J7: 0 | K7: 0 | L7: 0
B8: Retained Earnings | C8: 339948 | D8: -23531 | E8: 1446372 | F8: 3133899 | G8: 628279 | H8: 47110 | I8: 2321205 | J8: 1702079 | K8: 262712 | L8: 402364
B9: Other Reserves | C9: 0 | D9: 0 | E9: 350000 | F9: 754967 | G9: 0 | H9: 0 | I9: -327530 | J9: -18821 | K9: 0 | L9: 300000
B10: Total Equity | C10: 1500471 | D10: 994887 | E10: 2351425 | F10: 5138866 | G10: 3296279 | H10: 1084110 | I10: 3693675 | J10: 2683835 | K10: 662712 | L10: 870870
B11: Underwriting Provisions | C11: 2996235 | D11: 1961053 | E11: 692342 | F11: 8450032 | G11: 8515012 | H11: 697983 | I11: 8885233 | J11: 4838952 | K11: 833355 | L11: 5932623
B12: Actuarial Contract Liabilities | C12: 0 | D12: 0 | E12: 0 | F12: 0 | G12: 0 | H12: 0 | I12: 0 | J12: 0 | K12: 0 | L12: 0
B13: LongTerm Liabilities | C13: 0 | D13: 108951 | E13: 0 | F13: 0 | G13: 0 | H13: 0 | I13: 0 | J13: 0 | K13: 0 | L13: 0
B14: Current Liabilities | C14: 865917 | D14: 196525 | E14: 988157 | F14: 1371878 | G14: 1743693 | H14: 576356 | I14: 1482069 | J14: 463605 | K14: 118946 | L14: 393810
B15: Total Equity And Liabilities | C15: 5362623 | D15: 3261416 | E15: 4031924 | F15: 14960776 | G15: 13554984 | H15: 2358450 | I15: 14060976 | J15: 7986392 | K15: 1615013 | L15: 7197302
B16: Land And Buildings | C16: 0 | D16: 709821 | E16: 0 | F16: 106270 | G16: 0 | H16: 92500 | I16: 234000 | J16: 0 | K16: 0 | L16: 0
B17: Investment Property | C17: 0 | D17: 551000 | E17: 0 | F17: 1055000 | G17: 0 | H17: 60000 | I17: 1602000 | J17: 0 | K17: 698736 | L17: 2007500
B18: Other Fixed Assets | C18: 33127 | D18: 74854 | E18: 97717 | F18: 39432 | G18: 57705 | H18: 12951 | I18: 71165 | J18: 38519 | K18: 4124 | L18: 34739
B19: Government Securities | C19: 2678167 | D19: 512881 | E19: 2839462 | F19: 8336532 | G19: 11068637 | H19: 1089177 | I19: 6087969 | J19: 2902278 | K19: 83427 | L19: 1420641
B20: Other Securities | C20: 0 | D20: 0 | E20: 0 | F20: 71753 | G20: 0 | H20: 0 | I20: 251130 | J20: 0 | K20: 0 | L20: 0
B21: Investment in Related Companies | C21: 0 | D21: 0 | E21: 0 | F21: 298937 | G21: 0 | H21: 8784 | I21: 0 | J21: 0 | K21: 0 | L21: 502500
B22: Corporate Bonds | C22: 0 | D22: 0 | E22: 0 | F22: 0 | G22: 0 | H22: 0 | I22: 6320 | J22: 0 | K22: 0 | L22: 0
B23: Commercial Papers | C23: 0 | D23: 0 | E23: 0 | F23: 25521 | G23: 0 | H23: 0 | I23: 0 | J23: 0 | K23: 0 | L23: 0
B24: Debentures | C24: 0 | D24: 0 | E24: 0 | F24: 0 | G24: 0 | H24: 0 | I24: 0 | J24: 0 | K24: 0 | L24: 0
B25: Ordinary Shares Quoted | C25: 0 | D25: 1372 | E25: 0 | F25: 1148971 | G25: 0 | H25: 0 | I25: 314619 | J25: 0 | K25: 0 | L25: 100678
B26: Ordinary Shares Unquoted | C26: 0 | D26: 0 | E26: 0 | F26: 14619 | G26: 0 | H26: 1438 | I26: 15337 | J26: 0 | K26: 756 | L26: 0
B27: Preference Shares Quoted | C27: 0 | D27: 0 | E27: 0 | F27: 0 | G27: 0 | H27: 0 | I27: 0 | J27: 0 | K27: 0 | L27: 0
B28: Preference Shares Unquoted | C28: 0 | D28: 0 | E28: 0 | F28: 0 | G28: 0 | H28: 0 | I28: 0 | J28: 0 | K28: 0 | L28: 0
B29: Loans Secured & Unsecured | C29: 0 | D29: 2652 | E29: 13515 | F29: 24217 | G29: 0 | H29: 185416 | I29: 0 | J29: 508 | K29: 0 | L29: 745484
B30: Mortgages | C30: 0 | D30: 0 | E30: 0 | F30: 66154 | G30: 0 | H30: 16467 | I30: 24765 | J30: 888 | K30: 0 | L30: 0
B31: Term Deposits | C31: 935770 | D31: 44002 | E31: 99616 | F31: 1999083 | G31: 384036 | H31: 221571 | I31: 1808625 | J31: 516043 | K31: 4100 | L31: 1047725
B32: Cash and Cash Balances | C32: 142264 | D32: 35576 | E32: 247803 | F32: 71071 | G32: 364408 | H32: -7308 | I32: 177468 | J32: 7330 | K32: 2770 | L32: 219916
B33: Outstanding Premiums | C33: 790027 | D33: 910212 | E33: 335118 | F33: 1012435 | G33: 910314 | H33: 282014 | I33: 2074935 | J33: 1254893 | K33: 536521 | L33: 371272
B34: Other Receivables | C34: 79239 | D34: 11323 | E34: 0 | F34: 50423 | G34: 18359 | H34: 220612 | I34: 178603 | J34: 0 | K34: 183080 | L34: 0
B35: Other Assets | C35: 393261 | D35: 376277 | E35: 272928 | F35: 342643 | G35: 486028 | H35: 84720 | I35: 538226 | J35: 3265934 | K35: 75208 | L35: 642798
B36: Intangible Assets | C36: 310768 | D36: 31448 | E36: 125764 | F36: 297715 | G36: 265495 | H36: 90107 | I36: 675815 | J36: 0 | K36: 26291 | L36: 104050
B37: Total Assets | C37: 5362623 | D37: 3261416 | E37: 4031924 | F37: 14960776 | G37: 13554984 | H37: 2358450 | I37: 14060976 | J37: 7986392 | K37: 1615013 | L37: 7197302
B38: Amounts in thousand Shillings | J38: Continued next page

Sheet APPENDIX 5 II
B3: Continued from previous page
B4: APPENDIX 5: SUMMARY OF GENERAL INSURANCE BUSINESS BALANCE SHEETS AS AT 31.12.2022
B5: Company | C5: EAST AFRICA REINSURANCE COMPANY | D5: FIDELITY SHIELD INSURANCE COMPANY | E5: FIRST ASSURANCE COMPANY | F5: GA GENERAL INSURANCE COMPANY | G5: GEMINIA INSURANCE COMPANY LIMITED | H5: GHANA REINSURANCE COMPANY LIMITED | I5: HEALTHIER (K) MICRO INSURANCE LIMITED | J5: HERITAGE INSURANCE COMPANY | K5: ICEA LION GENERAL INSURANCE COMPANY | L5: INTRA-AFRICA ASSURANCE COMPANY | M5: INVESCO ASSURANCE COMPANY | N5: JUBILEE GENERAL INSURANCE
B6: Share Capital | C6: 1000000 | D6: 600000 | E6: 810000 | F6: 1500000 | G6: 1006250 | H6: 1000000 | I6: 0 | J6: 1000000 | K6: 1000000 | L6: 600000 | M6: 1925000 | N6: 2307103
B7: Share Premium | C7: 0 | D7: 0 | E7: 512139 | F7: 0 | G7: 0 | H7: 10871 | I7: 0 | J7: 0 | K7: 0 | L7: 0 | M7: 0 | N7: 1399897
B8: Revaluation Reserves | C8: 206777 | D8: 106516 | E8: 264453 | F8: 892337 | G8: 0 | H8: 0 | I8: 0 | J8: 0 | K8: -106358 | L8: 351047 | M8: -466 | N8: 0
B9: Statutory Reserves | C9: 0 | D9: 0 | E9: 0 | F9: 0 | G9: 0 | H9: 0 | I9: 0 | J9: 0 | K9: 0 | L9: 0 | M9: 0 | N9: 0
B10: Retained Earnings | C10: 3740658 | D10: 398041 | E10: 39219 | F10: 4347807 | G10: 999300 | H10: 539397 | I10: 0 | J10: 3326148 | K10: 5461172 | L10: 200743 | M10: -7668479 | N10: -1116150
B11: Other Reserves | C11: 0 | D11: 50000 | E11: 0 | F11: 436676 | G11: 74243 | H11: 0 | I11: 0 | J11: 0 | K11: 250000 | L11: 18000 | M11: 64000 | N11: 0
B12: Total Equity | C12: 4947435 | D12: 1154558 | E12: 1625810 | F12: 7176819 | G12: 2079793 | H12: 1550269 | I12: 0 | J12: 4326148 | K12: 6604815 | L12: 1169790 | M12: -5679945 | N12: 2590850
B13: Underwriting Provisions | C13: 2958035 | D13: 2524656 | E13: 3018635 | F13: 6393649 | G13: 3865747 | H13: 1468254 | I13: 0 | J13: 4258301 | K13: 4261670 | L13: 1344924 | M13: 7960962 | N13: 4490146
B14: Actuarial Contract Liabilities | C14: 0 | D14: 0 | E14: 0 | F14: 0 | G14: 0 | H14: 0 | I14: 0 | J14: 0 | K14: 0 | L14: 0 | M14: 0 | N14: 0
B15: LongTerm Liabilities | C15: 37074 | D15: 0 | E15: 0 | F15: 0 | G15: 0 | H15: 0 | I15: 0 | J15: 0 | K15: 343667 | L15: 0 | M15: 31641 | N15: 0
B16: Current Liabilities | C16: 1073104 | D16: 113413 | E16: 1276110 | F16: 3844192 | G16: 846462 | H16: 167015 | I16: 0 | J16: 1027335 | K16: 1380170 | L16: 129922 | M16: 492852 | N16: 641721
B17: Total Equity And Liabilities | C17: 9015649 | D17: 3792627 | E17: 5920555 | F17: 17414660 | G17: 6792002 | H17: 3185538 | I17: 0 | J17: 9611784 | K17: 12590322 | L17: 2644636 | M17: 2805510 | N17: 7722717
B18: Land And Buildings | C18: 386415 | D18: 214027 | E18: 443000 | F18: 1169999 | G18: 395000 | H18: 29642 | I18: 0 | J18: 0 | K18: 0 | L18: 0 | M18: 112212 | N18: 0
B19: Investment Property | C19: 735000 | D19: 955616 | E19: 980000 | F19: 1585000 | G19: 1020000 | H19: 0 | I19: 0 | J19: 0 | K19: 2800000 | L19: 487000 | M19: 1307965 | N19: 0
B20: Other Fixed Assets | C20: 3789 | D20: 7090 | E20: 21570 | F20: 32022 | G20: 179223 | H20: 6465 | I20: 0 | J20: 103246 | K20: 53576 | L20: 100731 | M20: 14238 | N20: 25775
B21: Government Securities | C21: 3988822 | D21: 1598230 | E21: 1113601 | F21: 6396157 | G21: 1235393 | H21: 1455324 | I21: 0 | J21: 5134215 | K21: 6742310 | L21: 472045 | M21: 169000 | N21: 4142852
B22: Other Securities | C22: 0 | D22: 0 | E22: 0 | F22: 0 | G22: 0 | H22: 0 | I22: 0 | J22: 0 | K22: 72199 | L22: 0 | M22: 0 | N22: 0
B23: Investment in Related Companies | C23: 0 | D23: 0 | E23: 0 | F23: 1055583 | G23: 0 | H23: 0 | I23: 0 | J23: 146557 | K23: 50147 | L23: 0 | M23: 0 | N23: 0
B24: Corporate Bonds | C24: 38142 | D24: 4495 | E24: 0 | F24: 0 | G24: 0 | H24: 0 | I24: 0 | J24: 0 | K24: 58915 | L24: 0 | M24: 0 | N24: 0
B25: Commercial Papers | C25: 0 | D25: 0 | E25: 0 | F25: 0 | G25: 0 | H25: 0 | I25: 0 | J25: 0 | K25: 0 | L25: 0 | M25: 0 | N25: 0
B26: Debentures | C26: 0 | D26: 0 | E26: 0 | F26: 0 | G26: 0 | H26: 0 | I26: 0 | J26: 0 | K26: 0 | L26: 0 | M26: 0 | N26: 0
B27: Ordinary Shares Quoted | C27: 21886 | D27: 2781 | E27: 0 | F27: 401408 | G27: 116175 | H27: 0 | I27: 0 | J27: 0 | K27: 800196 | L27: 45349 | M27: 982 | N27: 0
B28: Ordinary Shares Unquoted | C28: 170607 | D28: 0 | E28: 0 | F28: 417777 | G28: 7798 | H28: 0 | I28: 0 | J28: 0 | K28: 5977 | L28: 0 | M28: 3757 | N28: 0
B29: Preference Shares Quoted | C29: 0 | D29: 0 | E29: 0 | F29: 0 | G29: 0 | H29: 0 | I29: 0 | J29: 0 | K29: 0 | L29: 0 | M29: 0 | N29: 0
B30: Preference Shares Unquoted | C30: 0 | D30: 0 | E30: 0 | F30: 0 | G30: 0 | H30: 0 | I30: 0 | J30: 0 | K30: 0 | L30: 0 | M30: 0 | N30: 0
B31: Loans Secured & Unsecured | C31: 6032 | D31: 0 | E31: 2071 | F31: 262144 | G31: 1733 | H31: 0 | I31: 0 | J31: 58583 | K31: 30141 | L31: 13568 | M31: 0 | N31: 0
B32: Mortgages | C32: 29568 | D32: 5760 | E32: 0 | F32: 0 | G32: 0 | H32: 0 | I32: 0 | J32: 182845 | K32: 0 | L32: 0 | M32: 0 | N32: 0
B33: Term Deposits | C33: 1608671 | D33: 253300 | E33: 1714006 | F33: 996962 | G33: 1030154 | H33: 415437 | I33: 0 | J33: 2778036 | K33: 194298 | L33: 389470 | M33: 34961 | N33: 883247
B34: Cash and Cash Balances | C34: 254289 | D34: 173053 | E34: 110 | F34: 82555 | G34: 188505 | H34: 57904 | I34: 0 | J34: 127832 | K34: 118264 | L34: 164806 | M34: 6608 | N34: 249778
B35: Outstanding Premiums | C35: 500806 | D35: 275516 | E35: 1237796 | F35: 3970098 | G35: 1840386 | H35: 894854 | I35: 0 | J35: 453047 | K35: 1027627 | L35: 750663 | M35: 189218 | N35: 859517
B36: Other Receivables | C36: 744678 | D36: 0 | E36: 0 | F36: 18032 | G36: 0 | H36: 15019 | I36: 0 | J36: 0 | K36: 64364 | L36: 11349 | M36: 945611 | N36: 146011
B37: Other Assets | C37: 33158 | D37: 199540 | E37: 206634 | F37: 151335 | G37: 375583 | H37: 100791 | I37: 0 | J37: 492847 | K37: 253625 | L37: 126002 | M37: 0 | N37: 1040192
B38: Intangible Assets | C38: 493788 | D38: 103221 | E38: 201767 | F38: 875588 | G38: 402053 | H38: 210103 | I38: 0 | J38: 134577 | K38: 318682 | L38: 83652 | M38: 20959 | N38: 375346
B39: Total Assets | C39: 9015649 | D39: 3792627 | E39: 5920555 | F39: 17414660 | G39: 6792002 | H39: 3185538 | I39: 0 | J39: 9611784 | K39: 12590322 | L39: 2644636 | M39: 2805510 | N39: 7722717
B40: Amounts in thousand Shillings | L40: Continued next page

Sheet APPENDIX 5 III
B3: Continued from previous page
B4: APPENDIX 5: SUMMARY OF GENERAL INSURANCE BUSINESS BALANCE SHEETS AS AT 31.12.2022
B5: Company | C5: JUBILEE HEALTH INSURANCE | D5: KENINDIA ASSURANCE COMPANY | E5: KENYA ORIENT INSURANCE COMPANY | F5: KENYA REINSURANCE CORPORATION | G5: MADISON GENERAL INSURANCE COMPANY | H5: MAYFAIR INSURANCE COMPANY | I5: MUA INSURANCE COMPANY | J5: OCCIDENTAL INSURANCE COMPANY | K5: OLD MUTUAL GENERAL INSURANCE | L5: PACIS INSURANCE COMPANY | M5: PIONEER GENERAL INSURANCE
B6: Share Capital | C6: 2763720 | D6: 600000 | E6: 810721 | F6: 6499491 | G6: 605000 | H6: 1500000 | I6: 300000 | J6: 745831 | K6: 1000000 | L6: 687554 | M6: 700000
B7: Share Premium | C7: 0 | D7: 1198 | E7: 0 | F7: 0 | G7: 0 | H7: 0 | I7: 0 | J7: 100379 | K7: 0 | L7: 5712 | M7: 0
B8: Revaluation Reserves | C8: 0 | D8: 538987 | E8: -3643 | F8: 33697 | G8: 0 | H8: 260472 | I8: -5542 | J8: -48717 | K8: 0 | L8: 13040 | M8: 0
B9: Statutory Reserves | C9: 0 | D9: 0 | E9: 0 | F9: 0 | G9: 0 | H9: 0 | I9: 0 | J9: 0 | K9: 0 | L9: 0 | M9: 0
B10: Retained Earnings | C10: 1638324 | D10: 2428279 | E10: -1961133 | F10: 24042509 | G10: 668112 | H10: 2497461 | I10: -22987 | J10: 18412 | K10: 5032945 | L10: 77398 | M10: 36761
B11: Other Reserves | C11: -109947 | D11: 498487 | E11: 1534217 | F11: 702286 | G11: 0 | H11: 0 | I11: 0 | J11: 0 | K11: 0 | L11: -524 | M11: 0
B12: Total Equity | C12: 4292097 | D12: 4066951 | E12: 380162 | F12: 31277983 | G12: 1273112 | H12: 4257933 | I12: 271472 | J12: 815905 | K12: 6032945 | L12: 783179 | M12: 736761
B13: Underwriting Provisions | C13: 4051964 | D13: 4223293 | E13: 2504926 | F13: 13595379 | G13: 3941463 | H13: 4024391 | I13: 2285291 | J13: 2153137 | K13: 8905874 | L13: 1579982 | M13: 1379493
B14: Actuarial Contract Liabilities | C14: 0 | D14: 0 | E14: 0 | F14: 0 | G14: 0 | H14: 0 | I14: 0 | J14: 0 | K14: 0 | L14: 0 | M14: 0
B15: LongTerm Liabilities | C15: 0 | D15: 17391 | E15: 0 | F15: 0 | G15: 0 | H15: 94863 | I15: 1239198 | J15: 296277 | K15: 0 | L15: 0 | M15: 0
B16: Current Liabilities | C16: 822843 | D16: 835178 | E16: 1265819 | F16: 7733448 | G16: 381008 | H16: 703711 | I16: 697334 | J16: 736847 | K16: 2058340 | L16: 426892 | M16: 96351
B17: Total Equity And Liabilities | C17: 9166904 | D17: 9142813 | E17: 4150907 | F17: 52606810 | G17: 5595582 | H17: 9080898 | I17: 4493295 | J17: 4002166 | K17: 16997158 | L17: 2790053 | M17: 2212605
B18: Land And Buildings | C18: 0 | D18: 796965 | E18: 105342 | F18: 0 | G18: 0 | H18: 265885 | I18: 0 | J18: 0 | K18: 0 | L18: 100299 | M18: 0
B19: Investment Property | C19: 0 | D19: 1287740 | E19: 1027000 | F19: 10783252 | G19: 663100 | H19: 564655 | I19: 0 | J19: 435000 | K19: 2924000 | L19: 792801 | M19: 442642
B20: Other Fixed Assets | C20: 25759 | D20: 53741 | E20: 13040 | F20: 66580 | G20: 36329 | H20: 84585 | I20: 46747 | J20: 40756 | K20: 90380 | L20: 32966 | M20: 8762
B21: Government Securities | C21: 3599578 | D21: 3874714 | E21: 150077 | F21: 12692211 | G21: 1806721 | H21: 3725790 | I21: 1285628 | J21: 1427454 | K21: 7631897 | L21: 230242 | M21: 659147
B22: Other Securities | C22: 0 | D22: 0 | E22: 0 | F22: 0 | G22: 64328 | H22: 0 | I22: 0 | J22: 0 | K22: 0 | L22: 0 | M22: 0
B23: Investment in Related Companies | C23: 1652973 | D23: 105612 | E23: 184000 | F23: 10584441 | G23: 0 | H23: 1503691 | I23: 143807 | J23: 0 | K23: 0 | L23: 0 | M23: 0
B24: Corporate Bonds | C24: 0 | D24: 0 | E24: 0 | F24: 45329 | G24: 0 | H24: 29556 | I24: 0 | J24: 25105 | K24: 50125 | L24: 0 | M24: 0
B25: Commercial Papers | C25: 0 | D25: 0 | E25: 0 | F25: 0 | G25: 0 | H25: 0 | I25: 0 | J25: 0 | K25: 0 | L25: 0 | M25: 0
B26: Debentures | C26: 0 | D26: 0 | E26: 0 | F26: 0 | G26: 0 | H26: 0 | I26: 0 | J26: 0 | K26: 0 | L26: 0 | M26: 0
B27: Ordinary Shares Quoted | C27: 210321 | D27: 31171 | E27: 7434 | F27: 976126 | G27: 11204 | H27: 115039 | I27: 67268 | J27: 264863 | K27: 948821 | L27: 21954 | M27: 0
B28: Ordinary Shares Unquoted | C28: 731870 | D28: 816005 | E28: 498656 | F28: 201623 | G28: 529428 | H28: 138277 | I28: 0 | J28: 0 | K28: 81558 | L28: 0 | M28: 0
B29: Preference Shares Quoted | C29: 402 | D29: 0 | E29: 0 | F29: 66 | G29: 0 | H29: 0 | I29: 0 | J29: 0 | K29: 0 | L29: 0 | M29: 0
B30: Preference Shares Unquoted | C30: 0 | D30: 0 | E30: 0 | F30: 0 | G30: 0 | H30: 0 | I30: 0 | J30: 0 | K30: 0 | L30: 0 | M30: 0
B31: Loans Secured & Unsecured | C31: 0 | D31: 20549 | E31: 0 | F31: 0 | G31: 0 | H31: 18803 | I31: 142566 | J31: 0 | K31: 0 | L31: 0 | M31: 5525
B32: Mortgages | C32: 26273 | D32: 0 | E32: 0 | F32: 743491 | G32: 0 | H32: 0 | I32: 0 | J32: 0 | K32: 155513 | L32: 0 | M32: 0
B33: Term Deposits | C33: 336060 | D33: 299170 | E33: 49559 | F33: 4712379 | G33: 565155 | H33: 1131386 | I33: 219366 | J33: 466228 | K33: 1325539 | L33: 135216 | M33: 179352
B34: Cash and Cash Balances | C34: 579341 | D34: 57619 | E34: 31696 | F34: 95091 | G34: 115351 | H34: 319350 | I34: 220002 | J34: 29366 | K34: 546354 | L34: 123893 | M34: 187826
B35: Outstanding Premiums | C35: 648855 | D35: 418427 | E35: 895478 | F35: 1130213 | G35: 669012 | H35: 747638 | I35: 1335554 | J35: 747767 | K35: 1499689 | L35: 897970 | M35: 501783
B36: Other Receivables | C36: 246744 | D36: 0 | E36: 47457 | F36: 479542 | G36: 695819 | H36: 9547 | I36: 31831 | J36: 51826 | K36: 505311 | L36: 215495 | M36: 62881
B37: Other Assets | C37: 647634 | D37: 1304275 | E37: 974205 | F37: 8977142 | G37: 141168 | H37: 416701 | I37: 385016 | J37: 338459 | K37: 750160 | L37: 160606 | M37: 81412
B38: Intangible Assets | C38: 461096 | D38: 76825 | E38: 166963 | F38: 1119322 | G38: 297968 | H38: 9996 | I38: 615512 | J38: 175343 | K38: 487811 | L38: 78612 | M38: 83274
B39: Total Assets | C39: 9166904 | D39: 9142813 | E39: 4150907 | F39: 52606810 | G39: 5595582 | H39: 9080898 | I39: 4493295 | J39: 4002166 | K39: 16997158 | L39: 2790053 | M39: 2212605
B40: Amounts in thousand Shillings | K40: Continued next page

Sheet APPENDIX5 IV
B3: Continued from previous page
B4: APPENDIX 5: SUMMARY OF GENERAL INSURANCE BUSINESS BALANCE SHEETS AS AT 31.12.2022
B5: Company | C5: SANLAM INSURANCE COMPANY | D5: TAKAFUL INSURANCE OF AFRICA | E5: TAUSI ASSURANCE COMPANY | F5: THE KENYAN ALLIANCE INSURANCE COMPANY | G5: THE MONARCH INSURANCE COMPANY | H5: TRIDENT INSURANCE COMPANY | I5: WAICA REINSURANCE KENYA LIMITED | J5: XPLICO INSURANCE COMPANY | K5: TOTAL | M5: Insurers | N5: Reinsurers
B6: Share Capital | C6: 1028998 | D6: 566304 | E6: 600000 | F6: 600000 | G6: 0 | H6: 600000 | I6: 1102550 | J6: 407500 | K6: 43925368 | L6: =SUM('APPENDIX 5 I'!C4:L4)+SUM('APPENDIX 5 II'!C6:N6)+SUM('APPENDIX 5 III'!C6:M6)+SUM('APPENDIX5 IV'!C6:J6) -> 43925368 | M6: =K6-N6 -> 33323327 | N6: ='APPENDIX 5 I'!J4+'APPENDIX 5 II'!C6+'APPENDIX 5 II'!H6+'APPENDIX 5 III'!F6+'APPENDIX5 IV'!I6 -> 10602041
B7: Share Premium | C7: 100362 | D7: 146101 | E7: 0 | F7: 0 | G7: 0 | H7: 0 | I7: 0 | J7: 0 | K7: 3320222 | L7: =SUM('APPENDIX 5 I'!C5:L5)+SUM('APPENDIX 5 II'!C7:N7)+SUM('APPENDIX 5 III'!C7:M7)+SUM('APPENDIX5 IV'!C7:J7) -> 3320222 | M7: =K7-N7 -> 3309351 | N7: ='APPENDIX 5 I'!J5+'APPENDIX 5 II'!C7+'APPENDIX 5 II'!H7+'APPENDIX 5 III'!F7+'APPENDIX5 IV'!I7 -> 10871
B8: Revaluation Reserves | C8: 0 | D8: 25539 | E8: 188715 | F8: 0 | G8: 0 | H8: 180042 | I8: 0 | J8: 220000 | K8: 2972063 | L8: =SUM('APPENDIX 5 I'!C6:L6)+SUM('APPENDIX 5 II'!C8:N8)+SUM('APPENDIX 5 III'!C8:M8)+SUM('APPENDIX5 IV'!C8:J8) -> 2972063 | M8: 2731013 | N8: ='APPENDIX 5 I'!J6+'APPENDIX 5 II'!C8+'APPENDIX 5 II'!H8+'APPENDIX 5 III'!F8+'APPENDIX5 IV'!I8 -> 241050
B9: Statutory Reserves | C9: 0 | D9: 0 | E9: 0 | F9: 32882 | G9: 0 | H9: 0 | I9: 0 | J9: 0 | K9: 32882 | L9: =SUM('APPENDIX 5 I'!C7:L7)+SUM('APPENDIX 5 II'!C9:N9)+SUM('APPENDIX 5 III'!C9:M9)+SUM('APPENDIX5 IV'!C9:J9) -> 32882 | M9: 32882 | N9: ='APPENDIX 5 I'!J7+'APPENDIX 5 II'!C9+'APPENDIX 5 II'!H9+'APPENDIX 5 III'!F9+'APPENDIX5 IV'!I9 -> 0
B10: Retained Earnings | C10: -1149761 | D10: -239712 | E10: 1302309 | F10: -794507 | G10: 0 | H10: 1123917 | I10: 803411 | J10: 26290 | K10: 56056321 | L10: =SUM('APPENDIX 5 I'!C8:L8)+SUM('APPENDIX 5 II'!C10:N10)+SUM('APPENDIX 5 III'!C10:M10)+SUM('APPENDIX5 IV'!C10:J10) -> 56056321 | M10: 25228267 | N10: ='APPENDIX 5 I'!J8+'APPENDIX 5 II'!C10+'APPENDIX 5 II'!H10+'APPENDIX 5 III'!F10+'APPENDIX5 IV'!I10 -> 30828054
B11: Other Reserves | C11: 0 | D11: 0 | E11: 200762 | F11: -15446 | G11: 0 | H11: 25000 | I11: 0 | J11: 480000 | K11: 5266370 | L11: =SUM('APPENDIX 5 I'!C9:L9)+SUM('APPENDIX 5 II'!C11:N11)+SUM('APPENDIX 5 III'!C11:M11)+SUM('APPENDIX5 IV'!C11:J11) -> 5266370 | M11: 4582905 | N11: ='APPENDIX 5 I'!J9+'APPENDIX 5 II'!C11+'APPENDIX 5 II'!H11+'APPENDIX 5 III'!F11+'APPENDIX5 IV'!I11 -> 683465
B12: Total Equity | C12: -20401 | D12: 498233 | E12: 2291786 | F12: -177071 | G12: 0 | H12: 1928959 | I12: 1905961 | J12: 1133790 | K12: 111573229 | L12: =SUM('APPENDIX 5 I'!C10:L10)+SUM('APPENDIX 5 II'!C12:N12)+SUM('APPENDIX 5 III'!C12:M12)+SUM('APPENDIX5 IV'!C12:J12) -> 111573229 | M12: 69207746 | N12: ='APPENDIX 5 I'!J10+'APPENDIX 5 II'!C12+'APPENDIX 5 II'!H12+'APPENDIX 5 III'!F12+'APPENDIX5 IV'!I12 -> 42365483
B13: Underwriting Provisions | C13: 2723899 | D13: 780949 | E13: 840267 | F13: 1247886 | G13: 0 | H13: 2928082 | I13: 1478684 | J13: 2157264 | K13: 147150023 | L13: =SUM('APPENDIX 5 I'!C11:L11)+SUM('APPENDIX 5 II'!C13:N13)+SUM('APPENDIX 5 III'!C13:M13)+SUM('APPENDIX5 IV'!C13:J13) -> 147150023 | M13: 122810719 | N13: ='APPENDIX 5 I'!J11+'APPENDIX 5 II'!C13+'APPENDIX 5 II'!H13+'APPENDIX 5 III'!F13+'APPENDIX5 IV'!I13 -> 24339304
B14: Actuarial Contract Liabilities | C14: 0 | D14: 0 | E14: 0 | F14: 0 | G14: 0 | H14: 0 | I14: 0 | J14: 0 | K14: 0 | L14: =SUM('APPENDIX 5 I'!C12:L12)+SUM('APPENDIX 5 II'!C14:N14)+SUM('APPENDIX 5 III'!C14:M14)+SUM('APPENDIX5 IV'!C14:J14) -> 0 | M14: 0 | N14: ='APPENDIX 5 I'!J12+'APPENDIX 5 II'!C14+'APPENDIX 5 II'!H14+'APPENDIX 5 III'!F14+'APPENDIX5 IV'!I14 -> 0
B15: LongTerm Liabilities | C15: 0 | D15: 201799 | E15: 72050 | F15: 311551 | G15: 0 | H15: 0 | I15: 0 | J15: 0 | K15: 2754462 | L15: =SUM('APPENDIX 5 I'!C13:L13)+SUM('APPENDIX 5 II'!C15:N15)+SUM('APPENDIX 5 III'!C15:M15)+SUM('APPENDIX5 IV'!C15:J15) -> 2754462 | M15: 2717388 | N15: ='APPENDIX 5 I'!J13+'APPENDIX 5 II'!C15+'APPENDIX 5 II'!H15+'APPENDIX 5 III'!F15+'APPENDIX5 IV'!I15 -> 37074
B16: Current Liabilities | C16: 1440961 | D16: 252252 | E16: 196590 | F16: 1299348 | G16: 0 | H16: 165452 | I16: 509413 | J16: 204916 | K16: 39019955 | L16: =SUM('APPENDIX 5 I'!C14:L14)+SUM('APPENDIX 5 II'!C16:N16)+SUM('APPENDIX 5 III'!C16:M16)+SUM('APPENDIX5 IV'!C16:J16) -> 39019955 | M16: 29073370 | N16: ='APPENDIX 5 I'!J14+'APPENDIX 5 II'!C16+'APPENDIX 5 II'!H16+'APPENDIX 5 III'!F16+'APPENDIX5 IV'!I16 -> 9946585
B17: Total Equity And Liabilities | C17: 4144459 | D17: 1733233 | E17: 3400693 | F17: 2681714 | G17: 0 | H17: 5022492 | I17: 3894058 | J17: 3495970 | K17: 300497666 | L17: =SUM('APPENDIX 5 I'!C15:L15)+SUM('APPENDIX 5 II'!C17:N17)+SUM('APPENDIX 5 III'!C17:M17)+SUM('APPENDIX5 IV'!C17:J17) -> 300497666 | M17: 223809219 | N17: ='APPENDIX 5 I'!J15+'APPENDIX 5 II'!C17+'APPENDIX 5 II'!H17+'APPENDIX 5 III'!F17+'APPENDIX5 IV'!I17 -> 76688447
B18: Land And Buildings | C18: 0 | D18: 0 | E18: 319083 | F18: 215400 | G18: 0 | H18: 240660 | I18: 0 | J18: 0 | K18: 5936520 | L18: =SUM('APPENDIX 5 I'!C16:L16)+SUM('APPENDIX 5 II'!C18:N18)+SUM('APPENDIX 5 III'!C18:M18)+SUM('APPENDIX5 IV'!C18:J18) -> 5936520 | M18: 5520463 | N18: ='APPENDIX 5 I'!J16+'APPENDIX 5 II'!C18+'APPENDIX 5 II'!H18+'APPENDIX 5 III'!F18+'APPENDIX5 IV'!I18 -> 416057
B19: Investment Property | C19: 44000 | D19: 30000 | E19: 0 | F19: 434000 | G19: 0 | H19: 1723114 | I19: 0 | J19: 980318 | K19: 37976439 | L19: =SUM('APPENDIX 5 I'!C17:L17)+SUM('APPENDIX 5 II'!C19:N19)+SUM('APPENDIX 5 III'!C19:M19)+SUM('APPENDIX5 IV'!C19:J19) -> 37976439 | M19: 26458187 | N19: ='APPENDIX 5 I'!J17+'APPENDIX 5 II'!C19+'APPENDIX 5 II'!H19+'APPENDIX 5 III'!F19+'APPENDIX5 IV'!I19 -> 11518252
B20: Other Fixed Assets | C20: 49810 | D20: 30799 | E20: 24039 | F20: 37117 | G20: 0 | H20: 13383 | I20: 24945 | J20: 54261 | K20: 1746057 | L20: =SUM('APPENDIX 5 I'!C18:L18)+SUM('APPENDIX 5 II'!C20:N20)+SUM('APPENDIX 5 III'!C20:M20)+SUM('APPENDIX5 IV'!C20:J20) -> 1746057 | M20: 1605759 | N20: ='APPENDIX 5 I'!J18+'APPENDIX 5 II'!C20+'APPENDIX 5 II'!H20+'APPENDIX 5 III'!F20+'APPENDIX5 IV'!I20 -> 140298
B21: Government Securities | C21: 2725366 | D21: 53739 | E21: 2121419 | F21: 322153 | G21: 0 | H21: 256539 | I21: 895804 | J21: 162550 | K21: 113088149 | L21: =SUM('APPENDIX 5 I'!C19:L19)+SUM('APPENDIX 5 II'!C21:N21)+SUM('APPENDIX 5 III'!C21:M21)+SUM('APPENDIX5 IV'!C21:J21) -> 113088149 | M21: 91153710 | N21: ='APPENDIX 5 I'!J19+'APPENDIX 5 II'!C21+'APPENDIX 5 II'!H21+'APPENDIX 5 III'!F21+'APPENDIX5 IV'!I21 -> 21934439
B22: Other Securities | C22: 0 | D22: 0 | E22: 0 | F22: 0 | G22: 0 | H22: 0 | I22: 0 | J22: 24442 | K22: 483852 | L22: =SUM('APPENDIX 5 I'!C20:L20)+SUM('APPENDIX 5 II'!C22:N22)+SUM('APPENDIX 5 III'!C22:M22)+SUM('APPENDIX5 IV'!C22:J22) -> 483852 | M22: 483852 | N22: ='APPENDIX 5 I'!J20+'APPENDIX 5 II'!C22+'APPENDIX 5 II'!H22+'APPENDIX 5 III'!F22+'APPENDIX5 IV'!I22 -> 0
B23: Investment in Related Companies | C23: 0 | D23: 0 | E23: 0 | F23: 0 | G23: 0 | H23: 615600 | I23: 0 | J23: 245251 | K23: 17097883 | L23: =SUM('APPENDIX 5 I'!C21:L21)+SUM('APPENDIX 5 II'!C23:N23)+SUM('APPENDIX 5 III'!C23:M23)+SUM('APPENDIX5 IV'!C23:J23) -> 17097883 | M23: 6513442 | N23: ='APPENDIX 5 I'!J21+'APPENDIX 5 II'!C23+'APPENDIX 5 II'!H23+'APPENDIX 5 III'!F23+'APPENDIX5 IV'!I23 -> 10584441
B24: Corporate Bonds | C24: 0 | D24: 203145 | E24: 0 | F24: 0 | G24: 0 | H24: 0 | I24: 0 | J24: 0 | K24: 461132 | L24: =SUM('APPENDIX 5 I'!C22:L22)+SUM('APPENDIX 5 II'!C24:N24)+SUM('APPENDIX 5 III'!C24:M24)+SUM('APPENDIX5 IV'!C24:J24) -> 461132 | M24: 377661 | N24: ='APPENDIX 5 I'!J22+'APPENDIX 5 II'!C24+'APPENDIX 5 II'!H24+'APPENDIX 5 III'!F24+'APPENDIX5 IV'!I24 -> 83471
B25: Commercial Papers | C25: 0 | D25: 0 | E25: 0 | F25: 0 | G25: 0 | H25: 0 | I25: 0 | J25: 0 | K25: 25521 | L25: =SUM('APPENDIX 5 I'!C23:L23)+SUM('APPENDIX 5 II'!C25:N25)+SUM('APPENDIX 5 III'!C25:M25)+SUM('APPENDIX5 IV'!C25:J25) -> 25521 | M25: 25521 | N25: ='APPENDIX 5 I'!J23+'APPENDIX 5 II'!C25+'APPENDIX 5 II'!H25+'APPENDIX 5 III'!F25+'APPENDIX5 IV'!I25 -> 0
B26: Debentures | C26: 0 | D26: 0 | E26: 0 | F26: 0 | G26: 0 | H26: 0 | I26: 0 | J26: 0 | K26: 0 | L26: =SUM('APPENDIX 5 I'!C24:L24)+SUM('APPENDIX 5 II'!C26:N26)+SUM('APPENDIX 5 III'!C26:M26)+SUM('APPENDIX5 IV'!C26:J26) -> 0 | M26: 0 | N26: ='APPENDIX 5 I'!J24+'APPENDIX 5 II'!C26+'APPENDIX 5 II'!H26+'APPENDIX 5 III'!F26+'APPENDIX5 IV'!I26 -> 0
B27: Ordinary Shares Quoted | C27: 795 | D27: 0 | E27: 165699 | F27: 6652 | G27: 0 | H27: 5302 | I27: 0 | J27: 0 | K27: 5787066 | L27: =SUM('APPENDIX 5 I'!C25:L25)+SUM('APPENDIX 5 II'!C27:N27)+SUM('APPENDIX 5 III'!C27:M27)+SUM('APPENDIX5 IV'!C27:J27) -> 5787066 | M27: 4789054 | N27: ='APPENDIX 5 I'!J25+'APPENDIX 5 II'!C27+'APPENDIX 5 II'!H27+'APPENDIX 5 III'!F27+'APPENDIX5 IV'!I27 -> 998012
B28: Ordinary Shares UnQuoted | C28: 2 | D28: 0 | E28: 6863 | F28: 0 | G28: 0 | H28: 30595 | I28: 0 | J28: 0 | K28: 3672943 | L28: =SUM('APPENDIX 5 I'!C26:L26)+SUM('APPENDIX 5 II'!C28:N28)+SUM('APPENDIX 5 III'!C28:M28)+SUM('APPENDIX5 IV'!C28:J28) -> 3672943 | M28: 3300713 | N28: ='APPENDIX 5 I'!J26+'APPENDIX 5 II'!C28+'APPENDIX 5 II'!H28+'APPENDIX 5 III'!F28+'APPENDIX5 IV'!I28 -> 372230
B29: Preference Shares Quoted | C29: 0 | D29: 0 | E29: 0 | F29: 0 | G29: 0 | H29: 0 | I29: 0 | J29: 0 | K29: 468 | L29: =SUM('APPENDIX 5 I'!C27:L27)+SUM('APPENDIX 5 II'!C29:N29)+SUM('APPENDIX 5 III'!C29:M29)+SUM('APPENDIX5 IV'!C29:J29) -> 468 | M29: 402 | N29: ='APPENDIX 5 I'!J27+'APPENDIX 5 II'!C29+'APPENDIX 5 II'!H29+'APPENDIX 5 III'!F29+'APPENDIX5 IV'!I29 -> 66
B30: Preference Shares Unquoted | C30: 0 | D30: 0 | E30: 0 | F30: 0 | G30: 0 | H30: 0 | I30: 0 | J30: 0 | K30: 0 | L30: =SUM('APPENDIX 5 I'!C28:L28)+SUM('APPENDIX 5 II'!C30:N30)+SUM('APPENDIX 5 III'!C30:M30)+SUM('APPENDIX5 IV'!C30:J30) -> 0 | M30: 0 | N30: ='APPENDIX 5 I'!J28+'APPENDIX 5 II'!C30+'APPENDIX 5 II'!H30+'APPENDIX 5 III'!F30+'APPENDIX5 IV'!I30 -> 0
B31: Loans Secured & Unsecured | C31: 194 | D31: 44115 | E31: 3 | F31: 26976 | G31: 0 | H31: 608469 | I31: 5558 | J31: 21514 | K31: 2240336 | L31: =SUM('APPENDIX 5 I'!C29:L29)+SUM('APPENDIX 5 II'!C31:N31)+SUM('APPENDIX 5 III'!C31:M31)+SUM('APPENDIX5 IV'!C31:J31) -> 2240336 | M31: 2228238 | N31: ='APPENDIX 5 I'!J29+'APPENDIX 5 II'!C31+'APPENDIX 5 II'!H31+'APPENDIX 5 III'!F31+'APPENDIX5 IV'!I31 -> 12098
B32: Mortgages | C32: 0 | D32: 0 | E32: 26714 | F32: 0 | G32: 0 | H32: 0 | I32: 0 | J32: 0 | K32: 1278438 | L32: =SUM('APPENDIX 5 I'!C30:L30)+SUM('APPENDIX 5 II'!C32:N32)+SUM('APPENDIX 5 III'!C32:M32)+SUM('APPENDIX5 IV'!C32:J32) -> 1278438 | M32: 504491 | N32: ='APPENDIX 5 I'!J30+'APPENDIX 5 II'!C32+'APPENDIX 5 II'!H32+'APPENDIX 5 III'!F32+'APPENDIX5 IV'!I32 -> 773947
B33: Term Deposits | C33: 147448 | D33: 453065 | E33: 370905 | F33: 4138 | G33: 0 | H33: 32000 | I33: 1596784 | J33: 180659 | K33: 29563522 | L33: =SUM('APPENDIX 5 I'!C31:L31)+SUM('APPENDIX 5 II'!C33:N33)+SUM('APPENDIX 5 III'!C33:M33)+SUM('APPENDIX5 IV'!C33:J33) -> 29563522 | M33: 20714208 | N33: ='APPENDIX 5 I'!J31+'APPENDIX 5 II'!C33+'APPENDIX 5 II'!H33+'APPENDIX 5 III'!F33+'APPENDIX5 IV'!I33 -> 8849314
B34: Cash and Cash Balances | C34: 63229 | D34: 76078 | E34: 53992 | F34: 162702 | G34: 0 | H34: 27922 | I34: 54264 | J34: 59988 | K34: 5489066 | L34: =SUM('APPENDIX 5 I'!C32:L32)+SUM('APPENDIX 5 II'!C34:N34)+SUM('APPENDIX 5 III'!C34:M34)+SUM('APPENDIX5 IV'!C34:J34) -> 5489066 | M34: 5020188 | N34: ='APPENDIX 5 I'!J32+'APPENDIX 5 II'!C34+'APPENDIX 5 II'!H34+'APPENDIX 5 III'!F34+'APPENDIX5 IV'!I34 -> 468878
B35: Outstanding Premiums | C35: 404620 | D35: 530571 | E35: 180829 | F35: 188932 | G35: 0 | H35: 630250 | I35: 904573 | J35: 1532240 | K35: 34341670 | L35: =SUM('APPENDIX 5 I'!C33:L33)+SUM('APPENDIX 5 II'!C35:N35)+SUM('APPENDIX 5 III'!C35:M35)+SUM('APPENDIX5 IV'!C35:J35) -> 34341670 | M35: 29656331 | N35: ='APPENDIX 5 I'!J33+'APPENDIX 5 II'!C35+'APPENDIX 5 II'!H35+'APPENDIX 5 III'!F35+'APPENDIX5 IV'!I35 -> 4685339
B36: Other Receivables | C36: 0 | D36: 35445 | E36: 0 | F36: 420993 | G36: 0 | H36: 29258 | I36: 0 | J36: 102741 | K36: 5621593 | L36: =SUM('APPENDIX 5 I'!C34:L34)+SUM('APPENDIX 5 II'!C36:N36)+SUM('APPENDIX 5 III'!C36:M36)+SUM('APPENDIX5 IV'!C36:J36) -> 5621593 | M36: 4382354 | N36: ='APPENDIX 5 I'!J34+'APPENDIX 5 II'!C36+'APPENDIX 5 II'!H36+'APPENDIX 5 III'!F36+'APPENDIX5 IV'!I36 -> 1239239
B37: Other Assets | C37: 513304 | D37: 194190 | E37: 77174 | F37: 776926 | G37: 0 | H37: 729063 | I37: 152428 | J37: 82085 | K37: 26159678 | L37: =SUM('APPENDIX 5 I'!C35:L35)+SUM('APPENDIX 5 II'!C37:N37)+SUM('APPENDIX 5 III'!C37:M37)+SUM('APPENDIX5 IV'!C37:J37) -> 26159678 | M37: 13630225 | N37: ='APPENDIX 5 I'!J35+'APPENDIX 5 II'!C37+'APPENDIX 5 II'!H37+'APPENDIX 5 III'!F37+'APPENDIX5 IV'!I37 -> 12529453
B38: Intangible Assets | C38: 195691 | D38: 82087 | E38: 53972 | F38: 85724 | G38: 0 | H38: 80339 | I38: 259703 | J38: 49922 | K38: 9527349 | L38: =SUM('APPENDIX 5 I'!C36:L36)+SUM('APPENDIX 5 II'!C38:N38)+SUM('APPENDIX 5 III'!C38:M38)+SUM('APPENDIX5 IV'!C38:J38) -> 9527349 | M38: 7444433 | N38: ='APPENDIX 5 I'!J36+'APPENDIX 5 II'!C38+'APPENDIX 5 II'!H38+'APPENDIX 5 III'!F38+'APPENDIX5 IV'!I38 -> 2082916
B39: Total Assets | C39: 4144459 | D39: 1733233 | E39: 3400693 | F39: 2681714 | G39: 0 | H39: 5022492 | I39: 3894058 | J39: 3495970 | K39: 300497666 | L39: =SUM('APPENDIX 5 I'!C37:L37)+SUM('APPENDIX 5 II'!C39:N39)+SUM('APPENDIX 5 III'!C39:M39)+SUM('APPENDIX5 IV'!C39:J39) -> 300497666 | M39: 223809219 | N39: ='APPENDIX 5 I'!J37+'APPENDIX 5 II'!C39+'APPENDIX 5 II'!H39+'APPENDIX 5 III'!F39+'APPENDIX5 IV'!I39 -> 76688447
B40: Amounts in thousand Shillings

Sheet template L (hidden)
B2: APPENDIX 2: SUMMARY OF PROFIT & LOSS ACCOUNTS UNDER LIFE INSURANCE BUSINESS FOR THE YEAR ENDED 31.12.2013
B3: Company | C3: Profit Transferred from Revenue | D3: Investment Income | E3: Other Income | F3: Total Income | G3: Loss Transferred From Revenue | H3: Management Expenses | I3: Total Outgo | J3: Profit / (Loss) Before Taxation | K3: Provision for Taxation | L3: Profit/(Loss) After Taxation | M3: Unappropriated Profit/(Loss) BF | N3: Transfer To Reserves | O3: Other Appropriations | P3: Dividend | Q3: Unappropriated Profit /(Loss) CF
B4: APA LIFE ASSURANCE COMPANY | C4: 28949 | D4: 14187 | E4: 0 | F4: 43137 | G4: 0 | H4: 1000 | I4: 3573 | J4: 39564 | K4: 10169 | L4: 29394 | M4: 41950 | N4: 0 | O4: 0 | P4: 30000 | Q4: 41345
B5: BRITISH AMERICAN INSURANCE | C5: 1797417 | D5: 154508 | E5: 0 | F5: 1951925 | G5: 0 | H5: 0 | I5: 0 | J5: 1951925 | K5: 300000 | L5: 1651925 | M5: 0 | N5: 1651925 | O5: 0 | P5: 0 | Q5: 0
B6: CANNON ASSURANCE COMPANY | C6: 180000 | D6: 0 | E6: 0 | F6: 180000 | G6: 0 | H6: 0 | I6: 0 | J6: 180000 | K6: 56883 | L6: 123117 | M6: 357165 | N6: 0 | O6: 0 | P6: 0 | Q6: 480281
B7: CAPEX LIFE ASSURANCE COMPANY | C7: 4927 | D7: 0 | E7: 0 | F7: 4927 | G7: 0 | H7: 0 | I7: 0 | J7: 4927 | K7: 2217 | L7: 2710 | M7: 39084 | N7: 0 | O7: 0 | P7: 0 | Q7: 41794
B8: CFC LIFE ASSURANCE COMPANY | C8: 436635 | D8: 0 | E8: 0 | F8: 436635 | G8: 0 | H8: 0 | I8: 0 | J8: 436635 | K8: 20176 | L8: 416459 | M8: -356061 | N8: 401761 | O8: 0 | P8: 0 | Q8: -341363
B9: CIC LIFE ASSURANCE COMPANY | C9: 437815 | D9: 0 | E9: 0 | F9: 437815 | G9: 0 | H9: 0 | I9: 0 | J9: 437815 | K9: 0 | L9: 437815 | M9: 0 | N9: 0 | O9: 0 | P9: 0 | Q9: 437815
B10: CONTINENTAL REINSURANCE | C10: 17799 | D10: 17039 | E10: 51 | F10: 34889 | G10: 0 | H10: 0 | I10: 0 | J10: 34889 | K10: 0 | L10: 34889 | M10: 0 | N10: 0 | O10: 0 | P10: 0 | Q10: 34889
B11: CORPORATE INSURANCE COMPANY | C11: 27119 | D11: 0 | E11: 0 | F11: 27119 | G11: 0 | H11: 0 | I11: 0 | J11: 27119 | K11: 873 | L11: 26245 | M11: 51378 | N11: 0 | O11: 0 | P11: 0 | Q11: 77623
B12: EAST AFRICAN REINSURANCE | C12: 40405 | D12: 74104 | E12: 21 | F12: 114530 | G12: 0 | H12: 0 | I12: 0 | J12: 114530 | K12: 24297 | L12: 90234 | M12: 268920 | N12: 65265 | O12: 0 | P12: 0 | Q12: 293888
B13: FIRST ASSURANCE COMPANY | C13: 33467 | D13: 0 | E13: 4675 | F13: 38142 | G13: 0 | H13: 0 | I13: 0 | J13: 38142 | K13: 0 | L13: 38142 | M13: 0 | N13: 38142 | O13: 0 | P13: 0 | Q13: 0
B14: GA LIFE ASSURANCE COMPANY | C14: 10056 | D14: 0 | E14: 0 | F14: 10056 | G14: 0 | H14: 0 | I14: 0 | J14: 10056 | K14: 2325 | L14: 7731 | M14: 0 | N14: 0 | O14: 0 | P14: 0 | Q14: 7731
B15: GEMINIA INSURANCE COMPANY | C15: 0 | D15: 0 | E15: 0 | F15: 0 | G15: 0 | H15: 0 | I15: 0 | J15: 0 | K15: 0 | L15: 0 | M15: 0 | N15: 0 | O15: 0 | P15: 0 | Q15: 0
B16: ICEA LION LIFE ASSURANCE | C16: 210000 | D16: 128425 | E16: 88545 | F16: 426970 | G16: 0 | H16: 21078 | I16: 37906 | J16: 389064 | K16: 7458 | L16: 381606 | M16: 1949933 | N16: 0 | O16: 0 | P16: 680000 | Q16: 1651539
B17: JUBILEE INSURANCE COMPANY | C17: 310093 | D17: 0 | E17: 0 | F17: 310093 | G17: 0 | H17: 0 | I17: 0 | J17: 310093 | K17: 0 | L17: 310093 | M17: 0 | N17: 0 | O17: 0 | P17: 0 | Q17: 310093
B18: KENINDIA ASSURANCE COMPANY | C18: 123084 | D18: 2050638 | E18: 7530 | F18: 2181252 | G18: 0 | H18: 0 | I18: 0 | J18: 2181252 | K18: 0 | L18: 2181252 | M18: 0 | N18: 30000 | O18: 0 | P18: 0 | Q18: 2151252
B19: KENYA REINSURANCE CORPORATION | C19: 720393 | D19: 0 | E19: 0 | F19: 720393 | G19: 0 | H19: 0 | I19: 0 | J19: 720393 | K19: 27175 | L19: 693218 | M19: 2402630 | N19: 0 | O19: 0 | P19: 0 | Q19: 3095848
B20: MADISON INSURANCE COMPANY | C20: -138857 | D20: 963368 | E20: 0 | F20: 824511 | G20: 0 | H20: 0 | I20: 0 | J20: 824511 | K20: 0 | L20: 824511 | M20: 3948660 | N20: 0 | O20: 0 | P20: 0 | Q20: 4773172
B21: MERCANTILE INSURANCE COMPANY | C21: 0 | D21: 31153 | E21: 0 | F21: 31153 | G21: 18758 | H21: 0 | I21: 18758 | J21: 12394 | K21: 4652 | L21: 7743 | M21: 0 | N21: 0 | O21: 243 | P21: 7500 | Q21: 0
B22: METROPOLITAN INSURANCE | C22: 0 | D22: 27832 | E22: 106 | F22: 27938 | G22: 91342 | H22: 2037 | I22: 93379 | J22: -65441 | K22: 10858 | L22: -76299 | M22: -581879 | N22: 0 | O22: 0 | P22: 0 | Q22: -658178
B23: OLD MUTUAL LIFE ASSURANCE | C23: 0 | D23: 115392 | E23: 0 | F23: 115392 | G23: 250554 | H23: 2349 | I23: 252903 | J23: -137511 | K23: 0 | L23: -137511 | M23: -1004640 | N23: 0 | O23: 0 | P23: 0 | Q23: -1142151
B24: PAN AFRICA INSURANCE COMPANY | C24: 7120396 | D24: 0 | E24: 0 | F24: 7120396 | G24: 6698303 | H24: 0 | I24: 6698303 | J24: 422093 | K24: 126628 | L24: 295466 | M24: -276167 | N24: 422093 | O24: 0 | P24: 0 | Q24: -402795
B25: PIONEER ASSURANCE COMPANY | C25: 24753 | D25: 3808 | E25: 0 | F25: 28561 | G25: 0 | H25: 0 | I25: 0 | J25: 28561 | K25: 10500 | L25: 18061 | M25: 111875 | N25: 0 | O25: 0 | P25: 0 | Q25: 129936
B26: SHIELD ASSURANCE COMPANY | C26: 0 | D26: 0 | E26: 2896 | F26: 2896 | G26: 0 | H26: 0 | I26: 0 | J26: 2896 | K26: 6376 | L26: -3480 | M26: 0 | N26: 0 | O26: 0 | P26: 0 | Q26: -3480
B27: THE KENYAN ALLIANCE INSURANCE | C27: 10278 | D27: 0 | E27: 0 | F27: 10278 | G27: 0 | H27: 0 | I27: 0 | J27: 10278 | K27: 0 | L27: 10278 | M27: 35058 | N27: 0 | O27: 0 | P27: 0 | Q27: 45335
B28: THE MONARCH INSURANCE | C28: 26987 | D28: 0 | E28: 0 | F28: 26987 | G28: 0 | H28: 0 | I28: 0 | J28: 26987 | K28: 0 | L28: 26987 | M28: 93127 | N28: 0 | O28: 0 | P28: 0 | Q28: 120114
B29: UAP LIFE ASSURANCE COMPANY | C29: 279122 | D29: 0 | E29: 0 | F29: 279122 | G29: 0 | H29: 0 | I29: 0 | J29: 279122 | K29: 473 | L29: 278648 | M29: -151962 | N29: 126686 | O29: 0 | P29: 0 | Q29: 0
B30: TOTAL | C30: =SUM(C4:C29) -> 11700838 | D30: =SUM(D4:D29) -> 3580454 | E30: 103824 | F30: 15385117 | G30: 7058957 | H30: 26464 | I30: 7104822 | J30: 8280294 | K30: 611060 | L30: 7669234 | M30: 6929071 | N30: 2735872 | O30: 243 | P30: 717500 | Q30: 11144688
B31: Amounts in Thousand Shillings

Sheet APPENDIX 6
B3: APPENDIX 6: SUMMARY OF LONG TERM BUSINESS GROSS DIRECT PREMIUM FOR THE YEAR ENDED 31.12.2022
B4: Company | C4: Life Assurances | D4: Annuities | E4: Deposit Administration | F4: Personal Pensions | G4: Group Life | H4: Group Credit | I4: Permanent Health | J4: Investments | K4: Total | L4: Market Share (%)
B5: INSURERS
B6: ABSA LIFE ASSURANCE | C6: ='APPENDIX 9'!D6 -> 2107110 | D6: ='APPENDIX 10'!D6 -> 0 | E6: ='APPENDIX 13'!D6 -> 0 | F6: ='APPENDIX 12'!D6 -> 0 | G6: ='APPENDIX 11'!D6 -> 2151596 | H6: ='APPENDIX 14'!D6 -> 1439015 | I6: ='APPENDIX 15'!D6 -> 0 | J6: ='APPENDIX 16'!D6 -> 0 | K6: =SUM(C6:J6) -> 5697721 | L6: =IFERROR(K6/$K$31*100,0) -> 4.042267617
B7: APA LIFE ASSURANCE COMPANY | C7: ='APPENDIX 9'!D7 -> 412699 | D7: ='APPENDIX 10'!D7 -> 93022 | E7: ='APPENDIX 13'!D7 -> 1581343 | F7: ='APPENDIX 12'!D7 -> 122043 | G7: ='APPENDIX 11'!D7 -> 1513917 | H7: ='APPENDIX 14'!D7 -> 747633 | I7: ='APPENDIX 15'!D7 -> 0 | J7: ='APPENDIX 16'!D7 -> 356976 | K7: =SUM(C7:J7) -> 4827633 | L7: =IFERROR(K7/$K$31*100,0) -> 3.424980715
B8: BRITAM LIFE ASSURANCE | C8: ='APPENDIX 9'!D8 -> 9983905 | D8: ='APPENDIX 10'!D8 -> 3409804 | E8: ='APPENDIX 13'!D8 -> 12343916 | F8: ='APPENDIX 12'!D8 -> 0 | G8: ='APPENDIX 11'!D8 -> 1136916 | H8: ='APPENDIX 14'!D8 -> -402737 | I8: ='APPENDIX 15'!D8 -> 0 | J8: ='APPENDIX 16'!D8 -> 1912863 | K8: 28384667 | L8: 20.13759892
B9: CANNON LIFE ASSURANCE (K) LIMITED | C9: ='APPENDIX 9'!D9 -> 49918 | D9: ='APPENDIX 10'!D9 -> 0 | E9: ='APPENDIX 13'!D9 -> 0 | F9: ='APPENDIX 12'!D9 -> 0 | G9: ='APPENDIX 11'!D9 -> 313772 | H9: ='APPENDIX 14'!D9 -> 55742 | I9: ='APPENDIX 15'!D9 -> 0 | J9: ='APPENDIX 16'!D9 -> 0 | K9: 419432 | L9: 0.2975674644
B10: CAPEX LIFE ASSURANCE COMPANY | C10: ='APPENDIX 9'!D10 -> 5200 | D10: ='APPENDIX 10'!D10 -> 459634 | E10: ='APPENDIX 13'!D10 -> 0 | F10: ='APPENDIX 12'!D10 -> 0 | G10: ='APPENDIX 11'!D10 -> 514224 | H10: ='APPENDIX 14'!D10 -> 52362 | I10: ='APPENDIX 15'!D10 -> 0 | J10: ='APPENDIX 16'!D10 -> 0 | K10: 1031420 | L10: 0.7317444405
B11: CIC LIFE ASSURANCE COMPANY | C11: ='APPENDIX 9'!D11 -> 1123203 | D11: ='APPENDIX 10'!D11 -> 167463 | E11: ='APPENDIX 13'!D11 -> 1641410 | F11: ='APPENDIX 12'!D11 -> 0 | G11: ='APPENDIX 11'!D11 -> 1306977 | H11: ='APPENDIX 14'!D11 -> 4561935 | I11: ='APPENDIX 15'!D11 -> 0 | J11: ='APPENDIX 16'!D11 -> 0 | K11: 8800988 | L11: 6.243890985
B12: CORPORATE INSURANCE COMPANY | C12: ='APPENDIX 9'!D12 -> 132413 | D12: ='APPENDIX 10'!D12 -> 0 | E12: ='APPENDIX 13'!D12 -> 0 | F12: ='APPENDIX 12'!D12 -> 0 | G12: ='APPENDIX 11'!D12 -> 0 | H12: ='APPENDIX 14'!D12 -> 0 | I12: ='APPENDIX 15'!D12 -> 0 | J12: ='APPENDIX 16'!D12 -> 0 | K12: 132413 | L12: 0.09394085494
B13: EQUITY LIFE ASSURANCE | C13: ='APPENDIX 9'!D13 -> 0 | D13: ='APPENDIX 10'!D13 -> 0 | E13: ='APPENDIX 13'!D13 -> 378398 | F13: ='APPENDIX 12'!D13 -> 0 | G13: ='APPENDIX 11'!D13 -> 341407 | H13: ='APPENDIX 14'!D13 -> 3651436 | I13: ='APPENDIX 15'!D13 -> 0 | J13: ='APPENDIX 16'!D13 -> 0 | K13: 4371241 | L13: 3.101191852
B14: GA LIFE ASSURANCE COMPANY | C14: ='APPENDIX 9'!D14 -> 908079 | D14: ='APPENDIX 10'!D14 -> 0 | E14: ='APPENDIX 13'!D14 -> 6499895 | F14: ='APPENDIX 12'!D14 -> 0 | G14: ='APPENDIX 11'!D14 -> 66773 | H14: ='APPENDIX 14'!D14 -> 3595 | I14: ='APPENDIX 15'!D14 -> 0 | J14: ='APPENDIX 16'!D14 -> 0 | K14: 7478342 | L14: 5.305535265
B15: GEMINIA LIFE INSURANCE COMPANY | C15: ='APPENDIX 9'!D15 -> 80423 | D15: ='APPENDIX 10'!D15 -> 0 | E15: ='APPENDIX 13'!D15 -> 0 | F15: ='APPENDIX 12'!D15 -> 0 | G15: ='APPENDIX 11'!D15 -> 974110 | H15: ='APPENDIX 14'!D15 -> 72655 | I15: ='APPENDIX 15'!D15 -> 0 | J15: ='APPENDIX 16'!D15 -> 0 | K15: 1127188 | L15: 0.7996873751
B16: ICEA LION LIFE ASSURANCE | C16: ='APPENDIX 9'!D16 -> 4769586 | D16: ='APPENDIX 10'!D16 -> 1977386 | E16: ='APPENDIX 13'!D16 -> 7587197 | F16: ='APPENDIX 12'!D16 -> 5729184 | G16: ='APPENDIX 11'!D16 -> 417286 | H16: ='APPENDIX 14'!D16 -> 207249 | I16: ='APPENDIX 15'!D16 -> 0 | J16: ='APPENDIX 16'!D16 -> 12412 | K16: 20700300 | L16: 14.68589851
B17: JUBILEE INSURANCE COMPANY | C17: ='APPENDIX 9'!D17 -> 4220903 | D17: ='APPENDIX 10'!D17 -> 1250509 | E17: ='APPENDIX 13'!D17 -> 9610380 | F17: ='APPENDIX 12'!D17 -> 1510536 | G17: ='APPENDIX 11'!D17 -> 1307065 | H17: ='APPENDIX 14'!D17 -> 0 | I17: ='APPENDIX 15'!D17 -> 0 | J17: ='APPENDIX 16'!D17 -> 0 | K17: 17899393 | L17: 12.69878548
B18: KENINDIA ASSURANCE COMPANY | C18: ='APPENDIX 9'!D18 -> 2309944 | D18: ='APPENDIX 10'!D18 -> 433900 | E18: ='APPENDIX 13'!D18 -> 5987750 | F18: ='APPENDIX 12'!D18 -> 0 | G18: ='APPENDIX 11'!D18 -> 42303 | H18: ='APPENDIX 14'!D18 -> 0 | I18: ='APPENDIX 15'!D18 -> 0 | J18: ='APPENDIX 16'!D18 -> 0 | K18: 8773897 | L18: 6.224671183
B19: KENYA ORIENT LIFE ASSURANCE | C19: ='APPENDIX 9'!D19 -> 43329 | D19: ='APPENDIX 10'!D19 -> 205503 | E19: ='APPENDIX 13'!D19 -> 253035 | F19: ='APPENDIX 12'!D19 -> 0 | G19: ='APPENDIX 11'!D19 -> 172674 | H19: ='APPENDIX 14'!D19 -> 582783 | I19: ='APPENDIX 15'!D19 -> 0 | J19: ='APPENDIX 16'!D19 -> 0 | K19: 1257324 | L19: 0.8920128046
B20: KUSCCO MUTUAL ASSURANCE LIMITED | C20: ='APPENDIX 9'!D20 -> 2488 | D20: ='APPENDIX 10'!D20 -> 0 | E20: ='APPENDIX 13'!D20 -> 0 | F20: ='APPENDIX 12'!D20 -> 0 | G20: ='APPENDIX 11'!D20 -> 8492 | H20: ='APPENDIX 14'!D20 -> 1490701 | I20: ='APPENDIX 15'!D20 -> 15757 | J20: ='APPENDIX 16'!D20 -> 0 | K20: 1517438 | L20: 1.07655157
B21: LIBERTY LIFE ASSURANCE COMPANY | C21: ='APPENDIX 9'!D21 -> 1332665 | D21: ='APPENDIX 10'!D21 -> 196454 | E21: ='APPENDIX 13'!D21 -> 1300903 | F21: ='APPENDIX 12'!D21 -> 0 | G21: ='APPENDIX 11'!D21 -> 664907 | H21: ='APPENDIX 14'!D21 -> 647781 | I21: ='APPENDIX 15'!D21 -> 0 | J21: ='APPENDIX 16'!D21 -> 813339 | K21: 4956049 | L21: 3.516085884
B22: MADISON INSURANCE COMPANY | C22: ='APPENDIX 9'!D22 -> 1938374 | D22: ='APPENDIX 10'!D22 -> 0 | E22: ='APPENDIX 13'!D22 -> 460930 | F22: ='APPENDIX 12'!D22 -> 214417 | G22: ='APPENDIX 11'!D22 -> 492041 | H22: ='APPENDIX 14'!D22 -> 333731 | I22: ='APPENDIX 15'!D22 -> 0 | J22: ='APPENDIX 16'!D22 -> 1322 | K22: 3440815 | L22: 2.44109795
B23: OLD MUTUAL ASSURANCE | C23: ='APPENDIX 9'!D23 -> 1107840 | D23: ='APPENDIX 10'!D23 -> 0 | E23: ='APPENDIX 13'!D23 -> 0 | F23: ='APPENDIX 12'!D23 -> 0 | G23: ='APPENDIX 11'!D23 -> 101225 | H23: ='APPENDIX 14'!D23 -> 0 | I23: ='APPENDIX 15'!D23 -> 0 | J23: ='APPENDIX 16'!D23 -> 531517 | K23: 1740582 | L23: 1.234861843
B24: OLD MUTUAL LIFE ASSURANCE | C24: ='APPENDIX 9'!D24 -> 702811 | D24: ='APPENDIX 10'!D24 -> 0 | E24: ='APPENDIX 13'!D24 -> 647863 | F24: ='APPENDIX 12'!D24 -> 0 | G24: ='APPENDIX 11'!D24 -> 1373408 | H24: ='APPENDIX 14'!D24 -> 713793 | I24: ='APPENDIX 15'!D24 -> 0 | J24: ='APPENDIX 16'!D24 -> 24949 | K24: 3462824 | L24: 2.45671231
B25: PIONEER ASSURANCE COMPANY | C25: ='APPENDIX 9'!D25 -> 1155246 | D25: ='APPENDIX 10'!D25 -> 11690 | E25: ='APPENDIX 13'!D25 -> 299562 | F25: ='APPENDIX 12'!D25 -> 0 | G25: ='APPENDIX 11'!D25 -> 1946410 | H25: ='APPENDIX 14'!D25 -> 265053 | I25: ='APPENDIX 15'!D25 -> 0 | J25: ='APPENDIX 16'!D25 -> 48069 | K25: 3726030 | L25: 2.643444705
B26: PRUDENTIAL LIFE ASSURANCE | C26: ='APPENDIX 9'!D26 -> 435251 | D26: ='APPENDIX 10'!D26 -> 0 | E26: ='APPENDIX 13'!D26 -> 411322 | F26: ='APPENDIX 12'!D26 -> 0 | G26: ='APPENDIX 11'!D26 -> 739510 | H26: ='APPENDIX 14'!D26 -> 441735 | I26: ='APPENDIX 15'!D26 -> 0 | J26: ='APPENDIX 16'!D26 -> 0 | K26: 2027818 | L26: 1.438642404
B27: SANLAM LIFE ASSURANCE | C27: ='APPENDIX 9'!D27 -> 2683049 | D27: ='APPENDIX 10'!D27 -> 1775418 | E27: ='APPENDIX 13'!D27 -> 1454753 | F27: ='APPENDIX 12'!D27 -> 0 | G27: ='APPENDIX 11'!D27 -> 1006051 | H27: ='APPENDIX 14'!D27 -> 572337 | I27: ='APPENDIX 15'!D27 -> 0 | J27: ='APPENDIX 16'!D27 -> 313132 | K27: 7804740 | L27: 5.53709944
B28: STAR DISCOVER LIFE INSURANCE | C28: ='APPENDIX 9'!D28 -> 0 | D28: ='APPENDIX 10'!D28 -> 0 | E28: ='APPENDIX 13'!D28 -> 0 | F28: ='APPENDIX 12'!D28 -> 0 | G28: ='APPENDIX 11'!D28 -> 0 | H28: ='APPENDIX 14'!D28 -> 0 | I28: ='APPENDIX 15'!D28 -> 0 | J28: ='APPENDIX 16'!D28 -> 0 | K28: 0 | L28: 0
B29: THE KENYAN ALLIANCE INSURANCE | C29: ='APPENDIX 9'!D29 -> 19331 | D29: ='APPENDIX 10'!D29 -> 55605 | E29: ='APPENDIX 13'!D29 -> 495861 | F29: ='APPENDIX 12'!D29 -> 535790 | G29: ='APPENDIX 11'!D29 -> 105903 | H29: ='APPENDIX 14'!D29 -> 9062 | I29: ='APPENDIX 15'!D29 -> 0 | J29: ='APPENDIX 16'!D29 -> 41500 | K29: 1263052 | L29: 0.8960765538
B30: THE MONARCH INSURANCE | C30: ='APPENDIX 9'!D30 -> 24091 | D30: ='APPENDIX 10'!D30 -> 0 | E30: ='APPENDIX 13'!D30 -> 0 | F30: ='APPENDIX 12'!D30 -> 0 | G30: ='APPENDIX 11'!D30 -> 88184 | H30: ='APPENDIX 14'!D30 -> 0 | I30: ='APPENDIX 15'!D30 -> 0 | J30: ='APPENDIX 16'!D30 -> 0 | K30: 112275 | L30: 0.07965388208
B31: TOTAL | C31: =SUM(C6:C30) -> 35547858 | D31: 10036388 | E31: 50954518 | F31: 8111970 | G31: 16785151 | H31: 15445861 | I31: 15757 | J31: 4056079 | K31: 140953582 | L31: 100
B32: REINSURERS
B33: CONTINENTAL REINSURANCE | C33: ='APPENDIX 9'!D33 -> 158 | D33: ='APPENDIX 10'!D33 -> 0 | E33: ='APPENDIX 13'!D33 -> 0 | F33: ='APPENDIX 12'!D33 -> 0 | G33: ='APPENDIX 11'!D33 -> 16737 | H33: ='APPENDIX 14'!D33 -> 0 | I33: ='APPENDIX 15'!D33 -> 0 | J33: ='APPENDIX 16'!D33 -> 0 | K33: =SUM(C33:J33) -> 16895 | L33: =IFERROR(K33/$K$36*100,0) -> 0.548826917
B34: EAST AFRICA REINSURANCE | C34: ='APPENDIX 9'!D34 -> 70627 | D34: ='APPENDIX 10'!D34 -> 0 | E34: ='APPENDIX 13'!D34 -> 0 | F34: ='APPENDIX 12'!D34 -> 0 | G34: ='APPENDIX 11'!D34 -> 750383 | H34: ='APPENDIX 14'!D34 -> 0 | I34: ='APPENDIX 15'!D34 -> 0 | J34: ='APPENDIX 16'!D34 -> 0 | K34: =SUM(C34:J34) -> 821010 | L34: =IFERROR(K34/$K$36*100,0) -> 26.67016201
B35: KENYA REINSURANCE CORPORATION | C35: ='APPENDIX 9'!D35 -> 224048 | D35: ='APPENDIX 10'!D35 -> 0 | E35: ='APPENDIX 13'!D35 -> 0 | F35: ='APPENDIX 12'!D35 -> 0 | G35: ='APPENDIX 11'!D35 -> 2016431 | H35: ='APPENDIX 14'!D35 -> 0 | I35: ='APPENDIX 15'!D35 -> 0 | J35: ='APPENDIX 16'!D35 -> 0 | K35: 2240479 | L35: =IFERROR(K35/$K$36*100,0) -> 72.78101108
B36: TOTAL | C36: =SUM(C33:C35) -> 294833 | D36: =SUM(D33:D35) -> 0 | E36: 0 | F36: 0 | G36: 2783551 | H36: 0 | I36: 0 | J36: 0 | K36: 3078384 | L36: =SUM(L33:L35) -> 100
B37: Amounts in Thousand Shillings

Sheet APPENDIX 7
B3: APPENDIX 7: SUMMARY OF LONG TERM BUSINESS INWARD REINSURANCE PREMIUM FOR THE YEAR ENDED 31.12.2022
B4: Company | C4: Life Assurances | D4: Annuities | E4: Deposit Administration | F4: Personal Pensions | G4: Group Life | H4: Group Credit | I4: Permanent Health | J4: Investments | K4: Total | L4: Market Share (%)
B5: INSURERS
B6: ABSA LIFE ASSURANCE | C6: 0 | D6: 0 | E6: 0 | F6: 0 | G6: 0 | H6: 0 | I6: 0 | J6: 0 | K6: 0 | L6: 0
B7: APA LIFE ASSURANCE COMPANY | C7: 0 | D7: 0 | E7: 0 | F7: 0 | G7: 0 | H7: 0 | I7: 0 | J7: 0 | K7: 0 | L7: 0
B8: BRITAM LIFE ASSURANCE | C8: 0 | D8: 0 | E8: 0 | F8: 0 | G8: 0 | H8: 0 | I8: 0 | J8: 0 | K8: 0 | L8: 0
B9: CANNON LIFE ASSURANCE (K) LIMITED | C9: 0 | D9: 0 | E9: 0 | F9: 0 | G9: 0 | H9: 0 | I9: 0 | J9: 0 | K9: 0 | L9: 0
B10: CAPEX LIFE ASSURANCE COMPANY | C10: 0 | D10: 0 | E10: 0 | F10: 0 | G10: 0 | H10: 0 | I10: 0 | J10: 0 | K10: 0 | L10: 0
B11: CIC LIFE ASSURANCE COMPANY | C11: 0 | D11: 0 | E11: 0 | F11: 0 | G11: 0 | H11: 0 | I11: 0 | J11: 0 | K11: 0 | L11: 0
B12: CORPORATE INSURANCE COMPANY | C12: 0 | D12: 0 | E12: 0 | F12: 0 | G12: 0 | H12: 0 | I12: 0 | J12: 0 | K12: 0 | L12: 0
B13: EQUITY LIFE ASSURANCE | C13: 0 | D13: 0 | E13: 0 | F13: 0 | G13: 0 | H13: 0 | I13: 0 | J13: 0 | K13: 0 | L13: 0
B14: GA LIFE ASSURANCE COMPANY | C14: 0 | D14: 0 | E14: 0 | F14: 0 | G14: 0 | H14: 0 | I14: 0 | J14: 0 | K14: 0 | L14: 0
B15: GEMINIA LIFE INSURANCE COMPANY | C15: 0 | D15: 0 | E15: 0 | F15: 0 | G15: 0 | H15: 0 | I15: 0 | J15: 0 | K15: 0 | L15: 0
B16: ICEA LION LIFE ASSURANCE | C16: 0 | D16: 0 | E16: 0 | F16: 0 | G16: 0 | H16: 0 | I16: 0 | J16: 0 | K16: 0 | L16: 0
B17: JUBILEE INSURANCE COMPANY | C17: 0 | D17: 0 | E17: 0 | F17: 0 | G17: 0 | H17: 0 | I17: 0 | J17: 0 | K17: 0 | L17: 0
B18: KENINDIA ASSURANCE COMPANY | C18: 0 | D18: 0 | E18: 0 | F18: 0 | G18: 0 | H18: 0 | I18: 0 | J18: 0 | K18: 0 | L18: 0
B19: KENYA ORIENT LIFE ASSURANCE | C19: 0 | D19: 0 | E19: 0 | F19: 0 | G19: 0 | H19: 0 | I19: 0 | J19: 0 | K19: 0 | L19: 0
B20: KUSCCO MUTUAL ASSURANCE LIMITED | C20: 0 | D20: 0 | E20: 0 | F20: 0 | G20: 0 | H20: 0 | I20: 0 | J20: 0 | K20: 0 | L20: 0
B21: LIBERTY LIFE ASSURANCE COMPANY | C21: 0 | D21: 0 | E21: 0 | F21: 0 | G21: 0 | H21: 0 | I21: 0 | J21: 0 | K21: 0 | L21: 0
B22: MADISON INSURANCE COMPANY | C22: 0 | D22: 0 | E22: 0 | F22: 0 | G22: 0 | H22: 0 | I22: 0 | J22: 0 | K22: 0 | L22: 0
B23: OLD MUTUAL ASSURANCE | C23: 0 | D23: 0 | E23: 0 | F23: 0 | G23: 0 | H23: 0 | I23: 0 | J23: 0 | K23: 0 | L23: 0
B24: OLD MUTUAL LIFE ASSURANCE | C24: 0 | D24: 0 | E24: 0 | F24: 0 | G24: 0 | H24: 0 | I24: 0 | J24: 0 | K24: 0 | L24: 0
B25: PIONEER ASSURANCE COMPANY | C25: 0 | D25: 0 | E25: 0 | F25: 0 | G25: 0 | H25: 0 | I25: 0 | J25: 0 | K25: 0 | L25: 0
B26: PRUDENTIAL LIFE ASSURANCE | C26: 0 | D26: 0 | E26: 0 | F26: 0 | G26: 0 | H26: 0 | I26: 0 | J26: 0 | K26: 0 | L26: 0
B27: SANLAM LIFE ASSURANCE | C27: 0 | D27: 0 | E27: 0 | F27: 0 | G27: 0 | H27: 0 | I27: 0 | J27: 0 | K27: 0 | L27: 0
B28: STAR DISCOVER LIFE INSURANCE | C28: 0 | D28: 0 | E28: 0 | F28: 0 | G28: 0 | H28: 0 | I28: 0 | J28: 0 | K28: 0 | L28: 0
B29: THE KENYAN ALLIANCE INSURANCE | C29: 0 | D29: 0 | E29: 0 | F29: 0 | G29: 0 | H29: 0 | I29: 0 | J29: 0 | K29: 0 | L29: 0
B30: THE MONARCH INSURANCE | C30: 0 | D30: 0 | E30: 0 | F30: 0 | G30: 0 | H30: 0 | I30: 0 | J30: 0 | K30: 0 | L30: 0
B31: TOTAL | C31: =SUM(C6:C30) -> 0 | D31: =SUM(D6:D30) -> 0 | F31: =SUM(F6:F30) -> 0 | G31: 0 | H31: 0 | I31: 0 | J31: 0 | K31: 0
B32: REINSURERS
B33: CONTINENTAL REINSURANCE | C33: ='APPENDIX 9'!D33 -> 158 | D33: 0 | E33: 0 | F33: 0 | G33: ='APPENDIX 11'!D33 -> 16737 | H33: ='APPENDIX 14'!D33 -> 0 | I33: 0 | J33: 0 | K33: =SUM(C33:J33) -> 16895 | L33: =IFERROR((K33/$K$36)*100,0) -> 0.548826917
B34: EAST AFRICA REINSURANCE | C34: ='APPENDIX 9'!D34 -> 70627 | D34: 0 | E34: 0 | F34: 0 | G34: ='APPENDIX 11'!D34 -> 750383 | H34: ='APPENDIX 14'!D34 -> 0 | I34: 0 | J34: 0 | K34: =SUM(C34:J34) -> 821010 | L34: =IFERROR((K34/$K$36)*100,0) -> 26.67016201
B35: KENYA REINSURANCE CORPORATION | C35: ='APPENDIX 9'!D35 -> 224048 | D35: 0 | E35: 0 | F35: 0 | G35: ='APPENDIX 11'!D35 -> 2016431 | H35: ='APPENDIX 14'!D35 -> 0 | I35: 0 | J35: 0 | K35: 2240479 | L35: 72.78101108
B36: TOTAL | C36: =SUM(C33:C35) -> 294833 | D36: =SUM(D33:D35) -> 0 | E36: 0 | F36: 0 | G36: 2783551 | H36: 0 | I36: 0 | J36: 0 | K36: =SUM(K33:K35) -> 3078384 | L36: =SUM(L33:L35) -> 100
B37: Amounts in Thousand Shillings

Sheet APPENDIX 8
B3: APPENDIX 8: SUMMARY OF LONG TERM BUSINESS OUTWARD REINSURANCE PREMIUM FOR THE YEAR ENDED 31.12.2022
B4: Company | C4: Life Assurances | D4: Annuities | E4: Deposit Administration | F4: Personal Pensions | G4: Group Life | H4: Group Credit | I4: Permanent Health | J4: Investments | K4: Total
B5: INSURERS
B6: ABSA LIFE ASSURANCE | C6: ='APPENDIX 9'!D6-'APPENDIX 9'!E6 -> 1295 | D6: ='APPENDIX 10'!D6-'APPENDIX 10'!E6 -> 0 | E6: ='APPENDIX 13'!D6-'APPENDIX 13'!E6 -> 0 | F6: ='APPENDIX 12'!D6-'APPENDIX 12'!E6 -> 0 | G6: ='APPENDIX 11'!D6-'APPENDIX 11'!E6 -> 1323506 | H6: ='APPENDIX 14'!D6-'APPENDIX 14'!E6 -> 115646 | I6: ='APPENDIX 15'!D6-'APPENDIX 15'!E6 -> 0 | J6: ='APPENDIX 16'!D6-'APPENDIX 16'!E6 -> 0 | K6: =SUM(C6:J6) -> 1440447
B7: APA LIFE ASSURANCE COMPANY | C7: ='APPENDIX 9'!D7-'APPENDIX 9'!E7 -> 379 | D7: ='APPENDIX 10'!D7-'APPENDIX 10'!E7 -> 0 | E7: ='APPENDIX 13'!D7-'APPENDIX 13'!E7 -> 0 | F7: ='APPENDIX 12'!D7-'APPENDIX 12'!E7 -> 0 | G7: ='APPENDIX 11'!D7-'APPENDIX 11'!E7 -> 634625 | H7: ='APPENDIX 14'!D7-'APPENDIX 14'!E7 -> 128026 | I7: ='APPENDIX 15'!D7-'APPENDIX 15'!E7 -> 0 | J7: ='APPENDIX 16'!D7-'APPENDIX 16'!E7 -> 0 | K7: =SUM(C7:J7) -> 763030
B8: BRITAM LIFE ASSURANCE | C8: ='APPENDIX 9'!D8-'APPENDIX 9'!E8 -> 11786 | D8: ='APPENDIX 10'!D8-'APPENDIX 10'!E8 -> 0 | E8: ='APPENDIX 13'!D8-'APPENDIX 13'!E8 -> 0 | F8: ='APPENDIX 12'!D8-'APPENDIX 12'!E8 -> 0 | G8: ='APPENDIX 11'!D8-'APPENDIX 11'!E8 -> 655742 | H8: ='APPENDIX 14'!D8-'APPENDIX 14'!E8 -> 37896 | I8: ='APPENDIX 15'!D8-'APPENDIX 15'!E8 -> 0 | J8: ='APPENDIX 16'!D8-'APPENDIX 16'!E8 -> 0 | K8: 705424
B9: CANNON LIFE ASSURANCE (K) LIMITED | C9: ='APPENDIX 9'!D9-'APPENDIX 9'!E9 -> 143 | D9: ='APPENDIX 10'!D9-'APPENDIX 10'!E9 -> 0 | E9: ='APPENDIX 13'!D9-'APPENDIX 13'!E9 -> 0 | F9: ='APPENDIX 12'!D9-'APPENDIX 12'!E9 -> 0 | G9: ='APPENDIX 11'!D9-'APPENDIX 11'!E9 -> 196618 | H9: ='APPENDIX 14'!D9-'APPENDIX 14'!E9 -> 25239 | I9: ='APPENDIX 15'!D9-'APPENDIX 15'!E9 -> 0 | J9: ='APPENDIX 16'!D9-'APPENDIX 16'!E9 -> 0 | K9: 222000
B10: CAPEX LIFE ASSURANCE COMPANY | C10: ='APPENDIX 9'!D10-'APPENDIX 9'!E10 -> 23 | D10: ='APPENDIX 10'!D10-'APPENDIX 10'!E10 -> 0 | E10: ='APPENDIX 13'!D10-'APPENDIX 13'!E10 -> 0 | F10: ='APPENDIX 12'!D10-'APPENDIX 12'!E10 -> 0 | G10: ='APPENDIX 11'!D10-'APPENDIX 11'!E10 -> 186632 | H10: ='APPENDIX 14'!D10-'APPENDIX 14'!E10 -> 1493 | I10: ='APPENDIX 15'!D10-'APPENDIX 15'!E10 -> 0 | J10: ='APPENDIX 16'!D10-'APPENDIX 16'!E10 -> 0 | K10: 188148
B11: CIC LIFE ASSURANCE COMPANY | C11: ='APPENDIX 9'!D11-'APPENDIX 9'!E11 -> 15267 | D11: ='APPENDIX 10'!D11-'APPENDIX 10'!E11 -> 0 | E11: ='APPENDIX 13'!D11-'APPENDIX 13'!E11 -> 0 | F11: ='APPENDIX 12'!D11-'APPENDIX 12'!E11 -> 0 | G11: ='APPENDIX 11'!D11-'APPENDIX 11'!E11 -> 364001 | H11: ='APPENDIX 14'!D11-'APPENDIX 14'!E11 -> 1270526 | I11: ='APPENDIX 15'!D11-'APPENDIX 15'!E11 -> 0 | J11: ='APPENDIX 16'!D11-'APPENDIX 16'!E11 -> 0 | K11: 1649794
B12: CORPORATE INSURANCE COMPANY | C12: ='APPENDIX 9'!D12-'APPENDIX 9'!E12 -> 0 | D12: ='APPENDIX 10'!D12-'APPENDIX 10'!E12 -> 0 | E12: ='APPENDIX 13'!D12-'APPENDIX 13'!E12 -> 0 | F12: ='APPENDIX 12'!D12-'APPENDIX 12'!E12 -> 0 | G12: ='APPENDIX 11'!D12-'APPENDIX 11'!E12 -> 0 | H12: ='APPENDIX 14'!D12-'APPENDIX 14'!E12 -> 0 | I12: ='APPENDIX 15'!D12-'APPENDIX 15'!E12 -> 0 | J12: ='APPENDIX 16'!D12-'APPENDIX 16'!E12 -> 0 | K12: 0
B13: EQUITY LIFE ASSURANCE | C13: ='APPENDIX 9'!D13-'APPENDIX 9'!E13 -> 0 | D13: ='APPENDIX 10'!D13-'APPENDIX 10'!E13 -> 0 | E13: ='APPENDIX 13'!D13-'APPENDIX 13'!E13 -> 0 | F13: ='APPENDIX 12'!D13-'APPENDIX 12'!E13 -> 0 | G13: ='APPENDIX 11'!D13-'APPENDIX 11'!E13 -> 229022 | H13: ='APPENDIX 14'!D13-'APPENDIX 14'!E13 -> 1301889 | I13: ='APPENDIX 15'!D13-'APPENDIX 15'!E13 -> 0 | J13: ='APPENDIX 16'!D13-'APPENDIX 16'!E13 -> 0 | K13: 1530911
B14: GA LIFE ASSURANCE COMPANY | C14: ='APPENDIX 9'!D14-'APPENDIX 9'!E14 -> 0 | D14: ='APPENDIX 10'!D14-'APPENDIX 10'!E14 -> 0 | E14: ='APPENDIX 13'!D14-'APPENDIX 13'!E14 -> 0 | F14: ='APPENDIX 12'!D14-'APPENDIX 12'!E14 -> 0 | G14: ='APPENDIX 11'!D14-'APPENDIX 11'!E14 -> 62096 | H14: ='APPENDIX 14'!D14-'APPENDIX 14'!E14 -> 3218 | I14: ='APPENDIX 15'!D14-'APPENDIX 15'!E14 -> 0 | J14: ='APPENDIX 16'!D14-'APPENDIX 16'!E14 -> 0 | K14: 65314
B15: GEMINIA LIFE INSURANCE COMPANY | C15: ='APPENDIX 9'!D15-'APPENDIX 9'!E15 -> 0 | D15: ='APPENDIX 10'!D15-'APPENDIX 10'!E15 -> 0 | E15: ='APPENDIX 13'!D15-'APPENDIX 13'!E15 -> 0 | F15: ='APPENDIX 12'!D15-'APPENDIX 12'!E15 -> 0 | G15: ='APPENDIX 11'!D15-'APPENDIX 11'!E15 -> 580970 | H15: ='APPENDIX 14'!D15-'APPENDIX 14'!E15 -> 0 | I15: ='APPENDIX 15'!D15-'APPENDIX 15'!E15 -> 0 | J15: ='APPENDIX 16'!D15-'APPENDIX 16'!E15 -> 0 | K15: 580970
B16: ICEA LION LIFE ASSURANCE | C16: ='APPENDIX 9'!D16-'APPENDIX 9'!E16 -> 53507 | D16: ='APPENDIX 10'!D16-'APPENDIX 10'!E16 -> 0 | E16: ='APPENDIX 13'!D16-'APPENDIX 13'!E16 -> 0 | F16: ='APPENDIX 12'!D16-'APPENDIX 12'!E16 -> 0 | G16: ='APPENDIX 11'!D16-'APPENDIX 11'!E16 -> 218072 | H16: ='APPENDIX 14'!D16-'APPENDIX 14'!E16 -> 83706 | I16: ='APPENDIX 15'!D16-'APPENDIX 15'!E16 -> 0 | J16: ='APPENDIX 16'!D16-'APPENDIX 16'!E16 -> 0
B17: JUBILEE INSURANCE COMPANY | C17: ='APPENDIX 9'!D17-'APPENDIX 9'!E17 -> 13122 | D17: ='APPENDIX 10'!D17-'APPENDIX 10'!E17 -> 0 | E17: ='APPENDIX 13'!D17-'APPENDIX 13'!E17 -> 0 | F17: ='APPENDIX 12'!D17-'APPENDIX 12'!E17 -> 0 | G17: ='APPENDIX 11'!D17-'APPENDIX 11'!E17 -> 556173 | H17: ='APPENDIX 14'!D17-'APPENDIX 14'!E17 -> 42173 | I17: ='APPENDIX 15'!D17-'APPENDIX 15'!E17 -> 0 | J17: ='APPENDIX 16'!D17-'APPENDIX 16'!E17 -> 0
B18: KENINDIA ASSURANCE COMPANY | C18: ='APPENDIX 9'!D18-'APPENDIX 9'!E18 -> 6212 | D18: ='APPENDIX 10'!D18-'APPENDIX 10'!E18 -> 0 | E18: ='APPENDIX 13'!D18-'APPENDIX 13'!E18 -> 0 | F18: ='APPENDIX 12'!D18-'APPENDIX 12'!E18 -> 0 | G18: ='APPENDIX 11'!D18-'APPENDIX 11'!E18 -> 25543 | H18: ='APPENDIX 14'!D18-'APPENDIX 14'!E18 -> 0 | I18: ='APPENDIX 15'!D18-'APPENDIX 15'!E18 -> 0 | J18: ='APPENDIX 16'!D18-'APPENDIX 16'!E18 -> 0 | K18: 31755
B19: KENYA ORIENT LIFE ASSURANCE | C19: ='APPENDIX 9'!D19-'APPENDIX 9'!E19 -> 21 | D19: ='APPENDIX 10'!D19-'APPENDIX 10'!E19 -> 0 | E19: ='APPENDIX 13'!D19-'APPENDIX 13'!E19 -> 0 | F19: ='APPENDIX 12'!D19-'APPENDIX 12'!E19 -> 0 | G19: ='APPENDIX 11'!D19-'APPENDIX 11'!E19 -> 32804 | H19: ='APPENDIX 14'!D19-'APPENDIX 14'!E19 -> 87021 | I19: ='APPENDIX 15'!D19-'APPENDIX 15'!E19 -> 0 | J19: ='APPENDIX 16'!D19-'APPENDIX 16'!E19 -> 0 | K19: 119846
B20: KUSCCO MUTUAL ASSURANCE LIMITED | C20: ='APPENDIX 9'!D20-'APPENDIX 9'!E20 -> 0 | D20: ='APPENDIX 10'!D20-'APPENDIX 10'!E20 -> 0 | E20: ='APPENDIX 13'!D20-'APPENDIX 13'!E20 -> 0 | F20: ='APPENDIX 12'!D20-'APPENDIX 12'!E20 -> 0 | G20: ='APPENDIX 11'!D20-'APPENDIX 11'!E20 -> 6198 | H20: ='APPENDIX 14'!D20-'APPENDIX 14'!E20 -> 408022 | I20: ='APPENDIX 15'!D20-'APPENDIX 15'!E20 -> 2572 | J20: ='APPENDIX 16'!D20-'APPENDIX 16'!E20 -> 0 | K20: 416792
B21: LIBERTY LIFE ASSURANCE COMPANY | C21: ='APPENDIX 9'!D21-'APPENDIX 9'!E21 -> 9156 | D21: ='APPENDIX 10'!D21-'APPENDIX 10'!E21 -> 0 | E21: ='APPENDIX 13'!D21-'APPENDIX 13'!E21 -> 0 | F21: ='APPENDIX 12'!D21-'APPENDIX 12'!E21 -> 0 | G21: ='APPENDIX 11'!D21-'APPENDIX 11'!E21 -> 89421 | H21: ='APPENDIX 14'!D21-'APPENDIX 14'!E21 -> 191137 | I21: ='APPENDIX 15'!D21-'APPENDIX 15'!E21 -> 0 | J21: ='APPENDIX 16'!D21-'APPENDIX 16'!E21 -> 0 | K21: 289714
B22: MADISON INSURANCE COMPANY | C22: ='APPENDIX 9'!D22-'APPENDIX 9'!E22 -> 0 | D22: ='APPENDIX 10'!D22-'APPENDIX 10'!E22 -> 0 | E22: ='APPENDIX 13'!D22-'APPENDIX 13'!E22 -> 0 | F22: ='APPENDIX 12'!D22-'APPENDIX 12'!E22 -> 0 | G22: ='APPENDIX 11'!D22-'APPENDIX 11'!E22 -> 184632 | H22: ='APPENDIX 14'!D22-'APPENDIX 14'!E22 -> 0 | I22: ='APPENDIX 15'!D22-'APPENDIX 15'!E22 -> 0 | J22: ='APPENDIX 16'!D22-'APPENDIX 16'!E22 -> 0 | K22: 184632
B23: OLD MUTUAL ASSURANCE | C23: ='APPENDIX 9'!D23-'APPENDIX 9'!E23 -> 73802 | D23: ='APPENDIX 10'!D23-'APPENDIX 10'!E23 -> 0 | E23: ='APPENDIX 13'!D23-'APPENDIX 13'!E23 -> 0 | F23: ='APPENDIX 12'!D23-'APPENDIX 12'!E23 -> 0 | G23: ='APPENDIX 11'!D23-'APPENDIX 11'!E23 -> 5833 | H23: ='APPENDIX 14'!D23-'APPENDIX 14'!E23 -> 0 | I23: ='APPENDIX 15'!D23-'APPENDIX 15'!E23 -> 0 | J23: ='APPENDIX 16'!D23-'APPENDIX 16'!E23 -> 0 | K23: 79635
B24: OLD MUTUAL LIFE ASSURANCE | C24: ='APPENDIX 9'!D24-'APPENDIX 9'!E24 -> 3958 | D24: ='APPENDIX 10'!D24-'APPENDIX 10'!E24 -> 0 | E24: ='APPENDIX 13'!D24-'APPENDIX 13'!E24 -> 0 | F24: ='APPENDIX 12'!D24-'APPENDIX 12'!E24 -> 0 | G24: ='APPENDIX 11'!D24-'APPENDIX 11'!E24 -> 811530 | H24: ='APPENDIX 14'!D24-'APPENDIX 14'!E24 -> 0 | I24: ='APPENDIX 15'!D24-'APPENDIX 15'!E24 -> 0 | J24: ='APPENDIX 16'!D24-'APPENDIX 16'!E24 -> 0 | K24: 815488
B25: PIONEER ASSURANCE COMPANY | C25: ='APPENDIX 9'!D25-'APPENDIX 9'!E25 -> 7500 | D25: ='APPENDIX 10'!D25-'APPENDIX 10'!E25 -> 0 | E25: ='APPENDIX 13'!D25-'APPENDIX 13'!E25 -> 0 | F25: ='APPENDIX 12'!D25-'APPENDIX 12'!E25 -> 0 | G25: ='APPENDIX 11'!D25-'APPENDIX 11'!E25 -> 686460 | H25: ='APPENDIX 14'!D25-'APPENDIX 14'!E25 -> 81737 | I25: ='APPENDIX 15'!D25-'APPENDIX 15'!E25 -> 0 | J25: ='APPENDIX 16'!D25-'APPENDIX 16'!E25 -> 0 | K25: 775697
B26: PRUDENTIAL LIFE ASSURANCE | C26: ='APPENDIX 9'!D26-'APPENDIX 9'!E26 -> 9169 | D26: ='APPENDIX 10'!D26-'APPENDIX 10'!E26 -> 0 | E26: ='APPENDIX 13'!D26-'APPENDIX 13'!E26 -> 0 | F26: ='APPENDIX 12'!D26-'APPENDIX 12'!E26 -> 0 | G26: ='APPENDIX 11'!D26-'APPENDIX 11'!E26 -> 206011 | H26: ='APPENDIX 14'!D26-'APPENDIX 14'!E26 -> 25895 | I26: ='APPENDIX 15'!D26-'APPENDIX 15'!E26 -> 0 | J26: ='APPENDIX 16'!D26-'APPENDIX 16'!E26 -> 0 | K26: 241075
B27: SANLAM LIFE ASSURANCE | C27: ='APPENDIX 9'!D27-'APPENDIX 9'!E27 -> 74435 | D27: ='APPENDIX 10'!D27-'APPENDIX 10'!E27 -> 18139 | E27: ='APPENDIX 13'!D27-'APPENDIX 13'!E27 -> 0 | F27: ='APPENDIX 12'!D27-'APPENDIX 12'!E27 -> 0 | G27: ='APPENDIX 11'!D27-'APPENDIX 11'!E27 -> 578955 | H27: ='APPENDIX 14'!D27-'APPENDIX 14'!E27 -> 156322 | I27: ='APPENDIX 15'!D27-'APPENDIX 15'!E27 -> 0 | J27: ='APPENDIX 16'!D27-'APPENDIX 16'!E27 -> 32 | K27: 827883
B28: STAR DISCOVER LIFE INSURANCE | C28: ='APPENDIX 9'!D28-'APPENDIX 9'!E28 -> 0 | D28: ='APPENDIX 10'!D28-'APPENDIX 10'!E28 -> 0 | E28: ='APPENDIX 13'!D28-'APPENDIX 13'!E28 -> 0 | F28: ='APPENDIX 12'!D28-'APPENDIX 12'!E28 -> 0 | G28: ='APPENDIX 11'!D28-'APPENDIX 11'!E28 -> 0 | H28: ='APPENDIX 14'!D28-'APPENDIX 14'!E28 -> 0 | I28: ='APPENDIX 15'!D28-'APPENDIX 15'!E28 -> 0 | J28: ='APPENDIX 16'!D28-'APPENDIX 16'!E28 -> 0 | K28: 0
B29: THE KENYAN ALLIANCE INSURANCE | C29: ='APPENDIX 9'!D29-'APPENDIX 9'!E29 -> 0 | D29: ='APPENDIX 10'!D29-'APPENDIX 10'!E29 -> 0 | E29: ='APPENDIX 13'!D29-'APPENDIX 13'!E29 -> 0 | F29: ='APPENDIX 12'!D29-'APPENDIX 12'!E29 -> 0 | G29: ='APPENDIX 11'!D29-'APPENDIX 11'!E29 -> 88332 | H29: ='APPENDIX 14'!D29-'APPENDIX 14'!E29 -> 0 | I29: ='APPENDIX 15'!D29-'APPENDIX 15'!E29 -> 0 | J29: ='APPENDIX 16'!D29-'APPENDIX 16'!E29 -> 0 | K29: 88332
B30: THE MONARCH INSURANCE | C30: ='APPENDIX 9'!D30-'APPENDIX 9'!E30 -> 127 | D30: ='APPENDIX 10'!D30-'APPENDIX 10'!E30 -> 0 | E30: ='APPENDIX 13'!D30-'APPENDIX 13'!E30 -> 0 | F30: ='APPENDIX 12'!D30-'APPENDIX 12'!E30 -> 0 | G30: ='APPENDIX 11'!D30-'APPENDIX 11'!E30 -> 41364 | H30: ='APPENDIX 14'!D30-'APPENDIX 14'!E30 -> 0 | I30: ='APPENDIX 15'!D30-'APPENDIX 15'!E30 -> 0 | J30: ='APPENDIX 16'!D30-'APPENDIX 16'!E30 -> 0 | K30: 41491
B31: TOTAL | C31: =SUM(C6:C30) -> 279902 | D31: 18139 | E31: 0 | F31: 0 | G31: 7764540 | H31: 3959946 | I31: 2572 | J31: 32 | K31: 11058378
B32: REINSURERS
B33: CONTINENTAL REINSURANCE | C33: ='APPENDIX 9'!D33-'APPENDIX 9'!E33 -> 0 | D33: ='APPENDIX 10'!D33-'APPENDIX 10'!E33 -> 0 | E33: ='APPENDIX 13'!D33-'APPENDIX 13'!E33 -> 0 | F33: ='APPENDIX 12'!D33-'APPENDIX 12'!E33 -> 0 | G33: ='APPENDIX 11'!D33-'APPENDIX 11'!E33 -> -50 | H33: ='APPENDIX 14'!D33-'APPENDIX 14'!E33 -> 0 | I33: ='APPENDIX 15'!D32-'APPENDIX 15'!E32 -> 0 | J33: ='APPENDIX 16'!D33-'APPENDIX 16'!E33 -> 0 | K33: =SUM(C33:J33) -> -50
B34: EAST AFRICA REINSURANCE | C34: ='APPENDIX 9'!D34-'APPENDIX 9'!E34 -> 0 | D34: ='APPENDIX 10'!D34-'APPENDIX 10'!E34 -> 0 | E34: ='APPENDIX 13'!D34-'APPENDIX 13'!E34 -> 0 | F34: ='APPENDIX 12'!D34-'APPENDIX 12'!E34 -> 0 | G34: ='APPENDIX 11'!D34-'APPENDIX 11'!E34 -> 225517 | H34: ='APPENDIX 14'!D34-'APPENDIX 14'!E34 -> 0 | I34: ='APPENDIX 15'!D33-'APPENDIX 15'!E33 -> 0 | J34: ='APPENDIX 16'!D34-'APPENDIX 16'!E34 -> 0 | K34: =SUM(C34:J34) -> 225517
B35: KENYA REINSURANCE CORPORATION | C35: ='APPENDIX 9'!D35-'APPENDIX 9'!E35 -> 9734 | D35: ='APPENDIX 10'!D35-'APPENDIX 10'!E35 -> 0 | E35: ='APPENDIX 13'!D35-'APPENDIX 13'!E35 -> 0 | F35: ='APPENDIX 12'!D35-'APPENDIX 12'!E35 -> 0 | G35: ='APPENDIX 11'!D35-'APPENDIX 11'!E35 -> 87604 | H35: ='APPENDIX 14'!D35-'APPENDIX 14'!E35 -> 0 | I35: ='APPENDIX 15'!D34-'APPENDIX 15'!E34 -> 0 | J35: ='APPENDIX 16'!D35-'APPENDIX 16'!E35 -> 0 | K35: =SUM(C35:J35) -> 97338
B36: TOTAL | C36: =SUM(C33:C35) -> 9734 | D36: =SUM(D33:D35) -> 0 | E36: 0 | F36: 0 | G36: 313071 | H36: 0 | I36: 0 | J36: 0 | K36: 322805
B37: Amounts in Thousand Shillings

Sheet APPENDIX 9
B3: APPENDIX 9: SUMMARY OF LIFE ASSURANCES BUSINESS REVENUE ACCOUNTS FOR THE YEAR ENDED 31.12.2022
B4: Company | C4: Life Fund BF | D4: Gross Premium | E4: Net Premium | F4: Other (Fee) Income | G4: Total Benefits | H4: Claims | I4: Surrenders | J4: Bonuses Paid | K4: Annuities Paid | L4: Net Commisions | M4: Expense of Management | N4: Investment Income | O4: Investment Expenses | P4: Transfer To (From) P & L | Q4: Life Fund CF
B5: INSURERS
B6: ABSA LIFE ASSURANCE | C6: 3585754 | D6: 2107110 | E6: 2105815 | F6: 0 | G6: 663518 | H6: 629681 | I6: 0 | J6: 0 | K6: 0 | L6: 312649 | M6: 156902 | N6: 517899 | O6: 0 | P6: 0 | Q6: 5110236
B7: APA LIFE ASSURANCE COMPANY | C7: 564126 | D7: 412699 | E7: 412320 | F7: 0 | G7: 87724 | H7: 87724 | I7: 0 | J7: 0 | K7: 0 | L7: 138226 | M7: 116298 | N7: 58673 | O7: 5172 | P7: -76811 | Q7: 764508
B8: BRITAM LIFE ASSURANCE | C8: 32495838 | D8: 9983905 | E8: 9972119 | F8: 24603 | G8: 4790364 | H8: 1058519 | I8: 1351639 | J8: 2459644 | K8: 0 | L8: 1117922 | M8: 1833170 | N8: 2249575 | O8: 71200 | P8: 1373997 | Q8: 35476044
B9: CANNON LIFE ASSURANCE (K) LIMITED | C9: 789239 | D9: 49918 | E9: 49775 | F9: 0 | G9: 108068 | H9: 108068 | I9: 50750 | J9: 0 | K9: 0 | L9: -4081 | M9: 6617 | N9: 17108 | O9: 0 | P9: -14305 | Q9: 709072
B10: CAPEX LIFE ASSURANCE COMPANY | C10: 8535 | D10: 5200 | E10: 5177 | F10: 0 | G10: 8405 | H10: 3452 | I10: 246 | J10: 0 | K10: 0 | L10: 302 | M10: 10157 | N10: 8611 | O10: 0 | P10: 0 | Q10: 8165
B11: CIC LIFE ASSURANCE COMPANY | C11: 4277139 | D11: 1123203 | E11: 1107936 | F11: 0 | G11: 646838 | H11: 777188 | I11: 0 | J11: 0 | K11: 0 | L11: 92841 | M11: 218358 | N11: 237535 | O11: 0 | P11: 0 | Q11: 4534223
B12: CORPORATE INSURANCE COMPANY | C12: 383257 | D12: 132413 | E12: 132413 | F12: 0 | G12: 220544 | H12: 220544 | I12: 0 | J12: 0 | K12: 0 | L12: 5329 | M12: 68547 | N12: 0 | O12: 0 | P12: 37218 | Q12: 184032
B13: EQUITY LIFE ASSURANCE | C13: 0 | D13: 0 | E13: 0 | F13: 0 | G13: 0 | H13: 0 | I13: 0 | J13: 0 | K13: 0 | L13: 0 | M13: 0 | N13: 0 | O13: 0 | P13: 0 | Q13: 0
B14: GA LIFE ASSURANCE COMPANY | C14: 2133987 | D14: 908079 | E14: 908079 | F14: 0 | G14: 117514 | H14: 117514 | I14: 0 | J14: 0 | K14: 0 | L14: 13267 | M14: 1392 | N14: 318460 | O14: 0 | P14: 12778 | Q14: 3215575
B15: GEMINIA LIFE INSURANCE COMPANY | C15: 772498 | D15: 80423 | E15: 80423 | F15: 0 | G15: 43979 | H15: 123191 | I15: 0 | J15: 0 | K15: 0 | L15: 7484 | M15: 31507 | N15: 76730 | O15: 0 | P15: -5028 | Q15: 772498
B16: ICEA LION LIFE ASSURANCE | C16: 15452784 | D16: 4769586 | E16: 4716079 | F16: 15100 | G16: 24587 | H16: 2199398 | I16: 373875 | J16: 0 | K16: 0 | L16: 924624 | M16: 937148 | N16: 1121209 | O16: 0 | P16: 228937 | Q16: 16641190
B17: JUBILEE INSURANCE COMPANY | C17: 11866432 | D17: 4220903 | E17: 4207781 | F17: 0 | G17: 3498026 | H17: 2884210 | I17: 546163 | J17: 0 | K17: 0 | L17: 779927 | M17: 587781 | N17: 815948 | O17: 12414 | P17: -20785 | Q17: 12100452
B18: KENINDIA ASSURANCE COMPANY | C18: 15288432 | D18: 2309944 | E18: 2303732 | F18: 0 | G18: 1463269 | H18: 1359876 | I18: 0 | J18: 0 | K18: 0 | L18: 142559 | M18: 371412 | N18: 2205352 | O18: 0 | P18: 453000 | Q18: 17470669
B19: KENYA ORIENT LIFE ASSURANCE | C19: 81399 | D19: 43329 | E19: 43308 | F19: 0 | G19: 9699 | H19: 7866 | I19: 1833 | J19: 0 | K19: 0 | L19: 6763 | M19: 21969 | N19: 23429 | O19: 0 | P19: 0 | Q19: 109706
B20: KUSCCO MUTUAL ASSURANCE LIMITED | C20: 292 | D20: 2488 | E20: 2488 | F20: 0 | G20: 0 | H20: 0 | I20: 0 | J20: 0 | K20: 0 | L20: 0 | M20: 610 | N20: 59 | O20: 0 | P20: 0 | Q20: 2229
B21: LIBERTY LIFE ASSURANCE COMPANY | C21: 9787719 | D21: 1332665 | E21: 1323509 | F21: 0 | G21: 1342331 | H21: 1362472 | I21: 0 | J21: 0 | K21: 0 | L21: 162856 | M21: 493955 | N21: 248251 | O21: 0 | P21: 0 | Q21: 9340196
B22: MADISON INSURANCE COMPANY | C22: 4348387 | D22: 1938374 | E22: 1938374 | F22: 0 | G22: 1034608 | H22: 871739 | I22: 162869 | J22: 0 | K22: 0 | L22: 281416 | M22: 691826 | N22: 267598 | O22: 0 | P22: 0 | Q22: 4546509
B23: OLD MUTUAL ASSURANCE | C23: 5159788 | D23: 1107840 | E23: 1034038 | F23: 357852 | G23: 1010916 | H23: 650454 | I23: 359120 | J23: 0 | K23: 0 | L23: 94707 | M23: 286289 | N23: 353614 | O23: 20175 | P23: -19692 | Q23: 5514239
B24: OLD MUTUAL LIFE ASSURANCE | C24: 1761547 | D24: 702811 | E24: 698853 | F24: 0 | G24: 550174 | H24: 312363 | I24: 234443 | J24: 0 | K24: 0 | L24: 93165 | M24: 742304 | N24: 194885 | O24: 0 | P24: 0 | Q24: 1273009
B25: PIONEER ASSURANCE COMPANY | C25: 924487 | D25: 1155246 | E25: 1147746 | F25: 0 | G25: 690057 | H25: 466797 | I25: 223433 | J25: 0 | K25: 0 | L25: 226226 | M25: 178142 | N25: 150827 | O25: 0 | P25: -543016 | Q25: 1671479
B26: PRUDENTIAL LIFE ASSURANCE | C26: 447919 | D26: 435251 | E26: 426082 | F26: 3633 | G26: 220257 | H26: 220257 | I26: 0 | J26: 0 | K26: 0 | L26: 81474 | M26: 182343 | N26: 57542 | O26: 2124 | P26: 0 | Q26: 448979
B27: SANLAM LIFE ASSURANCE | C27: 5871824 | D27: 2683049 | E27: 2608614 | F27: 0 | G27: 876576 | H27: 876645 | I27: 0 | J27: 0 | K27: 0 | L27: 226138 | M27: 798250 | N27: 526577 | O27: 0 | P27: 455120 | Q27: 6650862
B28: STAR DISCOVER LIFE INSURANCE | C28: 0 | D28: 0 | E28: 0 | F28: 0 | G28: 0 | H28: 0 | I28: 0 | J28: 0 | K28: 0 | L28: 0 | M28: 0 | N28: 0 | O28: 0 | P28: 0 | Q28: 0
B29: THE KENYAN ALLIANCE INSURANCE | C29: 24712 | D29: 19331 | E29: 19331 | F29: 0 | G29: 8445 | H29: 11698 | I29: 0 | J29: 0 | K29: 0 | L29: 2952 | M29: 1338 | N29: 8065 | O29: 0 | P29: -2321 | Q29: 38441
B30: THE MONARCH INSURANCE | C30: 78408 | D30: 24091 | E30: 23964 | F30: 0 | G30: 9225 | H30: 0 | I30: 0 | J30: 0 | K30: 0 | L30: 2636 | M30: 10776 | N30: 1828 | O30: 0 | P30: 12380 | Q30: 78408
B31: TOTAL | C31: =SUM(C6:C30) -> 116104503 | D31: 35547858 | E31: 35267956 | F31: 401188 | G31: 17425124 | H31: 14349656 | I31: 3304371 | J31: 2459644 | K31: 0 | L31: 4709382 | M31: 7747091 | N31: 9459775 | O31: 111085 | P31: 1891472 | Q31: 126660721
B32: REINSURERS
B33: CONTINENTAL REINSURANCE | C33: 0 | D33: 158 | E33: 158 | F33: 0 | G33: 0 | H33: 0 | I33: 0 | J33: 0 | K33: 0 | L33: 90 | M33: 65 | N33: 1056 | O33: 0 | P33: 0 | Q33: 1058
B34: EAST AFRICA REINSURANCE | C34: 29189 | D34: 70627 | E34: 70627 | F34: 10976 | G34: 24378 | H34: 0 | I34: 0 | J34: 0 | K34: 0 | L34: 16022 | M34: 4307 | N34: 14613 | O34: 10596 | P34: 0 | Q34: 94480
B35: KENYA REINSURANCE CORPORATION | C35: 1592134 | D35: 224048 | E35: 214314 | F35: -13152 | G35: 156280 | H35: 156280 | I35: 0 | J35: 0 | K35: 0 | L35: 53480 | M35: 15596 | N35: 109534 | O35: 0 | P35: 0 | Q35: 1677474
B36: TOTAL | C36: =SUM(C33:C35) -> 1621323 | D36: =SUM(D33:D35) -> 294833 | E36: =SUM(E33:E35) -> 285099 | F36: -2176 | G36: 180658 | H36: 156280 | I36: 0 | J36: 0 | K36: 0 | L36: 69592 | M36: 19968 | N36: 125203 | O36: 10596 | P36: =SUM(P33:P35) -> 0 | Q36: =SUM(Q33:Q35) -> 1773012
B37: Amounts in Thousand Shillings

Sheet APPENDIX 10
B3: APPENDIX 10: SUMMARY OF ANNUITIES BUSINESS REVENUE ACCOUNTS FOR THE YEAR ENDED 31.12.2022
B4: Company | C4: Life Fund BF | D4: Gross Premium | E4: Net Premium | F4: Other (Fee) Income | G4: Total Benefits | H4: Claims | I4: Surrenders | J4: Bonuses Paid | K4: Annuities Paid | L4: Net Commisions | M4: Expense of Management | N4: Investment Income | O4: Investment Expenses | P4: Transfer To (From) P & L | Q4: Life Fund CF
B5: INSURERS
B6: ABSA LIFE ASSURANCE | C6: 0 | D6: 0 | E6: 0 | F6: 0 | G6: 0 | H6: 0 | I6: 0 | J6: 0 | K6: 0 | L6: 0 | M6: 0 | N6: 0 | O6: 0 | P6: 0 | Q6: 0
B7: APA LIFE ASSURANCE COMPANY | C7: 774174 | D7: 93022 | E7: 93022 | F7: 0 | G7: 94377 | H7: 94377 | I7: 0 | J7: 0 | K7: 0 | L7: 0 | M7: 6111 | N7: 86012 | O7: 4569 | P7: 0 | Q7: 848151
B8: BRITAM LIFE ASSURANCE | C8: 8442736 | D8: 3409804 | E8: 3409804 | F8: 0 | G8: 1405393 | H8: 0 | I8: 0 | J8: 0 | K8: 1425356 | L8: 69118 | M8: 52046 | N8: 889403 | O8: 14526 | P8: 29946 | Q8: 11150953
B9: CANNON LIFE ASSURANCE (K) LIMITED | C9: 14052 | D9: 0 | E9: 0 | F9: 0 | G9: 1697 | H9: 1697 | I9: 0 | J9: 0 | K9: 0 | L9: 0 | M9: 0 | N9: 2105 | O9: 0 | P9: 0 | Q9: 14460
B10: CAPEX LIFE ASSURANCE COMPANY | C10: 629664 | D10: 459634 | E10: 459634 | F10: 0 | G10: 188182 | H10: 6756 | I10: 0 | J10: 0 | K10: 182072 | L10: 2116 | M10: 14380 | N10: 7697 | O10: 0 | P10: 0 | Q10: 891670
B11: CIC LIFE ASSURANCE COMPANY | C11: 1617078 | D11: 167463 | E11: 167463 | F11: 0 | G11: 243627 | H11: 350051 | I11: 0 | J11: 0 | K11: 0 | L11: 3342 | M11: 18238 | N11: 179811 | O11: 0 | P11: 0 | Q11: 1592721
B12: CORPORATE INSURANCE COMPANY | C12: 0 | D12: 0 | E12: 0 | F12: 0 | G12: 0 | H12: 0 | I12: 0 | J12: 0 | K12: 0 | L12: 0 | M12: 0 | N12: 0 | O12: 0 | P12: 0 | Q12: 0
B13: EQUITY LIFE ASSURANCE | C13: 0 | D13: 0 | E13: 0 | F13: 0 | G13: 0 | H13: 0 | I13: 0 | J13: 0 | K13: 0 | L13: 0 | M13: 0 | N13: 0 | O13: 0 | P13: 0 | Q13: 0
B14: GA LIFE ASSURANCE COMPANY | C14: 0 | D14: 0 | E14: 0 | F14: 0 | G14: 0 | H14: 0 | I14: 0 | J14: 0 | K14: 0 | L14: 0 | M14: 0 | N14: 0 | O14: 0 | P14: 0 | Q14: 0
B15: GEMINIA LIFE INSURANCE COMPANY | C15: 0 | D15: 0 | E15: 0 | F15: 0 | G15: 0 | H15: 0 | I15: 0 | J15: 0 | K15: 0 | L15: 0 | M15: 0 | N15: 0 | O15: 0 | P15: 0 | Q15: 0
B16: ICEA LION LIFE ASSURANCE | C16: 15253296 | D16: 1977386 | E16: 1977386 | F16: 0 | G16: 49645 | H16: 49645 | I16: 0 | J16: 0 | K16: 1746722 | L16: 34993 | M16: 31101 | N16: 1344205 | O16: 0 | P16: 432000 | Q16: 16280427
B17: JUBILEE INSURANCE COMPANY | C17: 11179467 | D17: 1250509 | E17: 1250509 | F17: 0 | G17: 1383626 | H17: 0 | I17: 0 | J17: 0 | K17: 1383626 | L17: 19005 | M17: 32108 | N17: 789973 | O17: 12515 | P17: -70472 | Q17: 11843167
B18: KENINDIA ASSURANCE COMPANY | C18: 3200114 | D18: 433900 | E18: 433900 | F18: 0 | G18: 413158 | H18: 122609 | I18: 0 | J18: 0 | K18: 290549 | L18: 8918 | M18: 667 | N18: 489104 | O18: 0 | P18: 0 | Q18: 3700376
B19: KENYA ORIENT LIFE ASSURANCE | C19: 724090 | D19: 205503 | E19: 205503 | F19: 0 | G19: 126788 | H19: 0 | I19: 0 | J19: 0 | K19: 126788 | L19: 7767 | M19: 8900 | N19: 92409 | O19: 0 | P19: 0 | Q19: 878548
B20: KUSCCO MUTUAL ASSURANCE LIMITED | C20: 0 | D20: 0 | E20: 0 | F20: 0 | G20: 0 | H20: 0 | I20: 0 | J20: 0 | K20: 0 | L20: 0 | M20: 0 | N20: 0 | O20: 0 | P20: 0 | Q20: 0
B21: LIBERTY LIFE ASSURANCE COMPANY | C21: 627470 | D21: 196454 | E21: 196454 | F21: 0 | G21: 106528 | H21: 106528 | I21: 0 | J21: 0 | K21: 0 | L21: 3908 | M21: 927 | N21: 21149 | O21: 0 | P21: 0 | Q21: 733710
B22: MADISON INSURANCE COMPANY | C22: 7487524 | D22: 0 | E22: 0 | F22: 0 | G22: 1098475 | H22: 15768 | I22: 0 | J22: 0 | K22: 1082708 | L22: 0 | M22: 27646 | N22: 434214 | O22: 0 | P22: 0 | Q22: 6795616
B23: OLD MUTUAL ASSURANCE | C23: -3681 | D23: 0 | E23: 0 | F23: 0 | G23: 1166 | H23: 0 | I23: 0 | J23: 0 | K23: 1166 | L23: 0 | M23: 0 | N23: 41 | O23: 4 | P23: 0 | Q23: -4809
B24: OLD MUTUAL LIFE ASSURANCE | C24: 890254 | D24: 0 | E24: 0 | F24: 0 | G24: 156290 | H24: 0 | I24: 0 | J24: 0 | K24: 156290 | L24: 0 | M24: 0 | N24: 104185 | O24: 0 | P24: 0 | Q24: 838148
B25: PIONEER ASSURANCE COMPANY | C25: 302575 | D25: 11690 | E25: 11690 | F25: 0 | G25: 43215 | H25: 43215 | I25: 0 | J25: 0 | K25: 0 | L25: 321 | M25: 5090 | N25: 59084 | O25: 0 | P25: 0 | Q25: 324722
B26: PRUDENTIAL LIFE ASSURANCE | C26: 0 | D26: 0 | E26: 0 | F26: 0 | G26: 0 | H26: 0 | I26: 0 | J26: 0 | K26: 0 | L26: 0 | M26: 0 | N26: 0 | O26: 0 | P26: 0 | Q26: 0
B27: SANLAM LIFE ASSURANCE | C27: 13894296 | D27: 1775418 | E27: 1757279 | F27: 0 | G27: 1680546 | H27: 0 | I27: 0 | J27: 0 | K27: 1680546 | L27: 44189 | M27: 16011 | N27: 1218052 | O27: 0 | P27: 0 | Q27: 15128881
B28: STAR DISCOVER LIFE INSURANCE | C28: 0 | D28: 0 | E28: 0 | F28: 0 | G28: 0 | H28: 0 | I28: 0 | J28: 0 | K28: 0 | L28: 0 | M28: 0 | N28: 0 | O28: 0 | P28: 0 | Q28: 0
B29: THE KENYAN ALLIANCE INSURANCE | C29: 909156 | D29: 55605 | E29: 55605 | F29: 0 | G29: 134791 | H29: 27518 | I29: 0 | J29: 0 | K29: 0 | L29: 964 | M29: 3267 | N29: 23199 | O29: 0 | P29: -92180 | Q29: 1048392
B30: THE MONARCH INSURANCE | C30: 0 | D30: 0 | E30: 0 | F30: 0 | G30: 0 | H30: 0 | I30: 0 | J30: 0 | K30: 0 | L30: 0 | M30: 0 | N30: 0 | O30: 0 | P30: 0 | Q30: 0
B31: TOTAL | C31: =SUM(C6:C30) -> 65942265 | D31: 10036388 | E31: 10018249 | F31: 0 | G31: 7127504 | H31: 818164 | I31: 0 | J31: 0 | K31: 8075823 | L31: 194641 | M31: 216492 | N31: 5740643 | O31: 31614 | P31: 299294 | Q31: 72065133
B32: REINSURERS
B33: CONTINENTAL REINSURANCE | C33: 0 | D33: 0 | E33: 0 | F33: 0 | G33: 0 | H33: 0 | I33: 0 | J33: 0 | K33: 0 | L33: 0 | M33: 0 | N33: 0 | O33: 0 | P33: 0 | Q33: 0
B34: EAST AFRICA REINSURANCE | C34: 0 | D34: 0 | E34: 0 | F34: 0 | G34: 0 | H34: 0 | I34: 0 | J34: 0 | K34: 0 | L34: 0 | M34: 0 | N34: 0 | O34: 0 | P34: 0 | Q34: 0
B35: KENYA REINSURANCE CORPORATION | C35: 0 | D35: 0 | E35: 0 | F35: 0 | G35: 0 | H35: 0 | I35: 0 | J35: 0 | K35: 0 | L35: 0 | M35: 0 | N35: 0 | O35: 0 | P35: 0 | Q35: 0
B36: TOTAL | C36: =SUM(C33:C35) -> 0 | D36: =SUM(D33:D35) -> 0 | E36: 0 | F36: 0 | G36: 0 | H36: 0 | I36: 0 | J36: 0 | K36: 0 | L36: 0 | M36: 0 | N36: 0 | O36: 0 | P36: 0 | Q36: 0
B37: Amounts in Thousand Shillings

Sheet APPENDIX 11
B3: APPENDIX 11: SUMMARY OF GROUP LIFE BUSINESS REVENUE ACCOUNTS FOR THE YEAR ENDED 31.12.2022
B4: Company | C4: Life Fund BF | D4: Gross Premium | E4: Net Premium | F4: Other (Fee) Income | G4: Total Benefits | H4: Claims | I4: Surrenders | J4: Bonuses Paid | K4: Annuities Paid | L4: Net Commisions | M4: Expense of Management | N4: Investment Income | O4: Investment Expenses | P4: Transfer To (From) P & L | Q4: Life Fund CF
B5: INSURERS
B6: ABSA LIFE ASSURANCE | C6: 300437 | D6: 2151596 | E6: 828090 | F6: 0 | G6: 2327600 | H6: 798925 | I6: 0 | J6: 0 | K6: 0 | L6: 87471 | M6: 202665 | N6: 220744 | O6: 0 | P6: 0 | Q6: 260210
B7: APA LIFE ASSURANCE COMPANY | C7: -171926 | D7: 1513917 | E7: 879292 | F7: 0 | G7: 437651 | H7: 537395 | I7: 0 | J7: 0 | K7: 0 | L7: 126363 | M7: 141447 | N7: 60064 | O7: 3191 | P7: 24015 | Q7: -64981
B8: BRITAM LIFE ASSURANCE | C8: 2323142 | D8: 1136916 | E8: 481174 | F8: 0 | G8: 424949 | H8: 364878 | I8: 0 | J8: 0 | K8: 0 | L8: -72084 | M8: 492426 | N8: 181836 | O8: -771 | P8: 369947 | Q8: 1831756
B9: CANNON LIFE ASSURANCE (K) LIMITED | C9: 146821 | D9: 313772 | E9: 117154 | F9: 0 | G9: 68023 | H9: 68023 | I9: 0 | J9: 0 | K9: 0 | L9: -5900 | M9: 184488 | N9: 76852 | O9: 0 | P9: -13297 | Q9: 107512
B10: CAPEX LIFE ASSURANCE COMPANY | C10: -9975 | D10: 514224 | E10: 327592 | F10: 0 | G10: 146409 | H10: 181386 | I10: 0 | J10: 0 | K10: 0 | L10: -760 | M10: 134960 | N10: 87 | O10: 0 | P10: 0 | Q10: 2118
B11: CIC LIFE ASSURANCE COMPANY | C11: 811268 | D11: 1306977 | E11: 942976 | F11: 0 | G11: 328505 | H11: 551714 | I11: 0 | J11: 0 | K11: 0 | L11: -17846 | M11: 310666 | N11: 107644 | O11: 0 | P11: 0 | Q11: 1017354
B12: CORPORATE INSURANCE COMPANY | C12: 31159 | D12: 0 | E12: 0 | F12: 0 | G12: 0 | H12: 0 | I12: 0 | J12: 0 | K12: 0 | L12: 0 | M12: 0 | N12: 0 | O12: 0 | P12: 0 | Q12: 31159
B13: EQUITY LIFE ASSURANCE | C13: 0 | D13: 341407 | E13: 112385 | F13: 65676 | G13: 20414 | H13: 29697 | I13: 0 | J13: 0 | K13: 0 | L13: 27258 | M13: 24574 | N13: 4956 | O13: 0 | P13: 62264 | Q13: 39224
B14: GA LIFE ASSURANCE COMPANY | C14: 8631 | D14: 66773 | E14: 4677 | F14: 0 | G14: 1500 | H14: 2919 | I14: 0 | J14: 0 | K14: 0 | L14: -20796 | M14: 13064 | N14: 1783 | O14: 0 | P14: 4528 | Q14: 15376
B15: GEMINIA LIFE INSURANCE COMPANY | C15: 431905 | D15: 974110 | E15: 393140 | F15: 165438 | G15: 156983 | H15: 451908 | I15: 0 | J15: 0 | K15: 0 | L15: -45172 | M15: 210260 | N15: 19908 | O15: 0 | P15: -203948 | Q15: 597343
B16: ICEA LION LIFE ASSURANCE | C16: 217786 | D16: 417286 | E16: 199214 | F16: 60279 | G16: 161943 | H16: 139863 | I16: 0 | J16: 0 | K16: 0 | L16: 25109 | M16: 106405 | N16: 14755 | O16: 0 | P16: 36000 | Q16: 184657
B17: JUBILEE INSURANCE COMPANY | C17: 352287 | D17: 1307065 | E17: 750892 | F17: 0 | G17: 396110 | H17: 300440 | I17: 0 | J17: 0 | K17: 0 | L17: -4163 | M17: 196024 | N17: 143791 | O17: 1229 | P17: 332040 | Q17: 421399
B18: KENINDIA ASSURANCE COMPANY | C18: 68621 | D18: 42303 | E18: 16760 | F18: 0 | G18: 7509 | H18: 7570 | I18: 0 | J18: 0 | K18: 0 | L18: 2205 | M18: 3546 | N18: 12581 | O18: 0 | P18: 0 | Q18: 84641
B19: KENYA ORIENT LIFE ASSURANCE | C19: 122065 | D19: 172674 | E19: 139870 | F19: 0 | G19: 84308 | H19: 84308 | I19: 0 | J19: 0 | K19: 0 | L19: 15495 | M19: 22183 | N19: 12206 | O19: 0 | P19: 0 | Q19: 152156
B20: KUSCCO MUTUAL ASSURANCE LIMITED | C20: 746 | D20: 8492 | E20: 2294 | F20: 0 | G20: 4266 | H20: 0 | I20: 0 | J20: 0 | K20: 0 | L20: 1245 | M20: 1478 | N20: 151 | O20: 0 | P20: 0 | Q20: 468
B21: LIBERTY LIFE ASSURANCE COMPANY | C21: 67827 | D21: 664907 | E21: 575486 | F21: -13817 | G21: 629735 | H21: 401240 | I21: 0 | J21: 0 | K21: 0 | L21: 22884 | M21: 157403 | N21: 53296 | O21: 0 | P21: 0 | Q21: 101265
B22: MADISON INSURANCE COMPANY | C22: -47648 | D22: 492041 | E22: 307409 | F22: 0 | G22: 249006 | H22: 249006 | I22: 0 | J22: 0 | K22: 0 | L22: 5305 | M22: 77641 | N22: 3941 | O22: 0 | P22: 0 | Q22: -68250
B23: OLD MUTUAL ASSURANCE | C23: 358038 | D23: 101225 | E23: 95392 | F23: 0 | G23: 168653 | H23: 205640 | I23: 0 | J23: 0 | K23: 0 | L23: 15170 | M23: 31153 | N23: 18795 | O23: 990 | P23: 80066 | Q23: 139205
B24: OLD MUTUAL LIFE ASSURANCE | C24: 1387060 | D24: 1373408 | E24: 561878 | F24: 0 | G24: 634058 | H24: 462145 | I24: 0 | J24: 0 | K24: 0 | L24: 33692 | M24: 369343 | N24: 76475 | O24: 0 | P24: 0 | Q24: 1160232
B25: PIONEER ASSURANCE COMPANY | C25: 1599325 | D25: 1946410 | E25: 1259950 | F25: 0 | G25: 1317136 | H25: 1251854 | I25: 0 | J25: 0 | K25: 0 | L25: 93934 | M25: 279938 | N25: 43167 | O25: 0 | P25: 436715 | Q25: 840001
B26: PRUDENTIAL LIFE ASSURANCE | C26: 65673 | D26: 739510 | E26: 533499 | F26: 50308 | G26: 297269 | H26: 297269 | I26: 0 | J26: 0 | K26: 0 | L26: 41146 | M26: 198632 | N26: 19181 | O26: 1062 | P26: 0 | Q26: 130552
B27: SANLAM LIFE ASSURANCE | C27: 182047 | D27: 1006051 | E27: 427096 | F27: 0 | G27: 336595 | H27: 372554 | I27: 0 | J27: 0 | K27: 0 | L27: -14588 | M27: 169706 | N27: 87765 | O27: 0 | P27: 0 | Q27: 169235
B28: STAR DISCOVER LIFE INSURANCE | C28: 0 | D28: 0 | E28: 0 | F28: 0 | G28: 0 | H28: 0 | I28: 0 | J28: 0 | K28: 0 | L28: 0 | M28: 0 | N28: 0 | O28: 0 | P28: 0 | Q28: 0
B29: THE KENYAN ALLIANCE INSURANCE | C29: 119088 | D29: 105903 | E29: 17571 | F29: 0 | G29: 191008 | H29: 341045 | I29: 0 | J29: 0 | K29: 0 | L29: -3314 | M29: 42177 | N29: 44184 | O29: 0 | P29: -305140 | Q29: 106075
B30: THE MONARCH INSURANCE | C30: -29767 | D30: 88184 | E30: 46820 | F30: 0 | G30: 69915 | H30: 28291 | I30: 0 | J30: 0 | K30: 0 | L30: -3870 | M30: 28627 | N30: 6691 | O30: 0 | P30: 0 | Q30: -29303
B31: TOTAL | C31: =SUM(C6:C30) -> 8334610 | D31: 16785151 | E31: 9020611 | F31: 327884 | G31: 8459545 | H31: 7128070 | I31: 0 | J31: 0 | K31: 0 | L31: 308784 | M31: 3398806 | N31: 1210853 | O31: 5701 | P31: 823190 | Q31: 7229404
B32: REINSURERS
B33: CONTINENTAL REINSURANCE | C33: 0 | D33: 16737 | E33: 16787 | F33: 0 | G33: 95658 | H33: -26406 | I33: 0 | J33: 0 | K33: 0 | L33: 10319 | M33: 6917 | N33: 112131 | O33: 0 | P33: 0 | Q33: 138089
B34: EAST AFRICA REINSURANCE | C34: 310116 | D34: 750383 | E34: 524866 | F34: 116617 | G34: 650365 | H34: 231227 | I34: 0 | J34: 0 | K34: 0 | L34: 169704 | M34: 43551 | N34: 155256 | O34: 112573 | P34: 0 | Q34: 549799
B35: KENYA REINSURANCE CORPORATION | C35: 9523757 | D35: 2016431 | E35: 1928827 | F35: -118371 | G35: 1406517 | H35: 1406517 | I35: 0 | J35: 0 | K35: 0 | L35: 481317 | M35: 140365 | N35: 985806 | O35: 0 | P35: 0 | Q35: 10291819
B36: TOTAL | C36: =SUM(C33:C35) -> 9833873 | D36: =SUM(D33:D35) -> 2783551 | E36: 2470480 | F36: -1754 | G36: 2152540 | H36: 1611338 | I36: 0 | J36: 0 | K36: 0 | L36: 661340 | M36: 190833 | N36: 1253193 | O36: 112573 | P36: 0 | Q36: 10979707
B37: Amounts in Thousand Shillings

Sheet APPENDIX 12
B3: APPENDIX 12: SUMMARY OF PERSONAL PENSIONS BUSINESS REVENUE ACCOUNTS FOR THE YEAR ENDED 31.12.2022
B4: Company | C4: Life Fund BF | D4: Gross Premium | E4: Net Premium | F4: Other (Fee) Income | G4: Total Benefits | H4: Claims | I4: Surrenders | J4: Bonuses Paid | K4: Annuities Paid | L4: Net Commisions | M4: Expense of Management | N4: Investment Income | O4: Investment Expenses | P4: Transfer To (From) P & L | Q4: Life Fund CF
B5: INSURERS
B6: ABSA LIFE ASSURANCE | C6: 0 | D6: 0 | E6: 0 | F6: 0 | G6: 0 | H6: 0 | I6: 0 | J6: 0 | K6: 0 | L6: 0 | M6: 0 | N6: 0 | O6: 0 | P6: 0 | Q6: 0
B7: APA LIFE ASSURANCE COMPANY | C7: 233272 | D7: 122043 | E7: 122043 | F7: 0 | G7: 34676 | H7: 34676 | I7: 0 | J7: 0 | K7: 0 | L7: 0 | M7: 0 | N7: 0 | O7: 0 | P7: 0 | Q7: 320638
B8: BRITAM LIFE ASSURANCE | C8: 0 | D8: 0 | E8: 0 | F8: 0 | G8: 0 | H8: 0 | I8: 0 | J8: 0 | K8: 0 | L8: 0 | M8: 0 | N8: 0 | O8: 0 | P8: 0 | Q8: 0
B9: CANNON LIFE ASSURANCE (K) LIMITED | C9: 0 | D9: 0 | E9: 0 | F9: 0 | G9: 0 | H9: 0 | I9: 0 | J9: 0 | K9: 0 | L9: 0 | M9: 0 | N9: 0 | O9: 0 | P9: 0 | Q9: 0
B10: CAPEX LIFE ASSURANCE COMPANY | C10: 0 | D10: 0 | E10: 0 | F10: 0 | G10: 0 | H10: 0 | I10: 0 | J10: 0 | K10: 0 | L10: 0 | M10: 0 | N10: 0 | O10: 0 | P10: 0 | Q10: 0
B11: CIC LIFE ASSURANCE COMPANY | C11: 0 | D11: 0 | E11: 0 | F11: 0 | G11: 0 | H11: 0 | I11: 0 | J11: 0 | K11: 0 | L11: 0 | M11: 0 | N11: 0 | O11: 0 | P11: 0 | Q11: 0
B12: CORPORATE INSURANCE COMPANY | C12: 0 | D12: 0 | E12: 0 | F12: 0 | G12: 0 | H12: 0 | I12: 0 | J12: 0 | K12: 0 | L12: 0 | M12: 0 | N12: 0 | O12: 0 | P12: 0 | Q12: 0
B13: EQUITY LIFE ASSURANCE | C13: 0 | D13: 0 | E13: 0 | F13: 0 | G13: 0 | H13: 0 | I13: 0 | J13: 0 | K13: 0 | L13: 0 | M13: 0 | N13: 0 | O13: 0 | P13: 0 | Q13: 0
B14: GA LIFE ASSURANCE COMPANY | C14: 0 | D14: 0 | E14: 0 | F14: 0 | G14: 0 | H14: 0 | I14: 0 | J14: 0 | K14: 0 | L14: 0 | M14: 0 | N14: 0 | O14: 0 | P14: 0 | Q14: 0
B15: GEMINIA LIFE INSURANCE COMPANY | C15: 0 | D15: 0 | E15: 0 | F15: 0 | G15: 0 | H15: 0 | I15: 0 | J15: 0 | K15: 0 | L15: 0 | M15: 0 | N15: 0 | O15: 0 | P15: 0 | Q15: 0
B16: ICEA LION LIFE ASSURANCE | C16: 27601942 | D16: 5729184 | E16: 5729184 | F16: 0 | G16: 0 | H16: 2762302 | I16: 0 | J16: 0 | K16: 0 | L16: 70366 | M16: 196513 | N16: 2746660 | O16: 0 | P16: 0 | Q16: 33048605
B17: JUBILEE INSURANCE COMPANY | C17: 6439529 | D17: 1510536 | E17: 1510536 | F17: 0 | G17: 1065870 | H17: 0 | I17: 0 | J17: 0 | K17: 0 | L17: 15653 | M17: 49597 | N17: 244835 | O17: 2514 | P17: 0 | Q17: 8127137
B18: KENINDIA ASSURANCE COMPANY | C18: 0 | D18: 0 | E18: 0 | F18: 0 | G18: 0 | H18: 0 | I18: 0 | J18: 0 | K18: 0 | L18: 0 | M18: 0 | N18: 0 | O18: 0 | P18: 0 | Q18: 0
B19: KENYA ORIENT LIFE ASSURANCE | C19: 0 | D19: 0 | E19: 0 | F19: 0 | G19: 0 | H19: 0 | I19: 0 | J19: 0 | K19: 0 | L19: 0 | M19: 0 | N19: 0 | O19: 0 | P19: 0 | Q19: 0
B20: KUSCCO MUTUAL ASSURANCE LIMITED | C20: 0 | D20: 0 | E20: 0 | F20: 0 | G20: 0 | H20: 0 | I20: 0 | J20: 0 | K20: 0 | L20: 0 | M20: 0 | N20: 0 | O20: 0 | P20: 0 | Q20: 0
B21: LIBERTY LIFE ASSURANCE COMPANY | C21: -7097 | D21: 0 | E21: 0 | F21: 0 | G21: 0 | H21: 0 | I21: 0 | J21: 0 | K21: 0 | L21: 0 | M21: 0 | N21: 0 | O21: 0 | P21: 0 | Q21: -7097
B22: MADISON INSURANCE COMPANY | C22: 989244 | D22: 214417 | E22: 214417 | F22: 0 | G22: 0 | H22: 0 | I22: 0 | J22: 0 | K22: 0 | L22: 1653 | M22: 32930 | N22: 72337 | O22: 0 | P22: 0 | Q22: 1241415
B23: OLD MUTUAL ASSURANCE | C23: 0 | D23: 0 | E23: 0 | F23: 0 | G23: 0 | H23: 0 | I23: 0 | J23: 0 | K23: 0 | L23: 0 | M23: 0 | N23: 0 | O23: 0 | P23: 0 | Q23: 0
B24: OLD MUTUAL LIFE ASSURANCE | C24: -896505 | D24: 0 | E24: 0 | F24: 0 | G24: 0 | H24: -265329 | I24: 0 | J24: 0 | K24: 0 | L24: 0 | M24: 0 | N24: 0 | O24: 0 | P24: 0 | Q24: -631175
B25: PIONEER ASSURANCE COMPANY | C25: 0 | D25: 0 | E25: 0 | F25: 0 | G25: 0 | H25: 0 | I25: 0 | J25: 0 | K25: 0 | L25: 0 | M25: 0 | N25: 0 | O25: 0 | P25: 0 | Q25: 0
B26: PRUDENTIAL LIFE ASSURANCE | C26: 0 | D26: 0 | E26: 0 | F26: 0 | G26: 0 | H26: 0 | I26: 0 | J26: 0 | K26: 0 | L26: 0 | M26: 0 | N26: 0 | O26: 0 | P26: 0 | Q26: 0
B27: SANLAM LIFE ASSURANCE | C27: 0 | D27: 0 | E27: 0 | F27: 0 | G27: 0 | H27: 0 | I27: 0 | J27: 0 | K27: 0 | L27: 0 | M27: 0 | N27: 0 | O27: 0 | P27: 0 | Q27: 0
B28: STAR DISCOVER LIFE INSURANCE | C28: 0 | D28: 0 | E28: 0 | F28: 0 | G28: 0 | H28: 0 | I28: 0 | J28: 0 | K28: 0 | L28: 0 | M28: 0 | N28: 0 | O28: 0 | P28: 0 | Q28: 0
B29: THE KENYAN ALLIANCE INSURANCE | C29: 794678 | D29: 535790 | E29: 535790 | F29: 0 | G29: 146341 | H29: 212912 | I29: 0 | J29: 0 | K29: 0 | L29: 9640 | M29: 39091 | N29: 223539 | O29: 0 | P29: 0 | Q29: 1292364
B30: THE MONARCH INSURANCE | C30: 1144 | D30: 0 | E30: 0 | F30: 0 | G30: 0 | H30: 0 | I30: 0 | J30: 0 | K30: 0 | L30: 0 | M30: 2178 | N30: 6893 | O30: 0 | P30: 4715 | Q30: 1144
B31: TOTAL | C31: =SUM(C6:C30) -> 35156207 | D31: 8111970 | E31: 8111970 | F31: 0 | G31: 1246887 | H31: 2744561 | I31: 0 | J31: 0 | K31: 0 | L31: 97312 | M31: 320309 | N31: 3294264 | O31: 2514 | P31: 4715 | Q31: 43393031
B32: REINSURERS
B33: CONTINENTAL REINSURANCE | C33: 0 | D33: 0 | E33: 0 | F33: 0 | G33: 0 | H33: 0 | I33: 0 | J33: 0 | K33: 0 | L33: 0 | M33: 0 | N33: 0 | O33: 0 | P33: 0 | Q33: 0
B34: EAST AFRICA REINSURANCE | C34: 0 | D34: 0 | E34: 0 | F34: 0 | G34: 0 | H34: 0 | I34: 0 | J34: 0 | K34: 0 | L34: 0 | M34: 0 | N34: 0 | O34: 0 | P34: 0 | Q34: 0
B35: KENYA REINSURANCE CORPORATION | C35: 0 | D35: 0 | E35: 0 | F35: 0 | G35: 0 | H35: 0 | I35: 0 | J35: 0 | K35: 0 | L35: 0 | M35: 0 | N35: 0 | O35: 0 | P35: 0 | Q35: 0
B36: TOTAL | C36: =SUM(C33:C35) -> 0 | D36: =SUM(D33:D35) -> 0 | E36: 0 | F36: 0 | G36: 0 | H36: 0 | I36: 0 | J36: 0 | K36: 0 | L36: 0 | M36: 0 | N36: 0 | O36: 0 | P36: 0 | Q36: 0
B37: Amounts in Thousand Shillings

Sheet APPENDIX 13
B3: APPENDIX 13: SUMMARY OF DEPOSIT ADMINISTRATION BUSINESS REVENUE ACCOUNTS FOR THE YEAR ENDED 31.12.2022
B4: Company | C4: Life Fund BF | D4: Gross Premium | E4: Net Premium | F4: Other (Fee) Income | G4: Total Benefits | H4: Claims | I4: Surrenders | J4: Bonuses Paid | K4: Annuities Paid | L4: Net Commisions | M4: Expense of Management | N4: Investment Income | O4: Investment Expenses | P4: Transfer To (From) P & L | Q4: Life Fund CF
B5: INSURERS
B6: ABSA LIFE ASSURANCE | C6: 0 | D6: 0 | E6: 0 | F6: 0 | G6: 0 | H6: 0 | I6: 0 | J6: 0 | K6: 0 | L6: 0 | M6: 0 | N6: 0 | O6: 0 | P6: 0 | Q6: 0
B7: APA LIFE ASSURANCE COMPANY | C7: 5132269 | D7: 1581343 | E7: 1581343 | F7: 0 | G7: 528582 | H7: 528582 | I7: 0 | J7: 0 | K7: 0 | L7: 35408 | M7: 53065 | N7: 606314 | O7: 20271 | P7: -55000 | Q7: 6737600
B8: BRITAM LIFE ASSURANCE | C8: 53429233 | D8: 12343916 | E8: 12343916 | F8: 0 | G8: 11672035 | H8: 11672035 | I8: 0 | J8: 0 | K8: 0 | L8: 87423 | M8: 707515 | N8: 4003345 | O8: 45077 | P8: -271286 | Q8: 57535728
B9: CANNON LIFE ASSURANCE (K) LIMITED | C9: 0 | D9: 0 | E9: 0 | F9: 0 | G9: 0 | H9: 0 | I9: 0 | J9: 0 | K9: 0 | L9: 0 | M9: 0 | N9: 0 | O9: 0 | P9: 0 | Q9: 0
B10: CAPEX LIFE ASSURANCE COMPANY | C10: 0 | D10: 0 | E10: 0 | F10: 0 | G10: 0 | H10: 0 | I10: 0 | J10: 0 | K10: 0 | L10: 0 | M10: 0 | N10: 0 | O10: 0 | P10: 0 | Q10: 0
B11: CIC LIFE ASSURANCE COMPANY | C11: 5301315 | D11: 1641410 | E11: 1641410 | F11: 0 | G11: 652007 | H11: 0 | I11: 0 | J11: 0 | K11: 0 | L11: 25883 | M11: 36527 | N11: 75004 | O11: 0 | P11: 0 | Q11: 6955319
B12: CORPORATE INSURANCE COMPANY | C12: 0 | D12: 0 | E12: 0 | F12: 0 | G12: 0 | H12: 0 | I12: 0 | J12: 0 | K12: 0 | L12: 0 | M12: 0 | N12: 0 | O12: 0 | P12: 0 | Q12: 0
B13: EQUITY LIFE ASSURANCE | C13: 0 | D13: 378398 | E13: 378398 | F13: 0 | G13: 0 | H13: 0 | I13: 0 | J13: 0 | K13: 0 | L13: 3784 | M13: 1667 | N13: 35882 | O13: 0 | P13: 15085 | Q13: 393745
B14: GA LIFE ASSURANCE COMPANY | C14: 18138892 | D14: 6499895 | E14: 6499895 | F14: 0 | G14: 1689558 | H14: 1689558 | I14: 0 | J14: 0 | K14: 0 | L14: 51904 | M14: 88733 | N14: 2609847 | O14: 0 | P14: 112196 | Q14: 25306243
B15: GEMINIA LIFE INSURANCE COMPANY | C15: -6907 | D15: 0 | E15: 0 | F15: 12464 | G15: 0 | H15: 0 | I15: 0 | J15: 0 | K15: 0 | L15: 457 | M15: 5729 | N15: 60999 | O15: 42350 | P15: 12464 | Q15: 5557
B16: ICEA LION LIFE ASSURANCE | C16: 54070437 | D16: 7587197 | E16: 7587197 | F16: 0 | G16: 0 | H16: 4787657 | I16: 0 | J16: 0 | K16: 0 | L16: 145106 | M16: 325589 | N16: 4515987 | O16: 0 | P16: 480000 | Q16: 60435268
B17: JUBILEE INSURANCE COMPANY | C17: 58120837 | D17: 9610380 | E17: 9610380 | F17: 0 | G17: 5923280 | H17: 6989150 | I17: 0 | J17: 0 | K17: 0 | L17: 145145 | M17: 304099 | N17: 7854870 | O17: 75466 | P17: 699860 | Q17: 67372368
B18: KENINDIA ASSURANCE COMPANY | C18: 36603770 | D18: 5987750 | E18: 5987750 | F18: 0 | G18: 3578851 | H18: 3578919 | I18: 0 | J18: 0 | K18: 0 | L18: 84208 | M18: 236244 | N18: 4675808 | O18: 0 | P18: 50000 | Q18: 43317958
B19: KENYA ORIENT LIFE ASSURANCE | C19: 1018540 | D19: 253035 | E19: 253035 | F19: 0 | G19: 139081 | H19: 139081 | I19: 0 | J19: 0 | K19: 0 | L19: 0 | M19: 8463 | N19: 127709 | O19: 0 | P19: 0 | Q19: 1251741
B20: KUSCCO MUTUAL ASSURANCE LIMITED | C20: 0 | D20: 0 | E20: 0 | F20: 0 | G20: 0 | H20: 0 | I20: 0 | J20: 0 | K20: 0 | L20: 0 | M20: 0 | N20: 0 | O20: 0 | P20: 0 | Q20: 0
B21: LIBERTY LIFE ASSURANCE COMPANY | C21: 9005551 | D21: 1300903 | E21: 1300903 | F21: 0 | G21: 1306762 | H21: 1306762 | I21: 0 | J21: 0 | K21: 0 | L21: 15736 | M21: 394243 | N21: 388307 | O21: 0 | P21: 0 | Q21: 8978020
B22: MADISON INSURANCE COMPANY | C22: 2519615 | D22: 460930 | E22: 460930 | F22: 0 | G22: 358182 | H22: 358182 | I22: 0 | J22: 0 | K22: 0 | L22: 3971 | M22: 56552 | N22: 183454 | O22: 0 | P22: 0 | Q22: 2745294
B23: OLD MUTUAL ASSURANCE | C23: 0 | D23: 0 | E23: 0 | F23: 0 | G23: 0 | H23: 0 | I23: 0 | J23: 0 | K23: 0 | L23: 0 | M23: 0 | N23: 0 | O23: 0 | P23: 0 | Q23: 0
B24: OLD MUTUAL LIFE ASSURANCE | C24: 6638068 | D24: 647863 | E24: 647863 | F24: 0 | G24: 608967 | H24: 874296 | I24: 0 | J24: 0 | K24: 0 | L24: 1991 | M24: 0 | N24: 434116 | O24: 0 | P24: 0 | Q24: 6843761
B25: PIONEER ASSURANCE COMPANY | C25: 1303029 | D25: 299562 | E25: 299562 | F25: 0 | G25: 154559 | H25: 154559 | I25: 0 | J25: 0 | K25: 0 | L25: 0 | M25: 0 | N25: 0 | O25: 0 | P25: 0 | Q25: 1448031
B26: PRUDENTIAL LIFE ASSURANCE | C26: 240719 | D26: 411322 | E26: 411322 | F26: 0 | G26: 26465 | H26: 26465 | I26: 0 | J26: 0 | K26: 0 | L26: 0 | M26: 18687 | N26: 51532 | O26: 2022 | P26: 0 | Q26: 656399
B27: SANLAM LIFE ASSURANCE | C27: 2592276 | D27: 1454753 | E27: 1454753 | F27: 0 | G27: 690533 | H27: 690533 | I27: 0 | J27: 0 | K27: 0 | L27: 25606 | M27: 28788 | N27: 65990 | O27: 0 | P27: 0 | Q27: 3368093
B28: STAR DISCOVER LIFE INSURANCE | C28: 0 | D28: 0 | E28: 0 | F28: 0 | G28: 0 | H28: 0 | I28: 0 | J28: 0 | K28: 0 | L28: 0 | M28: 0 | N28: 0 | O28: 0 | P28: 0 | Q28: 0
B29: THE KENYAN ALLIANCE INSURANCE | C29: 1903136 | D29: 495861 | E29: 495861 | F29: 0 | G29: 214719 | H29: 193022 | I29: 0 | J29: 0 | K29: 0 | L29: 1915 | M29: 36178 | N29: 206880 | O29: 0 | P29: 497762 | Q29: 1876999
B30: THE MONARCH INSURANCE | C30: 0 | D30: 0 | E30: 0 | F30: 0 | G30: 0 | H30: 0 | I30: 0 | J30: 0 | K30: 0 | L30: 0 | M30: 0 | N30: 0 | O30: 0 | P30: 0 | Q30: 0
B31: TOTAL | C31: =SUM(C6:C30) -> 256010780 | D31: 50954518 | E31: 50954518 | F31: 12464 | G31: 27543581 | H31: 32988801 | I31: 0 | J31: 0 | K31: 0 | L31: 628537 | M31: 2302079 | N31: 25896044 | O31: 185186 | P31: 1541081 | Q31: 295228124
B32: REINSURERS
B33: CONTINENTAL REINSURANCE | C33: 0 | D33: 0 | E33: 0 | F33: 0 | G33: 0 | H33: 0 | I33: 0 | J33: 0 | K33: 0 | L33: 0 | M33: 0 | N33: 0 | O33: 0 | P33: 0 | Q33: 0
B34: EAST AFRICA REINSURANCE | C34: 0 | D34: 0 | E34: 0 | F34: 0 | G34: 0 | H34: 0 | I34: 0 | J34: 0 | K34: 0 | L34: 0 | M34: 0 | N34: 0 | O34: 0 | P34: 0 | Q34: 0
B35: KENYA REINSURANCE CORPORATION | C35: 0 | D35: 0 | E35: 0 | F35: 0 | G35: 0 | H35: 0 | I35: 0 | J35: 0 | K35: 0 | L35: 0 | M35: 0 | N35: 0 | O35: 0 | P35: 0 | Q35: 0
B36: TOTAL | C36: =SUM(C33:C35) -> 0 | D36: =SUM(D33:D35) -> 0 | E36: 0 | F36: 0 | G36: 0 | H36: 0 | I36: 0 | J36: 0 | K36: 0 | L36: 0 | M36: 0 | N36: 0 | O36: 0 | P36: 0 | Q36: 0
B37: Amounts in Thousand Shillings

Sheet PENSIONS (hidden)
B3: APPENDIX 12: SUMMARY OF PENSIONS BUSINESS REVENUE ACCOUNTS FOR THE YEAR ENDED 31.12.2022
B4: Company | C4: Life Fund BF | D4: Gross Premium | E4: Net Premium | F4: Other (Fee) Income | G4: Total Benefits | H4: Claims | I4: Surrenders | J4: Bonuses Paid | K4: Annuities Paid | L4: Net Commisions | M4: Expense of Management | N4: Investment Income | O4: Investment Expenses | P4: Transfer To (From) P & L | Q4: Life Fund CF
B5: INSURERS
B6: ABSA LIFE ASSURANCE | C6: =+'APPENDIX 12'!C6+'APPENDIX 13'!C6 -> 0 | D6: =+'APPENDIX 12'!D6+'APPENDIX 13'!D6 -> 0 | E6: =+'APPENDIX 12'!E6+'APPENDIX 13'!E6 -> 0 | F6: =+'APPENDIX 12'!F6+'APPENDIX 13'!F6 -> 0 | G6: =+'APPENDIX 12'!G6+'APPENDIX 13'!G6 -> 0 | H6: =+'APPENDIX 12'!H6+'APPENDIX 13'!H6 -> 0 | I6: =+'APPENDIX 12'!I6+'APPENDIX 13'!I6 -> 0 | J6: =+'APPENDIX 12'!J6+'APPENDIX 13'!J6 -> 0 | K6: =+'APPENDIX 12'!K6+'APPENDIX 13'!K6 -> 0 | L6: =+'APPENDIX 12'!L6+'APPENDIX 13'!L6 -> 0 | M6: =+'APPENDIX 12'!M6+'APPENDIX 13'!M6 -> 0 | N6: =+'APPENDIX 12'!N6+'APPENDIX 13'!N6 -> 0 | O6: =+'APPENDIX 12'!O6+'APPENDIX 13'!O6 -> 0 | P6: =+'APPENDIX 12'!P6+'APPENDIX 13'!P6 -> 0 | Q6: =+'APPENDIX 12'!Q6+'APPENDIX 13'!Q6 -> 0
B7: APA LIFE ASSURANCE COMPANY | C7: =+'APPENDIX 12'!C7+'APPENDIX 13'!C7 -> 5365541 | D7: =+'APPENDIX 12'!D7+'APPENDIX 13'!D7 -> 1703386 | E7: =+'APPENDIX 12'!E7+'APPENDIX 13'!E7 -> 1703386 | F7: =+'APPENDIX 12'!F7+'APPENDIX 13'!F7 -> 0 | G7: =+'APPENDIX 12'!G7+'APPENDIX 13'!G7 -> 563258 | H7: =+'APPENDIX 12'!H7+'APPENDIX 13'!H7 -> 563258 | I7: =+'APPENDIX 12'!I7+'APPENDIX 13'!I7 -> 0 | J7: =+'APPENDIX 12'!J7+'APPENDIX 13'!J7 -> 0 | K7: =+'APPENDIX 12'!K7+'APPENDIX 13'!K7 -> 0 | L7: =+'APPENDIX 12'!L7+'APPENDIX 13'!L7 -> 35408 | M7: =+'APPENDIX 12'!M7+'APPENDIX 13'!M7 -> 53065 | N7: =+'APPENDIX 12'!N7+'APPENDIX 13'!N7 -> 606314 | O7: =+'APPENDIX 12'!O7+'APPENDIX 13'!O7 -> 20271 | P7: =+'APPENDIX 12'!P7+'APPENDIX 13'!P7 -> -55000 | Q7: =+'APPENDIX 12'!Q7+'APPENDIX 13'!Q7 -> 7058238
B8: BRITAM LIFE ASSURANCE | C8: =+'APPENDIX 12'!C8+'APPENDIX 13'!C8 -> 53429233 | D8: =+'APPENDIX 12'!D8+'APPENDIX 13'!D8 -> 12343916 | E8: =+'APPENDIX 12'!E8+'APPENDIX 13'!E8 -> 12343916 | F8: =+'APPENDIX 12'!F8+'APPENDIX 13'!F8 -> 0 | G8: =+'APPENDIX 12'!G8+'APPENDIX 13'!G8 -> 11672035 | H8: =+'APPENDIX 12'!H8+'APPENDIX 13'!H8 -> 11672035 | I8: =+'APPENDIX 12'!I8+'APPENDIX 13'!I8 -> 0 | J8: =+'APPENDIX 12'!J8+'APPENDIX 13'!J8 -> 0 | K8: =+'APPENDIX 12'!K8+'APPENDIX 13'!K8 -> 0 | L8: =+'APPENDIX 12'!L8+'APPENDIX 13'!L8 -> 87423 | M8: =+'APPENDIX 12'!M8+'APPENDIX 13'!M8 -> 707515 | N8: =+'APPENDIX 12'!N8+'APPENDIX 13'!N8 -> 4003345 | O8: =+'APPENDIX 12'!O8+'APPENDIX 13'!O8 -> 45077 | P8: =+'APPENDIX 12'!P8+'APPENDIX 13'!P8 -> -271286 | Q8: =+'APPENDIX 12'!Q8+'APPENDIX 13'!Q8 -> 57535728
B9: CANNON LIFE ASSURANCE (K) LIMITED | C9: =+'APPENDIX 12'!C9+'APPENDIX 13'!C9 -> 0 | D9: =+'APPENDIX 12'!D9+'APPENDIX 13'!D9 -> 0 | E9: =+'APPENDIX 12'!E9+'APPENDIX 13'!E9 -> 0 | F9: =+'APPENDIX 12'!F9+'APPENDIX 13'!F9 -> 0 | G9: =+'APPENDIX 12'!G9+'APPENDIX 13'!G9 -> 0 | H9: =+'APPENDIX 12'!H9+'APPENDIX 13'!H9 -> 0 | I9: =+'APPENDIX 12'!I9+'APPENDIX 13'!I9 -> 0 | J9: =+'APPENDIX 12'!J9+'APPENDIX 13'!J9 -> 0 | K9: =+'APPENDIX 12'!K9+'APPENDIX 13'!K9 -> 0 | L9: =+'APPENDIX 12'!L9+'APPENDIX 13'!L9 -> 0 | M9: =+'APPENDIX 12'!M9+'APPENDIX 13'!M9 -> 0 | N9: =+'APPENDIX 12'!N9+'APPENDIX 13'!N9 -> 0 | O9: =+'APPENDIX 12'!O9+'APPENDIX 13'!O9 -> 0 | P9: =+'APPENDIX 12'!P9+'APPENDIX 13'!P9 -> 0 | Q9: =+'APPENDIX 12'!Q9+'APPENDIX 13'!Q9 -> 0
B10: CAPEX LIFE ASSURANCE COMPANY | C10: =+'APPENDIX 12'!C10+'APPENDIX 13'!C10 -> 0 | D10: =+'APPENDIX 12'!D10+'APPENDIX 13'!D10 -> 0 | E10: =+'APPENDIX 12'!E10+'APPENDIX 13'!E10 -> 0 | F10: =+'APPENDIX 12'!F10+'APPENDIX 13'!F10 -> 0 | G10: =+'APPENDIX 12'!G10+'APPENDIX 13'!G10 -> 0 | H10: =+'APPENDIX 12'!H10+'APPENDIX 13'!H10 -> 0 | I10: =+'APPENDIX 12'!I10+'APPENDIX 13'!I10 -> 0 | J10: =+'APPENDIX 12'!J10+'APPENDIX 13'!J10 -> 0 | K10: =+'APPENDIX 12'!K10+'APPENDIX 13'!K10 -> 0 | L10: =+'APPENDIX 12'!L10+'APPENDIX 13'!L10 -> 0 | M10: =+'APPENDIX 12'!M10+'APPENDIX 13'!M10 -> 0 | N10: =+'APPENDIX 12'!N10+'APPENDIX 13'!N10 -> 0 | O10: =+'APPENDIX 12'!O10+'APPENDIX 13'!O10 -> 0 | P10: =+'APPENDIX 12'!P10+'APPENDIX 13'!P10 -> 0 | Q10: =+'APPENDIX 12'!Q10+'APPENDIX 13'!Q10 -> 0
B11: CIC LIFE ASSURANCE COMPANY | C11: =+'APPENDIX 12'!C11+'APPENDIX 13'!C11 -> 5301315 | D11: =+'APPENDIX 12'!D11+'APPENDIX 13'!D11 -> 1641410 | E11: =+'APPENDIX 12'!E11+'APPENDIX 13'!E11 -> 1641410 | F11: =+'APPENDIX 12'!F11+'APPENDIX 13'!F11 -> 0 | G11: =+'APPENDIX 12'!G11+'APPENDIX 13'!G11 -> 652007 | H11: =+'APPENDIX 12'!H11+'APPENDIX 13'!H11 -> 0 | I11: =+'APPENDIX 12'!I11+'APPENDIX 13'!I11 -> 0 | J11: =+'APPENDIX 12'!J11+'APPENDIX 13'!J11 -> 0 | K11: =+'APPENDIX 12'!K11+'APPENDIX 13'!K11 -> 0 | L11: =+'APPENDIX 12'!L11+'APPENDIX 13'!L11 -> 25883 | M11: =+'APPENDIX 12'!M11+'APPENDIX 13'!M11 -> 36527 | N11: =+'APPENDIX 12'!N11+'APPENDIX 13'!N11 -> 75004 | O11: =+'APPENDIX 12'!O11+'APPENDIX 13'!O11 -> 0 | P11: =+'APPENDIX 12'!P11+'APPENDIX 13'!P11 -> 0 | Q11: =+'APPENDIX 12'!Q11+'APPENDIX 13'!Q11 -> 6955319
B12: CORPORATE INSURANCE COMPANY | C12: =+'APPENDIX 12'!C12+'APPENDIX 13'!C12 -> 0 | D12: =+'APPENDIX 12'!D12+'APPENDIX 13'!D12 -> 0 | E12: =+'APPENDIX 12'!E12+'APPENDIX 13'!E12 -> 0 | F12: =+'APPENDIX 12'!F12+'APPENDIX 13'!F12 -> 0 | G12: =+'APPENDIX 12'!G12+'APPENDIX 13'!G12 -> 0 | H12: =+'APPENDIX 12'!H12+'APPENDIX 13'!H12 -> 0 | I12: =+'APPENDIX 12'!I12+'APPENDIX 13'!I12 -> 0 | J12: =+'APPENDIX 12'!J12+'APPENDIX 13'!J12 -> 0 | K12: =+'APPENDIX 12'!K12+'APPENDIX 13'!K12 -> 0 | L12: =+'APPENDIX 12'!L12+'APPENDIX 13'!L12 -> 0 | M12: =+'APPENDIX 12'!M12+'APPENDIX 13'!M12 -> 0 | N12: =+'APPENDIX 12'!N12+'APPENDIX 13'!N12 -> 0 | O12: =+'APPENDIX 12'!O12+'APPENDIX 13'!O12 -> 0 | P12: =+'APPENDIX 12'!P12+'APPENDIX 13'!P12 -> 0 | Q12: =+'APPENDIX 12'!Q12+'APPENDIX 13'!Q12 -> 0
B13: EQUITY LIFE ASSURANCE | C13: =+'APPENDIX 12'!C13+'APPENDIX 13'!C13 -> 0 | D13: =+'APPENDIX 12'!D13+'APPENDIX 13'!D13 -> 378398 | E13: =+'APPENDIX 12'!E13+'APPENDIX 13'!E13 -> 378398 | F13: =+'APPENDIX 12'!F13+'APPENDIX 13'!F13 -> 0 | G13: =+'APPENDIX 12'!G13+'APPENDIX 13'!G13 -> 0 | H13: =+'APPENDIX 12'!H13+'APPENDIX 13'!H13 -> 0 | I13: =+'APPENDIX 12'!I13+'APPENDIX 13'!I13 -> 0 | J13: =+'APPENDIX 12'!J13+'APPENDIX 13'!J13 -> 0 | K13: =+'APPENDIX 12'!K13+'APPENDIX 13'!K13 -> 0 | L13: =+'APPENDIX 12'!L13+'APPENDIX 13'!L13 -> 3784 | M13: =+'APPENDIX 12'!M13+'APPENDIX 13'!M13 -> 1667 | N13: =+'APPENDIX 12'!N13+'APPENDIX 13'!N13 -> 35882 | O13: =+'APPENDIX 12'!O13+'APPENDIX 13'!O13 -> 0 | P13: =+'APPENDIX 12'!P13+'APPENDIX 13'!P13 -> 15085 | Q13: =+'APPENDIX 12'!Q13+'APPENDIX 13'!Q13 -> 393745
B14: GA LIFE ASSURANCE COMPANY | C14: =+'APPENDIX 12'!C14+'APPENDIX 13'!C14 -> 18138892 | D14: =+'APPENDIX 12'!D14+'APPENDIX 13'!D14 -> 6499895 | E14: =+'APPENDIX 12'!E14+'APPENDIX 13'!E14 -> 6499895 | F14: =+'APPENDIX 12'!F14+'APPENDIX 13'!F14 -> 0 | G14: =+'APPENDIX 12'!G14+'APPENDIX 13'!G14 -> 1689558 | H14: =+'APPENDIX 12'!H14+'APPENDIX 13'!H14 -> 1689558 | I14: =+'APPENDIX 12'!I14+'APPENDIX 13'!I14 -> 0 | J14: =+'APPENDIX 12'!J14+'APPENDIX 13'!J14 -> 0 | K14: =+'APPENDIX 12'!K14+'APPENDIX 13'!K14 -> 0 | L14: =+'APPENDIX 12'!L14+'APPENDIX 13'!L14 -> 51904 | M14: =+'APPENDIX 12'!M14+'APPENDIX 13'!M14 -> 88733 | N14: =+'APPENDIX 12'!N14+'APPENDIX 13'!N14 -> 2609847 | O14: =+'APPENDIX 12'!O14+'APPENDIX 13'!O14 -> 0 | P14: =+'APPENDIX 12'!P14+'APPENDIX 13'!P14 -> 112196 | Q14: =+'APPENDIX 12'!Q14+'APPENDIX 13'!Q14 -> 25306243
B15: GEMINIA LIFE INSURANCE COMPANY | C15: =+'APPENDIX 12'!C15+'APPENDIX 13'!C15 -> -6907 | D15: =+'APPENDIX 12'!D15+'APPENDIX 13'!D15 -> 0 | E15: =+'APPENDIX 12'!E15+'APPENDIX 13'!E15 -> 0 | F15: =+'APPENDIX 12'!F15+'APPENDIX 13'!F15 -> 12464 | G15: =+'APPENDIX 12'!G15+'APPENDIX 13'!G15 -> 0 | H15: =+'APPENDIX 12'!H15+'APPENDIX 13'!H15 -> 0 | I15: =+'APPENDIX 12'!I15+'APPENDIX 13'!I15 -> 0 | J15: =+'APPENDIX 12'!J15+'APPENDIX 13'!J15 -> 0 | K15: =+'APPENDIX 12'!K15+'APPENDIX 13'!K15 -> 0 | L15: =+'APPENDIX 12'!L15+'APPENDIX 13'!L15 -> 457 | M15: =+'APPENDIX 12'!M15+'APPENDIX 13'!M15 -> 5729 | N15: =+'APPENDIX 12'!N15+'APPENDIX 13'!N15 -> 60999 | O15: =+'APPENDIX 12'!O15+'APPENDIX 13'!O15 -> 42350 | P15: =+'APPENDIX 12'!P15+'APPENDIX 13'!P15 -> 12464 | Q15: =+'APPENDIX 12'!Q15+'APPENDIX 13'!Q15 -> 5557
B16: ICEA LION LIFE ASSURANCE | C16: =+'APPENDIX 12'!C16+'APPENDIX 13'!C16 -> 81672379 | D16: =+'APPENDIX 12'!D16+'APPENDIX 13'!D16 -> 13316381 | E16: =+'APPENDIX 12'!E16+'APPENDIX 13'!E16 -> 13316381 | F16: =+'APPENDIX 12'!F16+'APPENDIX 13'!F16 -> 0 | G16: =+'APPENDIX 12'!G16+'APPENDIX 13'!G16 -> 0 | H16: =+'APPENDIX 12'!H16+'APPENDIX 13'!H16 -> 7549959 | I16: =+'APPENDIX 12'!I16+'APPENDIX 13'!I16 -> 0 | J16: =+'APPENDIX 12'!J16+'APPENDIX 13'!J16 -> 0 | K16: =+'APPENDIX 12'!K16+'APPENDIX 13'!K16 -> 0 | L16: =+'APPENDIX 12'!L16+'APPENDIX 13'!L16 -> 215472 | M16: =+'APPENDIX 12'!M16+'APPENDIX 13'!M16 -> 522102 | N16: =+'APPENDIX 12'!N16+'APPENDIX 13'!N16 -> 7262647 | O16: =+'APPENDIX 12'!O16+'APPENDIX 13'!O16 -> 0 | P16: =+'APPENDIX 12'!P16+'APPENDIX 13'!P16 -> 480000 | Q16: =+'APPENDIX 12'!Q16+'APPENDIX 13'!Q16 -> 93483873
B17: JUBILEE INSURANCE COMPANY | C17: =+'APPENDIX 12'!C17+'APPENDIX 13'!C17 -> 64560366 | D17: =+'APPENDIX 12'!D17+'APPENDIX 13'!D17 -> 11120916 | E17: =+'APPENDIX 12'!E17+'APPENDIX 13'!E17 -> 11120916 | F17: =+'APPENDIX 12'!F17+'APPENDIX 13'!F17 -> 0 | G17: =+'APPENDIX 12'!G17+'APPENDIX 13'!G17 -> 6989150 | H17: =+'APPENDIX 12'!H17+'APPENDIX 13'!H17 -> 6989150 | I17: =+'APPENDIX 12'!I17+'APPENDIX 13'!I17 -> 0 | J17: =+'APPENDIX 12'!J17+'APPENDIX 13'!J17 -> 0 | K17: =+'APPENDIX 12'!K17+'APPENDIX 13'!K17 -> 0 | L17: =+'APPENDIX 12'!L17+'APPENDIX 13'!L17 -> 160798 | M17: =+'APPENDIX 12'!M17+'APPENDIX 13'!M17 -> 353696 | N17: =+'APPENDIX 12'!N17+'APPENDIX 13'!N17 -> 8099705 | O17: =+'APPENDIX 12'!O17+'APPENDIX 13'!O17 -> 77980 | P17: =+'APPENDIX 12'!P17+'APPENDIX 13'!P17 -> 699860 | Q17: =+'APPENDIX 12'!Q17+'APPENDIX 13'!Q17 -> 75499505
B18: KENINDIA ASSURANCE COMPANY | C18: =+'APPENDIX 12'!C18+'APPENDIX 13'!C18 -> 36603770 | D18: =+'APPENDIX 12'!D18+'APPENDIX 13'!D18 -> 5987750 | E18: =+'APPENDIX 12'!E18+'APPENDIX 13'!E18 -> 5987750 | F18: =+'APPENDIX 12'!F18+'APPENDIX 13'!F18 -> 0 | G18: =+'APPENDIX 12'!G18+'APPENDIX 13'!G18 -> 3578851 | H18: =+'APPENDIX 12'!H18+'APPENDIX 13'!H18 -> 3578919 | I18: =+'APPENDIX 12'!I18+'APPENDIX 13'!I18 -> 0 | J18: =+'APPENDIX 12'!J18+'APPENDIX 13'!J18 -> 0 | K18: =+'APPENDIX 12'!K18+'APPENDIX 13'!K18 -> 0 | L18: =+'APPENDIX 12'!L18+'APPENDIX 13'!L18 -> 84208 | M18: =+'APPENDIX 12'!M18+'APPENDIX 13'!M18 -> 236244 | N18: =+'APPENDIX 12'!N18+'APPENDIX 13'!N18 -> 4675808 | O18: =+'APPENDIX 12'!O18+'APPENDIX 13'!O18 -> 0 | P18: =+'APPENDIX 12'!P18+'APPENDIX 13'!P18 -> 50000 | Q18: =+'APPENDIX 12'!Q18+'APPENDIX 13'!Q18 -> 43317958
B19: KENYA ORIENT LIFE ASSURANCE | C19: =+'APPENDIX 12'!C19+'APPENDIX 13'!C19 -> 1018540 | D19: =+'APPENDIX 12'!D19+'APPENDIX 13'!D19 -> 253035 | E19: =+'APPENDIX 12'!E19+'APPENDIX 13'!E19 -> 253035 | F19: =+'APPENDIX 12'!F19+'APPENDIX 13'!F19 -> 0 | G19: =+'APPENDIX 12'!G19+'APPENDIX 13'!G19 -> 139081 | H19: =+'APPENDIX 12'!H19+'APPENDIX 13'!H19 -> 139081 | I19: =+'APPENDIX 12'!I19+'APPENDIX 13'!I19 -> 0 | J19: =+'APPENDIX 12'!J19+'APPENDIX 13'!J19 -> 0 | K19: =+'APPENDIX 12'!K19+'APPENDIX 13'!K19 -> 0 | L19: =+'APPENDIX 12'!L19+'APPENDIX 13'!L19 -> 0 | M19: =+'APPENDIX 12'!M19+'APPENDIX 13'!M19 -> 8463 | N19: =+'APPENDIX 12'!N19+'APPENDIX 13'!N19 -> 127709 | O19: =+'APPENDIX 12'!O19+'APPENDIX 13'!O19 -> 0 | P19: =+'APPENDIX 12'!P19+'APPENDIX 13'!P19 -> 0 | Q19: =+'APPENDIX 12'!Q19+'APPENDIX 13'!Q19 -> 1251741
B20: KUSCCO MUTUAL ASSURANCE LIMITED | C20: =+'APPENDIX 12'!C20+'APPENDIX 13'!C20 -> 0 | D20: =+'APPENDIX 12'!D20+'APPENDIX 13'!D20 -> 0 | E20: =+'APPENDIX 12'!E20+'APPENDIX 13'!E20 -> 0 | F20: =+'APPENDIX 12'!F20+'APPENDIX 13'!F20 -> 0 | G20: =+'APPENDIX 12'!G20+'APPENDIX 13'!G20 -> 0 | H20: =+'APPENDIX 12'!H20+'APPENDIX 13'!H20 -> 0 | I20: =+'APPENDIX 12'!I20+'APPENDIX 13'!I20 -> 0 | J20: =+'APPENDIX 12'!J20+'APPENDIX 13'!J20 -> 0 | K20: =+'APPENDIX 12'!K20+'APPENDIX 13'!K20 -> 0 | L20: =+'APPENDIX 12'!L20+'APPENDIX 13'!L20 -> 0 | M20: =+'APPENDIX 12'!M20+'APPENDIX 13'!M20 -> 0 | N20: =+'APPENDIX 12'!N20+'APPENDIX 13'!N20 -> 0 | O20: =+'APPENDIX 12'!O20+'APPENDIX 13'!O20 -> 0 | P20: =+'APPENDIX 12'!P20+'APPENDIX 13'!P20 -> 0 | Q20: =+'APPENDIX 12'!Q20+'APPENDIX 13'!Q20 -> 0
B21: LIBERTY LIFE ASSURANCE COMPANY | C21: =+'APPENDIX 12'!C21+'APPENDIX 13'!C21 -> 8998454 | D21: =+'APPENDIX 12'!D21+'APPENDIX 13'!D21 -> 1300903 | E21: =+'APPENDIX 12'!E21+'APPENDIX 13'!E21 -> 1300903 | F21: =+'APPENDIX 12'!F21+'APPENDIX 13'!F21 -> 0 | G21: =+'APPENDIX 12'!G21+'APPENDIX 13'!G21 -> 1306762 | H21: =+'APPENDIX 12'!H21+'APPENDIX 13'!H21 -> 1306762 | I21: =+'APPENDIX 12'!I21+'APPENDIX 13'!I21 -> 0 | J21: =+'APPENDIX 12'!J21+'APPENDIX 13'!J21 -> 0 | K21: =+'APPENDIX 12'!K21+'APPENDIX 13'!K21 -> 0 | L21: =+'APPENDIX 12'!L21+'APPENDIX 13'!L21 -> 15736 | M21: =+'APPENDIX 12'!M21+'APPENDIX 13'!M21 -> 394243 | N21: =+'APPENDIX 12'!N21+'APPENDIX 13'!N21 -> 388307 | O21: =+'APPENDIX 12'!O21+'APPENDIX 13'!O21 -> 0 | P21: =+'APPENDIX 12'!P21+'APPENDIX 13'!P21 -> 0 | Q21: =+'APPENDIX 12'!Q21+'APPENDIX 13'!Q21 -> 8970923
B22: MADISON INSURANCE COMPANY | C22: =+'APPENDIX 12'!C22+'APPENDIX 13'!C22 -> 3508859 | D22: =+'APPENDIX 12'!D22+'APPENDIX 13'!D22 -> 675347 | E22: =+'APPENDIX 12'!E22+'APPENDIX 13'!E22 -> 675347 | F22: =+'APPENDIX 12'!F22+'APPENDIX 13'!F22 -> 0 | G22: =+'APPENDIX 12'!G22+'APPENDIX 13'!G22 -> 358182 | H22: =+'APPENDIX 12'!H22+'APPENDIX 13'!H22 -> 358182 | I22: =+'APPENDIX 12'!I22+'APPENDIX 13'!I22 -> 0 | J22: =+'APPENDIX 12'!J22+'APPENDIX 13'!J22 -> 0 | K22: =+'APPENDIX 12'!K22+'APPENDIX 13'!K22 -> 0 | L22: =+'APPENDIX 12'!L22+'APPENDIX 13'!L22 -> 5624 | M22: =+'APPENDIX 12'!M22+'APPENDIX 13'!M22 -> 89482 | N22: =+'APPENDIX 12'!N22+'APPENDIX 13'!N22 -> 255791 | O22: =+'APPENDIX 12'!O22+'APPENDIX 13'!O22 -> 0 | P22: =+'APPENDIX 12'!P22+'APPENDIX 13'!P22 -> 0 | Q22: =+'APPENDIX 12'!Q22+'APPENDIX 13'!Q22 -> 3986709
B23: OLD MUTUAL ASSURANCE | C23: =+'APPENDIX 12'!C23+'APPENDIX 13'!C23 -> 0 | D23: =+'APPENDIX 12'!D23+'APPENDIX 13'!D23 -> 0 | E23: =+'APPENDIX 12'!E23+'APPENDIX 13'!E23 -> 0 | F23: =+'APPENDIX 12'!F23+'APPENDIX 13'!F23 -> 0 | G23: =+'APPENDIX 12'!G23+'APPENDIX 13'!G23 -> 0 | H23: =+'APPENDIX 12'!H23+'APPENDIX 13'!H23 -> 0 | I23: =+'APPENDIX 12'!I23+'APPENDIX 13'!I23 -> 0 | J23: =+'APPENDIX 12'!J23+'APPENDIX 13'!J23 -> 0 | K23: =+'APPENDIX 12'!K23+'APPENDIX 13'!K23 -> 0 | L23: =+'APPENDIX 12'!L23+'APPENDIX 13'!L23 -> 0 | M23: =+'APPENDIX 12'!M23+'APPENDIX 13'!M23 -> 0 | N23: =+'APPENDIX 12'!N23+'APPENDIX 13'!N23 -> 0 | O23: =+'APPENDIX 12'!O23+'APPENDIX 13'!O23 -> 0 | P23: =+'APPENDIX 12'!P23+'APPENDIX 13'!P23 -> 0 | Q23: =+'APPENDIX 12'!Q23+'APPENDIX 13'!Q23 -> 0
B24: OLD MUTUAL LIFE ASSURANCE | C24: =+'APPENDIX 12'!C24+'APPENDIX 13'!C24 -> 5741563 | D24: =+'APPENDIX 12'!D24+'APPENDIX 13'!D24 -> 647863 | E24: =+'APPENDIX 12'!E24+'APPENDIX 13'!E24 -> 647863 | F24: =+'APPENDIX 12'!F24+'APPENDIX 13'!F24 -> 0 | G24: =+'APPENDIX 12'!G24+'APPENDIX 13'!G24 -> 608967 | H24: =+'APPENDIX 12'!H24+'APPENDIX 13'!H24 -> 608967 | I24: =+'APPENDIX 12'!I24+'APPENDIX 13'!I24 -> 0 | J24: =+'APPENDIX 12'!J24+'APPENDIX 13'!J24 -> 0 | K24: =+'APPENDIX 12'!K24+'APPENDIX 13'!K24 -> 0 | L24: =+'APPENDIX 12'!L24+'APPENDIX 13'!L24 -> 1991 | M24: =+'APPENDIX 12'!M24+'APPENDIX 13'!M24 -> 0 | N24: =+'APPENDIX 12'!N24+'APPENDIX 13'!N24 -> 434116 | O24: =+'APPENDIX 12'!O24+'APPENDIX 13'!O24 -> 0 | P24: =+'APPENDIX 12'!P24+'APPENDIX 13'!P24 -> 0 | Q24: =+'APPENDIX 12'!Q24+'APPENDIX 13'!Q24 -> 6212586
B25: PIONEER ASSURANCE COMPANY | C25: =+'APPENDIX 12'!C25+'APPENDIX 13'!C25 -> 1303029 | D25: =+'APPENDIX 12'!D25+'APPENDIX 13'!D25 -> 299562 | E25: =+'APPENDIX 12'!E25+'APPENDIX 13'!E25 -> 299562 | F25: =+'APPENDIX 12'!F25+'APPENDIX 13'!F25 -> 0 | G25: =+'APPENDIX 12'!G25+'APPENDIX 13'!G25 -> 154559 | H25: =+'APPENDIX 12'!H25+'APPENDIX 13'!H25 -> 154559 | I25: =+'APPENDIX 12'!I25+'APPENDIX 13'!I25 -> 0 | J25: =+'APPENDIX 12'!J25+'APPENDIX 13'!J25 -> 0 | K25: =+'APPENDIX 12'!K25+'APPENDIX 13'!K25 -> 0 | L25: =+'APPENDIX 12'!L25+'APPENDIX 13'!L25 -> 0 | M25: =+'APPENDIX 12'!M25+'APPENDIX 13'!M25 -> 0 | N25: =+'APPENDIX 12'!N25+'APPENDIX 13'!N25 -> 0 | O25: =+'APPENDIX 12'!O25+'APPENDIX 13'!O25 -> 0 | P25: =+'APPENDIX 12'!P25+'APPENDIX 13'!P25 -> 0 | Q25: =+'APPENDIX 12'!Q25+'APPENDIX 13'!Q25 -> 1448031
B26: PRUDENTIAL LIFE ASSURANCE | C26: =+'APPENDIX 12'!C26+'APPENDIX 13'!C26 -> 240719 | D26: =+'APPENDIX 12'!D26+'APPENDIX 13'!D26 -> 411322 | E26: =+'APPENDIX 12'!E26+'APPENDIX 13'!E26 -> 411322 | F26: =+'APPENDIX 12'!F26+'APPENDIX 13'!F26 -> 0 | G26: =+'APPENDIX 12'!G26+'APPENDIX 13'!G26 -> 26465 | H26: =+'APPENDIX 12'!H26+'APPENDIX 13'!H26 -> 26465 | I26: =+'APPENDIX 12'!I26+'APPENDIX 13'!I26 -> 0 | J26: =+'APPENDIX 12'!J26+'APPENDIX 13'!J26 -> 0 | K26: =+'APPENDIX 12'!K26+'APPENDIX 13'!K26 -> 0 | L26: =+'APPENDIX 12'!L26+'APPENDIX 13'!L26 -> 0 | M26: =+'APPENDIX 12'!M26+'APPENDIX 13'!M26 -> 18687 | N26: =+'APPENDIX 12'!N26+'APPENDIX 13'!N26 -> 51532 | O26: =+'APPENDIX 12'!O26+'APPENDIX 13'!O26 -> 2022 | P26: =+'APPENDIX 12'!P26+'APPENDIX 13'!P26 -> 0 | Q26: =+'APPENDIX 12'!Q26+'APPENDIX 13'!Q26 -> 656399
B27: SANLAM LIFE ASSURANCE | C27: =+'APPENDIX 12'!C27+'APPENDIX 13'!C27 -> 2592276 | D27: =+'APPENDIX 12'!D27+'APPENDIX 13'!D27 -> 1454753 | E27: =+'APPENDIX 12'!E27+'APPENDIX 13'!E27 -> 1454753 | F27: =+'APPENDIX 12'!F27+'APPENDIX 13'!F27 -> 0 | G27: =+'APPENDIX 12'!G27+'APPENDIX 13'!G27 -> 690533 | H27: =+'APPENDIX 12'!H27+'APPENDIX 13'!H27 -> 690533 | I27: =+'APPENDIX 12'!I27+'APPENDIX 13'!I27 -> 0 | J27: =+'APPENDIX 12'!J27+'APPENDIX 13'!J27 -> 0 | K27: =+'APPENDIX 12'!K27+'APPENDIX 13'!K27 -> 0 | L27: =+'APPENDIX 12'!L27+'APPENDIX 13'!L27 -> 25606 | M27: =+'APPENDIX 12'!M27+'APPENDIX 13'!M27 -> 28788 | N27: =+'APPENDIX 12'!N27+'APPENDIX 13'!N27 -> 65990 | O27: =+'APPENDIX 12'!O27+'APPENDIX 13'!O27 -> 0 | P27: =+'APPENDIX 12'!P27+'APPENDIX 13'!P27 -> 0 | Q27: =+'APPENDIX 12'!Q27+'APPENDIX 13'!Q27 -> 3368093
B28: STAR DISCOVER LIFE INSURANCE | C28: =+'APPENDIX 12'!C28+'APPENDIX 13'!C28 -> 0 | D28: =+'APPENDIX 12'!D28+'APPENDIX 13'!D28 -> 0 | E28: =+'APPENDIX 12'!E28+'APPENDIX 13'!E28 -> 0 | F28: =+'APPENDIX 12'!F28+'APPENDIX 13'!F28 -> 0 | G28: =+'APPENDIX 12'!G28+'APPENDIX 13'!G28 -> 0 | H28: =+'APPENDIX 12'!H28+'APPENDIX 13'!H28 -> 0 | I28: =+'APPENDIX 12'!I28+'APPENDIX 13'!I28 -> 0 | J28: =+'APPENDIX 12'!J28+'APPENDIX 13'!J28 -> 0 | K28: =+'APPENDIX 12'!K28+'APPENDIX 13'!K28 -> 0 | L28: =+'APPENDIX 12'!L28+'APPENDIX 13'!L28 -> 0 | M28: =+'APPENDIX 12'!M28+'APPENDIX 13'!M28 -> 0 | N28: =+'APPENDIX 12'!N28+'APPENDIX 13'!N28 -> 0 | O28: =+'APPENDIX 12'!O28+'APPENDIX 13'!O28 -> 0 | P28: =+'APPENDIX 12'!P28+'APPENDIX 13'!P28 -> 0 | Q28: =+'APPENDIX 12'!Q28+'APPENDIX 13'!Q28 -> 0
B29: THE KENYAN ALLIANCE INSURANCE | C29: =+'APPENDIX 12'!C29+'APPENDIX 13'!C29 -> 2697814 | D29: =+'APPENDIX 12'!D29+'APPENDIX 13'!D29 -> 1031651 | E29: =+'APPENDIX 12'!E29+'APPENDIX 13'!E29 -> 1031651 | F29: =+'APPENDIX 12'!F29+'APPENDIX 13'!F29 -> 0 | G29: =+'APPENDIX 12'!G29+'APPENDIX 13'!G29 -> 361060 | H29: =+'APPENDIX 12'!H29+'APPENDIX 13'!H29 -> 405934 | I29: =+'APPENDIX 12'!I29+'APPENDIX 13'!I29 -> 0 | J29: =+'APPENDIX 12'!J29+'APPENDIX 13'!J29 -> 0 | K29: =+'APPENDIX 12'!K29+'APPENDIX 13'!K29 -> 0 | L29: =+'APPENDIX 12'!L29+'APPENDIX 13'!L29 -> 11555 | M29: =+'APPENDIX 12'!M29+'APPENDIX 13'!M29 -> 75269 | N29: =+'APPENDIX 12'!N29+'APPENDIX 13'!N29 -> 430419 | O29: =+'APPENDIX 12'!O29+'APPENDIX 13'!O29 -> 0 | P29: =+'APPENDIX 12'!P29+'APPENDIX 13'!P29 -> 497762 | Q29: =+'APPENDIX 12'!Q29+'APPENDIX 13'!Q29 -> 3169363
B30: THE MONARCH INSURANCE | C30: =+'APPENDIX 12'!C30+'APPENDIX 13'!C30 -> 1144 | D30: =+'APPENDIX 12'!D30+'APPENDIX 13'!D30 -> 0 | E30: =+'APPENDIX 12'!E30+'APPENDIX 13'!E30 -> 0 | F30: =+'APPENDIX 12'!F30+'APPENDIX 13'!F30 -> 0 | G30: =+'APPENDIX 12'!G30+'APPENDIX 13'!G30 -> 0 | H30: =+'APPENDIX 12'!H30+'APPENDIX 13'!H30 -> 0 | I30: =+'APPENDIX 12'!I30+'APPENDIX 13'!I30 -> 0 | J30: =+'APPENDIX 12'!J30+'APPENDIX 13'!J30 -> 0 | K30: =+'APPENDIX 12'!K30+'APPENDIX 13'!K30 -> 0 | L30: =+'APPENDIX 12'!L30+'APPENDIX 13'!L30 -> 0 | M30: =+'APPENDIX 12'!M30+'APPENDIX 13'!M30 -> 2178 | N30: =+'APPENDIX 12'!N30+'APPENDIX 13'!N30 -> 6893 | O30: =+'APPENDIX 12'!O30+'APPENDIX 13'!O30 -> 0 | P30: =+'APPENDIX 12'!P30+'APPENDIX 13'!P30 -> 4715 | Q30: =+'APPENDIX 12'!Q30+'APPENDIX 13'!Q30 -> 1144
B31: TOTAL | C31: =SUM(C6:C30) -> 291166987 | D31: 59066488 | E31: 59066488 | F31: 12464 | G31: 28790468 | H31: 35733362 | I31: 0 | J31: 0 | K31: 0 | L31: 725849 | M31: 2622388 | N31: 29190308 | O31: 187700 | P31: 1545796 | Q31: 338621155
B32: REINSURERS
B33: CONTINENTAL REINSURANCE | C33: =+'APPENDIX 12'!C33+'APPENDIX 13'!C33 -> 0 | D33: =+'APPENDIX 12'!D33+'APPENDIX 13'!D33 -> 0 | E33: =+'APPENDIX 12'!E33+'APPENDIX 13'!E33 -> 0 | F33: =+'APPENDIX 12'!F33+'APPENDIX 13'!F33 -> 0 | G33: =+'APPENDIX 12'!G33+'APPENDIX 13'!G33 -> 0 | H33: =+'APPENDIX 12'!H33+'APPENDIX 13'!H33 -> 0 | I33: =+'APPENDIX 12'!I33+'APPENDIX 13'!I33 -> 0 | J33: =+'APPENDIX 12'!J33+'APPENDIX 13'!J33 -> 0 | K33: =+'APPENDIX 12'!K33+'APPENDIX 13'!K33 -> 0 | L33: =+'APPENDIX 12'!L33+'APPENDIX 13'!L33 -> 0 | M33: =+'APPENDIX 12'!M33+'APPENDIX 13'!M33 -> 0 | N33: =+'APPENDIX 12'!N33+'APPENDIX 13'!N33 -> 0 | O33: =+'APPENDIX 12'!O33+'APPENDIX 13'!O33 -> 0 | P33: =+'APPENDIX 12'!P33+'APPENDIX 13'!P33 -> 0 | Q33: =+'APPENDIX 12'!Q33+'APPENDIX 13'!Q33 -> 0
B34: EAST AFRICA REINSURANCE | C34: =+'APPENDIX 12'!C34+'APPENDIX 13'!C34 -> 0 | D34: =+'APPENDIX 12'!D34+'APPENDIX 13'!D34 -> 0 | E34: =+'APPENDIX 12'!E34+'APPENDIX 13'!E34 -> 0 | F34: =+'APPENDIX 12'!F34+'APPENDIX 13'!F34 -> 0 | G34: =+'APPENDIX 12'!G34+'APPENDIX 13'!G34 -> 0 | H34: =+'APPENDIX 12'!H34+'APPENDIX 13'!H34 -> 0 | I34: =+'APPENDIX 12'!I34+'APPENDIX 13'!I34 -> 0 | J34: =+'APPENDIX 12'!J34+'APPENDIX 13'!J34 -> 0 | K34: =+'APPENDIX 12'!K34+'APPENDIX 13'!K34 -> 0 | L34: =+'APPENDIX 12'!L34+'APPENDIX 13'!L34 -> 0 | M34: =+'APPENDIX 12'!M34+'APPENDIX 13'!M34 -> 0 | N34: =+'APPENDIX 12'!N34+'APPENDIX 13'!N34 -> 0 | O34: =+'APPENDIX 12'!O34+'APPENDIX 13'!O34 -> 0 | P34: =+'APPENDIX 12'!P34+'APPENDIX 13'!P34 -> 0 | Q34: =+'APPENDIX 12'!Q34+'APPENDIX 13'!Q34 -> 0
B35: KENYA REINSURANCE CORPORATION | C35: =+'APPENDIX 12'!C35+'APPENDIX 13'!C35 -> 0 | D35: =+'APPENDIX 12'!D35+'APPENDIX 13'!D35 -> 0 | E35: =+'APPENDIX 12'!E35+'APPENDIX 13'!E35 -> 0 | F35: =+'APPENDIX 12'!F35+'APPENDIX 13'!F35 -> 0 | G35: =+'APPENDIX 12'!G35+'APPENDIX 13'!G35 -> 0 | H35: =+'APPENDIX 12'!H35+'APPENDIX 13'!H35 -> 0 | I35: =+'APPENDIX 12'!I35+'APPENDIX 13'!I35 -> 0 | J35: =+'APPENDIX 12'!J35+'APPENDIX 13'!J35 -> 0 | K35: =+'APPENDIX 12'!K35+'APPENDIX 13'!K35 -> 0 | L35: =+'APPENDIX 12'!L35+'APPENDIX 13'!L35 -> 0 | M35: =+'APPENDIX 12'!M35+'APPENDIX 13'!M35 -> 0 | N35: =+'APPENDIX 12'!N35+'APPENDIX 13'!N35 -> 0 | O35: =+'APPENDIX 12'!O35+'APPENDIX 13'!O35 -> 0 | P35: =+'APPENDIX 12'!P35+'APPENDIX 13'!P35 -> 0 | Q35: =+'APPENDIX 12'!Q35+'APPENDIX 13'!Q35 -> 0
B36: TOTAL | C36: =SUM(C33:C35) -> 0 | D36: =SUM(D33:D35) -> 0 | E36: 0 | F36: 0 | G36: 0 | H36: 0 | I36: 0 | J36: 0 | K36: 0 | L36: 0 | M36: 0 | N36: 0 | O36: 0 | P36: 0 | Q36: 0
B37: Amounts in Thousand Shillings

Sheet APPENDIX 14
B3: APPENDIX 14: SUMMARY OF GROUP CREDIT BUSINESS REVENUE ACCOUNTS FOR THE YEAR ENDED 31.12.2022
B4: Company | C4: Life Fund BF | D4: Gross Premium | E4: Net Premium | F4: Other (Fee) Income | G4: Total Benefits | H4: Claims | I4: Surrenders | J4: Bonuses Paid | K4: Annuities Paid | L4: Net Commisions | M4: Expense of Management | N4: Investment Income | O4: Investment Expenses | P4: Transfer To (From) P & L | Q4: Life Fund CF
B5: INSURERS
B6: ABSA LIFE ASSURANCE | C6: 1444533 | D6: 1439015 | E6: 1323369 | F6: 0 | G6: 294395 | H6: 198332 | I6: 0 | J6: 0 | K6: 0 | L6: 413530 | M6: 446217 | N6: 110372 | O6: 0 | P6: 0 | Q6: 1820196
B7: APA LIFE ASSURANCE COMPANY | C7: 625873 | D7: 747633 | E7: 619607 | F7: 0 | G7: 319484 | H7: 331492 | I7: 0 | J7: 0 | K7: 0 | L7: 47293 | M7: 6644 | N7: 16285 | O7: 865 | P7: 0 | Q7: 875471
B8: BRITAM LIFE ASSURANCE | C8: 2332531 | D8: -402737 | E8: -440633 | F8: 0 | G8: 748838 | H8: 641771 | I8: 0 | J8: 0 | K8: 0 | L8: 51126 | M8: -174435 | N8: 221452 | O8: 4501 | P8: 469903 | Q8: 1120483
B9: CANNON LIFE ASSURANCE (K) LIMITED | C9: 5179 | D9: 55742 | E9: 30503 | F9: 0 | G9: 17740 | H9: 17740 | I9: 0 | J9: 0 | K9: 0 | L9: -6562 | M9: 17009 | N9: 0 | O9: 0 | P9: 0 | Q9: 7495
B10: CAPEX LIFE ASSURANCE COMPANY | C10: 12093 | D10: 52362 | E10: 50869 | F10: 0 | G10: 1364 | H10: 1485 | I10: 0 | J10: 0 | K10: 0 | L10: 1794 | M10: 51773 | N10: 877 | O10: 0 | P10: 0 | Q10: 8786
B11: CIC LIFE ASSURANCE COMPANY | C11: 3486298 | D11: 4561935 | E11: 3291409 | F11: 0 | G11: 1623920 | H11: 2154150 | I11: 0 | J11: 0 | K11: 0 | L11: 248895 | M11: 1084365 | N11: 375725 | O11: 0 | P11: 115000 | Q11: 3551021
B12: CORPORATE INSURANCE COMPANY | C12: 0 | D12: 0 | E12: 0 | F12: 0 | G12: 0 | H12: 0 | I12: 0 | J12: 0 | K12: 0 | L12: 0 | M12: 0 | N12: 0 | O12: 0 | P12: 0 | Q12: 0
B13: EQUITY LIFE ASSURANCE | C13: 0 | D13: 3651436 | E13: 2349547 | F13: 251810 | G13: 50819 | H13: 69655 | I13: 0 | J13: 0 | K13: 0 | L13: 57343 | M13: 263774 | N13: 155929 | O13: 0 | P13: 324270 | Q13: 2042244
B14: GA LIFE ASSURANCE COMPANY | C14: 527 | D14: 3595 | E14: 377 | F14: 0 | G14: 0 | H14: 62 | I14: 0 | J14: 0 | K14: 0 | L14: -1057 | M14: 677 | N14: 92 | O14: 0 | P14: 353 | Q14: 963
B15: GEMINIA LIFE INSURANCE COMPANY | C15: 40867 | D15: 72655 | E15: 72655 | F15: 155380 | G15: 33158 | H15: -96090 | I15: 0 | J15: 0 | K15: 0 | L15: 5682 | M15: 38930 | N15: 31247 | O15: 0 | P15: 155380 | Q15: 196247
B16: ICEA LION LIFE ASSURANCE | C16: 21184 | D16: 207249 | E16: 123543 | F16: 20834 | G16: 77818 | H16: 105906 | I16: 0 | J16: 0 | K16: 0 | L16: 19918 | M16: 88168 | N16: 10065 | O16: 0 | P16: 21600 | Q16: -59965
B17: JUBILEE INSURANCE COMPANY | C17: 96324 | D17: 0 | E17: -42173 | F17: 0 | G17: 68454 | H17: 0 | I17: 0 | J17: 0 | K17: 0 | L17: 1043 | M17: 19332 | N17: 31761 | O17: 271 | P17: 0 | Q17: 65265
B18: KENINDIA ASSURANCE COMPANY | C18: 0 | D18: 0 | E18: 0 | F18: 0 | G18: 0 | H18: 0 | I18: 0 | J18: 0 | K18: 0 | L18: 0 | M18: 0 | N18: 0 | O18: 0 | P18: 0 | Q18: 0
B19: KENYA ORIENT LIFE ASSURANCE | C19: 619799 | D19: 582783 | E19: 495762 | F19: 0 | G19: 44805 | H19: 44805 | I19: 0 | J19: 0 | K19: 0 | L19: 25772 | M19: 299770 | N19: 47480 | O19: 0 | P19: 0 | Q19: 792693
B20: KUSCCO MUTUAL ASSURANCE LIMITED | C20: 233141 | D20: 1490701 | E20: 1082679 | F20: 0 | G20: 1260532 | H20: 728650 | I20: 0 | J20: 0 | K20: 0 | L20: 113976 | M20: 226392 | N20: 29160 | O20: 0 | P20: 0 | Q20: 275963
B21: LIBERTY LIFE ASSURANCE COMPANY | C21: 695303 | D21: 647781 | E21: 456644 | F21: -111450 | G21: 305730 | H21: 214131 | I21: 0 | J21: 0 | K21: 0 | L21: 84603 | M21: 160291 | N21: 34641 | O21: 0 | P21: 0 | Q21: 616112
B22: MADISON INSURANCE COMPANY | C22: 98186 | D22: 333731 | E22: 333731 | F22: 0 | G22: 233027 | H22: 233027 | I22: 0 | J22: 0 | K22: 0 | L22: 35948 | M22: 57246 | N22: 3570 | O22: 0 | P22: 0 | Q22: 109266
B23: OLD MUTUAL ASSURANCE | C23: 0 | D23: 0 | E23: 0 | F23: 0 | G23: 0 | H23: 0 | I23: 0 | J23: 0 | K23: 0 | L23: 0 | M23: 0 | N23: 0 | O23: 0 | P23: 0 | Q23: 0
B24: OLD MUTUAL LIFE ASSURANCE | C24: 1032903 | D24: 713793 | E24: 713793 | F24: 0 | G24: 200815 | H24: 113977 | I24: 0 | J24: 0 | K24: 0 | L24: 0 | M24: 0 | N24: 0 | O24: 0 | P24: 0 | Q24: 1632718
B25: PIONEER ASSURANCE COMPANY | C25: 379918 | D25: 265053 | E25: 183316 | F25: 0 | G25: 344938 | H25: 128934 | I25: 0 | J25: 0 | K25: 0 | L25: 12401 | M25: 45808 | N25: 18709 | O25: 0 | P25: 0 | Q25: 394799
B26: PRUDENTIAL LIFE ASSURANCE | C26: 152391 | D26: 441735 | E26: 415840 | F26: 6472 | G26: 87360 | H26: 87360 | I26: 0 | J26: 0 | K26: 0 | L26: 38775 | M26: 300671 | N26: 19181 | O26: 1062 | P26: 0 | Q26: 166016
B27: SANLAM LIFE ASSURANCE | C27: 801703 | D27: 572337 | E27: 416015 | F27: 0 | G27: 234437 | H27: 231374 | I27: 0 | J27: 0 | K27: 0 | L27: 95389 | M27: 96545 | N27: 47547 | O27: 0 | P27: 0 | Q27: 841957
B28: STAR DISCOVER LIFE INSURANCE | C28: 0 | D28: 0 | E28: 0 | F28: 0 | G28: 0 | H28: 0 | I28: 0 | J28: 0 | K28: 0 | L28: 0 | M28: 0 | N28: 0 | O28: 0 | P28: 0 | Q28: 0
B29: THE KENYAN ALLIANCE INSURANCE | C29: 0 | D29: 9062 | E29: 9062 | F29: 0 | G29: 10151 | H29: 10151 | I29: 0 | J29: 0 | K29: 0 | L29: 946 | M29: 500 | N29: 3781 | O29: 0 | P29: 0 | Q29: 1246
B30: THE MONARCH INSURANCE | C30: 0 | D30: 0 | E30: 0 | F30: 0 | G30: 0 | H30: 0 | I30: 0 | J30: 0 | K30: 0 | L30: 0 | M30: 0 | N30: 0 | O30: 0 | P30: 463 | Q30: -463
B31: TOTAL | C31: =SUM(C6:C30) -> 12078753 | D31: 15445861 | E31: 11485915 | F31: 323046 | G31: 5957785 | H31: 5216912 | I31: 0 | J31: 0 | K31: 0 | L31: 1246815 | M31: 3029677 | N31: 1157874 | O31: 6699 | P31: 1086969 | Q31: 14458513
B32: REINSURERS
B33: CONTINENTAL REINSURANCE | C33: 0 | D33: 0 | E33: 0 | F33: 0 | G33: 0 | H33: 0 | I33: 0 | J33: 0 | K33: 0 | L33: 0 | M33: 0 | N33: 0 | O33: 0 | P33: 0 | Q33: 0
B34: EAST AFRICA REINSURANCE | C34: 0 | D34: 0 | E34: 0 | F34: 0 | G34: 0 | H34: 0 | I34: 0 | J34: 0 | K34: 0 | L34: 0 | M34: 0 | N34: 0 | O34: 0 | P34: 0 | Q34: 0
B35: KENYA REINSURANCE CORPORATION | C35: 0 | D35: 0 | E35: 0 | F35: 0 | G35: 0 | H35: 0 | I35: 0 | J35: 0 | K35: 0 | L35: 0 | M35: 0 | N35: 0 | O35: 0 | P35: 0 | Q35: 0
B36: TOTAL | C36: =SUM(C33:C35) -> 0 | D36: =SUM(D33:D35) -> 0 | E36: 0 | F36: 0 | G36: 0 | H36: 0 | I36: 0 | J36: 0 | K36: 0 | L36: 0 | M36: 0 | N36: 0 | O36: 0 | P36: 0 | Q36: 0
B37: Amounts in Thousand Shillings

Sheet APPENDIX 15
B3: APPENDIX 15: SUMMARY OF PERMANENT HEALTH BUSINESS REVENUE ACCOUNTS FOR THE YEAR ENDED 31.12.2022
B4: Company | C4: Life Fund BF | D4: Gross Premium | E4: Net Premium | F4: Other (Fee) Income | G4: Total Benefits | H4: Claims | I4: Surrenders | J4: Bonuses Paid | K4: Annuities Paid | L4: Net Commisions | M4: Expense of Management | N4: Investment Income | O4: Investment Expenses | P4: Transfer To (From) P & L | Q4: Life Fund CF
B5: INSURERS
B6: ABSA LIFE ASSURANCE | C6: 0 | D6: 0 | E6: 0 | F6: 0 | G6: 0 | H6: 0 | I6: 0 | J6: 0 | K6: 0 | L6: 0 | M6: 0 | N6: 0 | O6: 0 | P6: 0 | Q6: 0
B7: APA LIFE ASSURANCE COMPANY | C7: 0 | D7: 0 | E7: 0 | F7: 0 | G7: 0 | H7: 0 | I7: 0 | J7: 0 | K7: 0 | L7: 0 | M7: 0 | N7: 0 | O7: 0 | P7: 0 | Q7: 0
B8: BRITAM LIFE ASSURANCE | C8: 0 | D8: 0 | E8: 0 | F8: 0 | G8: 0 | H8: 0 | I8: 0 | J8: 0 | K8: 0 | L8: 0 | M8: 0 | N8: 0 | O8: 0 | P8: 0 | Q8: 0
B9: CANNON LIFE ASSURANCE (K) LIMITED | C9: 0 | D9: 0 | E9: 0 | F9: 0 | G9: 0 | H9: 0 | I9: 0 | J9: 0 | K9: 0 | L9: 0 | M9: 0 | N9: 0 | O9: 0 | P9: 0 | Q9: 0
B10: CAPEX LIFE ASSURANCE COMPANY | C10: 0 | D10: 0 | E10: 0 | F10: 0 | G10: 0 | H10: 0 | I10: 0 | J10: 0 | K10: 0 | L10: 0 | M10: 0 | N10: 0 | O10: 0 | P10: 0 | Q10: 0
B11: CIC LIFE ASSURANCE COMPANY | C11: 0 | D11: 0 | E11: 0 | F11: 0 | G11: 0 | H11: 0 | I11: 0 | J11: 0 | K11: 0 | L11: 0 | M11: 0 | N11: 0 | O11: 0 | P11: 0 | Q11: 0
B12: CORPORATE INSURANCE COMPANY | C12: 0 | D12: 0 | E12: 0 | F12: 0 | G12: 0 | H12: 0 | I12: 0 | J12: 0 | K12: 0 | L12: 0 | M12: 0 | N12: 0 | O12: 0 | P12: 0 | Q12: 0
B13: EQUITY LIFE ASSURANCE | C13: 0 | D13: 0 | E13: 0 | F13: 0 | G13: 0 | H13: 0 | I13: 0 | J13: 0 | K13: 0 | L13: 0 | M13: 0 | N13: 0 | O13: 0 | P13: 0 | Q13: 0
B14: GA LIFE ASSURANCE COMPANY | C14: 0 | D14: 0 | E14: 0 | F14: 0 | G14: 0 | H14: 0 | I14: 0 | J14: 0 | K14: 0 | L14: 0 | M14: 0 | N14: 0 | O14: 0 | P14: 0 | Q14: 0
B15: GEMINIA LIFE INSURANCE COMPANY | C15: 0 | D15: 0 | E15: 0 | F15: 0 | G15: 0 | H15: 0 | I15: 0 | J15: 0 | K15: 0 | L15: 0 | M15: 0 | N15: 0 | O15: 0 | P15: 0 | Q15: 0
B16: ICEA LION LIFE ASSURANCE | C16: 0 | D16: 0 | E16: 0 | F16: 0 | G16: 0 | H16: 0 | I16: 0 | J16: 0 | K16: 0 | L16: 0 | M16: 0 | N16: 0 | O16: 0 | P16: 0 | Q16: 0
B17: JUBILEE INSURANCE COMPANY | C17: 0 | D17: 0 | E17: 0 | F17: 0 | G17: 0 | H17: 0 | I17: 0 | J17: 0 | K17: 0 | L17: 0 | M17: 0 | N17: 0 | O17: 0 | P17: 0 | Q17: 0
B18: KENINDIA ASSURANCE COMPANY | C18: 0 | D18: 0 | E18: 0 | F18: 0 | G18: 0 | H18: 0 | I18: 0 | J18: 0 | K18: 0 | L18: 0 | M18: 0 | N18: 0 | O18: 0 | P18: 0 | Q18: 0
B19: KENYA ORIENT LIFE ASSURANCE | C19: 0 | D19: 0 | E19: 0 | F19: 0 | G19: 0 | H19: 0 | I19: 0 | J19: 0 | K19: 0 | L19: 0 | M19: 0 | N19: 0 | O19: 0 | P19: 0 | Q19: 0
B20: KUSCCO MUTUAL ASSURANCE LIMITED | C20: 1385 | D20: 15757 | E20: 13185 | F20: 0 | G20: 29750 | H20: 0 | I20: 0 | J20: 0 | K20: 0 | L20: 514 | M20: 2786 | N20: 280 | O20: 0 | P20: 0 | Q20: 11551
B21: LIBERTY LIFE ASSURANCE COMPANY | C21: 0 | D21: 0 | E21: 0 | F21: 0 | G21: 0 | H21: 0 | I21: 0 | J21: 0 | K21: 0 | L21: 0 | M21: 0 | N21: 0 | O21: 0 | P21: 0 | Q21: 0
B22: MADISON INSURANCE COMPANY | C22: 0 | D22: 0 | E22: 0 | F22: 0 | G22: 0 | H22: 0 | I22: 0 | J22: 0 | K22: 0 | L22: 0 | M22: 0 | N22: 0 | O22: 0 | P22: 0 | Q22: 0
B23: OLD MUTUAL ASSURANCE | C23: 0 | D23: 0 | E23: 0 | F23: 0 | G23: 0 | H23: 0 | I23: 0 | J23: 0 | K23: 0 | L23: 0 | M23: 0 | N23: 0 | O23: 0 | P23: 0 | Q23: 0
B24: OLD MUTUAL LIFE ASSURANCE | C24: 0 | D24: 0 | E24: 0 | F24: 0 | G24: 0 | H24: 0 | I24: 0 | J24: 0 | K24: 0 | L24: 0 | M24: 0 | N24: 0 | O24: 0 | P24: 0 | Q24: 0
B25: PIONEER ASSURANCE COMPANY | C25: 0 | D25: 0 | E25: 0 | F25: 0 | G25: 0 | H25: 0 | I25: 0 | J25: 0 | K25: 0 | L25: 0 | M25: 0 | N25: 0 | O25: 0 | P25: 0 | Q25: 0
B26: PRUDENTIAL LIFE ASSURANCE | C26: 0 | D26: 0 | E26: 0 | F26: 0 | G26: 0 | H26: 0 | I26: 0 | J26: 0 | K26: 0 | L26: 0 | M26: 0 | N26: 0 | O26: 0 | P26: 0 | Q26: 0
B27: SANLAM LIFE ASSURANCE | C27: 0 | D27: 0 | E27: 0 | F27: 0 | G27: 0 | H27: 0 | I27: 0 | J27: 0 | K27: 0 | L27: 0 | M27: 0 | N27: 0 | O27: 0 | P27: 0 | Q27: 0
B28: STAR DISCOVER LIFE INSURANCE | C28: 0 | D28: 0 | E28: 0 | F28: 0 | G28: 0 | H28: 0 | I28: 0 | J28: 0 | K28: 0 | L28: 0 | M28: 0 | N28: 0 | O28: 0 | P28: 0 | Q28: 0
B29: THE KENYAN ALLIANCE INSURANCE | C29: 0 | D29: 0 | E29: 0 | F29: 0 | G29: 0 | H29: 0 | I29: 0 | J29: 0 | K29: 0 | L29: 0 | M29: 0 | N29: 0 | O29: 0 | P29: 0 | Q29: 0
B30: THE MONARCH INSURANCE | C30: 0 | D30: 0 | E30: 0 | F30: 0 | G30: 0 | H30: 0 | I30: 0 | J30: 0 | K30: 0 | L30: 0 | M30: 0 | N30: 0 | O30: 0 | P30: 0 | Q30: 0
B31: TOTAL | C31: =SUM(C6:C30) -> 1385 | D31: 15757 | E31: 13185 | F31: 0 | G31: 29750 | H31: 0 | I31: 0 | J31: 0 | K31: 0 | L31: 514 | M31: 2786 | N31: 280 | O31: 0 | P31: 0 | Q31: 11551
B32: REINSURERS
B33: CONTINENTAL REINSURANCE | C33: 0 | D33: 0 | E33: 0 | F33: 0 | G33: 0 | H33: 0 | I33: 0 | J33: 0 | K33: 0 | L33: 0 | M33: 0 | N33: 0 | O33: 0 | P33: 0 | Q33: 0
B34: EAST AFRICA REINSURANCE | C34: 0 | D34: 0 | E34: 0 | F34: 0 | G34: 0 | H34: 0 | I34: 0 | J34: 0 | K34: 0 | L34: 0 | M34: 0 | N34: 0 | O34: 0 | P34: 0 | Q34: 0
B35: KENYA REINSURANCE CORPORATION | C35: 0 | D35: 0 | E35: 0 | F35: 0 | G35: 0 | H35: 0 | I35: 0 | J35: 0 | K35: 0 | L35: 0 | M35: 0 | N35: 0 | O35: 0 | P35: 0 | Q35: 0
B36: TOTAL | C36: =SUM(C33:C35) -> 0 | D36: =SUM(D33:D35) -> 0 | E36: 0 | F36: 0 | G36: 0 | H36: 0 | I36: 0 | J36: 0 | K36: 0 | L36: 0 | M36: 0 | N36: 0 | O36: 0 | P36: 0 | Q36: 0
B37: Amounts in Thousand Shillings

Sheet Linked (hidden)
B3: APPENDIX 16: SUMMARY OF INVESTMENTS BUSINESS REVENUE ACCOUNTS FOR THE YEAR ENDED 31.12.2022
B4: Company | C4: Life Fund BF | D4: Gross Premium | E4: Net Premium | F4: Other (Fee) Income | G4: Total Benefits | H4: Claims | I4: Surrenders | J4: Bonuses Paid | K4: Annuities Paid | L4: Net Commisions | M4: Expense of Management | N4: Investment Income | O4: Investment Expenses | P4: Transfer To (From) P & L | Q4: Life Fund CF
B5: INSURERS
B6: ABSA LIFE ASSURANCE | C6: 0 | D6: 0 | E6: 0 | F6: 0 | G6: 0 | H6: 0 | I6: 0 | J6: 0 | K6: 0 | L6: 0 | M6: 0 | N6: 0 | O6: 0 | P6: 0 | Q6: 0
B7: APA LIFE ASSURANCE COMPANY | C7: 0 | D7: 0 | E7: 0 | F7: 0 | G7: 0 | H7: 0 | I7: 0 | J7: 0 | K7: 0 | L7: 0 | M7: 0 | N7: 0 | O7: 0 | P7: 0 | Q7: 0
B8: BRITAM LIFE ASSURANCE | C8: 2615851 | D8: 1912863 | E8: 1912863 | F8: 0 | G8: 1096418 | H8: 532506 | I8: 505060 | J8: 80423 | K8: 0 | L8: 20767 | M8: 96483 | N8: 542660 | O8: 5764 | P8: 233364 | Q8: 3597008
B9: CANNON LIFE ASSURANCE (K) LIMITED | C9: 282023 | D9: 0 | E9: 0 | F9: -61410 | G9: 30075 | H9: 30075 | I9: 0 | J9: 0 | K9: 0 | L9: 0 | M9: 11276 | N9: 0 | O9: 0 | P9: 0 | Q9: 179262
B10: CAPEX LIFE ASSURANCE COMPANY | C10: 0 | D10: 0 | E10: 0 | F10: 0 | G10: 0 | H10: 0 | I10: 0 | J10: 0 | K10: 0 | L10: 0 | M10: 0 | N10: 0 | O10: 0 | P10: 0 | Q10: 0
B11: CIC LIFE ASSURANCE COMPANY | C11: 0 | D11: 0 | E11: 0 | F11: 0 | G11: 0 | H11: 0 | I11: 0 | J11: 0 | K11: 0 | L11: 0 | M11: 0 | N11: 0 | O11: 0 | P11: 0 | Q11: 0
B12: CORPORATE INSURANCE COMPANY | C12: 0 | D12: 0 | E12: 0 | F12: 0 | G12: 0 | H12: 0 | I12: 0 | J12: 0 | K12: 0 | L12: 0 | M12: 0 | N12: 0 | O12: 0 | P12: 0 | Q12: 0
B13: EQUITY LIFE ASSURANCE | C13: 0 | D13: 0 | E13: 0 | F13: 0 | G13: 0 | H13: 0 | I13: 0 | J13: 0 | K13: 0 | L13: 0 | M13: 0 | N13: 0 | O13: 0 | P13: 0 | Q13: 0
B14: GA LIFE ASSURANCE COMPANY | C14: 0 | D14: 0 | E14: 0 | F14: 0 | G14: 0 | H14: 0 | I14: 0 | J14: 0 | K14: 0 | L14: 0 | M14: 0 | N14: 0 | O14: 0 | P14: 0 | Q14: 0
B15: GEMINIA LIFE INSURANCE COMPANY | C15: 0 | D15: 0 | E15: 0 | F15: 0 | G15: 0 | H15: 0 | I15: 0 | J15: 0 | K15: 0 | L15: 0 | M15: 0 | N15: 0 | O15: 0 | P15: 0 | Q15: 0
B16: ICEA LION LIFE ASSURANCE | C16: 379545 | D16: 12412 | E16: 12412 | F16: 0 | G16: 503 | H16: 15870 | I16: 17682 | J16: 0 | K16: 0 | L16: 0 | M16: 0 | N16: 0 | O16: 0 | P16: 1463 | Q16: 356942
B17: JUBILEE INSURANCE COMPANY | C17: 0 | D17: 0 | E17: 0 | F17: 0 | G17: 0 | H17: 0 | I17: 0 | J17: 0 | K17: 0 | L17: 0 | M17: 0 | N17: 0 | O17: 0 | P17: 0 | Q17: 0
B18: KENINDIA ASSURANCE COMPANY | C18: 0 | D18: 0 | E18: 0 | F18: 0 | G18: 0 | H18: 0 | I18: 0 | J18: 0 | K18: 0 | L18: 0 | M18: 0 | N18: 0 | O18: 0 | P18: 0 | Q18: 0
B19: KENYA ORIENT LIFE ASSURANCE | C19: 0 | D19: 0 | E19: 0 | F19: 0 | G19: 0 | H19: 0 | I19: 0 | J19: 0 | K19: 0 | L19: 0 | M19: 0 | N19: 0 | O19: 0 | P19: 0 | Q19: 0
B20: KUSCCO MUTUAL ASSURANCE LIMITED | C20: 0 | D20: 0 | E20: 0 | F20: 0 | G20: 0 | H20: 0 | I20: 0 | J20: 0 | K20: 0 | L20: 0 | M20: 0 | N20: 0 | O20: 0 | P20: 0 | Q20: 0
B21: LIBERTY LIFE ASSURANCE COMPANY | C21: 2766746 | D21: 813339 | E21: 813339 | F21: 0 | G21: 1001602 | H21: 1017177 | I21: 0 | J21: 0 | K21: 0 | L21: 46504 | M21: 133361 | N21: 111206 | O21: 0 | P21: 0 | Q21: 2494248
B22: MADISON INSURANCE COMPANY | C22: 16833 | D22: 1322 | E22: 1322 | F22: 0 | G22: 14827 | H22: 14827 | I22: 0 | J22: 0 | K22: 0 | L22: 0 | M22: 855 | N22: 2804 | O22: 0 | P22: 0 | Q22: 5277
B23: OLD MUTUAL ASSURANCE | C23: 5357434 | D23: 531517 | E23: 531517 | F23: 0 | G23: 1539250 | H23: 241455 | I23: 1299156 | J23: 0 | K23: 0 | L23: 0 | M23: 0 | N23: 216645 | O23: 16187 | P23: 0 | Q23: 4548799
B24: OLD MUTUAL LIFE ASSURANCE | C24: 657589 | D24: 24949 | E24: 24949 | F24: 0 | G24: 124243 | H24: 85297 | I24: 26115 | J24: 0 | K24: 0 | L24: 0 | M24: 0 | N24: 81375 | O24: 0 | P24: 0 | Q24: 652501
B25: PIONEER ASSURANCE COMPANY | C25: 336589 | D25: 48069 | E25: 48069 | F25: 0 | G25: 34637 | H25: 34637 | I25: 0 | J25: 0 | K25: 0 | L25: 0 | M25: 0 | N25: 0 | O25: 0 | P25: 0 | Q25: 350021
B26: PRUDENTIAL LIFE ASSURANCE | C26: 0 | D26: 0 | E26: 0 | F26: 0 | G26: 0 | H26: 0 | I26: 0 | J26: 0 | K26: 0 | L26: 0 | M26: 0 | N26: 0 | O26: 0 | P26: 0 | Q26: 0
B27: SANLAM LIFE ASSURANCE | C27: 2671610 | D27: 313132 | E27: 313100 | F27: 0 | G27: 1048174 | H27: 1023626 | I27: 0 | J27: 0 | K27: 0 | L27: -5 | M27: 180143 | N27: 200775 | O27: 0 | P27: 0 | Q27: 1981721
B28: STAR DISCOVER LIFE INSURANCE | C28: 0 | D28: 0 | E28: 0 | F28: 0 | G28: 0 | H28: 0 | I28: 0 | J28: 0 | K28: 0 | L28: 0 | M28: 0 | N28: 0 | O28: 0 | P28: 0 | Q28: 0
B29: THE KENYAN ALLIANCE INSURANCE | C29: 0 | D29: 0 | E29: 0 | F29: 0 | G29: 0 | H29: 0 | I29: 0 | J29: 0 | K29: 0 | L29: 0 | M29: 0 | N29: 0 | O29: 0 | P29: 0 | Q29: 0
B30: THE MONARCH INSURANCE | C30: 0 | D30: 0 | E30: 0 | F30: 0 | G30: 0 | H30: 0 | I30: 0 | J30: 0 | K30: 0 | L30: 0 | M30: 0 | N30: 0 | O30: 0 | P30: 0 | Q30: 0
B31: TOTAL | C31: =SUM(C6:C30) -> 15084220 | D31: 3657603 | E31: 3657571 | F31: -61410 | G31: 4889729 | H31: 2995470 | I31: 1848013 | J31: 80423 | K31: 0 | L31: 67266 | M31: 422118 | N31: 1155465 | O31: 21951 | P31: 234827 | Q31: 14165779
B32: REINSURERS
B33: CONTINENTAL REINSURANCE | C33: 0 | D33: 0 | E33: 0 | F33: 0 | G33: 0 | H33: 0 | I33: 0 | J33: 0 | K33: 0 | L33: 0 | M33: 0 | N33: 0 | O33: 0 | P33: 0 | Q33: 0
B34: EAST AFRICA REINSURANCE | C34: 0 | D34: 0 | E34: 0 | F34: 0 | G34: 0 | H34: 0 | I34: 0 | J34: 0 | K34: 0 | L34: 0 | M34: 0 | N34: 0 | O34: 0 | P34: 0 | Q34: 0
B35: KENYA REINSURANCE CORPORATION | C35: 0 | D35: 0 | E35: 0 | F35: 0 | G35: 0 | H35: 0 | I35: 0 | J35: 0 | K35: 0 | L35: 0 | M35: 0 | N35: 0 | O35: 0 | P35: 0 | Q35: 0
B36: TOTAL | C36: =SUM(C33:C35) -> 0 | D36: =SUM(D33:D35) -> 0 | E36: 0 | F36: 0 | G36: 0 | H36: 0 | I36: 0 | J36: 0 | K36: 0 | L36: 0 | M36: 0 | N36: 0 | O36: 0 | P36: 0 | Q36: 0
B37: Amounts in Thousand Shillings

Sheet Non Linked (hidden)
B3: APPENDIX 16: SUMMARY OF INVESTMENTS BUSINESS REVENUE ACCOUNTS FOR THE YEAR ENDED 31.12.2022
B4: Company | C4: Life Fund BF | D4: Gross Premium | E4: Net Premium | F4: Other (Fee) Income | G4: Total Benefits | H4: Claims | I4: Surrenders | J4: Bonuses Paid | K4: Annuities Paid | L4: Net Commisions | M4: Expense of Management | N4: Investment Income | O4: Investment Expenses | P4: Transfer To (From) P & L | Q4: Life Fund CF
B5: INSURERS
B6: ABSA LIFE ASSURANCE | C6: 0 | D6: 0 | E6: 0 | F6: 0 | G6: 0 | H6: 0 | I6: 0 | J6: 0 | K6: 0 | L6: 0 | M6: 0 | N6: 0 | O6: 0 | P6: 0 | Q6: 0
B7: APA LIFE ASSURANCE COMPANY | C7: 0 | D7: 356976 | E7: 356976 | F7: 0 | G7: 0 | H7: 0 | I7: 0 | J7: 0 | K7: 0 | L7: 0 | M7: 0 | N7: 0 | O7: 0 | P7: 0 | Q7: 356976
B8: BRITAM LIFE ASSURANCE | C8: 0 | D8: 0 | E8: 0 | F8: 0 | G8: 0 | H8: 0 | I8: 0 | J8: 0 | K8: 0 | L8: 0 | M8: 0 | N8: 0 | O8: 0 | P8: 0 | Q8: 0
B9: CANNON LIFE ASSURANCE (K) LIMITED | C9: 0 | D9: 0 | E9: 0 | F9: 0 | G9: 0 | H9: 0 | I9: 0 | J9: 0 | K9: 0 | L9: 0 | M9: 0 | N9: 0 | O9: 0 | P9: 0 | Q9: 0
B10: CAPEX LIFE ASSURANCE COMPANY | C10: 0 | D10: 0 | E10: 0 | F10: 0 | G10: 0 | H10: 0 | I10: 0 | J10: 0 | K10: 0 | L10: 0 | M10: 0 | N10: 0 | O10: 0 | P10: 0 | Q10: 0
B11: CIC LIFE ASSURANCE COMPANY | C11: 0 | D11: 0 | E11: 0 | F11: 0 | G11: 0 | H11: 0 | I11: 0 | J11: 0 | K11: 0 | L11: 0 | M11: 0 | N11: 0 | O11: 0 | P11: 0 | Q11: 0
B12: CORPORATE INSURANCE COMPANY | C12: 0 | D12: 0 | E12: 0 | F12: 0 | G12: 0 | H12: 0 | I12: 0 | J12: 0 | K12: 0 | L12: 0 | M12: 0 | N12: 0 | O12: 0 | P12: 0 | Q12: 0
B13: EQUITY LIFE ASSURANCE | C13: 0 | D13: 0 | E13: 0 | F13: 18436 | G13: 0 | H13: 0 | I13: 0 | J13: 0 | K13: 0 | L13: 0 | M13: 14849 | N13: 0 | O13: 0 | P13: 3587 | Q13: 0
B14: GA LIFE ASSURANCE COMPANY | C14: 0 | D14: 0 | E14: 0 | F14: 0 | G14: 0 | H14: 0 | I14: 0 | J14: 0 | K14: 0 | L14: 0 | M14: 0 | N14: 0 | O14: 0 | P14: 0 | Q14: 0
B15: GEMINIA LIFE INSURANCE COMPANY | C15: 8025 | D15: 0 | E15: 0 | F15: 9399 | G15: 0 | H15: 0 | I15: 0 | J15: 0 | K15: 0 | L15: 0 | M15: 0 | N15: 9399 | O15: 0 | P15: 9399 | Q15: 17425
B16: ICEA LION LIFE ASSURANCE | C16: 0 | D16: 0 | E16: 0 | F16: 0 | G16: 0 | H16: 0 | I16: 0 | J16: 0 | K16: 0 | L16: 0 | M16: 0 | N16: 0 | O16: 0 | P16: 0 | Q16: 0
B17: JUBILEE INSURANCE COMPANY | C17: 0 | D17: 0 | E17: 0 | F17: 0 | G17: 0 | H17: 0 | I17: 0 | J17: 0 | K17: 0 | L17: 0 | M17: 0 | N17: 0 | O17: 0 | P17: 0 | Q17: 0
B18: KENINDIA ASSURANCE COMPANY | C18: 0 | D18: 0 | E18: 0 | F18: 0 | G18: 0 | H18: 0 | I18: 0 | J18: 0 | K18: 0 | L18: 0 | M18: 0 | N18: 0 | O18: 0 | P18: 0 | Q18: 0
B19: KENYA ORIENT LIFE ASSURANCE | C19: 0 | D19: 0 | E19: 0 | F19: 0 | G19: 0 | H19: 0 | I19: 0 | J19: 0 | K19: 0 | L19: 0 | M19: 0 | N19: 0 | O19: 0 | P19: 0 | Q19: 0
B20: KUSCCO MUTUAL ASSURANCE LIMITED | C20: 0 | D20: 0 | E20: 0 | F20: 0 | G20: 0 | H20: 0 | I20: 0 | J20: 0 | K20: 0 | L20: 0 | M20: 0 | N20: 0 | O20: 0 | P20: 0 | Q20: 0
B21: LIBERTY LIFE ASSURANCE COMPANY | C21: -117854 | D21: 0 | E21: 0 | F21: 0 | G21: 0 | H21: 0 | I21: 0 | J21: 0 | K21: 0 | L21: 0 | M21: 0 | N21: 250461 | O21: 0 | P21: 0 | Q21: 132607
B22: MADISON INSURANCE COMPANY | C22: 0 | D22: 0 | E22: 0 | F22: 0 | G22: 0 | H22: 0 | I22: 0 | J22: 0 | K22: 0 | L22: 0 | M22: 0 | N22: 0 | O22: 0 | P22: 0 | Q22: 0
B23: OLD MUTUAL ASSURANCE | C23: 0 | D23: 0 | E23: 0 | F23: 0 | G23: 0 | H23: 0 | I23: 0 | J23: 0 | K23: 0 | L23: 0 | M23: 0 | N23: 0 | O23: 0 | P23: 0 | Q23: 0
B24: OLD MUTUAL LIFE ASSURANCE | C24: 299172 | D24: 0 | E24: 0 | F24: 0 | G24: 0 | H24: 0 | I24: 0 | J24: 0 | K24: 0 | L24: 0 | M24: 0 | N24: 1297 | O24: 0 | P24: 0 | Q24: 300469
B25: PIONEER ASSURANCE COMPANY | C25: 0 | D25: 0 | E25: 0 | F25: 0 | G25: 0 | H25: 0 | I25: 0 | J25: 0 | K25: 0 | L25: 0 | M25: 0 | N25: 0 | O25: 0 | P25: 0 | Q25: 0
B26: PRUDENTIAL LIFE ASSURANCE | C26: 0 | D26: 0 | E26: 0 | F26: 0 | G26: 0 | H26: 0 | I26: 0 | J26: 0 | K26: 0 | L26: 0 | M26: 0 | N26: 0 | O26: 0 | P26: 0 | Q26: 0
B27: SANLAM LIFE ASSURANCE | C27: 0 | D27: 0 | E27: 0 | F27: 0 | G27: 0 | H27: 0 | I27: 0 | J27: 0 | K27: 0 | L27: 0 | M27: 0 | N27: 0 | O27: 0 | P27: 0 | Q27: 0
B28: STAR DISCOVER LIFE INSURANCE | C28: 0 | D28: 0 | E28: 0 | F28: 0 | G28: 0 | H28: 0 | I28: 0 | J28: 0 | K28: 0 | L28: 0 | M28: 0 | N28: 0 | O28: 0 | P28: 0 | Q28: 0
B29: THE KENYAN ALLIANCE INSURANCE | C29: 384775 | D29: 41500 | E29: 41500 | F29: 0 | G29: 155379 | H29: 118341 | I29: 0 | J29: 0 | K29: 0 | L29: 966 | M29: 2417 | N29: 17315 | O29: 0 | P29: 90314 | Q29: 231551
B30: THE MONARCH INSURANCE | C30: 0 | D30: 0 | E30: 0 | F30: 0 | G30: 0 | H30: 0 | I30: 0 | J30: 0 | K30: 0 | L30: 0 | M30: 0 | N30: 0 | O30: 0 | P30: 0 | Q30: 0
B31: TOTAL | C31: =SUM(C6:C30) -> 574118 | D31: 398476 | E31: 398476 | F31: 27835 | G31: 155379 | H31: 118341 | I31: 0 | J31: 0 | K31: 0 | L31: 966 | M31: 17266 | N31: 278472 | O31: 0 | P31: 103300 | Q31: 1039028
B32: REINSURERS
B33: CONTINENTAL REINSURANCE | C33: 0 | D33: 0 | E33: 0 | F33: 0 | G33: 0 | H33: 0 | I33: 0 | J33: 0 | K33: 0 | L33: 0 | M33: 0 | N33: 0 | O33: 0 | P33: 0 | Q33: 0
B34: EAST AFRICA REINSURANCE | C34: 0 | D34: 0 | E34: 0 | F34: 0 | G34: 0 | H34: 0 | I34: 0 | J34: 0 | K34: 0 | L34: 0 | M34: 0 | N34: 0 | O34: 0 | P34: 0 | Q34: 0
B35: KENYA REINSURANCE CORPORATION | C35: 0 | D35: 0 | E35: 0 | F35: 0 | G35: 0 | H35: 0 | I35: 0 | J35: 0 | K35: 0 | L35: 0 | M35: 0 | N35: 0 | O35: 0 | P35: 0 | Q35: 0
B36: TOTAL | C36: =SUM(C33:C35) -> 0 | D36: =SUM(D33:D35) -> 0 | E36: 0 | F36: 0 | G36: 0 | H36: 0 | I36: 0 | J36: 0 | K36: 0 | L36: 0 | M36: 0 | N36: 0 | O36: 0 | P36: 0 | Q36: 0
B37: Amounts in Thousand Shillings

Sheet APPENDIX 16
B3: APPENDIX 16: SUMMARY OF INVESTMENTS BUSINESS REVENUE ACCOUNTS FOR THE YEAR ENDED 31.12.2022
B4: Company | C4: Life Fund BF | D4: Gross Premium | E4: Net Premium | F4: Other (Fee) Income | G4: Total Benefits | H4: Claims | I4: Surrenders | J4: Bonuses Paid | K4: Annuities Paid | L4: Net Commisions | M4: Expense of Management | N4: Investment Income | O4: Investment Expenses | P4: Transfer To (From) P & L | Q4: Life Fund CF
B5: INSURERS
B6: ABSA LIFE ASSURANCE | C6: =+Linked!C6+'Non Linked'!C6 -> 0 | D6: =+Linked!D6+'Non Linked'!D6 -> 0 | E6: =+Linked!E6+'Non Linked'!E6 -> 0 | F6: =+Linked!F6+'Non Linked'!F6 -> 0 | G6: =+Linked!G6+'Non Linked'!G6 -> 0 | H6: =+Linked!H6+'Non Linked'!H6 -> 0 | I6: =+Linked!I6+'Non Linked'!I6 -> 0 | J6: =+Linked!J6+'Non Linked'!J6 -> 0 | K6: =+Linked!K6+'Non Linked'!K6 -> 0 | L6: =+Linked!L6+'Non Linked'!L6 -> 0 | M6: =+Linked!M6+'Non Linked'!M6 -> 0 | N6: =+Linked!N6+'Non Linked'!N6 -> 0 | O6: =+Linked!O6+'Non Linked'!O6 -> 0 | P6: =+Linked!P6+'Non Linked'!P6 -> 0 | Q6: =+Linked!Q6+'Non Linked'!Q6 -> 0
B7: APA LIFE ASSURANCE COMPANY | C7: =+Linked!C7+'Non Linked'!C7 -> 0 | D7: =+Linked!D7+'Non Linked'!D7 -> 356976 | E7: =+Linked!E7+'Non Linked'!E7 -> 356976 | F7: =+Linked!F7+'Non Linked'!F7 -> 0 | G7: =+Linked!G7+'Non Linked'!G7 -> 0 | H7: =+Linked!H7+'Non Linked'!H7 -> 0 | I7: =+Linked!I7+'Non Linked'!I7 -> 0 | J7: =+Linked!J7+'Non Linked'!J7 -> 0 | K7: =+Linked!K7+'Non Linked'!K7 -> 0 | L7: =+Linked!L7+'Non Linked'!L7 -> 0 | M7: =+Linked!M7+'Non Linked'!M7 -> 0 | N7: =+Linked!N7+'Non Linked'!N7 -> 0 | O7: =+Linked!O7+'Non Linked'!O7 -> 0 | P7: =+Linked!P7+'Non Linked'!P7 -> 0 | Q7: =+Linked!Q7+'Non Linked'!Q7 -> 356976
B8: BRITAM LIFE ASSURANCE | C8: =+Linked!C8+'Non Linked'!C8 -> 2615851 | D8: =+Linked!D8+'Non Linked'!D8 -> 1912863 | E8: =+Linked!E8+'Non Linked'!E8 -> 1912863 | F8: =+Linked!F8+'Non Linked'!F8 -> 0 | G8: =+Linked!G8+'Non Linked'!G8 -> 1096418 | H8: =+Linked!H8+'Non Linked'!H8 -> 532506 | I8: =+Linked!I8+'Non Linked'!I8 -> 505060 | J8: =+Linked!J8+'Non Linked'!J8 -> 80423 | K8: =+Linked!K8+'Non Linked'!K8 -> 0 | L8: =+Linked!L8+'Non Linked'!L8 -> 20767 | M8: =+Linked!M8+'Non Linked'!M8 -> 96483 | N8: =+Linked!N8+'Non Linked'!N8 -> 542660 | O8: =+Linked!O8+'Non Linked'!O8 -> 5764 | P8: =+Linked!P8+'Non Linked'!P8 -> 233364 | Q8: =+Linked!Q8+'Non Linked'!Q8 -> 3597008
B9: CANNON LIFE ASSURANCE (K) LIMITED | C9: =+Linked!C9+'Non Linked'!C9 -> 282023 | D9: =+Linked!D9+'Non Linked'!D9 -> 0 | E9: =+Linked!E9+'Non Linked'!E9 -> 0 | F9: =+Linked!F9+'Non Linked'!F9 -> -61410 | G9: =+Linked!G9+'Non Linked'!G9 -> 30075 | H9: =+Linked!H9+'Non Linked'!H9 -> 30075 | I9: =+Linked!I9+'Non Linked'!I9 -> 0 | J9: =+Linked!J9+'Non Linked'!J9 -> 0 | K9: =+Linked!K9+'Non Linked'!K9 -> 0 | L9: =+Linked!L9+'Non Linked'!L9 -> 0 | M9: =+Linked!M9+'Non Linked'!M9 -> 11276 | N9: =+Linked!N9+'Non Linked'!N9 -> 0 | O9: =+Linked!O9+'Non Linked'!O9 -> 0 | P9: =+Linked!P9+'Non Linked'!P9 -> 0 | Q9: =+Linked!Q9+'Non Linked'!Q9 -> 179262
B10: CAPEX LIFE ASSURANCE COMPANY | C10: =+Linked!C10+'Non Linked'!C10 -> 0 | D10: =+Linked!D10+'Non Linked'!D10 -> 0 | E10: =+Linked!E10+'Non Linked'!E10 -> 0 | F10: =+Linked!F10+'Non Linked'!F10 -> 0 | G10: =+Linked!G10+'Non Linked'!G10 -> 0 | H10: =+Linked!H10+'Non Linked'!H10 -> 0 | I10: =+Linked!I10+'Non Linked'!I10 -> 0 | J10: =+Linked!J10+'Non Linked'!J10 -> 0 | K10: =+Linked!K10+'Non Linked'!K10 -> 0 | L10: =+Linked!L10+'Non Linked'!L10 -> 0 | M10: =+Linked!M10+'Non Linked'!M10 -> 0 | N10: =+Linked!N10+'Non Linked'!N10 -> 0 | O10: =+Linked!O10+'Non Linked'!O10 -> 0 | P10: =+Linked!P10+'Non Linked'!P10 -> 0 | Q10: =+Linked!Q10+'Non Linked'!Q10 -> 0
B11: CIC LIFE ASSURANCE COMPANY | C11: =+Linked!C11+'Non Linked'!C11 -> 0 | D11: =+Linked!D11+'Non Linked'!D11 -> 0 | E11: =+Linked!E11+'Non Linked'!E11 -> 0 | F11: =+Linked!F11+'Non Linked'!F11 -> 0 | G11: =+Linked!G11+'Non Linked'!G11 -> 0 | H11: =+Linked!H11+'Non Linked'!H11 -> 0 | I11: =+Linked!I11+'Non Linked'!I11 -> 0 | J11: =+Linked!J11+'Non Linked'!J11 -> 0 | K11: =+Linked!K11+'Non Linked'!K11 -> 0 | L11: =+Linked!L11+'Non Linked'!L11 -> 0 | M11: =+Linked!M11+'Non Linked'!M11 -> 0 | N11: =+Linked!N11+'Non Linked'!N11 -> 0 | O11: =+Linked!O11+'Non Linked'!O11 -> 0 | P11: =+Linked!P11+'Non Linked'!P11 -> 0 | Q11: =+Linked!Q11+'Non Linked'!Q11 -> 0
B12: CORPORATE INSURANCE COMPANY | C12: =+Linked!C12+'Non Linked'!C12 -> 0 | D12: =+Linked!D12+'Non Linked'!D12 -> 0 | E12: =+Linked!E12+'Non Linked'!E12 -> 0 | F12: =+Linked!F12+'Non Linked'!F12 -> 0 | G12: =+Linked!G12+'Non Linked'!G12 -> 0 | H12: =+Linked!H12+'Non Linked'!H12 -> 0 | I12: =+Linked!I12+'Non Linked'!I12 -> 0 | J12: =+Linked!J12+'Non Linked'!J12 -> 0 | K12: =+Linked!K12+'Non Linked'!K12 -> 0 | L12: =+Linked!L12+'Non Linked'!L12 -> 0 | M12: =+Linked!M12+'Non Linked'!M12 -> 0 | N12: =+Linked!N12+'Non Linked'!N12 -> 0 | O12: =+Linked!O12+'Non Linked'!O12 -> 0 | P12: =+Linked!P12+'Non Linked'!P12 -> 0 | Q12: =+Linked!Q12+'Non Linked'!Q12 -> 0
B13: EQUITY LIFE ASSURANCE | C13: =+Linked!C13+'Non Linked'!C13 -> 0 | D13: =+Linked!D13+'Non Linked'!D13 -> 0 | E13: =+Linked!E13+'Non Linked'!E13 -> 0 | F13: =+Linked!F13+'Non Linked'!F13 -> 18436 | G13: =+Linked!G13+'Non Linked'!G13 -> 0 | H13: =+Linked!H13+'Non Linked'!H13 -> 0 | I13: =+Linked!I13+'Non Linked'!I13 -> 0 | J13: =+Linked!J13+'Non Linked'!J13 -> 0 | K13: =+Linked!K13+'Non Linked'!K13 -> 0 | L13: =+Linked!L13+'Non Linked'!L13 -> 0 | M13: =+Linked!M13+'Non Linked'!M13 -> 14849 | N13: =+Linked!N13+'Non Linked'!N13 -> 0 | O13: =+Linked!O13+'Non Linked'!O13 -> 0 | P13: =+Linked!P13+'Non Linked'!P13 -> 3587 | Q13: =+Linked!Q13+'Non Linked'!Q13 -> 0
B14: GA LIFE ASSURANCE COMPANY | C14: =+Linked!C14+'Non Linked'!C14 -> 0 | D14: =+Linked!D14+'Non Linked'!D14 -> 0 | E14: =+Linked!E14+'Non Linked'!E14 -> 0 | F14: =+Linked!F14+'Non Linked'!F14 -> 0 | G14: =+Linked!G14+'Non Linked'!G14 -> 0 | H14: =+Linked!H14+'Non Linked'!H14 -> 0 | I14: =+Linked!I14+'Non Linked'!I14 -> 0 | J14: =+Linked!J14+'Non Linked'!J14 -> 0 | K14: =+Linked!K14+'Non Linked'!K14 -> 0 | L14: =+Linked!L14+'Non Linked'!L14 -> 0 | M14: =+Linked!M14+'Non Linked'!M14 -> 0 | N14: =+Linked!N14+'Non Linked'!N14 -> 0 | O14: =+Linked!O14+'Non Linked'!O14 -> 0 | P14: =+Linked!P14+'Non Linked'!P14 -> 0 | Q14: =+Linked!Q14+'Non Linked'!Q14 -> 0
B15: GEMINIA LIFE INSURANCE COMPANY | C15: =+Linked!C15+'Non Linked'!C15 -> 8025 | D15: =+Linked!D15+'Non Linked'!D15 -> 0 | E15: =+Linked!E15+'Non Linked'!E15 -> 0 | F15: =+Linked!F15+'Non Linked'!F15 -> 9399 | G15: =+Linked!G15+'Non Linked'!G15 -> 0 | H15: =+Linked!H15+'Non Linked'!H15 -> 0 | I15: =+Linked!I15+'Non Linked'!I15 -> 0 | J15: =+Linked!J15+'Non Linked'!J15 -> 0 | K15: =+Linked!K15+'Non Linked'!K15 -> 0 | L15: =+Linked!L15+'Non Linked'!L15 -> 0 | M15: =+Linked!M15+'Non Linked'!M15 -> 0 | N15: =+Linked!N15+'Non Linked'!N15 -> 9399 | O15: =+Linked!O15+'Non Linked'!O15 -> 0 | P15: =+Linked!P15+'Non Linked'!P15 -> 9399 | Q15: =+Linked!Q15+'Non Linked'!Q15 -> 17425
B16: ICEA LION LIFE ASSURANCE | C16: =+Linked!C16+'Non Linked'!C16 -> 379545 | D16: =+Linked!D16+'Non Linked'!D16 -> 12412 | E16: =+Linked!E16+'Non Linked'!E16 -> 12412 | F16: =+Linked!F16+'Non Linked'!F16 -> 0 | G16: =+Linked!G16+'Non Linked'!G16 -> 503 | H16: =+Linked!H16+'Non Linked'!H16 -> 15870 | I16: =+Linked!I16+'Non Linked'!I16 -> 17682 | J16: =+Linked!J16+'Non Linked'!J16 -> 0 | K16: =+Linked!K16+'Non Linked'!K16 -> 0 | L16: =+Linked!L16+'Non Linked'!L16 -> 0 | M16: =+Linked!M16+'Non Linked'!M16 -> 0 | N16: =+Linked!N16+'Non Linked'!N16 -> 0 | O16: =+Linked!O16+'Non Linked'!O16 -> 0 | P16: =+Linked!P16+'Non Linked'!P16 -> 1463 | Q16: =+Linked!Q16+'Non Linked'!Q16 -> 356942
B17: JUBILEE INSURANCE COMPANY | C17: =+Linked!C17+'Non Linked'!C17 -> 0 | D17: =+Linked!D17+'Non Linked'!D17 -> 0 | E17: =+Linked!E17+'Non Linked'!E17 -> 0 | F17: =+Linked!F17+'Non Linked'!F17 -> 0 | G17: =+Linked!G17+'Non Linked'!G17 -> 0 | H17: =+Linked!H17+'Non Linked'!H17 -> 0 | I17: =+Linked!I17+'Non Linked'!I17 -> 0 | J17: =+Linked!J17+'Non Linked'!J17 -> 0 | K17: =+Linked!K17+'Non Linked'!K17 -> 0 | L17: =+Linked!L17+'Non Linked'!L17 -> 0 | M17: =+Linked!M17+'Non Linked'!M17 -> 0 | N17: =+Linked!N17+'Non Linked'!N17 -> 0 | O17: =+Linked!O17+'Non Linked'!O17 -> 0 | P17: =+Linked!P17+'Non Linked'!P17 -> 0 | Q17: =+Linked!Q17+'Non Linked'!Q17 -> 0
B18: KENINDIA ASSURANCE COMPANY | C18: =+Linked!C18+'Non Linked'!C18 -> 0 | D18: =+Linked!D18+'Non Linked'!D18 -> 0 | E18: =+Linked!E18+'Non Linked'!E18 -> 0 | F18: =+Linked!F18+'Non Linked'!F18 -> 0 | G18: =+Linked!G18+'Non Linked'!G18 -> 0 | H18: =+Linked!H18+'Non Linked'!H18 -> 0 | I18: =+Linked!I18+'Non Linked'!I18 -> 0 | J18: =+Linked!J18+'Non Linked'!J18 -> 0 | K18: =+Linked!K18+'Non Linked'!K18 -> 0 | L18: =+Linked!L18+'Non Linked'!L18 -> 0 | M18: =+Linked!M18+'Non Linked'!M18 -> 0 | N18: =+Linked!N18+'Non Linked'!N18 -> 0 | O18: =+Linked!O18+'Non Linked'!O18 -> 0 | P18: =+Linked!P18+'Non Linked'!P18 -> 0 | Q18: =+Linked!Q18+'Non Linked'!Q18 -> 0
B19: KENYA ORIENT LIFE ASSURANCE | C19: =+Linked!C19+'Non Linked'!C19 -> 0 | D19: =+Linked!D19+'Non Linked'!D19 -> 0 | E19: =+Linked!E19+'Non Linked'!E19 -> 0 | F19: =+Linked!F19+'Non Linked'!F19 -> 0 | G19: =+Linked!G19+'Non Linked'!G19 -> 0 | H19: =+Linked!H19+'Non Linked'!H19 -> 0 | I19: =+Linked!I19+'Non Linked'!I19 -> 0 | J19: =+Linked!J19+'Non Linked'!J19 -> 0 | K19: =+Linked!K19+'Non Linked'!K19 -> 0 | L19: =+Linked!L19+'Non Linked'!L19 -> 0 | M19: =+Linked!M19+'Non Linked'!M19 -> 0 | N19: =+Linked!N19+'Non Linked'!N19 -> 0 | O19: =+Linked!O19+'Non Linked'!O19 -> 0 | P19: =+Linked!P19+'Non Linked'!P19 -> 0 | Q19: =+Linked!Q19+'Non Linked'!Q19 -> 0
B20: KUSCCO MUTUAL ASSURANCE LIMITED | C20: =+Linked!C20+'Non Linked'!C20 -> 0 | D20: =+Linked!D20+'Non Linked'!D20 -> 0 | E20: =+Linked!E20+'Non Linked'!E20 -> 0 | F20: =+Linked!F20+'Non Linked'!F20 -> 0 | G20: =+Linked!G20+'Non Linked'!G20 -> 0 | H20: =+Linked!H20+'Non Linked'!H20 -> 0 | I20: =+Linked!I20+'Non Linked'!I20 -> 0 | J20: =+Linked!J20+'Non Linked'!J20 -> 0 | K20: =+Linked!K20+'Non Linked'!K20 -> 0 | L20: =+Linked!L20+'Non Linked'!L20 -> 0 | M20: =+Linked!M20+'Non Linked'!M20 -> 0 | N20: =+Linked!N20+'Non Linked'!N20 -> 0 | O20: =+Linked!O20+'Non Linked'!O20 -> 0 | P20: =+Linked!P20+'Non Linked'!P20 -> 0 | Q20: =+Linked!Q20+'Non Linked'!Q20 -> 0
B21: LIBERTY LIFE ASSURANCE COMPANY | C21: =+Linked!C21+'Non Linked'!C21 -> 2648892 | D21: =+Linked!D21+'Non Linked'!D21 -> 813339 | E21: =+Linked!E21+'Non Linked'!E21 -> 813339 | F21: =+Linked!F21+'Non Linked'!F21 -> 0 | G21: =+Linked!G21+'Non Linked'!G21 -> 1001602 | H21: =+Linked!H21+'Non Linked'!H21 -> 1017177 | I21: =+Linked!I21+'Non Linked'!I21 -> 0 | J21: =+Linked!J21+'Non Linked'!J21 -> 0 | K21: =+Linked!K21+'Non Linked'!K21 -> 0 | L21: =+Linked!L21+'Non Linked'!L21 -> 46504 | M21: =+Linked!M21+'Non Linked'!M21 -> 133361 | N21: =+Linked!N21+'Non Linked'!N21 -> 361667 | O21: =+Linked!O21+'Non Linked'!O21 -> 0 | P21: =+Linked!P21+'Non Linked'!P21 -> 0 | Q21: =+Linked!Q21+'Non Linked'!Q21 -> 2626855
B22: MADISON INSURANCE COMPANY | C22: =+Linked!C22+'Non Linked'!C22 -> 16833 | D22: =+Linked!D22+'Non Linked'!D22 -> 1322 | E22: =+Linked!E22+'Non Linked'!E22 -> 1322 | F22: =+Linked!F22+'Non Linked'!F22 -> 0 | G22: =+Linked!G22+'Non Linked'!G22 -> 14827 | H22: =+Linked!H22+'Non Linked'!H22 -> 14827 | I22: =+Linked!I22+'Non Linked'!I22 -> 0 | J22: =+Linked!J22+'Non Linked'!J22 -> 0 | K22: =+Linked!K22+'Non Linked'!K22 -> 0 | L22: =+Linked!L22+'Non Linked'!L22 -> 0 | M22: =+Linked!M22+'Non Linked'!M22 -> 855 | N22: =+Linked!N22+'Non Linked'!N22 -> 2804 | O22: =+Linked!O22+'Non Linked'!O22 -> 0 | P22: =+Linked!P22+'Non Linked'!P22 -> 0 | Q22: =+Linked!Q22+'Non Linked'!Q22 -> 5277
B23: OLD MUTUAL ASSURANCE | C23: =+Linked!C23+'Non Linked'!C23 -> 5357434 | D23: =+Linked!D23+'Non Linked'!D23 -> 531517 | E23: =+Linked!E23+'Non Linked'!E23 -> 531517 | F23: =+Linked!F23+'Non Linked'!F23 -> 0 | G23: =+Linked!G23+'Non Linked'!G23 -> 1539250 | H23: =+Linked!H23+'Non Linked'!H23 -> 241455 | I23: =+Linked!I23+'Non Linked'!I23 -> 1299156 | J23: =+Linked!J23+'Non Linked'!J23 -> 0 | K23: =+Linked!K23+'Non Linked'!K23 -> 0 | L23: =+Linked!L23+'Non Linked'!L23 -> 0 | M23: =+Linked!M23+'Non Linked'!M23 -> 0 | N23: =+Linked!N23+'Non Linked'!N23 -> 216645 | O23: =+Linked!O23+'Non Linked'!O23 -> 16187 | P23: =+Linked!P23+'Non Linked'!P23 -> 0 | Q23: =+Linked!Q23+'Non Linked'!Q23 -> 4548799
B24: OLD MUTUAL LIFE ASSURANCE | C24: =+Linked!C24+'Non Linked'!C24 -> 956761 | D24: =+Linked!D24+'Non Linked'!D24 -> 24949 | E24: =+Linked!E24+'Non Linked'!E24 -> 24949 | F24: =+Linked!F24+'Non Linked'!F24 -> 0 | G24: =+Linked!G24+'Non Linked'!G24 -> 124243 | H24: =+Linked!H24+'Non Linked'!H24 -> 85297 | I24: =+Linked!I24+'Non Linked'!I24 -> 26115 | J24: =+Linked!J24+'Non Linked'!J24 -> 0 | K24: =+Linked!K24+'Non Linked'!K24 -> 0 | L24: =+Linked!L24+'Non Linked'!L24 -> 0 | M24: =+Linked!M24+'Non Linked'!M24 -> 0 | N24: =+Linked!N24+'Non Linked'!N24 -> 82672 | O24: =+Linked!O24+'Non Linked'!O24 -> 0 | P24: =+Linked!P24+'Non Linked'!P24 -> 0 | Q24: =+Linked!Q24+'Non Linked'!Q24 -> 952970
B25: PIONEER ASSURANCE COMPANY | C25: =+Linked!C25+'Non Linked'!C25 -> 336589 | D25: =+Linked!D25+'Non Linked'!D25 -> 48069 | E25: =+Linked!E25+'Non Linked'!E25 -> 48069 | F25: =+Linked!F25+'Non Linked'!F25 -> 0 | G25: =+Linked!G25+'Non Linked'!G25 -> 34637 | H25: =+Linked!H25+'Non Linked'!H25 -> 34637 | I25: =+Linked!I25+'Non Linked'!I25 -> 0 | J25: =+Linked!J25+'Non Linked'!J25 -> 0 | K25: =+Linked!K25+'Non Linked'!K25 -> 0 | L25: =+Linked!L25+'Non Linked'!L25 -> 0 | M25: =+Linked!M25+'Non Linked'!M25 -> 0 | N25: =+Linked!N25+'Non Linked'!N25 -> 0 | O25: =+Linked!O25+'Non Linked'!O25 -> 0 | P25: =+Linked!P25+'Non Linked'!P25 -> 0 | Q25: =+Linked!Q25+'Non Linked'!Q25 -> 350021
B26: PRUDENTIAL LIFE ASSURANCE | C26: =+Linked!C26+'Non Linked'!C26 -> 0 | D26: =+Linked!D26+'Non Linked'!D26 -> 0 | E26: =+Linked!E26+'Non Linked'!E26 -> 0 | F26: =+Linked!F26+'Non Linked'!F26 -> 0 | G26: =+Linked!G26+'Non Linked'!G26 -> 0 | H26: =+Linked!H26+'Non Linked'!H26 -> 0 | I26: =+Linked!I26+'Non Linked'!I26 -> 0 | J26: =+Linked!J26+'Non Linked'!J26 -> 0 | K26: =+Linked!K26+'Non Linked'!K26 -> 0 | L26: =+Linked!L26+'Non Linked'!L26 -> 0 | M26: =+Linked!M26+'Non Linked'!M26 -> 0 | N26: =+Linked!N26+'Non Linked'!N26 -> 0 | O26: =+Linked!O26+'Non Linked'!O26 -> 0 | P26: =+Linked!P26+'Non Linked'!P26 -> 0 | Q26: =+Linked!Q26+'Non Linked'!Q26 -> 0
B27: SANLAM LIFE ASSURANCE | C27: =+Linked!C27+'Non Linked'!C27 -> 2671610 | D27: =+Linked!D27+'Non Linked'!D27 -> 313132 | E27: =+Linked!E27+'Non Linked'!E27 -> 313100 | F27: =+Linked!F27+'Non Linked'!F27 -> 0 | G27: =+Linked!G27+'Non Linked'!G27 -> 1048174 | H27: =+Linked!H27+'Non Linked'!H27 -> 1023626 | I27: =+Linked!I27+'Non Linked'!I27 -> 0 | J27: =+Linked!J27+'Non Linked'!J27 -> 0 | K27: =+Linked!K27+'Non Linked'!K27 -> 0 | L27: =+Linked!L27+'Non Linked'!L27 -> -5 | M27: =+Linked!M27+'Non Linked'!M27 -> 180143 | N27: =+Linked!N27+'Non Linked'!N27 -> 200775 | O27: =+Linked!O27+'Non Linked'!O27 -> 0 | P27: =+Linked!P27+'Non Linked'!P27 -> 0 | Q27: =+Linked!Q27+'Non Linked'!Q27 -> 1981721
B28: STAR DISCOVER LIFE INSURANCE | C28: =+Linked!C28+'Non Linked'!C28 -> 0 | D28: =+Linked!D28+'Non Linked'!D28 -> 0 | E28: =+Linked!E28+'Non Linked'!E28 -> 0 | F28: =+Linked!F28+'Non Linked'!F28 -> 0 | G28: =+Linked!G28+'Non Linked'!G28 -> 0 | H28: =+Linked!H28+'Non Linked'!H28 -> 0 | I28: =+Linked!I28+'Non Linked'!I28 -> 0 | J28: =+Linked!J28+'Non Linked'!J28 -> 0 | K28: =+Linked!K28+'Non Linked'!K28 -> 0 | L28: =+Linked!L28+'Non Linked'!L28 -> 0 | M28: =+Linked!M28+'Non Linked'!M28 -> 0 | N28: =+Linked!N28+'Non Linked'!N28 -> 0 | O28: =+Linked!O28+'Non Linked'!O28 -> 0 | P28: =+Linked!P28+'Non Linked'!P28 -> 0 | Q28: =+Linked!Q28+'Non Linked'!Q28 -> 0
B29: THE KENYAN ALLIANCE INSURANCE | C29: =+Linked!C29+'Non Linked'!C29 -> 384775 | D29: =+Linked!D29+'Non Linked'!D29 -> 41500 | E29: =+Linked!E29+'Non Linked'!E29 -> 41500 | F29: =+Linked!F29+'Non Linked'!F29 -> 0 | G29: =+Linked!G29+'Non Linked'!G29 -> 155379 | H29: =+Linked!H29+'Non Linked'!H29 -> 118341 | I29: =+Linked!I29+'Non Linked'!I29 -> 0 | J29: =+Linked!J29+'Non Linked'!J29 -> 0 | K29: =+Linked!K29+'Non Linked'!K29 -> 0 | L29: =+Linked!L29+'Non Linked'!L29 -> 966 | M29: =+Linked!M29+'Non Linked'!M29 -> 2417 | N29: =+Linked!N29+'Non Linked'!N29 -> 17315 | O29: =+Linked!O29+'Non Linked'!O29 -> 0 | P29: =+Linked!P29+'Non Linked'!P29 -> 90314 | Q29: =+Linked!Q29+'Non Linked'!Q29 -> 231551
B30: THE MONARCH INSURANCE | C30: =+Linked!C30+'Non Linked'!C30 -> 0 | D30: =+Linked!D30+'Non Linked'!D30 -> 0 | E30: =+Linked!E30+'Non Linked'!E30 -> 0 | F30: =+Linked!F30+'Non Linked'!F30 -> 0 | G30: =+Linked!G30+'Non Linked'!G30 -> 0 | H30: =+Linked!H30+'Non Linked'!H30 -> 0 | I30: =+Linked!I30+'Non Linked'!I30 -> 0 | J30: =+Linked!J30+'Non Linked'!J30 -> 0 | K30: =+Linked!K30+'Non Linked'!K30 -> 0 | L30: =+Linked!L30+'Non Linked'!L30 -> 0 | M30: =+Linked!M30+'Non Linked'!M30 -> 0 | N30: =+Linked!N30+'Non Linked'!N30 -> 0 | O30: =+Linked!O30+'Non Linked'!O30 -> 0 | P30: =+Linked!P30+'Non Linked'!P30 -> 0 | Q30: =+Linked!Q30+'Non Linked'!Q30 -> 0
B31: TOTAL | C31: =SUM(C6:C30) -> 15658338 | D31: 4056079 | E31: 4056047 | F31: -33575 | G31: 5045108 | H31: 3113811 | I31: 1848013 | J31: 80423 | K31: 0 | L31: 68232 | M31: 439384 | N31: 1433937 | O31: 21951 | P31: 338127 | Q31: 15204807
B32: REINSURERS
B33: CONTINENTAL REINSURANCE | C33: 0 | D33: 0 | E33: 0 | F33: 0 | G33: 0 | H33: 0 | I33: 0 | J33: 0 | K33: 0 | L33: 0 | M33: 0 | N33: 0 | O33: 0 | P33: 0 | Q33: 0
B34: EAST AFRICA REINSURANCE | C34: 0 | D34: 0 | E34: 0 | F34: 0 | G34: 0 | H34: 0 | I34: 0 | J34: 0 | K34: 0 | L34: 0 | M34: 0 | N34: 0 | O34: 0 | P34: 0 | Q34: 0
B35: KENYA REINSURANCE CORPORATION | C35: 0 | D35: 0 | E35: 0 | F35: 0 | G35: 0 | H35: 0 | I35: 0 | J35: 0 | K35: 0 | L35: 0 | M35: 0 | N35: 0 | O35: 0 | P35: 0 | Q35: 0
B36: TOTAL | C36: =SUM(C33:C35) -> 0 | D36: =SUM(D33:D35) -> 0 | E36: 0 | F36: 0 | G36: 0 | H36: 0 | I36: 0 | J36: 0 | K36: 0 | L36: 0 | M36: 0 | N36: 0 | O36: 0 | P36: 0 | Q36: 0
B37: Amounts in Thousand Shillings

Sheet APPENDIX 17
B3: APPENDIX 17: SUMMARY OF COMBINED LONG TERM BUSINESS REVENUE ACCOUNTS FOR THE YEAR ENDED 31.12.2022
B4: Company | C4: Life Fund BF | D4: Gross Premium | E4: Net Premium | F4: Other (Fee) Income | G4: Total Benefits | H4: Claims | I4: Surrenders | J4: Bonuses Paid | K4: Annuities Paid | L4: Net Commisions | M4: Expense of Management | N4: Investment Income | O4: Investment Expenses | P4: Transfer To (From) P & L | Q4: Life Fund CF
B5: INSURERS
B6: ABSA LIFE ASSURANCE | C6: ='APPENDIX 9'!C6+'APPENDIX 10'!C6+'APPENDIX 11'!C6+PENSIONS!C6+'APPENDIX 14'!C6+'APPENDIX 15'!C6+'APPENDIX 16'!C6 -> 5330724 | D6: ='APPENDIX 9'!D6+'APPENDIX 10'!D6+'APPENDIX 11'!D6+PENSIONS!D6+'APPENDIX 14'!D6+'APPENDIX 15'!D6+'APPENDIX 16'!D6 -> 5697721 | E6: ='APPENDIX 9'!E6+'APPENDIX 10'!E6+'APPENDIX 11'!E6+PENSIONS!E6+'APPENDIX 14'!E6+'APPENDIX 15'!E6+'APPENDIX 16'!E6 -> 4257274 | F6: ='APPENDIX 9'!F6+'APPENDIX 10'!F6+'APPENDIX 11'!F6+PENSIONS!F6+'APPENDIX 14'!F6+'APPENDIX 15'!F6+'APPENDIX 16'!F6 -> 0 | G6: ='APPENDIX 9'!G6+'APPENDIX 10'!G6+'APPENDIX 11'!G6+PENSIONS!G6+'APPENDIX 14'!G6+'APPENDIX 15'!G6+'APPENDIX 16'!G6 -> 3285513 | H6: ='APPENDIX 9'!H6+'APPENDIX 10'!H6+'APPENDIX 11'!H6+PENSIONS!H6+'APPENDIX 14'!H6+'APPENDIX 15'!H6+'APPENDIX 16'!H6 -> 1626938 | I6: ='APPENDIX 9'!I6+'APPENDIX 10'!I6+'APPENDIX 11'!I6+PENSIONS!I6+'APPENDIX 14'!I6+'APPENDIX 15'!I6+'APPENDIX 16'!I6 -> 0 | J6: ='APPENDIX 9'!J6+'APPENDIX 10'!J6+'APPENDIX 11'!J6+PENSIONS!J6+'APPENDIX 14'!J6+'APPENDIX 15'!J6+'APPENDIX 16'!J6 -> 0 | K6: ='APPENDIX 9'!K6+'APPENDIX 10'!K6+'APPENDIX 11'!K6+PENSIONS!K6+'APPENDIX 14'!K6+'APPENDIX 15'!K6+'APPENDIX 16'!K6 -> 0 | L6: ='APPENDIX 9'!L6+'APPENDIX 10'!L6+'APPENDIX 11'!L6+PENSIONS!L6+'APPENDIX 14'!L6+'APPENDIX 15'!L6+'APPENDIX 16'!L6 -> 813650 | M6: ='APPENDIX 9'!M6+'APPENDIX 10'!M6+'APPENDIX 11'!M6+PENSIONS!M6+'APPENDIX 14'!M6+'APPENDIX 15'!M6+'APPENDIX 16'!M6 -> 805784 | N6: ='APPENDIX 9'!N6+'APPENDIX 10'!N6+'APPENDIX 11'!N6+PENSIONS!N6+'APPENDIX 14'!N6+'APPENDIX 15'!N6+'APPENDIX 16'!N6 -> 849015 | O6: ='APPENDIX 9'!O6+'APPENDIX 10'!O6+'APPENDIX 11'!O6+PENSIONS!O6+'APPENDIX 14'!O6+'APPENDIX 15'!O6+'APPENDIX 16'!O6 -> 0 | P6: ='APPENDIX 9'!P6+'APPENDIX 10'!P6+'APPENDIX 11'!P6+PENSIONS!P6+'APPENDIX 14'!P6+'APPENDIX 15'!P6+'APPENDIX 16'!P6 -> 0 | Q6: ='APPENDIX 9'!Q6+'APPENDIX 10'!Q6+'APPENDIX 11'!Q6+PENSIONS!Q6+'APPENDIX 14'!Q6+'APPENDIX 15'!Q6+'APPENDIX 16'!Q6 -> 7190642
B7: APA LIFE ASSURANCE COMPANY | C7: ='APPENDIX 9'!C7+'APPENDIX 10'!C7+'APPENDIX 11'!C7+PENSIONS!C7+'APPENDIX 14'!C7+'APPENDIX 15'!C7+'APPENDIX 16'!C7 -> 7157788 | D7: ='APPENDIX 9'!D7+'APPENDIX 10'!D7+'APPENDIX 11'!D7+PENSIONS!D7+'APPENDIX 14'!D7+'APPENDIX 15'!D7+'APPENDIX 16'!D7 -> 4827633 | E7: ='APPENDIX 9'!E7+'APPENDIX 10'!E7+'APPENDIX 11'!E7+PENSIONS!E7+'APPENDIX 14'!E7+'APPENDIX 15'!E7+'APPENDIX 16'!E7 -> 4064603 | F7: ='APPENDIX 9'!F7+'APPENDIX 10'!F7+'APPENDIX 11'!F7+PENSIONS!F7+'APPENDIX 14'!F7+'APPENDIX 15'!F7+'APPENDIX 16'!F7 -> 0 | G7: ='APPENDIX 9'!G7+'APPENDIX 10'!G7+'APPENDIX 11'!G7+PENSIONS!G7+'APPENDIX 14'!G7+'APPENDIX 15'!G7+'APPENDIX 16'!G7 -> 1502494 | H7: ='APPENDIX 9'!H7+'APPENDIX 10'!H7+'APPENDIX 11'!H7+PENSIONS!H7+'APPENDIX 14'!H7+'APPENDIX 15'!H7+'APPENDIX 16'!H7 -> 1614246 | I7: ='APPENDIX 9'!I7+'APPENDIX 10'!I7+'APPENDIX 11'!I7+PENSIONS!I7+'APPENDIX 14'!I7+'APPENDIX 15'!I7+'APPENDIX 16'!I7 -> 0 | J7: ='APPENDIX 9'!J7+'APPENDIX 10'!J7+'APPENDIX 11'!J7+PENSIONS!J7+'APPENDIX 14'!J7+'APPENDIX 15'!J7+'APPENDIX 16'!J7 -> 0 | K7: ='APPENDIX 9'!K7+'APPENDIX 10'!K7+'APPENDIX 11'!K7+PENSIONS!K7+'APPENDIX 14'!K7+'APPENDIX 15'!K7+'APPENDIX 16'!K7 -> 0 | L7: ='APPENDIX 9'!L7+'APPENDIX 10'!L7+'APPENDIX 11'!L7+PENSIONS!L7+'APPENDIX 14'!L7+'APPENDIX 15'!L7+'APPENDIX 16'!L7 -> 347290 | M7: ='APPENDIX 9'!M7+'APPENDIX 10'!M7+'APPENDIX 11'!M7+PENSIONS!M7+'APPENDIX 14'!M7+'APPENDIX 15'!M7+'APPENDIX 16'!M7 -> 323565 | N7: ='APPENDIX 9'!N7+'APPENDIX 10'!N7+'APPENDIX 11'!N7+PENSIONS!N7+'APPENDIX 14'!N7+'APPENDIX 15'!N7+'APPENDIX 16'!N7 -> 827348 | O7: ='APPENDIX 9'!O7+'APPENDIX 10'!O7+'APPENDIX 11'!O7+PENSIONS!O7+'APPENDIX 14'!O7+'APPENDIX 15'!O7+'APPENDIX 16'!O7 -> 34068 | P7: ='APPENDIX 9'!P7+'APPENDIX 10'!P7+'APPENDIX 11'!P7+PENSIONS!P7+'APPENDIX 14'!P7+'APPENDIX 15'!P7+'APPENDIX 16'!P7 -> -107796 | Q7: ='APPENDIX 9'!Q7+'APPENDIX 10'!Q7+'APPENDIX 11'!Q7+PENSIONS!Q7+'APPENDIX 14'!Q7+'APPENDIX 15'!Q7+'APPENDIX 16'!Q7 -> 9838363
B8: BRITAM LIFE ASSURANCE | C8: ='APPENDIX 9'!C8+'APPENDIX 10'!C8+'APPENDIX 11'!C8+PENSIONS!C8+'APPENDIX 14'!C8+'APPENDIX 15'!C8+'APPENDIX 16'!C8 -> 101639331 | D8: ='APPENDIX 9'!D8+'APPENDIX 10'!D8+'APPENDIX 11'!D8+PENSIONS!D8+'APPENDIX 14'!D8+'APPENDIX 15'!D8+'APPENDIX 16'!D8 -> 28384667 | E8: ='APPENDIX 9'!E8+'APPENDIX 10'!E8+'APPENDIX 11'!E8+PENSIONS!E8+'APPENDIX 14'!E8+'APPENDIX 15'!E8+'APPENDIX 16'!E8 -> 27679243 | F8: ='APPENDIX 9'!F8+'APPENDIX 10'!F8+'APPENDIX 11'!F8+PENSIONS!F8+'APPENDIX 14'!F8+'APPENDIX 15'!F8+'APPENDIX 16'!F8 -> 24603 | G8: ='APPENDIX 9'!G8+'APPENDIX 10'!G8+'APPENDIX 11'!G8+PENSIONS!G8+'APPENDIX 14'!G8+'APPENDIX 15'!G8+'APPENDIX 16'!G8 -> 20137997 | H8: ='APPENDIX 9'!H8+'APPENDIX 10'!H8+'APPENDIX 11'!H8+PENSIONS!H8+'APPENDIX 14'!H8+'APPENDIX 15'!H8+'APPENDIX 16'!H8 -> 14269709 | I8: ='APPENDIX 9'!I8+'APPENDIX 10'!I8+'APPENDIX 11'!I8+PENSIONS!I8+'APPENDIX 14'!I8+'APPENDIX 15'!I8+'APPENDIX 16'!I8 -> 1856699 | J8: ='APPENDIX 9'!J8+'APPENDIX 10'!J8+'APPENDIX 11'!J8+PENSIONS!J8+'APPENDIX 14'!J8+'APPENDIX 15'!J8+'APPENDIX 16'!J8 -> 2540067 | K8: ='APPENDIX 9'!K8+'APPENDIX 10'!K8+'APPENDIX 11'!K8+PENSIONS!K8+'APPENDIX 14'!K8+'APPENDIX 15'!K8+'APPENDIX 16'!K8 -> 1425356 | L8: ='APPENDIX 9'!L8+'APPENDIX 10'!L8+'APPENDIX 11'!L8+PENSIONS!L8+'APPENDIX 14'!L8+'APPENDIX 15'!L8+'APPENDIX 16'!L8 -> 1274272 | M8: ='APPENDIX 9'!M8+'APPENDIX 10'!M8+'APPENDIX 11'!M8+PENSIONS!M8+'APPENDIX 14'!M8+'APPENDIX 15'!M8+'APPENDIX 16'!M8 -> 3007205 | N8: ='APPENDIX 9'!N8+'APPENDIX 10'!N8+'APPENDIX 11'!N8+PENSIONS!N8+'APPENDIX 14'!N8+'APPENDIX 15'!N8+'APPENDIX 16'!N8 -> 8088271 | O8: ='APPENDIX 9'!O8+'APPENDIX 10'!O8+'APPENDIX 11'!O8+PENSIONS!O8+'APPENDIX 14'!O8+'APPENDIX 15'!O8+'APPENDIX 16'!O8 -> 140297 | P8: ='APPENDIX 9'!P8+'APPENDIX 10'!P8+'APPENDIX 11'!P8+PENSIONS!P8+'APPENDIX 14'!P8+'APPENDIX 15'!P8+'APPENDIX 16'!P8 -> 2205871 | Q8: ='APPENDIX 9'!Q8+'APPENDIX 10'!Q8+'APPENDIX 11'!Q8+PENSIONS!Q8+'APPENDIX 14'!Q8+'APPENDIX 15'!Q8+'APPENDIX 16'!Q8 -> 110711972
B9: CANNON LIFE ASSURANCE (K) LIMITED | C9: ='APPENDIX 9'!C9+'APPENDIX 10'!C9+'APPENDIX 11'!C9+PENSIONS!C9+'APPENDIX 14'!C9+'APPENDIX 15'!C9+'APPENDIX 16'!C9 -> 1237314 | D9: ='APPENDIX 9'!D9+'APPENDIX 10'!D9+'APPENDIX 11'!D9+PENSIONS!D9+'APPENDIX 14'!D9+'APPENDIX 15'!D9+'APPENDIX 16'!D9 -> 419432 | E9: ='APPENDIX 9'!E9+'APPENDIX 10'!E9+'APPENDIX 11'!E9+PENSIONS!E9+'APPENDIX 14'!E9+'APPENDIX 15'!E9+'APPENDIX 16'!E9 -> 197432 | F9: ='APPENDIX 9'!F9+'APPENDIX 10'!F9+'APPENDIX 11'!F9+PENSIONS!F9+'APPENDIX 14'!F9+'APPENDIX 15'!F9+'APPENDIX 16'!F9 -> -61410 | G9: ='APPENDIX 9'!G9+'APPENDIX 10'!G9+'APPENDIX 11'!G9+PENSIONS!G9+'APPENDIX 14'!G9+'APPENDIX 15'!G9+'APPENDIX 16'!G9 -> 225603 | H9: ='APPENDIX 9'!H9+'APPENDIX 10'!H9+'APPENDIX 11'!H9+PENSIONS!H9+'APPENDIX 14'!H9+'APPENDIX 15'!H9+'APPENDIX 16'!H9 -> 225603 | I9: ='APPENDIX 9'!I9+'APPENDIX 10'!I9+'APPENDIX 11'!I9+PENSIONS!I9+'APPENDIX 14'!I9+'APPENDIX 15'!I9+'APPENDIX 16'!I9 -> 50750 | J9: ='APPENDIX 9'!J9+'APPENDIX 10'!J9+'APPENDIX 11'!J9+PENSIONS!J9+'APPENDIX 14'!J9+'APPENDIX 15'!J9+'APPENDIX 16'!J9 -> 0 | K9: ='APPENDIX 9'!K9+'APPENDIX 10'!K9+'APPENDIX 11'!K9+PENSIONS!K9+'APPENDIX 14'!K9+'APPENDIX 15'!K9+'APPENDIX 16'!K9 -> 0 | L9: ='APPENDIX 9'!L9+'APPENDIX 10'!L9+'APPENDIX 11'!L9+PENSIONS!L9+'APPENDIX 14'!L9+'APPENDIX 15'!L9+'APPENDIX 16'!L9 -> -16543 | M9: ='APPENDIX 9'!M9+'APPENDIX 10'!M9+'APPENDIX 11'!M9+PENSIONS!M9+'APPENDIX 14'!M9+'APPENDIX 15'!M9+'APPENDIX 16'!M9 -> 219390 | N9: ='APPENDIX 9'!N9+'APPENDIX 10'!N9+'APPENDIX 11'!N9+PENSIONS!N9+'APPENDIX 14'!N9+'APPENDIX 15'!N9+'APPENDIX 16'!N9 -> 96065 | O9: ='APPENDIX 9'!O9+'APPENDIX 10'!O9+'APPENDIX 11'!O9+PENSIONS!O9+'APPENDIX 14'!O9+'APPENDIX 15'!O9+'APPENDIX 16'!O9 -> 0 | P9: ='APPENDIX 9'!P9+'APPENDIX 10'!P9+'APPENDIX 11'!P9+PENSIONS!P9+'APPENDIX 14'!P9+'APPENDIX 15'!P9+'APPENDIX 16'!P9 -> -27602 | Q9: ='APPENDIX 9'!Q9+'APPENDIX 10'!Q9+'APPENDIX 11'!Q9+PENSIONS!Q9+'APPENDIX 14'!Q9+'APPENDIX 15'!Q9+'APPENDIX 16'!Q9 -> 1017801
B10: CAPEX LIFE ASSURANCE COMPANY | C10: ='APPENDIX 9'!C10+'APPENDIX 10'!C10+'APPENDIX 11'!C10+PENSIONS!C10+'APPENDIX 14'!C10+'APPENDIX 15'!C10+'APPENDIX 16'!C10 -> 640317 | D10: ='APPENDIX 9'!D10+'APPENDIX 10'!D10+'APPENDIX 11'!D10+PENSIONS!D10+'APPENDIX 14'!D10+'APPENDIX 15'!D10+'APPENDIX 16'!D10 -> 1031420 | E10: ='APPENDIX 9'!E10+'APPENDIX 10'!E10+'APPENDIX 11'!E10+PENSIONS!E10+'APPENDIX 14'!E10+'APPENDIX 15'!E10+'APPENDIX 16'!E10 -> 843272 | F10: ='APPENDIX 9'!F10+'APPENDIX 10'!F10+'APPENDIX 11'!F10+PENSIONS!F10+'APPENDIX 14'!F10+'APPENDIX 15'!F10+'APPENDIX 16'!F10 -> 0 | G10: ='APPENDIX 9'!G10+'APPENDIX 10'!G10+'APPENDIX 11'!G10+PENSIONS!G10+'APPENDIX 14'!G10+'APPENDIX 15'!G10+'APPENDIX 16'!G10 -> 344360 | H10: ='APPENDIX 9'!H10+'APPENDIX 10'!H10+'APPENDIX 11'!H10+PENSIONS!H10+'APPENDIX 14'!H10+'APPENDIX 15'!H10+'APPENDIX 16'!H10 -> 193079 | I10: ='APPENDIX 9'!I10+'APPENDIX 10'!I10+'APPENDIX 11'!I10+PENSIONS!I10+'APPENDIX 14'!I10+'APPENDIX 15'!I10+'APPENDIX 16'!I10 -> 246 | J10: ='APPENDIX 9'!J10+'APPENDIX 10'!J10+'APPENDIX 11'!J10+PENSIONS!J10+'APPENDIX 14'!J10+'APPENDIX 15'!J10+'APPENDIX 16'!J10 -> 0 | K10: ='APPENDIX 9'!K10+'APPENDIX 10'!K10+'APPENDIX 11'!K10+PENSIONS!K10+'APPENDIX 14'!K10+'APPENDIX 15'!K10+'APPENDIX 16'!K10 -> 182072 | L10: ='APPENDIX 9'!L10+'APPENDIX 10'!L10+'APPENDIX 11'!L10+PENSIONS!L10+'APPENDIX 14'!L10+'APPENDIX 15'!L10+'APPENDIX 16'!L10 -> 3452 | M10: ='APPENDIX 9'!M10+'APPENDIX 10'!M10+'APPENDIX 11'!M10+PENSIONS!M10+'APPENDIX 14'!M10+'APPENDIX 15'!M10+'APPENDIX 16'!M10 -> 211270 | N10: ='APPENDIX 9'!N10+'APPENDIX 10'!N10+'APPENDIX 11'!N10+PENSIONS!N10+'APPENDIX 14'!N10+'APPENDIX 15'!N10+'APPENDIX 16'!N10 -> 17272 | O10: ='APPENDIX 9'!O10+'APPENDIX 10'!O10+'APPENDIX 11'!O10+PENSIONS!O10+'APPENDIX 14'!O10+'APPENDIX 15'!O10+'APPENDIX 16'!O10 -> 0 | P10: ='APPENDIX 9'!P10+'APPENDIX 10'!P10+'APPENDIX 11'!P10+PENSIONS!P10+'APPENDIX 14'!P10+'APPENDIX 15'!P10+'APPENDIX 16'!P10 -> 0 | Q10: ='APPENDIX 9'!Q10+'APPENDIX 10'!Q10+'APPENDIX 11'!Q10+PENSIONS!Q10+'APPENDIX 14'!Q10+'APPENDIX 15'!Q10+'APPENDIX 16'!Q10 -> 910739
B11: CIC LIFE ASSURANCE COMPANY | C11: ='APPENDIX 9'!C11+'APPENDIX 10'!C11+'APPENDIX 11'!C11+PENSIONS!C11+'APPENDIX 14'!C11+'APPENDIX 15'!C11+'APPENDIX 16'!C11 -> 15493098 | D11: ='APPENDIX 9'!D11+'APPENDIX 10'!D11+'APPENDIX 11'!D11+PENSIONS!D11+'APPENDIX 14'!D11+'APPENDIX 15'!D11+'APPENDIX 16'!D11 -> 8800988 | E11: ='APPENDIX 9'!E11+'APPENDIX 10'!E11+'APPENDIX 11'!E11+PENSIONS!E11+'APPENDIX 14'!E11+'APPENDIX 15'!E11+'APPENDIX 16'!E11 -> 7151194 | F11: ='APPENDIX 9'!F11+'APPENDIX 10'!F11+'APPENDIX 11'!F11+PENSIONS!F11+'APPENDIX 14'!F11+'APPENDIX 15'!F11+'APPENDIX 16'!F11 -> 0 | G11: ='APPENDIX 9'!G11+'APPENDIX 10'!G11+'APPENDIX 11'!G11+PENSIONS!G11+'APPENDIX 14'!G11+'APPENDIX 15'!G11+'APPENDIX 16'!G11 -> 3494897 | H11: ='APPENDIX 9'!H11+'APPENDIX 10'!H11+'APPENDIX 11'!H11+PENSIONS!H11+'APPENDIX 14'!H11+'APPENDIX 15'!H11+'APPENDIX 16'!H11 -> 3833103 | I11: ='APPENDIX 9'!I11+'APPENDIX 10'!I11+'APPENDIX 11'!I11+PENSIONS!I11+'APPENDIX 14'!I11+'APPENDIX 15'!I11+'APPENDIX 16'!I11 -> 0 | J11: ='APPENDIX 9'!J11+'APPENDIX 10'!J11+'APPENDIX 11'!J11+PENSIONS!J11+'APPENDIX 14'!J11+'APPENDIX 15'!J11+'APPENDIX 16'!J11 -> 0 | K11: ='APPENDIX 9'!K11+'APPENDIX 10'!K11+'APPENDIX 11'!K11+PENSIONS!K11+'APPENDIX 14'!K11+'APPENDIX 15'!K11+'APPENDIX 16'!K11 -> 0 | L11: ='APPENDIX 9'!L11+'APPENDIX 10'!L11+'APPENDIX 11'!L11+PENSIONS!L11+'APPENDIX 14'!L11+'APPENDIX 15'!L11+'APPENDIX 16'!L11 -> 353115 | M11: ='APPENDIX 9'!M11+'APPENDIX 10'!M11+'APPENDIX 11'!M11+PENSIONS!M11+'APPENDIX 14'!M11+'APPENDIX 15'!M11+'APPENDIX 16'!M11 -> 1668154 | N11: ='APPENDIX 9'!N11+'APPENDIX 10'!N11+'APPENDIX 11'!N11+PENSIONS!N11+'APPENDIX 14'!N11+'APPENDIX 15'!N11+'APPENDIX 16'!N11 -> 975719 | O11: ='APPENDIX 9'!O11+'APPENDIX 10'!O11+'APPENDIX 11'!O11+PENSIONS!O11+'APPENDIX 14'!O11+'APPENDIX 15'!O11+'APPENDIX 16'!O11 -> 0 | P11: ='APPENDIX 9'!P11+'APPENDIX 10'!P11+'APPENDIX 11'!P11+PENSIONS!P11+'APPENDIX 14'!P11+'APPENDIX 15'!P11+'APPENDIX 16'!P11 -> 115000 | Q11: ='APPENDIX 9'!Q11+'APPENDIX 10'!Q11+'APPENDIX 11'!Q11+PENSIONS!Q11+'APPENDIX 14'!Q11+'APPENDIX 15'!Q11+'APPENDIX 16'!Q11 -> 17650638
B12: CORPORATE INSURANCE COMPANY | C12: ='APPENDIX 9'!C12+'APPENDIX 10'!C12+'APPENDIX 11'!C12+PENSIONS!C12+'APPENDIX 14'!C12+'APPENDIX 15'!C12+'APPENDIX 16'!C12 -> 414416 | D12: ='APPENDIX 9'!D12+'APPENDIX 10'!D12+'APPENDIX 11'!D12+PENSIONS!D12+'APPENDIX 14'!D12+'APPENDIX 15'!D12+'APPENDIX 16'!D12 -> 132413 | E12: ='APPENDIX 9'!E12+'APPENDIX 10'!E12+'APPENDIX 11'!E12+PENSIONS!E12+'APPENDIX 14'!E12+'APPENDIX 15'!E12+'APPENDIX 16'!E12 -> 132413 | F12: ='APPENDIX 9'!F12+'APPENDIX 10'!F12+'APPENDIX 11'!F12+PENSIONS!F12+'APPENDIX 14'!F12+'APPENDIX 15'!F12+'APPENDIX 16'!F12 -> 0 | G12: ='APPENDIX 9'!G12+'APPENDIX 10'!G12+'APPENDIX 11'!G12+PENSIONS!G12+'APPENDIX 14'!G12+'APPENDIX 15'!G12+'APPENDIX 16'!G12 -> 220544 | H12: ='APPENDIX 9'!H12+'APPENDIX 10'!H12+'APPENDIX 11'!H12+PENSIONS!H12+'APPENDIX 14'!H12+'APPENDIX 15'!H12+'APPENDIX 16'!H12 -> 220544 | I12: ='APPENDIX 9'!I12+'APPENDIX 10'!I12+'APPENDIX 11'!I12+PENSIONS!I12+'APPENDIX 14'!I12+'APPENDIX 15'!I12+'APPENDIX 16'!I12 -> 0 | J12: ='APPENDIX 9'!J12+'APPENDIX 10'!J12+'APPENDIX 11'!J12+PENSIONS!J12+'APPENDIX 14'!J12+'APPENDIX 15'!J12+'APPENDIX 16'!J12 -> 0 | K12: ='APPENDIX 9'!K12+'APPENDIX 10'!K12+'APPENDIX 11'!K12+PENSIONS!K12+'APPENDIX 14'!K12+'APPENDIX 15'!K12+'APPENDIX 16'!K12 -> 0 | L12: ='APPENDIX 9'!L12+'APPENDIX 10'!L12+'APPENDIX 11'!L12+PENSIONS!L12+'APPENDIX 14'!L12+'APPENDIX 15'!L12+'APPENDIX 16'!L12 -> 5329 | M12: ='APPENDIX 9'!M12+'APPENDIX 10'!M12+'APPENDIX 11'!M12+PENSIONS!M12+'APPENDIX 14'!M12+'APPENDIX 15'!M12+'APPENDIX 16'!M12 -> 68547 | N12: ='APPENDIX 9'!N12+'APPENDIX 10'!N12+'APPENDIX 11'!N12+PENSIONS!N12+'APPENDIX 14'!N12+'APPENDIX 15'!N12+'APPENDIX 16'!N12 -> 0 | O12: ='APPENDIX 9'!O12+'APPENDIX 10'!O12+'APPENDIX 11'!O12+PENSIONS!O12+'APPENDIX 14'!O12+'APPENDIX 15'!O12+'APPENDIX 16'!O12 -> 0 | P12: ='APPENDIX 9'!P12+'APPENDIX 10'!P12+'APPENDIX 11'!P12+PENSIONS!P12+'APPENDIX 14'!P12+'APPENDIX 15'!P12+'APPENDIX 16'!P12 -> 37218 | Q12: ='APPENDIX 9'!Q12+'APPENDIX 10'!Q12+'APPENDIX 11'!Q12+PENSIONS!Q12+'APPENDIX 14'!Q12+'APPENDIX 15'!Q12+'APPENDIX 16'!Q12 -> 215191
B13: EQUITY LIFE ASSURANCE | C13: ='APPENDIX 9'!C13+'APPENDIX 10'!C13+'APPENDIX 11'!C13+PENSIONS!C13+'APPENDIX 14'!C13+'APPENDIX 15'!C13+'APPENDIX 16'!C13 -> 0 | D13: ='APPENDIX 9'!D13+'APPENDIX 10'!D13+'APPENDIX 11'!D13+PENSIONS!D13+'APPENDIX 14'!D13+'APPENDIX 15'!D13+'APPENDIX 16'!D13 -> 4371241 | E13: ='APPENDIX 9'!E13+'APPENDIX 10'!E13+'APPENDIX 11'!E13+PENSIONS!E13+'APPENDIX 14'!E13+'APPENDIX 15'!E13+'APPENDIX 16'!E13 -> 2840330 | F13: ='APPENDIX 9'!F13+'APPENDIX 10'!F13+'APPENDIX 11'!F13+PENSIONS!F13+'APPENDIX 14'!F13+'APPENDIX 15'!F13+'APPENDIX 16'!F13 -> 335922 | G13: ='APPENDIX 9'!G13+'APPENDIX 10'!G13+'APPENDIX 11'!G13+PENSIONS!G13+'APPENDIX 14'!G13+'APPENDIX 15'!G13+'APPENDIX 16'!G13 -> 71233 | H13: ='APPENDIX 9'!H13+'APPENDIX 10'!H13+'APPENDIX 11'!H13+PENSIONS!H13+'APPENDIX 14'!H13+'APPENDIX 15'!H13+'APPENDIX 16'!H13 -> 99352 | I13: ='APPENDIX 9'!I13+'APPENDIX 10'!I13+'APPENDIX 11'!I13+PENSIONS!I13+'APPENDIX 14'!I13+'APPENDIX 15'!I13+'APPENDIX 16'!I13 -> 0 | J13: ='APPENDIX 9'!J13+'APPENDIX 10'!J13+'APPENDIX 11'!J13+PENSIONS!J13+'APPENDIX 14'!J13+'APPENDIX 15'!J13+'APPENDIX 16'!J13 -> 0 | K13: ='APPENDIX 9'!K13+'APPENDIX 10'!K13+'APPENDIX 11'!K13+PENSIONS!K13+'APPENDIX 14'!K13+'APPENDIX 15'!K13+'APPENDIX 16'!K13 -> 0 | L13: ='APPENDIX 9'!L13+'APPENDIX 10'!L13+'APPENDIX 11'!L13+PENSIONS!L13+'APPENDIX 14'!L13+'APPENDIX 15'!L13+'APPENDIX 16'!L13 -> 88385 | M13: ='APPENDIX 9'!M13+'APPENDIX 10'!M13+'APPENDIX 11'!M13+PENSIONS!M13+'APPENDIX 14'!M13+'APPENDIX 15'!M13+'APPENDIX 16'!M13 -> 304864 | N13: ='APPENDIX 9'!N13+'APPENDIX 10'!N13+'APPENDIX 11'!N13+PENSIONS!N13+'APPENDIX 14'!N13+'APPENDIX 15'!N13+'APPENDIX 16'!N13 -> 196767 | O13: ='APPENDIX 9'!O13+'APPENDIX 10'!O13+'APPENDIX 11'!O13+PENSIONS!O13+'APPENDIX 14'!O13+'APPENDIX 15'!O13+'APPENDIX 16'!O13 -> 0 | P13: ='APPENDIX 9'!P13+'APPENDIX 10'!P13+'APPENDIX 11'!P13+PENSIONS!P13+'APPENDIX 14'!P13+'APPENDIX 15'!P13+'APPENDIX 16'!P13 -> 405206 | Q13: ='APPENDIX 9'!Q13+'APPENDIX 10'!Q13+'APPENDIX 11'!Q13+PENSIONS!Q13+'APPENDIX 14'!Q13+'APPENDIX 15'!Q13+'APPENDIX 16'!Q13 -> 2475213
B14: GA LIFE ASSURANCE COMPANY | C14: ='APPENDIX 9'!C14+'APPENDIX 10'!C14+'APPENDIX 11'!C14+PENSIONS!C14+'APPENDIX 14'!C14+'APPENDIX 15'!C14+'APPENDIX 16'!C14 -> 20282037 | D14: ='APPENDIX 9'!D14+'APPENDIX 10'!D14+'APPENDIX 11'!D14+PENSIONS!D14+'APPENDIX 14'!D14+'APPENDIX 15'!D14+'APPENDIX 16'!D14 -> 7478342 | E14: ='APPENDIX 9'!E14+'APPENDIX 10'!E14+'APPENDIX 11'!E14+PENSIONS!E14+'APPENDIX 14'!E14+'APPENDIX 15'!E14+'APPENDIX 16'!E14 -> 7413028 | F14: ='APPENDIX 9'!F14+'APPENDIX 10'!F14+'APPENDIX 11'!F14+PENSIONS!F14+'APPENDIX 14'!F14+'APPENDIX 15'!F14+'APPENDIX 16'!F14 -> 0 | G14: ='APPENDIX 9'!G14+'APPENDIX 10'!G14+'APPENDIX 11'!G14+PENSIONS!G14+'APPENDIX 14'!G14+'APPENDIX 15'!G14+'APPENDIX 16'!G14 -> 1808572 | H14: ='APPENDIX 9'!H14+'APPENDIX 10'!H14+'APPENDIX 11'!H14+PENSIONS!H14+'APPENDIX 14'!H14+'APPENDIX 15'!H14+'APPENDIX 16'!H14 -> 1810053 | I14: ='APPENDIX 9'!I14+'APPENDIX 10'!I14+'APPENDIX 11'!I14+PENSIONS!I14+'APPENDIX 14'!I14+'APPENDIX 15'!I14+'APPENDIX 16'!I14 -> 0 | J14: ='APPENDIX 9'!J14+'APPENDIX 10'!J14+'APPENDIX 11'!J14+PENSIONS!J14+'APPENDIX 14'!J14+'APPENDIX 15'!J14+'APPENDIX 16'!J14 -> 0 | K14: ='APPENDIX 9'!K14+'APPENDIX 10'!K14+'APPENDIX 11'!K14+PENSIONS!K14+'APPENDIX 14'!K14+'APPENDIX 15'!K14+'APPENDIX 16'!K14 -> 0 | L14: ='APPENDIX 9'!L14+'APPENDIX 10'!L14+'APPENDIX 11'!L14+PENSIONS!L14+'APPENDIX 14'!L14+'APPENDIX 15'!L14+'APPENDIX 16'!L14 -> 43318 | M14: ='APPENDIX 9'!M14+'APPENDIX 10'!M14+'APPENDIX 11'!M14+PENSIONS!M14+'APPENDIX 14'!M14+'APPENDIX 15'!M14+'APPENDIX 16'!M14 -> 103866 | N14: ='APPENDIX 9'!N14+'APPENDIX 10'!N14+'APPENDIX 11'!N14+PENSIONS!N14+'APPENDIX 14'!N14+'APPENDIX 15'!N14+'APPENDIX 16'!N14 -> 2930182 | O14: ='APPENDIX 9'!O14+'APPENDIX 10'!O14+'APPENDIX 11'!O14+PENSIONS!O14+'APPENDIX 14'!O14+'APPENDIX 15'!O14+'APPENDIX 16'!O14 -> 0 | P14: ='APPENDIX 9'!P14+'APPENDIX 10'!P14+'APPENDIX 11'!P14+PENSIONS!P14+'APPENDIX 14'!P14+'APPENDIX 15'!P14+'APPENDIX 16'!P14 -> 129855 | Q14: ='APPENDIX 9'!Q14+'APPENDIX 10'!Q14+'APPENDIX 11'!Q14+PENSIONS!Q14+'APPENDIX 14'!Q14+'APPENDIX 15'!Q14+'APPENDIX 16'!Q14 -> 28538157
B15: GEMINIA LIFE INSURANCE COMPANY | C15: ='APPENDIX 9'!C15+'APPENDIX 10'!C15+'APPENDIX 11'!C15+PENSIONS!C15+'APPENDIX 14'!C15+'APPENDIX 15'!C15+'APPENDIX 16'!C15 -> 1246388 | D15: ='APPENDIX 9'!D15+'APPENDIX 10'!D15+'APPENDIX 11'!D15+PENSIONS!D15+'APPENDIX 14'!D15+'APPENDIX 15'!D15+'APPENDIX 16'!D15 -> 1127188 | E15: ='APPENDIX 9'!E15+'APPENDIX 10'!E15+'APPENDIX 11'!E15+PENSIONS!E15+'APPENDIX 14'!E15+'APPENDIX 15'!E15+'APPENDIX 16'!E15 -> 546218 | F15: ='APPENDIX 9'!F15+'APPENDIX 10'!F15+'APPENDIX 11'!F15+PENSIONS!F15+'APPENDIX 14'!F15+'APPENDIX 15'!F15+'APPENDIX 16'!F15 -> 342681 | G15: ='APPENDIX 9'!G15+'APPENDIX 10'!G15+'APPENDIX 11'!G15+PENSIONS!G15+'APPENDIX 14'!G15+'APPENDIX 15'!G15+'APPENDIX 16'!G15 -> 234120 | H15: ='APPENDIX 9'!H15+'APPENDIX 10'!H15+'APPENDIX 11'!H15+PENSIONS!H15+'APPENDIX 14'!H15+'APPENDIX 15'!H15+'APPENDIX 16'!H15 -> 479009 | I15: ='APPENDIX 9'!I15+'APPENDIX 10'!I15+'APPENDIX 11'!I15+PENSIONS!I15+'APPENDIX 14'!I15+'APPENDIX 15'!I15+'APPENDIX 16'!I15 -> 0 | J15: ='APPENDIX 9'!J15+'APPENDIX 10'!J15+'APPENDIX 11'!J15+PENSIONS!J15+'APPENDIX 14'!J15+'APPENDIX 15'!J15+'APPENDIX 16'!J15 -> 0 | K15: ='APPENDIX 9'!K15+'APPENDIX 10'!K15+'APPENDIX 11'!K15+PENSIONS!K15+'APPENDIX 14'!K15+'APPENDIX 15'!K15+'APPENDIX 16'!K15 -> 0 | L15: ='APPENDIX 9'!L15+'APPENDIX 10'!L15+'APPENDIX 11'!L15+PENSIONS!L15+'APPENDIX 14'!L15+'APPENDIX 15'!L15+'APPENDIX 16'!L15 -> -31549 | M15: ='APPENDIX 9'!M15+'APPENDIX 10'!M15+'APPENDIX 11'!M15+PENSIONS!M15+'APPENDIX 14'!M15+'APPENDIX 15'!M15+'APPENDIX 16'!M15 -> 286426 | N15: ='APPENDIX 9'!N15+'APPENDIX 10'!N15+'APPENDIX 11'!N15+PENSIONS!N15+'APPENDIX 14'!N15+'APPENDIX 15'!N15+'APPENDIX 16'!N15 -> 198283 | O15: ='APPENDIX 9'!O15+'APPENDIX 10'!O15+'APPENDIX 11'!O15+PENSIONS!O15+'APPENDIX 14'!O15+'APPENDIX 15'!O15+'APPENDIX 16'!O15 -> 42350 | P15: ='APPENDIX 9'!P15+'APPENDIX 10'!P15+'APPENDIX 11'!P15+PENSIONS!P15+'APPENDIX 14'!P15+'APPENDIX 15'!P15+'APPENDIX 16'!P15 -> -31733 | Q15: ='APPENDIX 9'!Q15+'APPENDIX 10'!Q15+'APPENDIX 11'!Q15+PENSIONS!Q15+'APPENDIX 14'!Q15+'APPENDIX 15'!Q15+'APPENDIX 16'!Q15 -> 1589070
B16: ICEA LION LIFE ASSURANCE | C16: ='APPENDIX 9'!C16+'APPENDIX 10'!C16+'APPENDIX 11'!C16+PENSIONS!C16+'APPENDIX 14'!C16+'APPENDIX 15'!C16+'APPENDIX 16'!C16 -> 112996974 | D16: ='APPENDIX 9'!D16+'APPENDIX 10'!D16+'APPENDIX 11'!D16+PENSIONS!D16+'APPENDIX 14'!D16+'APPENDIX 15'!D16+'APPENDIX 16'!D16 -> 20700300 | E16: ='APPENDIX 9'!E16+'APPENDIX 10'!E16+'APPENDIX 11'!E16+PENSIONS!E16+'APPENDIX 14'!E16+'APPENDIX 15'!E16+'APPENDIX 16'!E16 -> 20345015 | F16: ='APPENDIX 9'!F16+'APPENDIX 10'!F16+'APPENDIX 11'!F16+PENSIONS!F16+'APPENDIX 14'!F16+'APPENDIX 15'!F16+'APPENDIX 16'!F16 -> 96213 | G16: ='APPENDIX 9'!G16+'APPENDIX 10'!G16+'APPENDIX 11'!G16+PENSIONS!G16+'APPENDIX 14'!G16+'APPENDIX 15'!G16+'APPENDIX 16'!G16 -> 314496 | H16: ='APPENDIX 9'!H16+'APPENDIX 10'!H16+'APPENDIX 11'!H16+PENSIONS!H16+'APPENDIX 14'!H16+'APPENDIX 15'!H16+'APPENDIX 16'!H16 -> 10060641 | I16: ='APPENDIX 9'!I16+'APPENDIX 10'!I16+'APPENDIX 11'!I16+PENSIONS!I16+'APPENDIX 14'!I16+'APPENDIX 15'!I16+'APPENDIX 16'!I16 -> 391557 | J16: ='APPENDIX 9'!J16+'APPENDIX 10'!J16+'APPENDIX 11'!J16+PENSIONS!J16+'APPENDIX 14'!J16+'APPENDIX 15'!J16+'APPENDIX 16'!J16 -> 0 | K16: ='APPENDIX 9'!K16+'APPENDIX 10'!K16+'APPENDIX 11'!K16+PENSIONS!K16+'APPENDIX 14'!K16+'APPENDIX 15'!K16+'APPENDIX 16'!K16 -> 1746722 | L16: ='APPENDIX 9'!L16+'APPENDIX 10'!L16+'APPENDIX 11'!L16+PENSIONS!L16+'APPENDIX 14'!L16+'APPENDIX 15'!L16+'APPENDIX 16'!L16 -> 1220116 | M16: ='APPENDIX 9'!M16+'APPENDIX 10'!M16+'APPENDIX 11'!M16+PENSIONS!M16+'APPENDIX 14'!M16+'APPENDIX 15'!M16+'APPENDIX 16'!M16 -> 1684924 | N16: ='APPENDIX 9'!N16+'APPENDIX 10'!N16+'APPENDIX 11'!N16+PENSIONS!N16+'APPENDIX 14'!N16+'APPENDIX 15'!N16+'APPENDIX 16'!N16 -> 9752881 | O16: ='APPENDIX 9'!O16+'APPENDIX 10'!O16+'APPENDIX 11'!O16+PENSIONS!O16+'APPENDIX 14'!O16+'APPENDIX 15'!O16+'APPENDIX 16'!O16 -> 0 | P16: ='APPENDIX 9'!P16+'APPENDIX 10'!P16+'APPENDIX 11'!P16+PENSIONS!P16+'APPENDIX 14'!P16+'APPENDIX 15'!P16+'APPENDIX 16'!P16 -> 1200000 | Q16: ='APPENDIX 9'!Q16+'APPENDIX 10'!Q16+'APPENDIX 11'!Q16+PENSIONS!Q16+'APPENDIX 14'!Q16+'APPENDIX 15'!Q16+'APPENDIX 16'!Q16 -> 126887124
B17: JUBILEE INSURANCE COMPANY | C17: ='APPENDIX 9'!C17+'APPENDIX 10'!C17+'APPENDIX 11'!C17+PENSIONS!C17+'APPENDIX 14'!C17+'APPENDIX 15'!C17+'APPENDIX 16'!C17 -> 88054876 | D17: ='APPENDIX 9'!D17+'APPENDIX 10'!D17+'APPENDIX 11'!D17+PENSIONS!D17+'APPENDIX 14'!D17+'APPENDIX 15'!D17+'APPENDIX 16'!D17 -> 17899393 | E17: ='APPENDIX 9'!E17+'APPENDIX 10'!E17+'APPENDIX 11'!E17+PENSIONS!E17+'APPENDIX 14'!E17+'APPENDIX 15'!E17+'APPENDIX 16'!E17 -> 17287925 | F17: ='APPENDIX 9'!F17+'APPENDIX 10'!F17+'APPENDIX 11'!F17+PENSIONS!F17+'APPENDIX 14'!F17+'APPENDIX 15'!F17+'APPENDIX 16'!F17 -> 0 | G17: ='APPENDIX 9'!G17+'APPENDIX 10'!G17+'APPENDIX 11'!G17+PENSIONS!G17+'APPENDIX 14'!G17+'APPENDIX 15'!G17+'APPENDIX 16'!G17 -> 12335366 | H17: ='APPENDIX 9'!H17+'APPENDIX 10'!H17+'APPENDIX 11'!H17+PENSIONS!H17+'APPENDIX 14'!H17+'APPENDIX 15'!H17+'APPENDIX 16'!H17 -> 10173800 | I17: ='APPENDIX 9'!I17+'APPENDIX 10'!I17+'APPENDIX 11'!I17+PENSIONS!I17+'APPENDIX 14'!I17+'APPENDIX 15'!I17+'APPENDIX 16'!I17 -> 546163 | J17: ='APPENDIX 9'!J17+'APPENDIX 10'!J17+'APPENDIX 11'!J17+PENSIONS!J17+'APPENDIX 14'!J17+'APPENDIX 15'!J17+'APPENDIX 16'!J17 -> 0 | K17: ='APPENDIX 9'!K17+'APPENDIX 10'!K17+'APPENDIX 11'!K17+PENSIONS!K17+'APPENDIX 14'!K17+'APPENDIX 15'!K17+'APPENDIX 16'!K17 -> 1383626 | L17: ='APPENDIX 9'!L17+'APPENDIX 10'!L17+'APPENDIX 11'!L17+PENSIONS!L17+'APPENDIX 14'!L17+'APPENDIX 15'!L17+'APPENDIX 16'!L17 -> 956610 | M17: ='APPENDIX 9'!M17+'APPENDIX 10'!M17+'APPENDIX 11'!M17+PENSIONS!M17+'APPENDIX 14'!M17+'APPENDIX 15'!M17+'APPENDIX 16'!M17 -> 1188941 | N17: ='APPENDIX 9'!N17+'APPENDIX 10'!N17+'APPENDIX 11'!N17+PENSIONS!N17+'APPENDIX 14'!N17+'APPENDIX 15'!N17+'APPENDIX 16'!N17 -> 9881178 | O17: ='APPENDIX 9'!O17+'APPENDIX 10'!O17+'APPENDIX 11'!O17+PENSIONS!O17+'APPENDIX 14'!O17+'APPENDIX 15'!O17+'APPENDIX 16'!O17 -> 104409 | P17: ='APPENDIX 9'!P17+'APPENDIX 10'!P17+'APPENDIX 11'!P17+PENSIONS!P17+'APPENDIX 14'!P17+'APPENDIX 15'!P17+'APPENDIX 16'!P17 -> 940643 | Q17: ='APPENDIX 9'!Q17+'APPENDIX 10'!Q17+'APPENDIX 11'!Q17+PENSIONS!Q17+'APPENDIX 14'!Q17+'APPENDIX 15'!Q17+'APPENDIX 16'!Q17 -> 99929788
B18: KENINDIA ASSURANCE COMPANY | C18: ='APPENDIX 9'!C18+'APPENDIX 10'!C18+'APPENDIX 11'!C18+PENSIONS!C18+'APPENDIX 14'!C18+'APPENDIX 15'!C18+'APPENDIX 16'!C18 -> 55160937 | D18: ='APPENDIX 9'!D18+'APPENDIX 10'!D18+'APPENDIX 11'!D18+PENSIONS!D18+'APPENDIX 14'!D18+'APPENDIX 15'!D18+'APPENDIX 16'!D18 -> 8773897 | E18: ='APPENDIX 9'!E18+'APPENDIX 10'!E18+'APPENDIX 11'!E18+PENSIONS!E18+'APPENDIX 14'!E18+'APPENDIX 15'!E18+'APPENDIX 16'!E18 -> 8742142 | F18: ='APPENDIX 9'!F18+'APPENDIX 10'!F18+'APPENDIX 11'!F18+PENSIONS!F18+'APPENDIX 14'!F18+'APPENDIX 15'!F18+'APPENDIX 16'!F18 -> 0 | G18: ='APPENDIX 9'!G18+'APPENDIX 10'!G18+'APPENDIX 11'!G18+PENSIONS!G18+'APPENDIX 14'!G18+'APPENDIX 15'!G18+'APPENDIX 16'!G18 -> 5462787 | H18: ='APPENDIX 9'!H18+'APPENDIX 10'!H18+'APPENDIX 11'!H18+PENSIONS!H18+'APPENDIX 14'!H18+'APPENDIX 15'!H18+'APPENDIX 16'!H18 -> 5068974 | I18: ='APPENDIX 9'!I18+'APPENDIX 10'!I18+'APPENDIX 11'!I18+PENSIONS!I18+'APPENDIX 14'!I18+'APPENDIX 15'!I18+'APPENDIX 16'!I18 -> 0 | J18: ='APPENDIX 9'!J18+'APPENDIX 10'!J18+'APPENDIX 11'!J18+PENSIONS!J18+'APPENDIX 14'!J18+'APPENDIX 15'!J18+'APPENDIX 16'!J18 -> 0 | K18: ='APPENDIX 9'!K18+'APPENDIX 10'!K18+'APPENDIX 11'!K18+PENSIONS!K18+'APPENDIX 14'!K18+'APPENDIX 15'!K18+'APPENDIX 16'!K18 -> 290549 | L18: ='APPENDIX 9'!L18+'APPENDIX 10'!L18+'APPENDIX 11'!L18+PENSIONS!L18+'APPENDIX 14'!L18+'APPENDIX 15'!L18+'APPENDIX 16'!L18 -> 237890 | M18: ='APPENDIX 9'!M18+'APPENDIX 10'!M18+'APPENDIX 11'!M18+PENSIONS!M18+'APPENDIX 14'!M18+'APPENDIX 15'!M18+'APPENDIX 16'!M18 -> 611869 | N18: ='APPENDIX 9'!N18+'APPENDIX 10'!N18+'APPENDIX 11'!N18+PENSIONS!N18+'APPENDIX 14'!N18+'APPENDIX 15'!N18+'APPENDIX 16'!N18 -> 7382845 | O18: ='APPENDIX 9'!O18+'APPENDIX 10'!O18+'APPENDIX 11'!O18+PENSIONS!O18+'APPENDIX 14'!O18+'APPENDIX 15'!O18+'APPENDIX 16'!O18 -> 0 | P18: ='APPENDIX 9'!P18+'APPENDIX 10'!P18+'APPENDIX 11'!P18+PENSIONS!P18+'APPENDIX 14'!P18+'APPENDIX 15'!P18+'APPENDIX 16'!P18 -> 503000 | Q18: ='APPENDIX 9'!Q18+'APPENDIX 10'!Q18+'APPENDIX 11'!Q18+PENSIONS!Q18+'APPENDIX 14'!Q18+'APPENDIX 15'!Q18+'APPENDIX 16'!Q18 -> 64573644
B19: KENYA ORIENT LIFE ASSURANCE | C19: ='APPENDIX 9'!C19+'APPENDIX 10'!C19+'APPENDIX 11'!C19+PENSIONS!C19+'APPENDIX 14'!C19+'APPENDIX 15'!C19+'APPENDIX 16'!C19 -> 2565893 | D19: ='APPENDIX 9'!D19+'APPENDIX 10'!D19+'APPENDIX 11'!D19+PENSIONS!D19+'APPENDIX 14'!D19+'APPENDIX 15'!D19+'APPENDIX 16'!D19 -> 1257324 | E19: ='APPENDIX 9'!E19+'APPENDIX 10'!E19+'APPENDIX 11'!E19+PENSIONS!E19+'APPENDIX 14'!E19+'APPENDIX 15'!E19+'APPENDIX 16'!E19 -> 1137478 | F19: ='APPENDIX 9'!F19+'APPENDIX 10'!F19+'APPENDIX 11'!F19+PENSIONS!F19+'APPENDIX 14'!F19+'APPENDIX 15'!F19+'APPENDIX 16'!F19 -> 0 | G19: ='APPENDIX 9'!G19+'APPENDIX 10'!G19+'APPENDIX 11'!G19+PENSIONS!G19+'APPENDIX 14'!G19+'APPENDIX 15'!G19+'APPENDIX 16'!G19 -> 404681 | H19: ='APPENDIX 9'!H19+'APPENDIX 10'!H19+'APPENDIX 11'!H19+PENSIONS!H19+'APPENDIX 14'!H19+'APPENDIX 15'!H19+'APPENDIX 16'!H19 -> 276060 | I19: ='APPENDIX 9'!I19+'APPENDIX 10'!I19+'APPENDIX 11'!I19+PENSIONS!I19+'APPENDIX 14'!I19+'APPENDIX 15'!I19+'APPENDIX 16'!I19 -> 1833 | J19: ='APPENDIX 9'!J19+'APPENDIX 10'!J19+'APPENDIX 11'!J19+PENSIONS!J19+'APPENDIX 14'!J19+'APPENDIX 15'!J19+'APPENDIX 16'!J19 -> 0 | K19: ='APPENDIX 9'!K19+'APPENDIX 10'!K19+'APPENDIX 11'!K19+PENSIONS!K19+'APPENDIX 14'!K19+'APPENDIX 15'!K19+'APPENDIX 16'!K19 -> 126788 | L19: ='APPENDIX 9'!L19+'APPENDIX 10'!L19+'APPENDIX 11'!L19+PENSIONS!L19+'APPENDIX 14'!L19+'APPENDIX 15'!L19+'APPENDIX 16'!L19 -> 55797 | M19: ='APPENDIX 9'!M19+'APPENDIX 10'!M19+'APPENDIX 11'!M19+PENSIONS!M19+'APPENDIX 14'!M19+'APPENDIX 15'!M19+'APPENDIX 16'!M19 -> 361285 | N19: ='APPENDIX 9'!N19+'APPENDIX 10'!N19+'APPENDIX 11'!N19+PENSIONS!N19+'APPENDIX 14'!N19+'APPENDIX 15'!N19+'APPENDIX 16'!N19 -> 303233 | O19: ='APPENDIX 9'!O19+'APPENDIX 10'!O19+'APPENDIX 11'!O19+PENSIONS!O19+'APPENDIX 14'!O19+'APPENDIX 15'!O19+'APPENDIX 16'!O19 -> 0 | P19: ='APPENDIX 9'!P19+'APPENDIX 10'!P19+'APPENDIX 11'!P19+PENSIONS!P19+'APPENDIX 14'!P19+'APPENDIX 15'!P19+'APPENDIX 16'!P19 -> 0 | Q19: ='APPENDIX 9'!Q19+'APPENDIX 10'!Q19+'APPENDIX 11'!Q19+PENSIONS!Q19+'APPENDIX 14'!Q19+'APPENDIX 15'!Q19+'APPENDIX 16'!Q19 -> 3184844
B20: KUSCCO MUTUAL ASSURANCE LIMITED | C20: ='APPENDIX 9'!C20+'APPENDIX 10'!C20+'APPENDIX 11'!C20+PENSIONS!C20+'APPENDIX 14'!C20+'APPENDIX 15'!C20+'APPENDIX 16'!C20 -> 235564 | D20: ='APPENDIX 9'!D20+'APPENDIX 10'!D20+'APPENDIX 11'!D20+PENSIONS!D20+'APPENDIX 14'!D20+'APPENDIX 15'!D20+'APPENDIX 16'!D20 -> 1517438 | E20: ='APPENDIX 9'!E20+'APPENDIX 10'!E20+'APPENDIX 11'!E20+PENSIONS!E20+'APPENDIX 14'!E20+'APPENDIX 15'!E20+'APPENDIX 16'!E20 -> 1100646 | F20: ='APPENDIX 9'!F20+'APPENDIX 10'!F20+'APPENDIX 11'!F20+PENSIONS!F20+'APPENDIX 14'!F20+'APPENDIX 15'!F20+'APPENDIX 16'!F20 -> 0 | G20: ='APPENDIX 9'!G20+'APPENDIX 10'!G20+'APPENDIX 11'!G20+PENSIONS!G20+'APPENDIX 14'!G20+'APPENDIX 15'!G20+'APPENDIX 16'!G20 -> 1294548 | H20: ='APPENDIX 9'!H20+'APPENDIX 10'!H20+'APPENDIX 11'!H20+PENSIONS!H20+'APPENDIX 14'!H20+'APPENDIX 15'!H20+'APPENDIX 16'!H20 -> 728650 | I20: ='APPENDIX 9'!I20+'APPENDIX 10'!I20+'APPENDIX 11'!I20+PENSIONS!I20+'APPENDIX 14'!I20+'APPENDIX 15'!I20+'APPENDIX 16'!I20 -> 0 | J20: ='APPENDIX 9'!J20+'APPENDIX 10'!J20+'APPENDIX 11'!J20+PENSIONS!J20+'APPENDIX 14'!J20+'APPENDIX 15'!J20+'APPENDIX 16'!J20 -> 0 | K20: ='APPENDIX 9'!K20+'APPENDIX 10'!K20+'APPENDIX 11'!K20+PENSIONS!K20+'APPENDIX 14'!K20+'APPENDIX 15'!K20+'APPENDIX 16'!K20 -> 0 | L20: ='APPENDIX 9'!L20+'APPENDIX 10'!L20+'APPENDIX 11'!L20+PENSIONS!L20+'APPENDIX 14'!L20+'APPENDIX 15'!L20+'APPENDIX 16'!L20 -> 115735 | M20: ='APPENDIX 9'!M20+'APPENDIX 10'!M20+'APPENDIX 11'!M20+PENSIONS!M20+'APPENDIX 14'!M20+'APPENDIX 15'!M20+'APPENDIX 16'!M20 -> 231266 | N20: ='APPENDIX 9'!N20+'APPENDIX 10'!N20+'APPENDIX 11'!N20+PENSIONS!N20+'APPENDIX 14'!N20+'APPENDIX 15'!N20+'APPENDIX 16'!N20 -> 29650 | O20: ='APPENDIX 9'!O20+'APPENDIX 10'!O20+'APPENDIX 11'!O20+PENSIONS!O20+'APPENDIX 14'!O20+'APPENDIX 15'!O20+'APPENDIX 16'!O20 -> 0 | P20: ='APPENDIX 9'!P20+'APPENDIX 10'!P20+'APPENDIX 11'!P20+PENSIONS!P20+'APPENDIX 14'!P20+'APPENDIX 15'!P20+'APPENDIX 16'!P20 -> 0 | Q20: ='APPENDIX 9'!Q20+'APPENDIX 10'!Q20+'APPENDIX 11'!Q20+PENSIONS!Q20+'APPENDIX 14'!Q20+'APPENDIX 15'!Q20+'APPENDIX 16'!Q20 -> 290211
B21: LIBERTY LIFE ASSURANCE COMPANY | C21: ='APPENDIX 9'!C21+'APPENDIX 10'!C21+'APPENDIX 11'!C21+PENSIONS!C21+'APPENDIX 14'!C21+'APPENDIX 15'!C21+'APPENDIX 16'!C21 -> 22825665 | D21: ='APPENDIX 9'!D21+'APPENDIX 10'!D21+'APPENDIX 11'!D21+PENSIONS!D21+'APPENDIX 14'!D21+'APPENDIX 15'!D21+'APPENDIX 16'!D21 -> 4956049 | E21: ='APPENDIX 9'!E21+'APPENDIX 10'!E21+'APPENDIX 11'!E21+PENSIONS!E21+'APPENDIX 14'!E21+'APPENDIX 15'!E21+'APPENDIX 16'!E21 -> 4666335 | F21: ='APPENDIX 9'!F21+'APPENDIX 10'!F21+'APPENDIX 11'!F21+PENSIONS!F21+'APPENDIX 14'!F21+'APPENDIX 15'!F21+'APPENDIX 16'!F21 -> -125267 | G21: ='APPENDIX 9'!G21+'APPENDIX 10'!G21+'APPENDIX 11'!G21+PENSIONS!G21+'APPENDIX 14'!G21+'APPENDIX 15'!G21+'APPENDIX 16'!G21 -> 4692688 | H21: ='APPENDIX 9'!H21+'APPENDIX 10'!H21+'APPENDIX 11'!H21+PENSIONS!H21+'APPENDIX 14'!H21+'APPENDIX 15'!H21+'APPENDIX 16'!H21 -> 4408310 | I21: ='APPENDIX 9'!I21+'APPENDIX 10'!I21+'APPENDIX 11'!I21+PENSIONS!I21+'APPENDIX 14'!I21+'APPENDIX 15'!I21+'APPENDIX 16'!I21 -> 0 | J21: ='APPENDIX 9'!J21+'APPENDIX 10'!J21+'APPENDIX 11'!J21+PENSIONS!J21+'APPENDIX 14'!J21+'APPENDIX 15'!J21+'APPENDIX 16'!J21 -> 0 | K21: ='APPENDIX 9'!K21+'APPENDIX 10'!K21+'APPENDIX 11'!K21+PENSIONS!K21+'APPENDIX 14'!K21+'APPENDIX 15'!K21+'APPENDIX 16'!K21 -> 0 | L21: ='APPENDIX 9'!L21+'APPENDIX 10'!L21+'APPENDIX 11'!L21+PENSIONS!L21+'APPENDIX 14'!L21+'APPENDIX 15'!L21+'APPENDIX 16'!L21 -> 336491 | M21: ='APPENDIX 9'!M21+'APPENDIX 10'!M21+'APPENDIX 11'!M21+PENSIONS!M21+'APPENDIX 14'!M21+'APPENDIX 15'!M21+'APPENDIX 16'!M21 -> 1340180 | N21: ='APPENDIX 9'!N21+'APPENDIX 10'!N21+'APPENDIX 11'!N21+PENSIONS!N21+'APPENDIX 14'!N21+'APPENDIX 15'!N21+'APPENDIX 16'!N21 -> 1107311 | O21: ='APPENDIX 9'!O21+'APPENDIX 10'!O21+'APPENDIX 11'!O21+PENSIONS!O21+'APPENDIX 14'!O21+'APPENDIX 15'!O21+'APPENDIX 16'!O21 -> 0 | P21: ='APPENDIX 9'!P21+'APPENDIX 10'!P21+'APPENDIX 11'!P21+PENSIONS!P21+'APPENDIX 14'!P21+'APPENDIX 15'!P21+'APPENDIX 16'!P21 -> 0 | Q21: ='APPENDIX 9'!Q21+'APPENDIX 10'!Q21+'APPENDIX 11'!Q21+PENSIONS!Q21+'APPENDIX 14'!Q21+'APPENDIX 15'!Q21+'APPENDIX 16'!Q21 -> 22389061
B22: MADISON INSURANCE COMPANY | C22: ='APPENDIX 9'!C22+'APPENDIX 10'!C22+'APPENDIX 11'!C22+PENSIONS!C22+'APPENDIX 14'!C22+'APPENDIX 15'!C22+'APPENDIX 16'!C22 -> 15412141 | D22: ='APPENDIX 9'!D22+'APPENDIX 10'!D22+'APPENDIX 11'!D22+PENSIONS!D22+'APPENDIX 14'!D22+'APPENDIX 15'!D22+'APPENDIX 16'!D22 -> 3440815 | E22: ='APPENDIX 9'!E22+'APPENDIX 10'!E22+'APPENDIX 11'!E22+PENSIONS!E22+'APPENDIX 14'!E22+'APPENDIX 15'!E22+'APPENDIX 16'!E22 -> 3256183 | F22: ='APPENDIX 9'!F22+'APPENDIX 10'!F22+'APPENDIX 11'!F22+PENSIONS!F22+'APPENDIX 14'!F22+'APPENDIX 15'!F22+'APPENDIX 16'!F22 -> 0 | G22: ='APPENDIX 9'!G22+'APPENDIX 10'!G22+'APPENDIX 11'!G22+PENSIONS!G22+'APPENDIX 14'!G22+'APPENDIX 15'!G22+'APPENDIX 16'!G22 -> 2988125 | H22: ='APPENDIX 9'!H22+'APPENDIX 10'!H22+'APPENDIX 11'!H22+PENSIONS!H22+'APPENDIX 14'!H22+'APPENDIX 15'!H22+'APPENDIX 16'!H22 -> 1742549 | I22: ='APPENDIX 9'!I22+'APPENDIX 10'!I22+'APPENDIX 11'!I22+PENSIONS!I22+'APPENDIX 14'!I22+'APPENDIX 15'!I22+'APPENDIX 16'!I22 -> 162869 | J22: ='APPENDIX 9'!J22+'APPENDIX 10'!J22+'APPENDIX 11'!J22+PENSIONS!J22+'APPENDIX 14'!J22+'APPENDIX 15'!J22+'APPENDIX 16'!J22 -> 0 | K22: ='APPENDIX 9'!K22+'APPENDIX 10'!K22+'APPENDIX 11'!K22+PENSIONS!K22+'APPENDIX 14'!K22+'APPENDIX 15'!K22+'APPENDIX 16'!K22 -> 1082708 | L22: ='APPENDIX 9'!L22+'APPENDIX 10'!L22+'APPENDIX 11'!L22+PENSIONS!L22+'APPENDIX 14'!L22+'APPENDIX 15'!L22+'APPENDIX 16'!L22 -> 328293 | M22: ='APPENDIX 9'!M22+'APPENDIX 10'!M22+'APPENDIX 11'!M22+PENSIONS!M22+'APPENDIX 14'!M22+'APPENDIX 15'!M22+'APPENDIX 16'!M22 -> 944696 | N22: ='APPENDIX 9'!N22+'APPENDIX 10'!N22+'APPENDIX 11'!N22+PENSIONS!N22+'APPENDIX 14'!N22+'APPENDIX 15'!N22+'APPENDIX 16'!N22 -> 967918 | O22: ='APPENDIX 9'!O22+'APPENDIX 10'!O22+'APPENDIX 11'!O22+PENSIONS!O22+'APPENDIX 14'!O22+'APPENDIX 15'!O22+'APPENDIX 16'!O22 -> 0 | P22: ='APPENDIX 9'!P22+'APPENDIX 10'!P22+'APPENDIX 11'!P22+PENSIONS!P22+'APPENDIX 14'!P22+'APPENDIX 15'!P22+'APPENDIX 16'!P22 -> 0 | Q22: ='APPENDIX 9'!Q22+'APPENDIX 10'!Q22+'APPENDIX 11'!Q22+PENSIONS!Q22+'APPENDIX 14'!Q22+'APPENDIX 15'!Q22+'APPENDIX 16'!Q22 -> 15375127
B23: OLD MUTUAL ASSURANCE | C23: ='APPENDIX 9'!C23+'APPENDIX 10'!C23+'APPENDIX 11'!C23+PENSIONS!C23+'APPENDIX 14'!C23+'APPENDIX 15'!C23+'APPENDIX 16'!C23 -> 10871579 | D23: ='APPENDIX 9'!D23+'APPENDIX 10'!D23+'APPENDIX 11'!D23+PENSIONS!D23+'APPENDIX 14'!D23+'APPENDIX 15'!D23+'APPENDIX 16'!D23 -> 1740582 | E23: ='APPENDIX 9'!E23+'APPENDIX 10'!E23+'APPENDIX 11'!E23+PENSIONS!E23+'APPENDIX 14'!E23+'APPENDIX 15'!E23+'APPENDIX 16'!E23 -> 1660947 | F23: ='APPENDIX 9'!F23+'APPENDIX 10'!F23+'APPENDIX 11'!F23+PENSIONS!F23+'APPENDIX 14'!F23+'APPENDIX 15'!F23+'APPENDIX 16'!F23 -> 357852 | G23: ='APPENDIX 9'!G23+'APPENDIX 10'!G23+'APPENDIX 11'!G23+PENSIONS!G23+'APPENDIX 14'!G23+'APPENDIX 15'!G23+'APPENDIX 16'!G23 -> 2719985 | H23: ='APPENDIX 9'!H23+'APPENDIX 10'!H23+'APPENDIX 11'!H23+PENSIONS!H23+'APPENDIX 14'!H23+'APPENDIX 15'!H23+'APPENDIX 16'!H23 -> 1097549 | I23: ='APPENDIX 9'!I23+'APPENDIX 10'!I23+'APPENDIX 11'!I23+PENSIONS!I23+'APPENDIX 14'!I23+'APPENDIX 15'!I23+'APPENDIX 16'!I23 -> 1658276 | J23: ='APPENDIX 9'!J23+'APPENDIX 10'!J23+'APPENDIX 11'!J23+PENSIONS!J23+'APPENDIX 14'!J23+'APPENDIX 15'!J23+'APPENDIX 16'!J23 -> 0 | K23: ='APPENDIX 9'!K23+'APPENDIX 10'!K23+'APPENDIX 11'!K23+PENSIONS!K23+'APPENDIX 14'!K23+'APPENDIX 15'!K23+'APPENDIX 16'!K23 -> 1166 | L23: ='APPENDIX 9'!L23+'APPENDIX 10'!L23+'APPENDIX 11'!L23+PENSIONS!L23+'APPENDIX 14'!L23+'APPENDIX 15'!L23+'APPENDIX 16'!L23 -> 109877 | M23: ='APPENDIX 9'!M23+'APPENDIX 10'!M23+'APPENDIX 11'!M23+PENSIONS!M23+'APPENDIX 14'!M23+'APPENDIX 15'!M23+'APPENDIX 16'!M23 -> 317442 | N23: ='APPENDIX 9'!N23+'APPENDIX 10'!N23+'APPENDIX 11'!N23+PENSIONS!N23+'APPENDIX 14'!N23+'APPENDIX 15'!N23+'APPENDIX 16'!N23 -> 589095 | O23: ='APPENDIX 9'!O23+'APPENDIX 10'!O23+'APPENDIX 11'!O23+PENSIONS!O23+'APPENDIX 14'!O23+'APPENDIX 15'!O23+'APPENDIX 16'!O23 -> 37356 | P23: ='APPENDIX 9'!P23+'APPENDIX 10'!P23+'APPENDIX 11'!P23+PENSIONS!P23+'APPENDIX 14'!P23+'APPENDIX 15'!P23+'APPENDIX 16'!P23 -> 60374 | Q23: ='APPENDIX 9'!Q23+'APPENDIX 10'!Q23+'APPENDIX 11'!Q23+PENSIONS!Q23+'APPENDIX 14'!Q23+'APPENDIX 15'!Q23+'APPENDIX 16'!Q23 -> 10197434
